Workbook

Sheet Datos
B2: Vigencia | C2: 2012-05-01 | I2: CONSIDERACIONES
B4: AjusteAnual | C4: =IF(G7,F7,IF(G6,F6,IF(G5,F5,IF(G4,F4,"FUERA DE RANGO")))) -> 2011-11-01 | F4: 2009-11-01 | G4: =AND(Vigencia>=F4,AND(G5=FALSE,G6=FALSE,G7=FALSE)) -> FALSE
F5: 2010-11-01 | G5: =AND(Vigencia>=F5,AND(G6=FALSE,G7=FALSE)) -> FALSE
C6: Empresa | D6: Amazonia | E6: Estado | F6: 2011-11-01 | G6: =AND(Vigencia>=F6,G7=FALSE) -> TRUE
A7: No | B7: AISL | C7: Aislados | E7: Si | F7: 2012-11-01 | G7: =AND(Vigencia>=F7,G8=FALSE) -> FALSE
A8: No | B8: CHAV | C8: Chavimochic | E8: Si
A9: No | B9: COEL | C9: Coelvisac | E9: No
A10: No | B10: EDCA | C10: Edecañete | E10: No
A11: No | B11: EDLN | C11: Edelnor | E11: No
A12: Si | B12: ELOR | C12: Electro Oriente | E12: Si
A13: Si | B13: EPAN | C13: Electro Pangoa | E13: Si
A14: No | B14: ELPU | C14: Electro Puno | E14: Si
A15: No | B15: ELSE | C15: Electro Sur Este | E15: Si
A16: No | B16: ELSM | C16: Electro Dunas | E16: No
A17: No | B17: ELTO | C17: Electro Tocache | E17: Si
A18: Si | B18: ELUC | C18: Electro Ucayali | E18: Si
A19: No | B19: ADIL | C19: Adinelsa | E19: Si
A20: No | B20: ELC | C20: Electrocentro | E20: Si
A21: No | B21: ELNO | C21: Electronoroeste | E21: Si
A22: No | B22: ELN | C22: Electronorte | E22: Si
A23: No | B23: ELS | C23: Electrosur | E23: Si
A24: No | B24: EMSE | C24: Emsemsa | E24: Si
A25: Si | B25: EMSU | C25: Emseusa | E25: Si
A26: No | B26: ELNM | C26: Hidrandina | E26: Si | G26: Cambios respecto al mes anterior
A27: No | B27: LDS | C27: Luz del Sur | E27: No | G27: -Se incluye la Resolución OSINERGMIN No.202-2011-OS-CD_PonderacionRural
A28: Si | B28: EGEP | C28: Egepsa | E28: Si | G28: -Se cambia la fecha y en consecuencia varian los factores de expansión de perdidas
A29: Si | B29: EPA2 | C29: Edelsa | E29: Si
A30: No | B30: SEAL | C30: Seal | E30: Si | G30: Control de cambios del TF:
B31: EILH | C31: Eilhicha | E31: No | F31: (*) | G31: (*) Se requiere su existencia en el 01/05/2012 a fin de fijar el pliego tarifario el 04/07/2012 para esta empresa.
A32: No | B32: SERS | C32: Sersa | E32: Si
A36: Cambios respecto al mes anterior
A37: -Se incluye la Resolución OSINERGMIN No.202-2011-OS-CD_PonderacionRural
A38: -Se cambia la fecha y en consecuencia varian los factores de expansión de perdidas
A40: Control de cambios del TF:
A41: (*) Se requiere su existencia en el 01/05/2012 a fin de fijar el pliego tarifario el 04/07/2012 para esta empresa.
B44: Guía de nuevos pliegos tarifarios

Sheet FactoresActualizacion
B3: Evaluación de Factores de Actualización Tarifaria
B4: =CONCATENATE("Reajuste al ",TEXT(Vigencia,"DD/MMM/YYYY")) -> Reajuste al 01/May/2012
B5: Descripción | C5: =Vigencia -> 2012-05-01
B6: A. GENERACIÓN - TARIFAS EN BARRA (Resolución OSINERGMIN N° 057-2012-OS/CD)
B7: 1. POTENCIA (FAPPM)
B8: Sistema Eléctrico Interconectado Nacional (SEIN) | C8: 1
B9: 2. ENERGÍA (FAPEM)
B10: Sistema Eléctrico Interconectado Nacional (SEIN) | C10: 1
B11: Adinelsa | C11: 1
B12: Chavimochic | C12: 1
B13: Edelnor | C13: 1
B14: Eilhicha | C14: 1
B15: Electro Oriente | C15: 1
B16: Electro Sur Este | C16: 1
B17: Electro Ucayali | C17: 1
B18: Electrocentro | C18: 1
B19: Electronorte | C19: 1
B20: Hidrandina | C20: 1
B21: Seal | C21: 1
B22: FA_PNG (Res. 078-2012-OS/CD) | C22: 1
B23: FIGV (Resoluciones OSINERGMIN N° 182-2009-OS/CD) | C23: 1.18
B24: B1. TRANSMISIÓN PRINCIPAL - PEAJES (Resoluciónes OSINERGMIN N° 057-2012-OS/CD, N° 115-2012-OS/CD
B25: SPT de REP | C25: 1
B26: SPT de Eteselva | C26: 1
B27: SPT de Antamina | C27: 1
B28: SPT de San Gabán | C28: 1
B29: SPT de Redesur | C29: 1
B30: SPT de Transmantaro | C30: 1
B31: SPT de ISA | C31: 1
B32: Cargo por Garantía | C32: 1
B34: B. Actualización de Peajes por Áreas de Demanda (Resolución OSINERG N° 184-2009-OS/CD), BOOT (Res. 058-2012-OS/CD), SCT Transmantaro (Res. 076-2011-OS/CD, 121-2011-OS/CD, 059-2012-OS/CD), Res. 130-2012-OS/CD
B35: Área de Demanda 1 | C35: 1.037
B36: Área de Demanda 2 | C36: 1.048
B37: Área de Demanda 3 | C37: 1.0364
B38: Área de Demanda 4 | C38: 1.0318
B39: Área de Demanda 5 | C39: 1.0188
B40: Área de Demanda 6 | C40: 1.0038
B41: Área de Demanda 7 | C41: 1.0055
B42: Área de Demanda 8 | C42: 1.0327
B43: Área de Demanda 9 | C43: 1.0267
B44: Área de Demanda 10 | C44: 1.0281
B45: Área de Demanda 11 | C45: 1.0424
B46: Área de Demanda 12 | C46: 0.9743
B47: Área de Demanda 13 | C47: 1.0362
B48: Área de Demanda 14 | C48: 1.0608
B49: Área de Demanda 15 | C49: 1.0059
B50: Instalaciones BOOT - Redesur | C50: 0.8355
B51: Instalaciones BOOT - ISA Peru | C51: 0.8355
B52: Otras Instalaciones- Edegel | C52: 0.9415
B53: Otras Instalaciones- Conenhua | C53: 1.032
B54: SCT de Transmantaro (Linea Independencia - Ica) | C54: 0.8355
B55: C.1 DISTRIBUCIÓN - VAD Y CARGOS FIJOS (Resolución OSINERG N° 182-2009-OS/CD)
B56: 1. VALOR AGREGADO DE DISTRIBUCIÓN EN MT (FAVADMT)
B57: a) Sector 1 | C57: 0.9974
B58: b) Sector 2 | C58: 1.0211
B59: c) Sector 3 | C59: 1.0248
B60: d) Sector 4 | C60: 1.0167
B61: e) Sector 5 | C61: 1.022
B62: f) Sector Especial | C62: 1.0278
B63: g) VAD SER 100 Estado Prepago | C63: 1.0094
B64: h) VAD SER 100 Estado Convencional | C64: 1.0102
B65: i) VAD SER 100 Empresa Prepago | C65: 1.0094
B66: j) VAD SER 100 Empresa Convencional | C66: 1.0102
B67: 2. VALOR AGREGADO DE DISTRIBUCIÓN EN BT (FAVADBT)
B68: a) Sector 1 | C68: 1.0016
B69: b) Sector 2 | C69: 1.0125
B70: c) Sector 3 | C70: 1.0035
B71: d) Sector 4 | C71: 0.9979
B72: e) Sector 5 | C72: 0.9954
B73: f) Sector Especial | C73: 1.0027
B74: g) VAD SER 100 Estado Prepago | C74: 0.992
B75: h) VAD SER 100 Estado Convencional | C75: 1.0041
B76: i) VAD SER 100 Empresa Prepago | C76: 0.992
B77: j) VAD SER 100 Empresa Convencional | C77: 1.0041
B78: 2. VALOR AGREGADO DE DISTRIBUCIÓN EN SUBESTACIONES MT/BT (FASED)
B79: a) Sector 1 | C79: 1.0103
B80: b) Sector 2 | C80: 0.9948
B81: c) Sector 3 | C81: 0.9984
B82: d) Sector 4 | C82: 0.9794
B83: e) Sector 5 | C83: 0.9751
B84: f) Sector Especial | C84: 0.9801
B85: g) VAD SER 100 Estado Prepago | C85: 0.9768
B86: h) VAD SER 100 Estado Convencional | C86: 0.9789
B87: i) VAD SER 100 Empresa Prepago | C87: 0.9768
B88: j) VAD SER 100 Empresa Convencional | C88: 0.9789
B89: 3. CARGOS FIJOS | C89: 1.0573
B90: 4. ENERGÍA REACTIVA (FACER) | C90: 0.8405
B91: FACCSP (Cargo Comercial del Servicio Prepago) Res. 442-2006-OS/CD | C91: 1.2183

Sheet Aislados (hidden)
D1: PEFt = PEF + PB (FAPEM-1) | AZ1: CRECIMIENTO | BF1: CRECIMIENTO
V2: VARIA EL PRECIO EN BARRA | AB2: VARIACION DEL FAPEM
D3: PRECIOS EFECTIVOS | J3: PRECIOS EN BARRA | P3: FAPEM | S3: FAPEM-1 | V3: PRECIOS EN BARRA* (fapem -1 ANTERIOR) | AB3: PRECIOS EN BARRA ANTERIOR* (fapem-1) | AH3: PRECIOS EN BARRA* (fapem-1) | AN3: %pef | AT3: %pb(FAPEM-1) | AZ3: pef + pb (fAPEM - 1) | BF3: pef + pb (fAPEM - 1) | BL3: CONTRIBUCION PEF | BR3: CONTRIBUCION PB (FAPEM-1) | BX3: VARIACION DEL PB | CD3: CONTRIBUCION DEL FAPEM
A5: 1 DE MAYO | F5: Cuadro N° 10 | L5: Cuadro N° 1 | BZ5: Cuadro N° 1 | CF5: Cuadro N° 1
D7: Empresa | E7: Tensión | F7: PPM | G7: PEMP | H7: PEMF | J7: Empresa | K7: Tensión | L7: PPM | M7: PEMP | N7: PEMF | V7: Empresa | W7: Tensión | X7: PPM | Y7: PEMP | Z7: PEMF | AB7: Empresa | AC7: Tensión | AD7: PPM | AE7: PEMP | AF7: PEMF | AH7: Empresa | AI7: Tensión | AJ7: PPM | AK7: PEMP | AL7: PEMF | AN7: Empresa | AO7: Tensión | AP7: PPM | AQ7: PEMP | AR7: PEMF | AT7: Empresa | AU7: Tensión | AV7: PPM | AW7: PEMP | AX7: PEMF | AZ7: Empresa | BA7: Tensión | BB7: PPM | BC7: PEMP | BD7: PEMF | BF7: Empresa | BG7: Tensión | BH7: PPM | BI7: PEMP | BJ7: PEMF | BL7: Empresa | BM7: Tensión | BN7: PPM | BO7: PEMP | BP7: PEMF | BR7: Empresa | BS7: Tensión | BT7: PPM | BU7: PEMP | BV7: PEMF | BX7: Empresa | BY7: Tensión | BZ7: PPM | CA7: PEMP | CB7: PEMF | CD7: Empresa | CE7: Tensión | CF7: PPM | CG7: PEMP | CH7: PEMF
E8: kV | F8: S/./kW-mes | G8: ctm. S/./kWh | H8: ctm. S/./kWh | K8: kV | L8: S/./kW-mes | M8: ctm. S/./kWh | N8: ctm. S/./kWh | W8: kV | X8: S/./kW-mes | Y8: ctm. S/./kWh | Z8: ctm. S/./kWh | AC8: kV | AD8: S/./kW-mes | AE8: ctm. S/./kWh | AF8: ctm. S/./kWh | AI8: kV | AJ8: S/./kW-mes | AK8: ctm. S/./kWh | AL8: ctm. S/./kWh | AO8: kV | AP8: S/./kW-mes | AQ8: ctm. S/./kWh | AR8: ctm. S/./kWh | AU8: kV | AV8: S/./kW-mes | AW8: ctm. S/./kWh | AX8: ctm. S/./kWh | BA8: kV | BB8: S/./kW-mes | BC8: ctm. S/./kWh | BD8: ctm. S/./kWh | BG8: kV | BH8: S/./kW-mes | BI8: ctm. S/./kWh | BJ8: ctm. S/./kWh | BM8: kV | BN8: S/./kW-mes | BO8: ctm. S/./kWh | BP8: ctm. S/./kWh | BS8: kV | BT8: S/./kW-mes | BU8: ctm. S/./kWh | BV8: ctm. S/./kWh | BY8: kV | BZ8: S/./kW-mes | CA8: ctm. S/./kWh | CB8: ctm. S/./kWh | CE8: kV | CF8: S/./kW-mes | CG8: ctm. S/./kWh | CH8: ctm. S/./kWh
D9: Adinelsa | E9: MT | F9: =+F24/F39-1 -> -0.02647887324 | G9: 0.03558926488 | H9: 0.03558926488 | J9: Adinelsa | K9: MT | L9: =+L24/L39-1 -> -0.02647887324 | M9: -0.01247848537 | N9: -0.01247848537 | P9: Adinelsa | Q9: =+Q24/Q39-1 -> -0.01594174375 | S9: Adinelsa | T9: =+Q9-1 -> -1.015941744 | V9: Adinelsa | W9: MT | X9: =+X24/X39-1 -> -0.02647887324 | Y9: -0.01247848537 | Z9: -0.01247848537 | AB9: Adinelsa | AC9: MT | AD9: =+AD24/AD39-1 -> -1 | AE9: -1 | AF9: -1 | AH9: Adinelsa | AI9: MT | AJ9: =+AJ24/AJ39-1 -> -1 | AK9: -1 | AL9: -1 | AN9: Adinelsa | AO9: MT | AP9: =+AP24/AP39-1 -> 0.0162 | AQ9: 0.02196546091 | AR9: 0.02196546091 | AT9: Adinelsa | AU9: MT | AV9: =+AV24/AV39-1 -> -1 | AW9: -1 | AX9: -1 | AZ9: Adinelsa | BA9: MT | BB9: =+BB24/BB39-1 -> -0.04199849758 | BC9: 0.01333098279 | BD9: 0.01333098279 | BF9: Adinelsa | BG9: MT | BH9: =+BN9+BT9 -> -0.04199849758 | BI9: =+BO9+BU9 -> 0.01333098279 | BJ9: =+BP9+BV9 -> 0.01333098279 | BL9: Adinelsa | BM9: MT | BN9: =+F9*AP39 -> -0.02605675383 | BO9: =+G9*AQ39 -> 0.03482433237 | BP9: =+H9*AR39 -> 0.03482433237 | BR9: Adinelsa | BS9: MT | BT9: =+AJ9*AV39 -> -0.01594174375 | BU9: =+AK9*AW39 -> -0.02149334958 | BV9: =+AL9*AX39 -> -0.02149334958 | BX9: Adinelsa | BY9: MT | BZ9: =+L9 -> -0.02647887324 | CA9: =+M9 -> -0.01247848537 | CB9: =+N9 -> -0.01247848537 | CD9: Adinelsa | CE9: MT | CF9: =+BT9-BZ9 -> 0.01053712949 | CG9: =+BU9-CA9 -> -0.00901486421 | CH9: =+BV9-CB9 -> -0.00901486421
D10: Chavimochic | E10: MT | F10: -0.02647887324 | G10: 0.03558926488 | H10: 0.03558926488 | J10: Chavimochic | K10: MT | L10: =+L25/L40-1 -> -0.02647887324 | M10: -0.01247848537 | N10: -0.01247848537 | P10: Chavimochic | Q10: =+Q25/Q40-1 -> -0.01594174375 | S10: Chavimochic | T10: -1.015941744 | V10: Chavimochic | W10: MT | X10: -0.02647887324 | Y10: -0.01247848537 | Z10: -0.01247848537 | AB10: Chavimochic | AC10: MT | AD10: -1 | AE10: -1 | AF10: -1 | AH10: Chavimochic | AI10: MT | AJ10: =+AJ25/AJ40-1 -> -1 | AK10: -1 | AL10: -1 | AN10: Chavimochic | AO10: MT | AP10: =+AP25/AP40-1 -> 0.0162 | AQ10: 0.02196546091 | AR10: 0.02196546091 | AT10: Chavimochic | AU10: MT | AV10: =+AV25/AV40-1 -> -1 | AW10: -1 | AX10: -1 | AZ10: Chavimochic | BA10: MT | BB10: =+BB25/BB40-1 -> -0.04199849758 | BC10: 0.01333098279 | BD10: 0.01333098279 | BF10: Chavimochic | BG10: MT | BH10: -0.04199849758 | BI10: 0.01333098279 | BJ10: 0.01333098279 | BL10: Chavimochic | BM10: MT | BN10: -0.02605675383 | BO10: 0.03482433237 | BP10: 0.03482433237 | BR10: Chavimochic | BS10: MT | BT10: -0.01594174375 | BU10: -0.02149334958 | BV10: -0.02149334958 | BX10: Chavimochic | BY10: MT | BZ10: -0.02647887324 | CA10: -0.01247848537 | CB10: -0.01247848537 | CD10: Chavimochic | CE10: MT | CF10: 0.01053712949 | CG10: -0.00901486421 | CH10: -0.00901486421
D11: Edelnor | E11: MT | F11: -0.02647887324 | G11: 0.03558926488 | H11: 0.03558926488 | J11: Edelnor | K11: MT | L11: =+L26/L41-1 -> -0.02647887324 | M11: -0.01247848537 | N11: -0.01247848537 | P11: Edelnor | Q11: =+Q26/Q41-1 -> -0.01594174375 | S11: Edelnor | T11: -1.015941744 | V11: Edelnor | W11: MT | X11: -0.02647887324 | Y11: -0.01247848537 | Z11: -0.01247848537 | AB11: Edelnor | AC11: MT | AD11: -1 | AE11: -1 | AF11: -1 | AH11: Edelnor | AI11: MT | AJ11: =+AJ26/AJ41-1 -> -1 | AK11: -1 | AL11: -1 | AN11: Edelnor | AO11: MT | AP11: =+AP26/AP41-1 -> 0.0162 | AQ11: 0.02196546091 | AR11: 0.02196546091 | AT11: Edelnor | AU11: MT | AV11: =+AV26/AV41-1 -> -1 | AW11: -1 | AX11: -1 | AZ11: Edelnor | BA11: MT | BB11: =+BB26/BB41-1 -> -0.04199849758 | BC11: 0.01333098279 | BD11: 0.01333098279 | BF11: Edelnor | BG11: MT | BH11: -0.04199849758 | BI11: 0.01333098279 | BJ11: 0.01333098279 | BL11: Edelnor | BM11: MT | BN11: -0.02605675383 | BO11: 0.03482433237 | BP11: 0.03482433237 | BR11: Edelnor | BS11: MT | BT11: -0.01594174375 | BU11: -0.02149334958 | BV11: -0.02149334958 | BX11: Edelnor | BY11: MT | BZ11: -0.02647887324 | CA11: -0.01247848537 | CB11: -0.01247848537 | CD11: Edelnor | CE11: MT | CF11: 0.01053712949 | CG11: -0.00901486421 | CH11: -0.00901486421
D12: Electro Oriente | E12: MT | F12: -0.02647887324 | G12: 0.03795918367 | H12: 0.03795918367 | J12: Electro Oriente | K12: MT | L12: =+L27/L42-1 -> -0.02647887324 | M12: 0.1468762127 | N12: 0.1468762127 | P12: Electro Oriente | Q12: =+Q27/Q42-1 -> -0.07578558226 | S12: Electro Oriente | T12: -1.075785582 | V12: Electro Oriente | W12: MT | X12: -0.02647887324 | Y12: 0.1468762127 | Z12: 0.1468762127 | AB12: Electro Oriente | AC12: MT | AD12: -1 | AE12: -1 | AF12: -1 | AH12: Electro Oriente | AI12: MT | AJ12: =+AJ27/AJ42-1 -> -1 | AK12: -1 | AL12: -1 | AN12: Electro Oriente | AO12: MT | AP12: =+AP27/AP42-1 -> 0.082 | AQ12: 0.1725012245 | AR12: 0.1725012245 | AT12: Electro Oriente | AU12: MT | AV12: =+AV27/AV42-1 -> -1 | AW12: -1 | AX12: -1 | AZ12: Electro Oriente | BA12: MT | BB12: =+BB27/BB42-1 -> -0.1002577387 | BC12: -0.1147478894 | BD12: -0.1147478894 | BF12: Electro Oriente | BG12: MT | BH12: -0.1002577387 | BI12: -0.1147478894 | BJ12: -0.1147478894 | BL12: Electro Oriente | BM12: MT | BN12: -0.02447215641 | BO12: 0.03237453649 | BP12: 0.03237453649 | BR12: Electro Oriente | BS12: MT | BT12: -0.07578558226 | BU12: -0.1471224259 | BV12: -0.1471224259 | BX12: Electro Oriente | BY12: MT | BZ12: -0.02647887324 | CA12: 0.1468762127 | CB12: 0.1468762127 | CD12: Electro Oriente | CE12: MT | CF12: -0.04930670902 | CG12: -0.2939986385 | CH12: -0.2939986385
D13: Electro Sur Este | E13: MT | F13: -0.02647887324 | G13: 0.4018691589 | H13: 0.4018691589 | J13: Electro Sur Este | K13: MT | L13: =+L28/L43-1 -> -0.02647887324 | M13: 0.1143041237 | N13: 0.1143041237 | P13: Electro Sur Este | Q13: =+Q28/Q43-1 -> -0.09165228449 | S13: Electro Sur Este | T13: -1.091652284 | V13: Electro Sur Este | W13: MT | X13: -0.02647887324 | Y13: 0.1143041237 | Z13: 0.1143041237 | AB13: Electro Sur Este | AC13: MT | AD13: -1 | AE13: -1 | AF13: -1 | AH13: Electro Sur Este | AI13: MT | AJ13: =+AJ28/AJ43-1 -> -1 | AK13: -1 | AL13: -1 | AN13: Electro Sur Este | AO13: MT | AP13: =+AP28/AP43-1 -> 0.1009 | AQ13: 0.3851372356 | AR13: 0.3851372356 | AT13: Electro Sur Este | AU13: MT | AV13: =+AV28/AV43-1 -> -1 | AW13: -1 | AX13: -1 | AZ13: Electro Sur Este | BA13: MT | BB13: =+BB28/BB43-1 -> -0.1157043085 | BC13: 0.01207961409 | BD13: 0.01207961409 | BF13: Electro Sur Este | BG13: MT | BH13: -0.1157043085 | BI13: 0.01207961409 | BJ13: 0.01207961409 | BL13: Electro Sur Este | BM13: MT | BN13: -0.02405202402 | BO13: 0.2901294894 | BP13: 0.2901294894 | BR13: Electro Sur Este | BS13: MT | BT13: -0.09165228449 | BU13: -0.2780498753 | BV13: -0.2780498753 | BX13: Electro Sur Este | BY13: MT | BZ13: -0.02647887324 | CA13: 0.1143041237 | CB13: 0.1143041237 | CD13: Electro Sur Este | CE13: MT | CF13: -0.06517341126 | CG13: -0.392353999 | CH13: -0.392353999
D14: Electro Ucayali | E14: MT | F14: -0.02647887324 | G14: 0.03558926488 | H14: 0.03558926488 | J14: Electro Ucayali | K14: MT | L14: =+L29/L44-1 -> -0.02647887324 | M14: -0.01247848537 | N14: -0.01247848537 | P14: Electro Ucayali | Q14: =+Q29/Q44-1 -> -0.01594174375 | S14: Electro Ucayali | T14: -1.015941744 | V14: Electro Ucayali | W14: MT | X14: -0.02647887324 | Y14: -0.01247848537 | Z14: -0.01247848537 | AB14: Electro Ucayali | AC14: MT | AD14: -1 | AE14: -1 | AF14: -1 | AH14: Electro Ucayali | AI14: MT | AJ14: =+AJ29/AJ44-1 -> -1 | AK14: -1 | AL14: -1 | AN14: Electro Ucayali | AO14: MT | AP14: =+AP29/AP44-1 -> 0.0162 | AQ14: 0.02196546091 | AR14: 0.02196546091 | AT14: Electro Ucayali | AU14: MT | AV14: =+AV29/AV44-1 -> -1 | AW14: -1 | AX14: -1 | AZ14: Electro Ucayali | BA14: MT | BB14: =+BB29/BB44-1 -> -0.04199849758 | BC14: 0.01333098279 | BD14: 0.01333098279 | BF14: Electro Ucayali | BG14: MT | BH14: -0.04199849758 | BI14: 0.01333098279 | BJ14: 0.01333098279 | BL14: Electro Ucayali | BM14: MT | BN14: -0.02605675383 | BO14: 0.03482433237 | BP14: 0.03482433237 | BR14: Electro Ucayali | BS14: MT | BT14: -0.01594174375 | BU14: -0.02149334958 | BV14: -0.02149334958 | BX14: Electro Ucayali | BY14: MT | BZ14: -0.02647887324 | CA14: -0.01247848537 | CB14: -0.01247848537 | CD14: Electro Ucayali | CE14: MT | CF14: 0.01053712949 | CG14: -0.00901486421 | CH14: -0.00901486421
D15: Electrocentro | E15: MT | F15: -0.02647887324 | G15: 0.03558926488 | H15: 0.03558926488 | J15: Electrocentro | K15: MT | L15: =+L30/L45-1 -> -0.02647887324 | M15: -0.01247848537 | N15: -0.01247848537 | P15: Electrocentro | Q15: =+Q30/Q45-1 -> -0.01594174375 | S15: Electrocentro | T15: -1.015941744 | V15: Electrocentro | W15: MT | X15: -0.02647887324 | Y15: -0.01247848537 | Z15: -0.01247848537 | AB15: Electrocentro | AC15: MT | AD15: -1 | AE15: -1 | AF15: -1 | AH15: Electrocentro | AI15: MT | AJ15: =+AJ30/AJ45-1 -> -1 | AK15: -1 | AL15: -1 | AN15: Electrocentro | AO15: MT | AP15: =+AP30/AP45-1 -> 0.0162 | AQ15: 0.02196546091 | AR15: 0.02196546091 | AT15: Electrocentro | AU15: MT | AV15: =+AV30/AV45-1 -> -1 | AW15: -1 | AX15: -1 | AZ15: Electrocentro | BA15: MT | BB15: =+BB30/BB45-1 -> -0.04199849758 | BC15: 0.01333098279 | BD15: 0.01333098279 | BF15: Electrocentro | BG15: MT | BH15: -0.04199849758 | BI15: 0.01333098279 | BJ15: 0.01333098279 | BL15: Electrocentro | BM15: MT | BN15: -0.02605675383 | BO15: 0.03482433237 | BP15: 0.03482433237 | BR15: Electrocentro | BS15: MT | BT15: -0.01594174375 | BU15: -0.02149334958 | BV15: -0.02149334958 | BX15: Electrocentro | BY15: MT | BZ15: -0.02647887324 | CA15: -0.01247848537 | CB15: -0.01247848537 | CD15: Electrocentro | CE15: MT | CF15: 0.01053712949 | CG15: -0.00901486421 | CH15: -0.00901486421
D16: Electronorte | E16: MT | F16: -0.02647887324 | G16: 0.03563084112 | H16: 0.03563084112 | J16: Electronorte | K16: MT | L16: =+L31/L46-1 -> -0.02647887324 | M16: 0.1708261618 | N16: 0.1708261618 | P16: Electronorte | Q16: =+Q31/Q46-1 -> -0.01594174375 | S16: Electronorte | T16: -1.015941744 | V16: Electronorte | W16: MT | X16: -0.02647887324 | Y16: 0.1708261618 | Z16: 0.1708261618 | AB16: Electronorte | AC16: MT | AD16: -1 | AE16: -1 | AF16: -1 | AH16: Electronorte | AI16: MT | AJ16: =+AJ31/AJ46-1 -> -1 | AK16: -1 | AL16: -1 | AN16: Electronorte | AO16: MT | AP16: =+AP31/AP46-1 -> 0.0162 | AQ16: 0.0219911215 | AR16: 0.0219911215 | AT16: Electronorte | AU16: MT | AV16: =+AV31/AV46-1 -> -1 | AW16: -1 | AX16: -1 | AZ16: Electronorte | BA16: MT | BB16: =+BB31/BB46-1 -> -0.04199849758 | BC16: 0.01334622125 | BD16: 0.01334622125 | BF16: Electronorte | BG16: MT | BH16: -0.04199849758 | BI16: 0.01334622125 | BJ16: 0.01334622125 | BL16: Electronorte | BM16: MT | BN16: -0.02605675383 | BO16: 0.03486413959 | BP16: 0.03486413959 | BR16: Electronorte | BS16: MT | BT16: -0.01594174375 | BU16: -0.02151791834 | BV16: -0.02151791834 | BX16: Electronorte | BY16: MT | BZ16: -0.02647887324 | CA16: 0.1708261618 | CB16: 0.1708261618 | CD16: Electronorte | CE16: MT | CF16: 0.01053712949 | CG16: -0.1923440801 | CH16: -0.1923440801
D17: Hidrandina | E17: MT | F17: -0.02647887324 | G17: 0.03716608595 | H17: 0.03716608595 | J17: Hidrandina | K17: MT | L17: =+L32/L47-1 -> -0.02647887324 | M17: 0.1146847228 | N17: 0.1146847228 | P17: Hidrandina | Q17: =+Q32/Q47-1 -> -0.01661913659 | S17: Hidrandina | T17: -1.016619137 | V17: Hidrandina | W17: MT | X17: -0.02647887324 | Y17: 0.1146847228 | Z17: 0.1146847228 | AB17: Hidrandina | AC17: MT | AD17: -1 | AE17: -1 | AF17: -1 | AH17: Hidrandina | AI17: MT | AJ17: =+AJ32/AJ47-1 -> -1 | AK17: -1 | AL17: -1 | AN17: Hidrandina | AO17: MT | AP17: =+AP32/AP47-1 -> 0.0169 | AQ17: 0.02319088269 | AR17: 0.02319088269 | AT17: Hidrandina | AU17: MT | AV17: =+AV32/AV47-1 -> -1 | AW17: -1 | AX17: -1 | AZ17: Hidrandina | BA17: MT | BB17: =+BB32/BB47-1 -> -0.04265795382 | BC17: 0.0136584517 | BD17: 0.0136584517 | BF17: Hidrandina | BG17: MT | BH17: -0.04265795382 | BI17: 0.0136584517 | BJ17: 0.0136584517 | BL17: Hidrandina | BM17: MT | BN17: -0.02603881723 | BO17: 0.03632370712 | BP17: 0.03632370712 | BR17: Hidrandina | BS17: MT | BT17: -0.01661913659 | BU17: -0.02266525541 | BV17: -0.02266525541 | BX17: Hidrandina | BY17: MT | BZ17: -0.02647887324 | CA17: 0.1146847228 | CB17: 0.1146847228 | CD17: Hidrandina | CE17: MT | CF17: 0.009859736648 | CG17: -0.1373499782 | CH17: -0.1373499782
D18: Seal | E18: MT | F18: -0.02647887324 | G18: 0.2288613303 | H18: 0.2288613303 | J18: Seal | K18: MT | L18: =+L33/L48-1 -> -0.02647887324 | M18: 0.08760394508 | N18: 0.08760394508 | P18: Seal | Q18: =+Q33/Q48-1 -> -0.06410856341 | S18: Seal | T18: -1.064108563 | V18: Seal | W18: MT | X18: -0.02647887324 | Y18: 0.08760394508 | Z18: 0.08760394508 | AB18: Seal | AC18: MT | AD18: -1 | AE18: -1 | AF18: -1 | AH18: Seal | AI18: MT | AJ18: =+AJ33/AJ48-1 -> -1 | AK18: -1 | AL18: -1 | AN18: Seal | AO18: MT | AP18: =+AP33/AP48-1 -> 0.0685 | AQ18: 0.1996693912 | AR18: 0.1996693912 | AT18: Seal | AU18: MT | AV18: =+AV33/AV48-1 -> -1 | AW18: -1 | AX18: -1 | AZ18: Seal | BA18: MT | BB18: =+BB33/BB48-1 -> -0.08888991412 | BC18: 0.02433331994 | BD18: 0.02433331994 | BF18: Seal | BG18: MT | BH18: -0.08888991412 | BI18: 0.02433331994 | BJ18: 0.02433331994 | BL18: Seal | BM18: MT | BN18: -0.02478135072 | BO18: 0.1907703339 | BP18: 0.1907703339 | BR18: Seal | BS18: MT | BT18: -0.06410856341 | BU18: -0.166437014 | BV18: -0.166437014 | BX18: Seal | BY18: MT | BZ18: -0.02647887324 | CA18: 0.08760394508 | CB18: 0.08760394508 | CD18: Seal | CE18: MT | CF18: -0.03762969017 | CG18: -0.254040959 | CH18: -0.254040959
A20: 1 DE MAYO | F20: Cuadro N° 10 | L20: Cuadro N° 1
D22: Empresa | E22: Tensión | F22: PPM | G22: PEMP | H22: PEMF | J22: Empresa | K22: Tensión | L22: PPM | M22: PEMP | N22: PEMF | V22: Empresa | W22: Tensión | X22: PPM | Y22: PEMP | Z22: PEMF | AB22: Empresa | AC22: Tensión | AD22: PPM | AE22: PEMP | AF22: PEMF | AH22: Empresa | AI22: Tensión | AJ22: PPM | AK22: PEMP | AL22: PEMF | AN22: Empresa | AO22: Tensión | AP22: PPM | AQ22: PEMP | AR22: PEMF | AT22: Empresa | AU22: Tensión | AV22: PPM | AW22: PEMP | AX22: PEMF | AZ22: Empresa | BA22: Tensión | BB22: PPM | BC22: PEMP | BD22: PEMF
E23: kV | F23: S/./kW-mes | G23: ctm. S/./kWh | H23: ctm. S/./kWh | K23: kV | L23: S/./kW-mes | M23: ctm. S/./kWh | N23: ctm. S/./kWh | W23: kV | X23: S/./kW-mes | Y23: ctm. S/./kWh | Z23: ctm. S/./kWh | AC23: kV | AD23: S/./kW-mes | AE23: ctm. S/./kWh | AF23: ctm. S/./kWh | AI23: kV | AJ23: S/./kW-mes | AK23: ctm. S/./kWh | AL23: ctm. S/./kWh | AO23: kV | AP23: S/./kW-mes | AQ23: ctm. S/./kWh | AR23: ctm. S/./kWh | AU23: kV | AV23: S/./kW-mes | AW23: ctm. S/./kWh | AX23: ctm. S/./kWh | BA23: kV | BB23: S/./kW-mes | BC23: ctm. S/./kWh | BD23: ctm. S/./kWh
D24: Adinelsa | E24: MT | F24: 17.28 | G24: 17.75 | H24: 17.75 | J24: Adinelsa | K24: MT | L24: 17.28 | M24: 22.95 | N24: 22.95 | P24: Adinelsa | Q24: 1 | S24: Adinelsa | T24: =+Q24-1 -> 0 | V24: Adinelsa | W24: MT | X24: =+L24*$T39 -> 0.279936 | Y24: =+M24*$T39 -> 0.37179 | Z24: =+N24*$T39 -> 0.37179 | AB24: Adinelsa | AC24: MT | AD24: =+L39*$T24 -> 0 | AE24: =+M39*$T24 -> 0 | AF24: =+N39*$T24 -> 0 | AH24: Adinelsa | AI24: MT | AJ24: =+L24*$T24 -> 0 | AK24: =+M24*$T24 -> 0 | AL24: =+N24*$T24 -> 0 | AN24: Adinelsa | AO24: MT | AP24: =+F24/BB24 -> 1 | AQ24: =+G24/BC24 -> 1 | AR24: =+H24/BD24 -> 1 | AT24: Adinelsa | AU24: MT | AV24: =+AJ24/BB24 -> 0 | AW24: =+AK24/BC24 -> 0 | AX24: =+AL24/BD24 -> 0 | AZ24: Adinelsa | BA24: MT | BB24: =+F24+AJ24 -> 17.28 | BC24: =+G24+AK24 -> 17.75 | BD24: =+H24+AL24 -> 17.75
D25: Chavimochic | E25: MT | F25: 17.28 | G25: 17.75 | H25: 17.75 | J25: Chavimochic | K25: MT | L25: 17.28 | M25: 22.95 | N25: 22.95 | P25: Chavimochic | Q25: 1 | S25: Chavimochic | T25: 0 | V25: Chavimochic | W25: MT | X25: 0.279936 | Y25: 0.37179 | Z25: 0.37179 | AB25: Chavimochic | AC25: MT | AD25: 0 | AE25: 0 | AF25: 0 | AH25: Chavimochic | AI25: MT | AJ25: 0 | AK25: 0 | AL25: 0 | AN25: Chavimochic | AO25: MT | AP25: 1 | AQ25: 1 | AR25: 1 | AT25: Chavimochic | AU25: MT | AV25: 0 | AW25: 0 | AX25: 0 | AZ25: Chavimochic | BA25: MT | BB25: 17.28 | BC25: 17.75 | BD25: 17.75
D26: Edelnor | E26: MT | F26: 17.28 | G26: 17.75 | H26: 17.75 | J26: Edelnor | K26: MT | L26: 17.28 | M26: 22.95 | N26: 22.95 | P26: Edelnor | Q26: 1 | S26: Edelnor | T26: 0 | V26: Edelnor | W26: MT | X26: 0.279936 | Y26: 0.37179 | Z26: 0.37179 | AB26: Edelnor | AC26: MT | AD26: 0 | AE26: 0 | AF26: 0 | AH26: Edelnor | AI26: MT | AJ26: 0 | AK26: 0 | AL26: 0 | AN26: Edelnor | AO26: MT | AP26: 1 | AQ26: 1 | AR26: 1 | AT26: Edelnor | AU26: MT | AV26: 0 | AW26: 0 | AX26: 0 | AZ26: Edelnor | BA26: MT | BB26: 17.28 | BC26: 17.75 | BD26: 17.75
D27: Electro Oriente | E27: MT | F27: 17.28 | G27: 25.43 | H27: 25.43 | J27: Electro Oriente | K27: MT | L27: 17.28 | M27: 59.11 | N27: 59.11 | P27: Electro Oriente | Q27: 1 | S27: Electro Oriente | T27: 0 | V27: Electro Oriente | W27: MT | X27: 1.41696 | Y27: 4.84702 | Z27: 4.84702 | AB27: Electro Oriente | AC27: MT | AD27: 0 | AE27: 0 | AF27: 0 | AH27: Electro Oriente | AI27: MT | AJ27: 0 | AK27: 0 | AL27: 0 | AN27: Electro Oriente | AO27: MT | AP27: 1 | AQ27: 1 | AR27: 1 | AT27: Electro Oriente | AU27: MT | AV27: 0 | AW27: 0 | AX27: 0 | AZ27: Electro Oriente | BA27: MT | BB27: 17.28 | BC27: 25.43 | BD27: 25.43
D28: Electro Sur Este | E28: MT | F28: 17.28 | G28: 28.5 | H28: 28.5 | J28: Electro Sur Este | K28: MT | L28: 17.28 | M28: 86.47 | N28: 86.47 | P28: Electro Sur Este | Q28: 1 | S28: Electro Sur Este | T28: 0 | V28: Electro Sur Este | W28: MT | X28: 1.743552 | Y28: 8.724823 | Z28: 8.724823 | AB28: Electro Sur Este | AC28: MT | AD28: 0 | AE28: 0 | AF28: 0 | AH28: Electro Sur Este | AI28: MT | AJ28: 0 | AK28: 0 | AL28: 0 | AN28: Electro Sur Este | AO28: MT | AP28: 1 | AQ28: 1 | AR28: 1 | AT28: Electro Sur Este | AU28: MT | AV28: 0 | AW28: 0 | AX28: 0 | AZ28: Electro Sur Este | BA28: MT | BB28: 17.28 | BC28: 28.5 | BD28: 28.5
D29: Electro Ucayali | E29: MT | F29: 17.28 | G29: 17.75 | H29: 17.75 | J29: Electro Ucayali | K29: MT | L29: 17.28 | M29: 22.95 | N29: 22.95 | P29: Electro Ucayali | Q29: 1 | S29: Electro Ucayali | T29: 0 | V29: Electro Ucayali | W29: MT | X29: 0.279936 | Y29: 0.37179 | Z29: 0.37179 | AB29: Electro Ucayali | AC29: MT | AD29: 0 | AE29: 0 | AF29: 0 | AH29: Electro Ucayali | AI29: MT | AJ29: 0 | AK29: 0 | AL29: 0 | AN29: Electro Ucayali | AO29: MT | AP29: 1 | AQ29: 1 | AR29: 1 | AT29: Electro Ucayali | AU29: MT | AV29: 0 | AW29: 0 | AX29: 0 | AZ29: Electro Ucayali | BA29: MT | BB29: 17.28 | BC29: 17.75 | BD29: 17.75
D30: Electrocentro | E30: MT | F30: 17.28 | G30: 17.75 | H30: 17.75 | J30: Electrocentro | K30: MT | L30: 17.28 | M30: 22.95 | N30: 22.95 | P30: Electrocentro | Q30: 1 | S30: Electrocentro | T30: 0 | V30: Electrocentro | W30: MT | X30: 0.279936 | Y30: 0.37179 | Z30: 0.37179 | AB30: Electrocentro | AC30: MT | AD30: 0 | AE30: 0 | AF30: 0 | AH30: Electrocentro | AI30: MT | AJ30: 0 | AK30: 0 | AL30: 0 | AN30: Electrocentro | AO30: MT | AP30: 1 | AQ30: 1 | AR30: 1 | AT30: Electrocentro | AU30: MT | AV30: 0 | AW30: 0 | AX30: 0 | AZ30: Electrocentro | BA30: MT | BB30: 17.28 | BC30: 17.75 | BD30: 17.75
D31: Electronorte | E31: MT | F31: 17.28 | G31: 17.73 | H31: 17.73 | J31: Electronorte | K31: MT | L31: 17.28 | M31: 27.21 | N31: 27.21 | P31: Electronorte | Q31: 1 | S31: Electronorte | T31: 0 | V31: Electronorte | W31: MT | X31: 0.279936 | Y31: 0.440802 | Z31: 0.440802 | AB31: Electronorte | AC31: MT | AD31: 0 | AE31: 0 | AF31: 0 | AH31: Electronorte | AI31: MT | AJ31: 0 | AK31: 0 | AL31: 0 | AN31: Electronorte | AO31: MT | AP31: 1 | AQ31: 1 | AR31: 1 | AT31: Electronorte | AU31: MT | AV31: 0 | AW31: 0 | AX31: 0 | AZ31: Electronorte | BA31: MT | BB31: 17.28 | BC31: 17.73 | BD31: 17.73
D32: Hidrandina | E32: MT | F32: 17.28 | G32: 17.86 | H32: 17.86 | J32: Hidrandina | K32: MT | L32: 17.28 | M32: 26.34 | N32: 26.34 | P32: Hidrandina | Q32: 1 | S32: Hidrandina | T32: 0 | V32: Hidrandina | W32: MT | X32: 0.292032 | Y32: 0.445146 | Z32: 0.445146 | AB32: Hidrandina | AC32: MT | AD32: 0 | AE32: 0 | AF32: 0 | AH32: Hidrandina | AI32: MT | AJ32: 0 | AK32: 0 | AL32: 0 | AN32: Hidrandina | AO32: MT | AP32: 1 | AQ32: 1 | AR32: 1 | AT32: Hidrandina | AU32: MT | AV32: 0 | AW32: 0 | AX32: 0 | AZ32: Hidrandina | BA32: MT | BB32: 17.28 | BC32: 17.86 | BD32: 17.86
D33: Seal | E33: MT | F33: 17.28 | G33: 21.8 | H33: 21.8 | J33: Seal | K33: MT | L33: 17.28 | M33: 56.24 | N33: 56.24 | P33: Seal | Q33: 1 | S33: Seal | T33: 0 | V33: Seal | W33: MT | X33: 1.18368 | Y33: 3.85244 | Z33: 3.85244 | AB33: Seal | AC33: MT | AD33: 0 | AE33: 0 | AF33: 0 | AH33: Seal | AI33: MT | AJ33: 0 | AK33: 0 | AL33: 0 | AN33: Seal | AO33: MT | AP33: 1 | AQ33: 1 | AR33: 1 | AT33: Seal | AU33: MT | AV33: 0 | AW33: 0 | AX33: 0 | AZ33: Seal | BA33: MT | BB33: 17.28 | BC33: 21.8 | BD33: 21.8
A38: EN ABR 2012 | D38: SISTEMAS AISLADOS (Cuadro 10, Res 067-2011-OS/CD) | J38: BARRA DE GENERACIÓN (Cuadro 1, Res. 067-2011 OS/CD) | AN38: PNG Aislado Actualizado | AT38: PNG Aislado Actualizado | AZ38: PNG Aislado Actualizado
D39: Adinelsa | E39: MT | F39: 17.75 | G39: 17.14 | H39: 17.14 | J39: Adinelsa | K39: MT | L39: 17.75 | M39: 23.24 | N39: 23.24 | P39: Adinelsa | Q39: 1.0162 | S39: Adinelsa | T39: =+Q39-1 -> 0.0162 | V39: Adinelsa | W39: MT | X39: =+L39*$T39 -> 0.28755 | Y39: =+M39*$T39 -> 0.376488 | Z39: =+N39*$T39 -> 0.376488 | AB39: Adinelsa | AC39: MT | AD39: =+L39*$T39 -> 0.28755 | AE39: =+M39*$T39 -> 0.376488 | AF39: =+N39*$T39 -> 0.376488 | AH39: Adinelsa | AI39: MT | AJ39: =+L39*$T39 -> 0.28755 | AK39: =+M39*$T39 -> 0.376488 | AL39: =+N39*$T39 -> 0.376488 | AN39: Adinelsa | AO39: MT | AP39: =+F39/BB39 -> 0.9840582562 | AQ39: =+G39/BC39 -> 0.9785066504 | AR39: =+H39/BD39 -> 0.9785066504 | AT39: Adinelsa | AU39: MT | AV39: =+AJ39/BB39 -> 0.01594174375 | AW39: =+AK39/BC39 -> 0.02149334958 | AX39: =+AL39/BD39 -> 0.02149334958 | AZ39: Adinelsa | BA39: MT | BB39: =+F39+AJ39 -> 18.03755 | BC39: =+G39+AK39 -> 17.516488 | BD39: =+H39+AL39 -> 17.516488
D40: Chavimochic | E40: MT | F40: 17.75 | G40: 17.14 | H40: 17.14 | J40: Chavimochic | K40: MT | L40: 17.75 | M40: 23.24 | N40: 23.24 | P40: Chavimochic | Q40: 1.0162 | S40: Chavimochic | T40: =+Q40-1 -> 0.0162 | V40: Chavimochic | W40: MT | X40: 0.28755 | Y40: 0.376488 | Z40: 0.376488 | AB40: Chavimochic | AC40: MT | AD40: 0.28755 | AE40: 0.376488 | AF40: 0.376488 | AH40: Chavimochic | AI40: MT | AJ40: 0.28755 | AK40: 0.376488 | AL40: 0.376488 | AN40: Chavimochic | AO40: MT | AP40: 0.9840582562 | AQ40: 0.9785066504 | AR40: 0.9785066504 | AT40: Chavimochic | AU40: MT | AV40: 0.01594174375 | AW40: 0.02149334958 | AX40: 0.02149334958 | AZ40: Chavimochic | BA40: MT | BB40: 18.03755 | BC40: 17.516488 | BD40: 17.516488
D41: Edelnor | E41: MT | F41: 17.75 | G41: 17.14 | H41: 17.14 | J41: Edelnor | K41: MT | L41: 17.75 | M41: 23.24 | N41: 23.24 | P41: Edelnor | Q41: 1.0162 | S41: Edelnor | T41: 0.0162 | V41: Edelnor | W41: MT | X41: 0.28755 | Y41: 0.376488 | Z41: 0.376488 | AB41: Edelnor | AC41: MT | AD41: 0.28755 | AE41: 0.376488 | AF41: 0.376488 | AH41: Edelnor | AI41: MT | AJ41: 0.28755 | AK41: 0.376488 | AL41: 0.376488 | AN41: Edelnor | AO41: MT | AP41: 0.9840582562 | AQ41: 0.9785066504 | AR41: 0.9785066504 | AT41: Edelnor | AU41: MT | AV41: 0.01594174375 | AW41: 0.02149334958 | AX41: 0.02149334958 | AZ41: Edelnor | BA41: MT | BB41: 18.03755 | BC41: 17.516488 | BD41: 17.516488
D42: Electro Oriente | E42: MT | F42: 17.75 | G42: 24.5 | H42: 24.5 | J42: Electro Oriente | K42: MT | L42: 17.75 | M42: 51.54 | N42: 51.54 | P42: Electro Oriente | Q42: 1.082 | S42: Electro Oriente | T42: 0.082 | V42: Electro Oriente | W42: MT | X42: 1.4555 | Y42: 4.22628 | Z42: 4.22628 | AB42: Electro Oriente | AC42: MT | AD42: 1.4555 | AE42: 4.22628 | AF42: 4.22628 | AH42: Electro Oriente | AI42: MT | AJ42: 1.4555 | AK42: 4.22628 | AL42: 4.22628 | AN42: Electro Oriente | AO42: MT | AP42: 0.9242144177 | AQ42: 0.8528775741 | AR42: 0.8528775741 | AT42: Electro Oriente | AU42: MT | AV42: 0.07578558226 | AW42: 0.1471224259 | AX42: 0.1471224259 | AZ42: Electro Oriente | BA42: MT | BB42: 19.2055 | BC42: 28.72628 | BD42: 28.72628
D43: Electro Sur Este | E43: MT | F43: 17.75 | G43: 20.33 | H43: 20.33 | J43: Electro Sur Este | K43: MT | L43: 17.75 | M43: 77.6 | N43: 77.6 | P43: Electro Sur Este | Q43: 1.1009 | S43: Electro Sur Este | T43: 0.1009 | V43: Electro Sur Este | W43: MT | X43: 1.790975 | Y43: 7.82984 | Z43: 7.82984 | AB43: Electro Sur Este | AC43: MT | AD43: 1.790975 | AE43: 7.82984 | AF43: 7.82984 | AH43: Electro Sur Este | AI43: MT | AJ43: 1.790975 | AK43: 7.82984 | AL43: 7.82984 | AN43: Electro Sur Este | AO43: MT | AP43: 0.9083477155 | AQ43: 0.7219501247 | AR43: 0.7219501247 | AT43: Electro Sur Este | AU43: MT | AV43: 0.09165228449 | AW43: 0.2780498753 | AX43: 0.2780498753 | AZ43: Electro Sur Este | BA43: MT | BB43: 19.540975 | BC43: 28.15984 | BD43: 28.15984
D44: Electro Ucayali | E44: MT | F44: 17.75 | G44: 17.14 | H44: 17.14 | J44: Electro Ucayali | K44: MT | L44: 17.75 | M44: 23.24 | N44: 23.24 | P44: Electro Ucayali | Q44: 1.0162 | S44: Electro Ucayali | T44: 0.0162 | V44: Electro Ucayali | W44: MT | X44: 0.28755 | Y44: 0.376488 | Z44: 0.376488 | AB44: Electro Ucayali | AC44: MT | AD44: 0.28755 | AE44: 0.376488 | AF44: 0.376488 | AH44: Electro Ucayali | AI44: MT | AJ44: 0.28755 | AK44: 0.376488 | AL44: 0.376488 | AN44: Electro Ucayali | AO44: MT | AP44: 0.9840582562 | AQ44: 0.9785066504 | AR44: 0.9785066504 | AT44: Electro Ucayali | AU44: MT | AV44: 0.01594174375 | AW44: 0.02149334958 | AX44: 0.02149334958 | AZ44: Electro Ucayali | BA44: MT | BB44: 18.03755 | BC44: 17.516488 | BD44: 17.516488
D45: Electrocentro | E45: MT | F45: 17.75 | G45: 17.14 | H45: 17.14 | J45: Electrocentro | K45: MT | L45: 17.75 | M45: 23.24 | N45: 23.24 | P45: Electrocentro | Q45: 1.0162 | S45: Electrocentro | T45: 0.0162 | V45: Electrocentro | W45: MT | X45: 0.28755 | Y45: 0.376488 | Z45: 0.376488 | AB45: Electrocentro | AC45: MT | AD45: 0.28755 | AE45: 0.376488 | AF45: 0.376488 | AH45: Electrocentro | AI45: MT | AJ45: 0.28755 | AK45: 0.376488 | AL45: 0.376488 | AN45: Electrocentro | AO45: MT | AP45: 0.9840582562 | AQ45: 0.9785066504 | AR45: 0.9785066504 | AT45: Electrocentro | AU45: MT | AV45: 0.01594174375 | AW45: 0.02149334958 | AX45: 0.02149334958 | AZ45: Electrocentro | BA45: MT | BB45: 18.03755 | BC45: 17.516488 | BD45: 17.516488
D46: Electronorte | E46: MT | F46: 17.75 | G46: 17.12 | H46: 17.12 | J46: Electronorte | K46: MT | L46: 17.75 | M46: 23.24 | N46: 23.24 | P46: Electronorte | Q46: 1.0162 | S46: Electronorte | T46: 0.0162 | V46: Electronorte | W46: MT | X46: 0.28755 | Y46: 0.376488 | Z46: 0.376488 | AB46: Electronorte | AC46: MT | AD46: 0.28755 | AE46: 0.376488 | AF46: 0.376488 | AH46: Electronorte | AI46: MT | AJ46: 0.28755 | AK46: 0.376488 | AL46: 0.376488 | AN46: Electronorte | AO46: MT | AP46: 0.9840582562 | AQ46: 0.9784820817 | AR46: 0.9784820817 | AT46: Electronorte | AU46: MT | AV46: 0.01594174375 | AW46: 0.02151791834 | AX46: 0.02151791834 | AZ46: Electronorte | BA46: MT | BB46: 18.03755 | BC46: 17.496488 | BD46: 17.496488
D47: Hidrandina | E47: MT | F47: 17.75 | G47: 17.22 | H47: 17.22 | J47: Hidrandina | K47: MT | L47: 17.75 | M47: 23.63 | N47: 23.63 | P47: Hidrandina | Q47: 1.0169 | S47: Hidrandina | T47: 0.0169 | V47: Hidrandina | W47: MT | X47: 0.299975 | Y47: 0.399347 | Z47: 0.399347 | AB47: Hidrandina | AC47: MT | AD47: 0.299975 | AE47: 0.399347 | AF47: 0.399347 | AH47: Hidrandina | AI47: MT | AJ47: 0.299975 | AK47: 0.399347 | AL47: 0.399347 | AN47: Hidrandina | AO47: MT | AP47: 0.9833808634 | AQ47: 0.9773347446 | AR47: 0.9773347446 | AT47: Hidrandina | AU47: MT | AV47: 0.01661913659 | AW47: 0.02266525541 | AX47: 0.02266525541 | AZ47: Hidrandina | BA47: MT | BB47: 18.049975 | BC47: 17.619347 | BD47: 17.619347
D48: Seal | E48: MT | F48: 17.75 | G48: 17.74 | H48: 17.74 | J48: Seal | K48: MT | L48: 17.75 | M48: 51.71 | N48: 51.71 | P48: Seal | Q48: 1.0685 | S48: Seal | T48: 0.0685 | V48: Seal | W48: MT | X48: 1.215875 | Y48: 3.542135 | Z48: 3.542135 | AB48: Seal | AC48: MT | AD48: 1.215875 | AE48: 3.542135 | AF48: 3.542135 | AH48: Seal | AI48: MT | AJ48: 1.215875 | AK48: 3.542135 | AL48: 3.542135 | AN48: Seal | AO48: MT | AP48: 0.9358914366 | AQ48: 0.833562986 | AR48: 0.833562986 | AT48: Seal | AU48: MT | AV48: 0.06410856341 | AW48: 0.166437014 | AX48: 0.166437014 | AZ48: Seal | BA48: MT | BB48: 18.965875 | BC48: 21.282135 | BD48: 21.282135
AZ50: Adinelsa-MT | BB50: 18.03755 | BC50: 17.516488 | BD50: 17.516488
AZ51: Chavimochic-MT | BB51: 18.03755 | BC51: 17.516488 | BD51: 17.516488
AZ52: Edelnor-MT | BB52: 18.03755 | BC52: 17.516488 | BD52: 17.516488
AZ53: Electro Oriente-MT | BB53: 19.2055 | BC53: 28.72628 | BD53: 28.72628
AZ54: Electro Sur Este-MT | BB54: 19.540975 | BC54: 28.15984 | BD54: 28.15984
AZ55: Electro Ucayali-MT | BB55: 18.03755 | BC55: 17.516488 | BD55: 17.516488
AZ56: Electrocentro-MT | BB56: 18.03755 | BC56: 17.516488 | BD56: 17.516488
AZ57: Electronorte-MT | BB57: 18.03755 | BC57: 17.496488 | BD57: 17.496488
AZ58: Hidrandina-MT | BB58: 18.049975 | BC58: 17.619347 | BD58: 17.619347
AZ59: Seal-MT | BB59: 18.965875 | BC59: 21.282135 | BD59: 21.282135
BB61: =+BB39-BB50 -> 0 | BC61: 0 | BD61: 0
BB62: 0 | BC62: 0 | BD62: 0
BB63: 0 | BC63: 0 | BD63: 0
BB64: 0 | BC64: 0 | BD64: 0
BB65: 0 | BC65: 0 | BD65: 0
BB66: 0 | BC66: 0 | BD66: 0
BB67: 0 | BC67: 0 | BD67: 0
BB68: 0 | BC68: 0 | BD68: 0
BB69: 0 | BC69: 0 | BD69: 0
BB70: 0 | BC70: 0 | BD70: 0

Sheet NuevaResoluciónPNG (hidden)
A1: RESOLUCIÓN DE CONSEJO DIRECTIVO
A2: ORGANISMO SUPERVISOR DE LA INVERSIÓN EN ENERGÍA Y MINERÍA
A3: OSINERGMIN N° XXX-2012-OS/CD
H6: Lima, 26 de abril de 2012 | P6: Lima, 26 de abril de 2012
A9: CONSIDERANDO:
A11: Que, el Artículo 29º de la Ley N° 28832, Ley para Asegurar el Desarrollo Eficiente de la Generación Eléctrica, ha creado el Precio a Nivel Generación, que debe ser aplicado a los consumidores finales de electricidad localizados en el Perú, y que son sujetos a regulación de precios por la energía o potencia que consumen. Dicho Precio a Nivel Generación es calculado como el promedio ponderado de los precios de los Contratos sin Licitación y de los Contratos resultantes de Licitaciones;
A13: Que, el Artículo 29º citado en el párrafo precedente ha dispuesto, asimismo, el establecimiento de un mecanismo de compensación entre Usuarios Regulados del SEIN, con la finalidad que el Precio a Nivel Generación sea único, excepto por las pérdidas y la congestión de los sistemas de transmisión;
A15: Que, mediante Decreto Supremo N° 019-2007-EM se aprobó el “Reglamento del Mecanismo de Compensación entre los Usuarios Regulados del SEIN”. Dicho Reglamento dispone que OSINERGMIN apruebe los procedimientos necesarios para calcular el Precio a Nivel Generación y determinar el programa de transferencias entre empresas aportantes y receptoras del mecanismo de compensación;
A17: Que, mediante Resolución OSINERGMIN N° 180-2007-OS/CD se aprobó la Norma “Precios a Nivel Generación y Mecanismo de Compensación entre Usuarios Regulados”, la cual dispone que, trimestralmente, se calculará el Precio a Nivel Generación y su fórmula de ajuste; así como, las transferencias a que se refiere el párrafo previo. La mencionada norma fue modificada por Resoluciones OSINERGMIN N° 636-2007-OS/CD, N° 638-2008-OS/CD, N° 164-2009-OS/CD y N° 055-2011-OS/CD;
A19: Que, de otro lado, los Artículos 5° y 17° de la Resolución OSINERGMIN N° 057-2012-OS/CD, que estableció los Precios en Barra para el periodo mayo 2012 – abril 2013, disponen que los precios máximos a partir de los cuales se determinarán los nuevos pliegos aplicables a las empresas distribuidoras del SEIN desde el 01 de mayo de 2012 se calcularán sobre la base de los Precios a Nivel Generación a que hace referencia el Artículo 29° de la Ley N° 28832, de conformidad con lo establecido por el Artículo 63° de la Ley de Concesiones Eléctricas;
A21: Que, asimismo, de acuerdo con el Numeral 4.4 del Artículo 4° del Reglamento del Mecanismo de Compensación entre los Usuarios Regulados del SEIN, corresponde publicar el estado de las transferencias por concepto del Mecanismo de Compensación. Dicho estado de transferencias y el cálculo del Precio a Nivel Generación y el programa de transferencias se encuentran sustentados en el Informe N° 0148-2012-GART, Anexo que forma parte integrante de la presente resolución;
A23: Que, mediante Resolución OSINERGMIN N° 014-2012-OS/CD, se calcularon los Precios a Nivel Generación y el programa de transferencias aplicables al trimestre febrero 2012 – abril 2012, correspondiendo publicar, de acuerdo con el Numeral 4.4 del Artículo 4° del Reglamento del Mecanismo de Compensación entre los Usuarios Regulados del SEIN, el Precio a Nivel Generación y el programa de transferencias, entre empresas aportantes y receptoras del mecanismo de compensación, para el siguiente trimestre mayo 2012 - julio 2012. Dicho cálculo se encuentra sustentado en el Informe N° 0148-2012-GART, Anexo que forma parte integrante de la presente resolución;
A25: Que, la procedencia de la publicación del Precio a Nivel Generación se encuentra sustentada en el Informe N° 023-2012-GART;
A27: Que, de acuerdo con lo dispuesto en el numeral 3.2 del Artículo 3° del “Reglamento del Mecanismo de Compensación entre los Usuarios Regulados del SEIN”, corresponde aprobar las Transferencias por Saldos Ejecutados Acumulados correspondiente al mes de abril de 2012;
A29: De conformidad con lo establecido en la Ley N° 27838, Ley de Transparencia y Simplificación de los Procedimientos Regulatorios de Tarifas; en la Ley N° 27332, Ley Marco de los Organismos Reguladores de la Inversión Privada en los Servicios Públicos; en el Reglamento General del OSINERGMIN, aprobado por Decreto Supremo N° 054-2001-PCM; en el Decreto Ley N° 25844, Ley de Concesiones Eléctricas y en su Reglamento, aprobado por Decreto Supremo N° 009-93-EM; en la Ley N° 28832, Ley para Asegurar el Desarrollo Eficiente de la Generación Eléctrica y en sus normas complementarias; y, en la Ley N° 27444, Ley del Procedimiento Administrativo General.
A33: SE RESUELVE:
A36: Artículo 1°.- Aprobar el Precio a Nivel Generación en Subestaciones Base para la determinación de las tarifas máximas a los Usuarios Regulados del Sistema Eléctrico
A37: Interconectado Nacional, y su fórmula de reajuste, aplicables a partir del 01 de mayo de 2012.
A39: 1.1 PRECIOS A NIVEL GENERACIÓN EN BARRAS DE REFERENCIA DE GENERACIÓN
A41: A) PRECIOS A NIVEL GENERACIÓN EN BARRAS DE REFERENCIA DE GENERACIÓN
A43: Cuadro N° 1
O44: Valor en Marzo 2012 | U44: Var. %
A45: Subestaciones Base | B45: Tensión | C45: PPN | D45: PENP | E45: PENF | G45: BARRA DE | H45: TENSIÓN | I45: PPM | J45: PEMP | K45: PEMF | O45: BARRA DE | P45: TENSIÓN | Q45: PPM | R45: PEMP | S45: PEMF
B46: kV | C46: S/./kW-mes | D46: ctm. S/./kW.h | E46: ctm. S/./kW.h | G46: REFERENCIA | H46: kV | I46: S/./kW-mes | J46: ctm. S/./kW.h | K46: ctm. S/./kW.h | O46: REFERENCIA | P46: kV | Q46: S/./kW-mes | R46: ctm. S/./kW.h | S46: ctm. S/./kW.h
A47: SISTEMA ELÉCTRICO INTERCONECTADO NACIONAL (SEIN) | G47: SISTEMA ELÉCTRICO INTERCONECTADO NACIONA (Res. 077-2011-OS/CD) | M47: Nueva Resolución | O47: SISTEMA ELÉCTRICO INTERCONECTADO NACIONA (Res. 077-2011-OS/CD)
A48: Zorritos | B48: 220 | C48: 16.79 | D48: 13.8 | E48: 11.7 | G48: Zorritos | H48: 220 | I48: 16.51 | J48: 13.7 | K48: 11.65 | M48: Zorritos | O48: Zorritos | P48: 220 | Q48: 16.9 | R48: 14.02 | S48: 11.92 | U48: =+C48/Q48-1 -> -0.00650887574 | V48: -0.01569186876 | W48: -0.01845637584
A49: Talara | B49: 220 | C49: 16.79 | D49: 13.74 | E49: 11.66 | G49: Talara | H49: 220 | I49: 16.51 | J49: 13.66 | K49: 11.62 | M49: Talara | O49: Talara | P49: 220 | Q49: 16.9 | R49: 13.98 | S49: 11.89 | U49: -0.00650887574 | V49: -0.01716738197 | W49: -0.01934398654
A50: Piura Oeste | B50: 220 | C50: 16.79 | D50: 14.41 | E50: 12.08 | G50: Piura Oeste | H50: 220 | I50: 16.51 | J50: 14.77 | K50: 12.19 | M50: Piura Oeste | O50: Piura Oeste | P50: 220 | Q50: 16.9 | R50: 15.12 | S50: 12.48 | U50: -0.00650887574 | V50: -0.04695767196 | W50: -0.03205128205
A51: Chiclayo Oeste | B51: 220 | C51: 16.79 | D51: 14.21 | E51: 11.91 | G51: Chiclayo Oeste | H51: 220 | I51: 16.51 | J51: 14.34 | K51: 11.86 | M51: Chiclayo Oeste | O51: Chiclayo Oeste | P51: 220 | Q51: 16.9 | R51: 14.68 | S51: 12.14 | U51: -0.00650887574 | V51: -0.03201634877 | W51: -0.01894563427
A52: Carhuaquero | B52: 220 | C52: 16.79 | D52: 13.97 | E52: 11.76 | G52: Carhuaquero | H52: 220 | I52: 16.51 | J52: 14.11 | K52: 11.72 | M52: Carhuaquero | O52: Carhuaquero | P52: 220 | Q52: 16.9 | R52: 14.44 | S52: 12 | U52: -0.00650887574 | V52: -0.03254847645 | W52: -0.02
A53: Carhuaquero | B53: 138 | C53: 16.79 | D53: 13.97 | E53: 11.76 | G53: Carhuaquero | H53: 138 | I53: 16.51 | J53: 14.11 | K53: 11.72 | M53: Carhuaquero | O53: Carhuaquero | P53: 138 | Q53: 16.9 | R53: 14.44 | S53: 12 | U53: -0.00650887574 | V53: -0.03254847645 | W53: -0.02
A54: Cutervo | B54: 138 | C54: 16.79 | D54: 13.97 | E54: 11.76 | G54: Cutervo | H54: 138 | I54: 16.51 | J54: 14.12 | K54: 11.72 | M54: Cutervo | O54: Cutervo | P54: 138 | Q54: 16.9 | R54: 14.45 | S54: 12 | U54: -0.00650887574 | V54: -0.03321799308 | W54: -0.02
A55: Jaen | B55: 138 | C55: 16.79 | D55: 13.97 | E55: 11.76 | G55: Jaen | H55: 138 | I55: 16.51 | J55: 14.14 | K55: 11.73 | M55: Jaen | O55: Jaen | P55: 138 | Q55: 16.9 | R55: 14.47 | S55: 12.01 | U55: -0.00650887574 | V55: -0.03455425017 | W55: -0.02081598668
A56: Guadalupe | B56: 220 | C56: 16.79 | D56: 14.04 | E56: 11.77 | G56: Guadalupe | H56: 220 | I56: 16.51 | J56: 14.12 | K56: 11.7 | M56: Guadalupe | O56: Guadalupe | P56: 220 | Q56: 16.9 | R56: 14.45 | S56: 11.97 | U56: -0.00650887574 | V56: -0.02837370242 | W56: -0.01670843776
A57: Guadalupe | B57: 60 | C57: 16.79 | D57: 14.09 | E57: 11.81 | G57: Guadalupe | H57: 60 | I57: 16.51 | J57: 14.18 | K57: 11.73 | M57: Guadalupe | O57: Guadalupe | P57: 60 | Q57: 16.9 | R57: 14.51 | S57: 12.01 | U57: -0.00650887574 | V57: -0.02894555479 | W57: -0.01665278934
A58: Cajamarca | B58: 220 | C58: 16.79 | D58: 13.63 | E58: 11.48 | G58: Cajamarca | H58: 220 | I58: 16.51 | J58: 13.72 | K58: 11.41 | M58: Cajamarca | O58: Cajamarca | P58: 220 | Q58: 16.9 | R58: 14.04 | S58: 11.68 | U58: -0.00650887574 | V58: -0.0292022792 | W58: -0.01712328767
A59: Trujillo Norte | B59: 220 | C59: 16.79 | D59: 13.73 | E59: 11.51 | G59: Trujillo Norte | H59: 220 | I59: 16.51 | J59: 13.76 | K59: 11.42 | M59: Trujillo Norte | O59: Trujillo Norte | P59: 220 | Q59: 16.9 | R59: 14.08 | S59: 11.69 | U59: -0.00650887574 | V59: -0.02485795455 | W59: -0.01539777588
A60: Chimbote 1 | B60: 220 | C60: 16.79 | D60: 13.54 | E60: 11.38 | G60: Chimbote 1 | H60: 220 | I60: 16.51 | J60: 13.49 | K60: 11.21 | M60: Chimbote 1 | O60: Chimbote 1 | P60: 220 | Q60: 16.9 | R60: 13.81 | S60: 11.47 | U60: -0.00650887574 | V60: -0.01955104996 | W60: -0.007846556234
A61: Chimbote 1 | B61: 138 | C61: 16.79 | D61: 13.61 | E61: 11.41 | G61: Chimbote 1 | H61: 138 | I61: 16.51 | J61: 13.49 | K61: 11.22 | M61: Chimbote 1 | O61: Chimbote 1 | P61: 138 | Q61: 16.9 | R61: 13.81 | S61: 11.48 | U61: -0.00650887574 | V61: -0.01448225923 | W61: -0.006097560976
A62: Paramonga Nueva | B62: 220 | C62: 16.79 | D62: 13.17 | E62: 11.06 | G62: Paramonga Nueva | H62: 220 | I62: 16.51 | J62: 13.01 | K62: 10.85 | M62: Paramonga Nueva | O62: Paramonga Nueva | P62: 220 | Q62: 16.9 | R62: 13.32 | S62: 11.1 | U62: -0.00650887574 | V62: -0.01126126126 | W62: -0.003603603604
A63: Paramonga Nueva | B63: 138 | C63: 16.79 | D63: 13.15 | E63: 11.05 | G63: Paramonga Nueva | H63: 138 | I63: 16.51 | J63: 12.99 | K63: 10.85 | M63: Paramonga Nueva | O63: Paramonga Nueva | P63: 138 | Q63: 16.9 | R63: 13.3 | S63: 11.1 | U63: -0.00650887574 | V63: -0.01127819549 | W63: -0.004504504505
A64: Paramonga Existente | B64: 138 | C64: 16.79 | D64: 13.11 | E64: 11.04 | G64: Paramonga Existente | H64: 138 | I64: 16.51 | J64: 12.98 | K64: 10.85 | M64: Paramonga Existente | O64: Paramonga Existente | P64: 138 | Q64: 16.9 | R64: 13.29 | S64: 11.1 | U64: -0.00650887574 | V64: -0.01354401806 | W64: -0.005405405405
A65: Huacho | B65: 220 | C65: 16.79 | D65: 13.11 | E65: 11 | G65: Huacho | H65: 220 | I65: 16.51 | J65: 12.91 | K65: 10.76 | M65: Huacho | O65: Huacho | P65: 220 | Q65: 16.9 | R65: 13.21 | S65: 11.01 | U65: -0.00650887574 | V65: -0.00757002271 | W65: -0.0009082652134
A66: Zapallal | B66: 220 | C66: 16.79 | D66: 12.94 | E66: 10.84 | G66: Zapallal | H66: 220 | I66: 16.51 | J66: 12.65 | K66: 10.56 | M66: Zapallal | O66: Zapallal | P66: 220 | Q66: 16.9 | R66: 12.95 | S66: 10.81 | U66: -0.00650887574 | V66: -0.0007722007722 | W66: 0.002775208141
A67: Ventanilla | B67: 220 | C67: 16.79 | D67: 12.93 | E67: 10.82 | G67: Ventanilla | H67: 220 | I67: 16.51 | J67: 12.72 | K67: 10.55 | M67: Ventanilla | O67: Ventanilla | P67: 220 | Q67: 16.9 | R67: 13.02 | S67: 10.8 | U67: -0.00650887574 | V67: -0.006912442396 | W67: 0.001851851852
A68: Lima | B68: 220 | C68: 16.79 | D68: 12.92 | E68: 10.81 | G68: Lima | H68: 220 | I68: 16.51 | J68: 12.69 | K68: 10.56 | M68: Lima | O68: Lima | P68: 220 | Q68: 16.9 | R68: 12.99 | S68: 10.81 | U68: -0.00650887574 | V68: -0.005388760585 | W68: 0
A69: Cantera | B69: 220 | C69: 16.79 | D69: 12.7 | E69: 10.67 | G69: Cantera | H69: 220 | I69: 16.51 | J69: 12.47 | K69: 10.45 | M69: Cantera | O69: Cantera | P69: 220 | Q69: 16.9 | R69: 12.76 | S69: 10.7 | U69: -0.00650887574 | V69: -0.004702194357 | W69: -0.002803738318
A70: Chilca | B70: 220 | C70: 16.79 | D70: 12.57 | E70: 10.55 | G70: Chilca | H70: 220 | I70: 16.51 | J70: 12.34 | K70: 10.34 | M70: Chilca | O70: Chilca | P70: 220 | Q70: 16.9 | R70: 12.63 | S70: 10.58 | U70: -0.00650887574 | V70: -0.004750593824 | W70: -0.002835538752
A71: Independencia | B71: 220 | C71: 16.79 | D71: 12.8 | E71: 10.77 | G71: Independencia | H71: 220 | I71: 16.51 | J71: 12.57 | K71: 10.55 | M71: Independencia | O71: Independencia | P71: 220 | Q71: 16.9 | R71: 12.87 | S71: 10.8 | U71: -0.00650887574 | V71: -0.005439005439 | W71: -0.002777777778
A72: Ica | B72: 220 | C72: 16.79 | D72: 12.87 | E72: 10.83 | G72: Ica | H72: 220 | I72: 16.51 | J72: 12.67 | K72: 10.63 | M72: Ica | O72: Ica | P72: 220 | Q72: 16.9 | R72: 12.97 | S72: 10.88 | U72: -0.00650887574 | V72: -0.007710100231 | W72: -0.004595588235
A73: Marcona | B73: 220 | C73: 16.79 | D73: 13.08 | E73: 10.98 | G73: Marcona | H73: 220 | I73: 16.51 | J73: 12.94 | K73: 10.84 | M73: Marcona | O73: Marcona | P73: 220 | Q73: 16.9 | R73: 13.24 | S73: 11.09 | U73: -0.00650887574 | V73: -0.01208459215 | W73: -0.009918845807
A74: Mantaro | B74: 220 | C74: 16.79 | D74: 12.63 | E74: 10.58 | G74: Mantaro | H74: 220 | I74: 16.51 | J74: 12.4 | K74: 10.33 | M74: Mantaro | O74: Mantaro | P74: 220 | Q74: 16.9 | R74: 12.69 | S74: 10.57 | U74: -0.00650887574 | V74: -0.004728132388 | W74: 0.0009460737938
A75: Huayucachi | B75: 220 | C75: 16.79 | D75: 12.73 | E75: 10.66 | G75: Huayucachi | H75: 220 | I75: 16.51 | J75: 12.49 | K75: 10.42 | M75: Huayucachi | O75: Huayucachi | P75: 220 | Q75: 16.9 | R75: 12.78 | S75: 10.66 | U75: -0.00650887574 | V75: -0.003912363067 | W75: 0
A76: Pachachaca | B76: 220 | C76: 16.79 | D76: 12.76 | E76: 10.7 | G76: Pachachaca | H76: 220 | I76: 16.51 | J76: 12.5 | K76: 10.43 | M76: Pachachaca | O76: Pachachaca | P76: 220 | Q76: 16.9 | R76: 12.79 | S76: 10.68 | U76: -0.00650887574 | V76: -0.002345582486 | W76: 0.001872659176
A77: Pomacocha | B77: 220 | C77: 16.79 | D77: 12.76 | E77: 10.69 | M77: Pomacocha
A78: Huancavelica | B78: 220 | C78: 16.79 | D78: 12.68 | E78: 10.65 | G78: Huancavelica | H78: 220 | I78: 16.51 | J78: 12.45 | K78: 10.41 | M78: Huancavelica | O78: Huancavelica | P78: 220 | Q78: 16.9 | R78: 12.74 | S78: 10.65 | U78: -0.00650887574 | V78: -0.004709576138 | W78: 0
A79: Callahuanca | B79: 220 | C79: 16.79 | D79: 12.82 | E79: 10.76 | G79: Callahuanca | H79: 220 | I79: 16.51 | J79: 12.58 | K79: 10.49 | M79: Callahuanca | O79: Callahuanca | P79: 220 | Q79: 16.9 | R79: 12.88 | S79: 10.74 | U79: -0.00650887574 | V79: -0.004658385093 | W79: 0.001862197393
A80: Cajamarquilla | B80: 220 | C80: 16.79 | D80: 12.92 | E80: 10.85 | G80: Cajamarquilla | H80: 220 | I80: 16.51 | J80: 12.69 | K80: 10.58 | M80: Cajamarquilla | O80: Cajamarquilla | P80: 220 | Q80: 16.9 | R80: 12.99 | S80: 10.83 | U80: =+C80/Q80-1 -> -0.00650887574 | V80: -0.005388760585 | W80: 0.001846722068
A81: Huallanca | B81: 138 | C81: 16.79 | D81: 13.31 | E81: 11.18 | G81: Huallanca | H81: 138 | I81: 16.51 | J81: 13.07 | K81: 10.92 | M81: Huallanca | O81: Huallanca | P81: 138 | Q81: 16.9 | R81: 13.38 | S81: 11.18 | U81: -0.00650887574 | V81: -0.005231689088 | W81: 0
A82: Vizcarra | B82: 220 | C82: 16.79 | D82: 13.09 | E82: 10.99 | G82: Vizcarra | H82: 220 | I82: 16.51 | J82: 12.88 | K82: 10.77 | M82: Vizcarra | O82: Vizcarra | P82: 220 | Q82: 16.9 | R82: 13.18 | S82: 11.02 | U82: -0.00650887574 | V82: -0.006828528073 | W82: -0.002722323049
A83: Tingo María | B83: 220 | C83: 16.79 | D83: 13.21 | E83: 11.09 | G83: Tingo María | H83: 220 | I83: 16.51 | J83: 12.9 | K83: 10.75 | M83: Tingo María | O83: Tingo María | P83: 220 | Q83: 16.9 | R83: 13.2 | S83: 11 | U83: -0.00650887574 | V83: 0.0007575757576 | W83: 0.008181818182
A84: Aguaytía | B84: 220 | C84: 16.79 | D84: 13.08 | E84: 11 | G84: Aguaytía | H84: 220 | I84: 16.51 | J84: 12.75 | K84: 10.7 | M84: Aguaytía | O84: Aguaytía | P84: 220 | Q84: 16.9 | R84: 13.05 | S84: 10.95 | U84: -0.00650887574 | V84: 0.002298850575 | W84: 0.004566210046
A85: Aguaytía | B85: 138 | C85: 16.79 | D85: 13.13 | E85: 11.04 | G85: Aguaytía | H85: 138 | I85: 16.51 | J85: 12.8 | K85: 10.73 | M85: Aguaytía | O85: Aguaytía | P85: 138 | Q85: 16.9 | R85: 13.1 | S85: 10.98 | U85: -0.00650887574 | V85: 0.002290076336 | W85: 0.005464480874
A86: Aguaytía | B86: 22.9 | C86: 16.79 | D86: 13.11 | E86: 11.02 | G86: Aguaytía | H86: 22.9 | I86: 16.51 | J86: 12.78 | K86: 10.72 | M86: Aguaytía | O86: Aguaytía | P86: 22.9 | Q86: 16.9 | R86: 13.08 | S86: 10.97 | U86: -0.00650887574 | V86: 0.002293577982 | W86: 0.004557885141
A87: Pucallpa | B87: 138 | C87: 16.79 | D87: 13.53 | E87: 11.3 | G87: Pucallpa | H87: 138 | I87: 16.51 | J87: 13.17 | K87: 10.97 | M87: Pucallpa | O87: Pucallpa | P87: 138 | Q87: 16.9 | R87: 13.48 | S87: 11.23 | U87: -0.00650887574 | V87: 0.003709198813 | W87: 0.006233303651
A88: Pucallpa | B88: 60 | C88: 16.79 | D88: 13.55 | E88: 11.31 | G88: Pucallpa | H88: 60 | I88: 16.51 | J88: 13.19 | K88: 10.99 | M88: Pucallpa | O88: Pucallpa | P88: 60 | Q88: 16.9 | R88: 13.5 | S88: 11.25 | U88: -0.00650887574 | V88: 0.003703703704 | W88: 0.005333333333
A89: Aucayacu | B89: 138 | C89: 16.79 | D89: 18.39 | E89: 11.52 | G89: Aucayacu | H89: 138 | I89: 16.51 | J89: 13.21 | K89: 11.04 | M89: Aucayacu | O89: Aucayacu | P89: 138 | Q89: 16.9 | R89: 13.52 | S89: 11.3 | U89: -0.00650887574 | V89: 0.3602071006 | W89: 0.01946902655
A90: Tocache | B90: 138 | C90: 16.79 | D90: 20.48 | E90: 12.31 | G90: Tocache | H90: 138 | I90: 16.51 | J90: 13.61 | K90: 11.26 | M90: Tocache | O90: Tocache | P90: 138 | Q90: 16.9 | R90: 13.93 | S90: 11.52 | U90: -0.00650887574 | V90: 0.4702081838 | W90: 0.06857638889
A91: Tingo María | B91: 138 | C91: 16.79 | D91: 13.51 | E91: 11.4 | G91: Tingo María | H91: 138 | I91: 16.51 | J91: 13.04 | K91: 10.95 | M91: Tingo María | O91: Tingo María | P91: 138 | Q91: 16.9 | R91: 13.35 | S91: 11.21 | U91: -0.00650887574 | V91: 0.01198501873 | W91: 0.01694915254
A92: Huánuco | B92: 138 | C92: 16.79 | D92: 13.54 | E92: 11.4 | G92: Huánuco | H92: 138 | I92: 16.51 | J92: 12.82 | K92: 10.78 | M92: Huánuco | O92: Huánuco | P92: 138 | Q92: 16.9 | R92: 13.12 | S92: 11.03 | U92: -0.00650887574 | V92: 0.03201219512 | W92: 0.03354487761
A93: Paragsha II | B93: 138 | C93: 16.79 | D93: 13.45 | E93: 11.31 | G93: Paragsha II | H93: 138 | I93: 16.51 | J93: 12.59 | K93: 10.57 | M93: Paragsha II | O93: Paragsha II | P93: 138 | Q93: 16.9 | R93: 12.89 | S93: 10.82 | U93: -0.00650887574 | V93: 0.04344453064 | W93: 0.04528650647
A94: Paragsha | B94: 220 | C94: 16.79 | D94: 12.82 | E94: 10.79 | G94: Paragsha | H94: 220 | I94: 16.51 | J94: 12.63 | K94: 10.57 | M94: Paragsha | O94: Paragsha | P94: 220 | Q94: 16.9 | R94: 12.93 | S94: 10.82 | U94: -0.00650887574 | V94: -0.008507347254 | W94: -0.002772643253
A95: Yaupi | B95: 138 | C95: 16.79 | D95: 12.51 | E95: 10.54 | G95: Yaupi | H95: 138 | I95: 16.51 | J95: 12.45 | K95: 10.42 | M95: Yaupi | O95: Yaupi | P95: 138 | Q95: 16.9 | R95: 12.74 | S95: 10.66 | U95: -0.00650887574 | V95: -0.0180533752 | W95: -0.01125703565
A96: Yuncan | B96: 138 | C96: 16.79 | D96: 12.51 | E96: 10.54 | G96: Yuncan | H96: 138 | I96: 16.51 | J96: 12.45 | K96: 10.42 | M96: Yuncán | O96: Yuncan | P96: 138 | Q96: 16.9 | R96: 12.74 | S96: 10.66 | U96: -0.00650887574 | V96: -0.0180533752 | W96: -0.01125703565
A97: Yuncan | B97: 220 | C97: 16.79 | D97: 12.56 | E97: 10.58 | G97: Yuncan | H97: 220 | I97: 16.51 | J97: 12.49 | K97: 10.45 | M97: Yuncán | O97: Yuncan | P97: 220 | Q97: 16.9 | R97: 12.78 | S97: 10.7 | U97: -0.00650887574 | V97: -0.0172143975 | W97: -0.01121495327
A98: Oroya Nueva | B98: 220 | C98: 16.79 | D98: 12.84 | E98: 10.78 | G98: Oroya Nueva | H98: 220 | I98: 16.51 | J98: 12.54 | K98: 10.47 | M98: Oroya Nueva | O98: Oroya Nueva | P98: 220 | Q98: 16.9 | R98: 12.83 | S98: 10.72 | U98: -0.00650887574 | V98: 0.0007794232268 | W98: 0.005597014925
A99: Oroya Nueva | B99: 138 | C99: 16.79 | D99: 13.02 | E99: 10.97 | G99: Oroya Nueva | H99: 138 | I99: 16.51 | J99: 12.73 | K99: 10.66 | M99: Oroya Nueva | O99: Oroya Nueva | P99: 138 | Q99: 16.9 | R99: 13.03 | S99: 10.91 | U99: -0.00650887574 | V99: -0.0007674597084 | W99: 0.005499541705
A100: Oroya Nueva | B100: 50 | C100: 16.79 | D100: 13.54 | E100: 11.37 | G100: Oroya Nueva | H100: 50 | I100: 16.51 | J100: 12.65 | K100: 10.56 | M100: Oroya Nueva | O100: Oroya Nueva | P100: 50 | Q100: 16.9 | R100: 12.95 | S100: 10.81 | U100: -0.00650887574 | V100: 0.04555984556 | W100: 0.05180388529
A101: Carhuamayo | B101: 138 | C101: 16.79 | D101: 12.05 | E101: 10.31 | G101: Carhuamayo | H101: 138 | I101: 16.51 | J101: 12.75 | K101: 10.56 | M101: Carhuamayo | O101: Carhuamayo | P101: 138 | Q101: 16.9 | R101: 13.05 | S101: 10.81 | U101: -0.00650887574 | V101: -0.07662835249 | W101: -0.04625346901
A102: Carhuamayo Nueva | B102: 220 | C102: 16.79 | D102: 12.64 | E102: 10.65 | G102: Carhuamayo Nueva | H102: 220 | I102: 16.51 | J102: 12.57 | K102: 10.51 | M102: Carhuamayo Nueva | O102: Carhuamayo Nueva | P102: 220 | Q102: 16.9 | R102: 12.87 | S102: 10.76 | U102: -0.00650887574 | V102: -0.01787101787 | W102: -0.01022304833
A103: Caripa | B103: 138 | C103: 16.79 | D103: 12.69 | E103: 10.75 | G103: Caripa | H103: 138 | I103: 16.51 | J103: 12.82 | K103: 10.75 | M103: Caripa | O103: Caripa | P103: 138 | Q103: 16.9 | R103: 13.12 | S103: 11 | U103: -0.00650887574 | V103: -0.03277439024 | W103: -0.02272727273
A104: Desierto | B104: 220 | C104: 16.79 | D104: 12.73 | E104: 10.7 | G104: Desierto | H104: 220 | I104: 16.51 | J104: 12.5 | K104: 10.48 | M104: Desierto | O104: Desierto | P104: 220 | Q104: 16.9 | R104: 12.79 | S104: 10.73 | U104: -0.00650887574 | V104: -0.004691164973 | W104: -0.002795899348
A105: Condorcocha | B105: 138 | C105: 16.79 | D105: 12.72 | E105: 10.78 | G105: Condorcocha | H105: 138 | I105: 16.51 | J105: 12.84 | K105: 10.78 | M105: Condorcocha | O105: Condorcocha | P105: 138 | Q105: 16.9 | R105: 13.14 | S105: 11.03 | U105: -0.00650887574 | V105: -0.03196347032 | W105: -0.02266545784
A106: Condorcocha | B106: 44 | C106: 16.79 | D106: 12.72 | E106: 10.78 | G106: Condorcocha | H106: 44 | I106: 16.51 | J106: 12.84 | K106: 10.78 | M106: Condorcocha | O106: Condorcocha | P106: 44 | Q106: 16.9 | R106: 13.14 | S106: 11.03 | U106: -0.00650887574 | V106: -0.03196347032 | W106: -0.02266545784
A107: Machupicchu | B107: 138 | C107: 16.79 | D107: 14.44 | E107: 11.47 | G107: Machupicchu | H107: 138 | I107: 16.51 | J107: 13.71 | K107: 10.83 | M107: Machupicchu | O107: Machupicchu | P107: 138 | Q107: 16.9 | R107: 14.03 | S107: 11.08 | U107: -0.00650887574 | V107: 0.02922309337 | W107: 0.03519855596
A108: Cachimayo | B108: 138 | C108: 16.79 | D108: 14.9 | E108: 11.85 | G108: Cachimayo | H108: 138 | I108: 16.51 | J108: 14.19 | K108: 11.22 | M108: Cachimayo | O108: Cachimayo | P108: 138 | Q108: 16.9 | R108: 14.52 | S108: 11.48 | U108: -0.00650887574 | V108: 0.0261707989 | W108: 0.03222996516
A109: Cusco | B109: 138 | C109: 16.79 | D109: 14.88 | E109: 11.84 | G109: Cusco | H109: 138 | I109: 16.51 | J109: 14.2 | K109: 11.23 | M109: Cusco | O109: Cusco | P109: 138 | Q109: 16.9 | R109: 14.53 | S109: 11.49 | U109: -0.00650887574 | V109: 0.0240880936 | W109: 0.03046127067
A110: Combapata | B110: 138 | C110: 16.79 | D110: 14.84 | E110: 11.98 | G110: Combapata | H110: 138 | I110: 16.51 | J110: 14.29 | K110: 11.42 | M110: Combapata | O110: Combapata | P110: 138 | Q110: 16.9 | R110: 14.63 | S110: 11.69 | U110: -0.00650887574 | V110: 0.01435406699 | W110: 0.0248075278
A111: Tintaya | B111: 138 | C111: 16.79 | D111: 14.75 | E111: 12.12 | G111: Tintaya | H111: 138 | I111: 16.51 | J111: 14.37 | K111: 11.64 | M111: Tintaya | O111: Tintaya | P111: 138 | Q111: 16.9 | R111: 14.71 | S111: 11.91 | U111: -0.00650887574 | V111: 0.002719238613 | W111: 0.01763224181
A112: Ayaviri | B112: 138 | C112: 16.79 | D112: 14.31 | E112: 11.83 | G112: Ayaviri | H112: 138 | I112: 16.51 | J112: 14.1 | K112: 11.43 | M112: Ayaviri | O112: Ayaviri | P112: 138 | Q112: 16.9 | R112: 14.43 | S112: 11.7 | U112: =+C112/Q112-1 -> -0.00650887574 | V112: -0.008316008316 | W112: 0.01111111111
A113: Azángaro | B113: 138 | C113: 16.79 | D113: 14.06 | E113: 11.46 | G113: Azángaro | H113: 138 | I113: 16.51 | J113: 13.93 | K113: 11.3 | M113: Azángaro | O113: Azángaro | P113: 138 | Q113: 16.9 | R113: 14.26 | S113: 11.57 | U113: -0.00650887574 | V113: -0.01402524544 | W113: -0.009507346586
A114: San Gaban | B114: 138 | C114: 16.79 | D114: 14.06 | E114: 11.45 | G114: =+A114 -> San Gaban | H114: 138 | I114: 16.51 | J114: 14.03 | K114: 11.36 | M114: San Gabán | O114: =+I114 -> 16.51 | P114: 138 | Q114: 16.9 | R114: 14.36 | S114: 11.63 | U114: -0.00650887574 | V114: -0.0208913649 | W114: -0.0154772141
A115: Mazuco | B115: 138 | C115: 16.79 | D115: 14.16 | E115: 11.5 | G115: Mazuco | H115: 138 | I115: 16.51 | J115: 14.14 | K115: 11.42 | M115: Mazuco | O115: Mazuco | P115: 138 | Q115: 16.9 | R115: 14.47 | S115: 11.69 | U115: -0.00650887574 | V115: -0.02142363511 | W115: -0.01625320787
A116: Puerto Maldonado | B116: 138 | C116: 16.79 | D116: 14.39 | E116: 11.62 | G116: Puerto Maldonado | H116: 138 | I116: 16.51 | J116: 14.38 | K116: 11.55 | M116: Puerto Maldonado | O116: Puerto Maldonado | P116: 138 | Q116: 16.9 | R116: 14.72 | S116: 11.82 | U116: -0.00650887574 | V116: -0.02241847826 | W116: -0.01692047377
A117: Juliaca | B117: 138 | C117: 16.79 | D117: 14.42 | E117: 11.83 | G117: Juliaca | H117: 138 | I117: 16.51 | J117: 14.28 | K117: 11.61 | M117: Juliaca | O117: Juliaca | P117: 138 | Q117: 16.9 | R117: 14.62 | S117: 11.88 | U117: -0.00650887574 | V117: -0.01367989056 | W117: -0.004208754209
A118: Puno | B118: 138 | C118: 16.79 | D118: 14.48 | E118: 11.96 | G118: Puno | H118: 138 | I118: 16.51 | J118: 14.33 | K118: 11.72 | M118: Puno | O118: Puno | P118: 138 | Q118: 16.9 | R118: 14.67 | S118: 12 | U118: -0.00650887574 | V118: -0.01295160191 | W118: -0.003333333333
A119: Puno | B119: 220 | C119: 16.79 | D119: 14.5 | E119: 11.97 | G119: Puno | H119: 220 | I119: 16.51 | J119: 14.32 | K119: 11.72 | M119: Puno | O119: Puno | P119: 220 | Q119: 16.9 | R119: 14.66 | S119: 12 | U119: -0.00650887574 | V119: -0.01091405184 | W119: -0.0025
A120: Callalli | B120: 138 | C120: 16.79 | D120: 14.56 | E120: 12.02 | G120: Callalli | H120: 138 | I120: 16.51 | J120: 14.21 | K120: 11.63 | M120: Callalli | O120: Callalli | P120: 138 | Q120: 16.9 | R120: 14.54 | S120: 11.9 | U120: -0.00650887574 | V120: 0.001375515818 | W120: 0.01008403361
A121: Santuario | B121: 138 | C121: 16.79 | D121: 14.28 | E121: 11.87 | G121: Santuario | H121: 138 | I121: 16.51 | J121: 14.03 | K121: 11.54 | M121: Santuario | O121: Santuario | P121: 138 | Q121: 16.9 | R121: 14.36 | S121: 11.81 | U121: -0.00650887574 | V121: -0.005571030641 | W121: 0.005080440305
A122: Arequipa | B122: 138 | C122: 16.79 | D122: 14.35 | E122: 11.92 | G122: Arequipa | H122: 138 | I122: 16.51 | J122: 14.09 | K122: 11.59 | M122: Arequipa | O122: Arequipa | P122: 138 | Q122: 16.9 | R122: 14.42 | S122: 11.86 | U122: -0.00650887574 | V122: -0.004854368932 | W122: 0.005059021922
A123: Socabaya | B123: 220 | C123: 16.79 | D123: 14.34 | E123: 11.91 | G123: Socabaya | H123: 220 | I123: 16.51 | J123: 14.08 | K123: 11.58 | M123: Socabaya | O123: Socabaya | P123: 220 | Q123: 16.9 | R123: 14.41 | S123: 11.85 | U123: -0.00650887574 | V123: -0.004857737682 | W123: 0.005063291139
A124: Cerro Verde | B124: 138 | C124: 16.79 | D124: 14.39 | E124: 11.95 | G124: Cerro Verde | H124: 138 | I124: 16.51 | J124: 14.13 | K124: 11.62 | M124: Cerro Verde | O124: Cerro Verde | P124: 138 | Q124: 16.9 | R124: 14.46 | S124: 11.89 | U124: -0.00650887574 | V124: -0.004840940526 | W124: 0.005046257359
A125: Repartición | B125: 138 | C125: 16.79 | D125: 14.44 | E125: 11.97 | G125: Repartición | H125: 138 | I125: 16.51 | J125: 14.18 | K125: 11.65 | M125: Repartición | O125: Repartición | P125: 138 | Q125: 16.9 | R125: 14.51 | S125: 11.92 | U125: -0.00650887574 | V125: -0.004824259132 | W125: 0.004194630872
A126: Mollendo | B126: 138 | C126: 16.79 | D126: 14.48 | E126: 12 | G126: Mollendo | H126: 138 | I126: 16.51 | J126: 14.22 | K126: 11.67 | M126: Mollendo | O126: Mollendo | P126: 138 | Q126: 16.9 | R126: 14.55 | S126: 11.94 | U126: -0.00650887574 | V126: -0.004810996564 | W126: 0.005025125628
A127: Montalvo | B127: 220 | C127: 16.79 | D127: 14.52 | E127: 12.05 | G127: Montalvo | H127: 220 | I127: 16.51 | J127: 14.31 | K127: 11.76 | M127: Montalvo | O127: Montalvo | P127: 220 | Q127: 16.9 | R127: 14.65 | S127: 12.04 | U127: -0.00650887574 | V127: -0.008873720137 | W127: 0.0008305647841
A128: Montalvo | B128: 138 | C128: 16.79 | D128: 14.53 | E128: 12.06 | G128: Montalvo | H128: 138 | I128: 16.51 | J128: 14.32 | K128: 11.77 | M128: Montalvo | O128: Montalvo | P128: 138 | Q128: 16.9 | R128: 14.66 | S128: 12.05 | U128: -0.00650887574 | V128: -0.008867667121 | W128: 0.0008298755187
A129: Ilo ELP | B129: 138 | C129: 16.79 | D129: 14.73 | E129: 12.22 | G129: Ilo ELP | H129: 138 | I129: 16.51 | J129: 14.25 | K129: 11.94 | M129: Ilo ELP | O129: Ilo ELP | P129: 138 | Q129: 16.9 | R129: 14.58 | S129: 12.22 | U129: -0.00650887574 | V129: 0.01028806584 | W129: 0
A130: Botiflaca | B130: 138 | C130: 16.79 | D130: 14.61 | E130: 12.13 | G130: Botiflaca | H130: 138 | I130: 16.51 | J130: 14.38 | K130: 11.84 | M130: Botiflaca | O130: Botiflaca | P130: 138 | Q130: 16.9 | R130: 14.72 | S130: 12.12 | U130: -0.00650887574 | V130: -0.007472826087 | W130: 0.0008250825083
A131: Toquepala | B131: 138 | C131: 16.79 | D131: 14.66 | E131: 12.19 | G131: Toquepala | H131: 138 | I131: 16.51 | J131: 14.41 | K131: 11.9 | M131: Toquepala | O131: Toquepala | P131: 138 | Q131: 16.9 | R131: 14.75 | S131: 12.18 | U131: -0.00650887574 | V131: -0.006101694915 | W131: 0.0008210180624
A132: Aricota | B132: 138 | C132: 16.79 | D132: 14.54 | E132: 12.14 | G132: Aricota | H132: 138 | I132: 16.51 | J132: 14.3 | K132: 11.86 | M132: Aricota | O132: Aricota | P132: 138 | Q132: 16.9 | R132: 14.64 | S132: 12.14 | U132: -0.00650887574 | V132: -0.006830601093 | W132: 0
A133: Aricota | B133: 66 | C133: 16.79 | D133: 14.48 | E133: 12.13 | G133: Aricota | H133: 66 | I133: 16.51 | J133: 14.25 | K133: 11.85 | M133: Aricota | O133: Aricota | P133: 66 | Q133: 16.9 | R133: 14.58 | S133: 12.13 | U133: -0.00650887574 | V133: -0.006858710562 | W133: 0
A134: Tacna (Los Héroes) | B134: 220 | C134: 16.79 | D134: 14.63 | E134: 12.11 | G134: Tacna (Los Héroes) | H134: 220 | I134: 16.51 | J134: 14.4 | K134: 11.81 | M134: Tacna (Los Héroes) | O134: Tacna (Los Héroes) | P134: 220 | Q134: 16.9 | R134: 14.74 | S134: 12.09 | U134: -0.00650887574 | V134: -0.007462686567 | W134: 0.001654259719
A135: Tacna (Los Héroes) | B135: 66 | C135: 16.79 | D135: 14.75 | E135: 12.16 | G135: Tacna (Los Héroes) | H135: 66 | I135: 16.51 | J135: 14.5 | K135: 11.84 | M135: Tacna (Los Héroes) | O135: Tacna (Los Héroes) | P135: 66 | Q135: 16.9 | R135: 14.84 | S135: 12.12 | U135: -0.00650887574 | V135: -0.006064690027 | W135: 0.003300330033
A137: Notas:
A138: (1) | B138: Barra de Referencia de Generación Lima: Constituida por las Barras de Referencia de Generación Chavarría 220 kV, Santa Rosa 220 kV, San Juan 220 kV.
A139: (2) | B139: Barra de Referencia de Generación Cusco: Constituida por las Barras de Referencia de Generación Dolorespata 138 kV y Quencoro 138 kV.
A140: (3) | B140: Barra de Referencia de Generación Arequipa: Constituida por las Barras de Referencia de Generación Socabaya 138 kV y Chilina 138 kV.
A143: 1.2 | B143: PRECIOS A NIVEL GENERACIÓN EN BARRAS DIFERENTES A LAS SEÑALADAS EN EL NUMERAL 1.1.
A144: Los Precios a Nivel Generación de la Energía (en Horas de Punta y Fuera de Punta) serán el resultado de multiplicar los Precios a Nivel Generación de la energía en una Subestación de Referencia por el respectivo Factor Nodal de Energía (FNE).
A145: Los Precios a Nivel Generación de la Potencia serán el resultado de multiplicar los Precios a Nivel Generación de la Potencia de Punta en la Subestación de Referencia por el respectivo Factor de Pérdidas de Potencia (FPP).
A147: Se define:
A148: PENP1 | B148: = | C148: PENP0 * FNE | D148: (4)
A149: PENF1 | B149: = | C149: PENF0 * FNE | D149: (5)
A150: PPN1 | B150: = | C150: PPN0 * FPP | D150: (6)
A151: Donde:
A152: PENP0 | B152: : | C152: Precio a Nivel Generación de la Energía en Horas de Punta, definido.
A153: PENF0 | B153: : | C153: Precio a Nivel Generación de la Energía en Horas Fuera de Punta, definido.
A154: PPN0 | B154: : | C154: Precio a Nivel Generación de la Potencia de Punta, definido.
A155: PENP1 | B155: : | C155: Precio a Nivel Generación de la Energía en Horas de Punta, por determinar.
A156: PENF1 | B156: : | C156: Precio a Nivel Generación de la Energía en Horas Fuera de Punta, por determinar.
A157: PPN1 | B157: : | C157: Precio a Nivel Generación de la Potencia de Punta, por determinar.
A158: En los casos en que se hace referencia a factores nodales o factores de pérdidas, debe entenderse que estos corresponden a los aprobados mediante la Resolución OSINERGMIN N° 184-2009-OS/CD, en sus modificatorias o las que las sustituyan.
A160: Artículo 2°.- Las Fórmulas de Reajuste de los Precios a Nivel Generación a que se refiere el Artículo 1° de la presente Resolución son las siguientes:
A162: PENP | B162: = | C162: PENP0 * FA
A163: PENF | B163: = | C163: PENF0 * FA
A164: PPN | B164: = | C164: PPN0 * FA
B165: FA | C165: = | D165: 0,41*VPB + 0,59*VPL
B166: VPB = (PPM/(7,2*0,8) + 0,2*PEMP + 0,8*PEMF)/13,95
C167: VPL | D167: = (PPL/(7,2*0,8) + 0,2*PELP + 0,8*PELF)/15,49
B168: Donde:
A169: FA | B169: = | C169: Factor de actualización de precios. Será redondeado a cuatro dígitos decimales.
A170: PENP0 | B170: = | C170: Precio a Nivel Generación de la Energía en Horas de Punta publicado en la presente resolución.
A171: PENF0 | B171: = | C171: Precio a Nivel Generación de la Energía en Horas Fuera de Punta publicado en la presente resolución.
A172: PPN0 | B172: = | C172: Precio de Potencia a Nivel Generación publicado en la presente resolución.
A173: PENP | B173: = | C173: Precio a Nivel Generación de la Energía en Horas de Punta actualizado, expresado en céntimos de S/./kW.h y redondeado a dos cifras decimales.
A174: PENF | B174: = | C174: Precio de la Energía a Nivel Generación en Horas Fuera de Punta actualizado, expresado en céntimos de S/./kW.h y redondeado a dos cifras decimales.
A175: PPN | B175: = | C175: Precio de Potencia a Nivel Generación actualizado, expresado en S/./kW y redondeado a dos cifras decimales.
A176: PPM | B176: = | C176: Precio de la Potencia de Punta a Nivel Generación en la Subestación Base Lima, expresado en S/./kW, obtenido de acuerdo con lo establecido en la Resolución OSINERGMIN N° 057-2012-OS/CD.
A177: PEMP | B177: = | C177: Precio de la Energía a Nivel Generación en Horas de Punta en la Subestación Base Lima, expresado en céntimos de S/./kW.h, obtenido de acuerdo con lo establecido en la Resolución OSINERGMIN N° 057-2012-OS/CD.
A178: PEMF | B178: = | C178: Precio de la Energía a Nivel Generación en Horas Fuera de Punta en la Subestación Base Lima, expresado en céntimos de S/./kW.h, obtenido de acuerdo con lo establecido en la Resolución OSINERGMIN N° 057-2012-OS/CD.
A179: PPL | B179: = | C179: Precio promedio ponderado de la Potencia de Punta en la Subestación Base Lima, expresado en S/./kW, obtenido a partir de los contratos firmados vía licitaciones.
A180: PELP | B180: = | C180: Precio promedio ponderado de la Energía a Nivel Generación en Horas de Punta en la Subestación Base Lima, expresado en céntimos de S/./kW.h, obtenido a partir de los contratos firmados vía licitaciones.
A181: PELF | B181: = | C181: Precio promedio ponderado de la Energía a Nivel Generación en Horas Fuera de Punta en la Subestación Base Lima, expresado en céntimos de S/./kW.h, obtenido a partir de los contratos firmados vía licitaciones.
A183: El factor FA se aplicará en caso que éste se incremente o disminuya en más de 1% respecto al valor del mismo empleado en la última actualización. En estos casos, los nuevos precios entrarán en vigencia el cuarto día calendario del mes.
A185: Artículo 3°.- Aprobar el Programa Trimestral de Transferencias por Mecanismo de Compensación correspondiente al periodo mayo 2012 – julio 2012 (en Nuevos Soles), a que se refiere el Artículo 29° de la Ley N° 28832 y el Artículo 3.3° del Reglamento del Mecanismo de Compensación entre los Usuarios Regulados del SEIN, aprobado mediante Decreto Supremo N° 019-2007-EM.
A188: Cuadro N° 2
A191: Aportantes | B191: Fecha | C191: Receptoras
C192: Edecañete | D192: Edelnor | E192: Luz del Sur
A193: Hidrandina | B193: 2012-06-15 | C193: 507065 | D193: 0 | E193: 0
A194: Hidrandina | B194: 2012-07-15 | C194: 506947 | D194: 0 | E194: 0
A195: Hidrandina | B195: 2012-08-15 | C195: 506829 | D195: 0 | E195: 0
A196: Electronoroeste | B196: 2012-06-15 | C196: 331647 | D196: 0 | E196: 0
A197: Electronoroeste | B197: 2012-07-15 | C197: 332107 | D197: 0 | E197: 0
A198: Electronoroeste | B198: 2012-08-15 | C198: 332568 | D198: 0 | E198: 0
A199: Electrocentro | B199: 2012-06-15 | C199: 315239 | D199: 0 | E199: 0
A200: Electrocentro | B200: 2012-07-15 | C200: 319328 | D200: 0 | E200: 0
A201: Electrocentro | B201: 2012-08-15 | C201: 323470 | D201: 0 | E201: 0
A202: Seal | B202: 2012-06-15 | C202: 43803 | D202: 175556 | E202: 0
A203: Seal | B203: 2012-07-15 | C203: 43346 | D203: 177749 | E203: 0
A204: Seal | B204: 2012-08-15 | C204: 42994 | D204: 179851 | E204: 0
A205: Electronorte | B205: 2012-06-15 | C205: 0 | D205: 156324 | E205: 0
A206: Electronorte | B206: 2012-07-15 | C206: 0 | D206: 157731 | E206: 0
A207: Electronorte | B207: 2012-08-15 | C207: 0 | D207: 159150 | E207: 0
A208: Electro Dunas | B208: 2012-06-15 | C208: 0 | D208: 158517 | E208: 0
A209: Electro Dunas | B209: 2012-07-15 | C209: 0 | D209: 155362 | E209: 0
A210: Electro Dunas | B210: 2012-08-15 | C210: 0 | D210: 152271 | E210: 0
A211: Electro Sur Este | B211: 2012-06-15 | C211: 0 | D211: 120031 | E211: 0
A212: Electro Sur Este | B212: 2012-07-15 | C212: 0 | D212: 121481 | E212: 0
A213: Electro Sur Este | B213: 2012-08-15 | C213: 0 | D213: 122951 | E213: 0
A214: Electro Oriente | B214: 2012-06-15 | C214: 0 | D214: 95519 | E214: 0
A215: Electro Oriente | B215: 2012-07-15 | C215: 0 | D215: 96046 | E215: 0
A216: Electro Oriente | B216: 2012-08-15 | C216: 0 | D216: 96577 | E216: 0
A217: Electrosur | B217: 2012-06-15 | C217: 0 | D217: 89846 | E217: 0
A218: Electrosur | B218: 2012-07-15 | C218: 0 | D218: 90023 | E218: 0
A219: Electrosur | B219: 2012-08-15 | C219: 0 | D219: 90201 | E219: 0
A220: Electro Ucayali | B220: 2012-06-15 | C220: 0 | D220: 66695 | E220: 0
A221: Electro Ucayali | B221: 2012-07-15 | C221: 0 | D221: 66501 | E221: 0
A222: Electro Ucayali | B222: 2012-08-15 | C222: 0 | D222: 66307 | E222: 0
A223: Electro Puno | B223: 2012-06-15 | C223: 0 | D223: 64719 | E223: 0
A224: Electro Puno | B224: 2012-07-15 | C224: 0 | D224: 66367 | E224: 0
A225: Electro Puno | B225: 2012-08-15 | C225: 0 | D225: 68057 | E225: 0
A226: Coelvisac | B226: 2012-06-15 | C226: 0 | D226: 15071 | E226: 0
A227: Coelvisac | B227: 2012-07-15 | C227: 0 | D227: 14052 | E227: 0
A228: Coelvisac | B228: 2012-08-15 | C228: 0 | D228: 13102 | E228: 0
A229: Electro Tocache | B229: 2012-06-15 | C229: 0 | D229: 6096 | E229: 0
A230: Electro Tocache | B230: 2012-07-15 | C230: 0 | D230: 6182 | E230: 0
A231: Electro Tocache | B231: 2012-08-15 | C231: 0 | D231: 6270 | E231: 0
A232: Sersa | B232: 2012-06-15 | C232: 0 | D232: 4467 | E232: 0
A233: Sersa | B233: 2012-07-15 | C233: 0 | D233: 4523 | E233: 0
A234: Sersa | B234: 2012-08-15 | C234: 0 | D234: 4578 | E234: 0
... 40 more rows

Sheet ResoluciónBarrayPNG
A1: PRECIOS EN BARRA EN SUBESTACIONES BASE
A2: FIJACIÓN AL 1 DE MAYO DEL 2012 - Precios Publicados en la Res. de Barra N° 057-2012-OS/CD
B4: TENSIÓN | C4: PPM | D4: PEMP | E4: PEMF | F4: PCSPT | G4: CPSEE | I4: PPB | J4: PEBP | K4: PEBF | L4: Potencia | M4: Energía | N4: Promedio
B5: kV | C5: S/./kW-mes | D5: ctm. S/./kW.h | E5: ctm. S/./kW.h | F5: S/./kW-mes | G5: ctm. S/./kW.h | I5: S/./kW-mes | J5: ctm. S/./kW.h | K5: ctm. S/./kW.h | L5: S/./kW-mes | M5: ctm. S/./kW.h | N5: ctm. S/./kW.h
A6: SISTEMA ELÉCTRICO INTERCONECTADO NACIONAL - Res. Barra (Cuadro 1)
A7: Zorritos | B7: 220 | C7: 17.52 | D7: 12.49 | E7: 11.54 | F7: 9.12 | I7: =C7+F7 -> 26.64 | J7: 12.49 | K7: =E7+G7 -> 11.54 | L7: =+I7 -> 26.64 | M7: =+J7*0.19906178071275+K7*0.80093821928725 -> 11.72910869 | N7: =+I7/720/0.79751092507001*100+J7*0.19906178071275+K7*0.80093821928725 -> 16.36854357
A8: Talara | B8: 220 | C8: 17.52 | D8: 12.44 | E8: 11.5 | F8: =+F7 -> 9.12 | I8: 26.64 | J8: 12.44 | K8: 11.5 | L8: 26.64 | M8: 11.68711807 | N8: 16.32655295
A9: Piura Oeste | B9: 220 | C9: 17.52 | D9: 13.02 | E9: 11.9 | F9: 9.12 | I9: 26.64 | J9: 13.02 | K9: 11.9 | L9: 26.64 | M9: 12.12294919 | N9: 16.76238407
A10: Chiclayo Oeste | B10: 220 | C10: 17.52 | D10: 12.85 | E10: 11.74 | F10: 9.12 | I10: 26.64 | J10: 12.85 | K10: 11.74 | L10: 26.64 | M10: 11.96095858 | N10: 16.60039345
A11: Carhuaquero | B11: 220 | C11: 17.52 | D11: 12.64 | E11: 11.6 | F11: 9.12 | I11: 26.64 | J11: 12.64 | K11: 11.6 | L11: 26.64 | M11: 11.80702425 | N11: 16.44645913
A12: Carhuaquero | B12: 138 | C12: 17.52 | D12: 12.64 | E12: 11.6 | F12: 9.12 | I12: 26.64 | J12: 12.64 | K12: 11.6 | L12: 26.64 | M12: 11.80702425 | N12: 16.44645913
A13: Cutervo | B13: 138 | C13: 17.52 | D13: 12.64 | E13: 11.6 | F13: 9.12 | I13: 26.64 | J13: 12.64 | K13: 11.6 | L13: 26.64 | M13: 11.80702425 | N13: 16.44645913
A14: Jaen | B14: 138 | C14: 17.52 | D14: 12.64 | E14: 11.6 | F14: 9.12 | I14: 26.64 | J14: 12.64 | K14: 11.6 | L14: 26.64 | M14: 11.80702425 | N14: 16.44645913
A15: Guadalupe | B15: 220 | C15: 17.52 | D15: 12.7 | E15: 11.6 | F15: 9.12 | I15: 26.64 | J15: 12.7 | K15: 11.6 | L15: 26.64 | M15: 11.81896796 | N15: 16.45840284
A16: Guadalupe | B16: 60 | C16: 17.52 | D16: 12.75 | E16: 11.64 | F16: 9.12 | I16: 26.64 | J16: 12.75 | K16: 11.64 | L16: 26.64 | M16: 11.86095858 | N16: 16.50039345
A17: Cajamarca | B17: 220 | C17: 17.52 | D17: 12.35 | E17: 11.33 | F17: 9.12 | I17: 26.64 | J17: 12.35 | K17: 11.33 | L17: 26.64 | M17: 11.53304302 | N17: 16.17247789
A18: Trujillo Norte | B18: 220 | C18: 17.52 | D18: 12.43 | E18: 11.37 | F18: 9.12 | I18: 26.64 | J18: 12.43 | K18: 11.37 | L18: 26.64 | M18: 11.58100549 | N18: 16.22044036
A19: Chimbote 1 | B19: 220 | C19: 17.52 | D19: 12.27 | E19: 11.24 | F19: 9.12 | I19: 26.64 | J19: 12.27 | K19: 11.24 | L19: 26.64 | M19: 11.44503363 | N19: 16.08446851
A20: Chimbote 1 | B20: 138 | C20: 17.52 | D20: 12.33 | E20: 11.27 | F20: 9.12 | I20: 26.64 | J20: 12.33 | K20: 11.27 | L20: 26.64 | M20: 11.48100549 | N20: 16.12044036
A21: Paramonga Nueva | B21: 220 | C21: 17.52 | D21: 11.94 | E21: 10.94 | F21: 9.12 | I21: 26.64 | J21: 11.94 | K21: 10.94 | L21: 26.64 | M21: 11.13906178 | N21: 15.77849666
A22: Paramonga Nueva | B22: 138 | C22: 17.52 | D22: 11.92 | E22: 10.93 | F22: 9.12 | I22: 26.64 | J22: 11.92 | K22: 10.93 | L22: 26.64 | M22: 11.12707116 | N22: 15.76650604
A23: Paramonga Existente | B23: 138 | C23: 17.52 | D23: 11.89 | E23: 10.92 | F23: 9.12 | I23: 26.64 | J23: 11.89 | K23: 10.92 | L23: 26.64 | M23: 11.11308993 | N23: 15.7525248
A24: Huacho | B24: 220 | C24: 17.52 | D24: 11.89 | E24: 10.88 | F24: 9.12 | I24: 26.64 | J24: 11.89 | K24: 10.88 | L24: 26.64 | M24: 11.0810524 | N24: 15.72048727
A25: Zapallal | B25: 220 | C25: 17.52 | D25: 11.74 | E25: 10.73 | F25: 9.12 | I25: 26.64 | J25: 11.74 | K25: 10.73 | L25: 26.64 | M25: 10.9310524 | N25: 15.57048727
A26: Ventanilla | B26: 220 | C26: 17.52 | D26: 11.73 | E26: 10.72 | F26: 9.12 | I26: 26.64 | J26: 11.73 | K26: 10.72 | L26: 26.64 | M26: 10.9210524 | N26: 15.56048727
A27: Lima | B27: 220 | C27: 17.52 | D27: 11.73 | E27: 10.7 | F27: 9.12 | I27: 26.64 | J27: 11.73 | K27: 10.7 | L27: 26.64 | M27: 10.90503363 | N27: 15.54446851
A28: Cantera | B28: 220 | C28: 17.52 | D28: 11.54 | E28: 10.57 | F28: 9.12 | I28: 26.64 | J28: 11.54 | K28: 10.57 | L28: 26.64 | M28: 10.76308993 | N28: 15.4025248
A29: Chilca | B29: 220 | C29: 17.52 | D29: 11.43 | E29: 10.46 | F29: 9.12 | I29: 26.64 | J29: 11.43 | K29: 10.46 | L29: 26.64 | M29: 10.65308993 | N29: 15.2925248
A30: Independencia | B30: 220 | C30: 17.52 | D30: 11.62 | E30: 10.67 | F30: 9.12 | I30: 26.64 | J30: 11.62 | K30: 10.67 | L30: 26.64 | M30: 10.85910869 | N30: 15.49854357
A31: Ica | B31: 220 | C31: 17.52 | D31: 11.68 | E31: 10.73 | F31: 9.12 | I31: 26.64 | J31: 11.68 | K31: 10.73 | L31: 26.64 | M31: 10.91910869 | N31: 15.55854357
A32: Marcona | B32: 220 | C32: 17.52 | D32: 11.87 | E32: 10.87 | F32: 9.12 | I32: 26.64 | J32: 11.87 | K32: 10.87 | L32: 26.64 | M32: 11.06906178 | N32: 15.70849666
A33: Mantaro | B33: 220 | C33: 17.52 | D33: 11.47 | E33: 10.49 | F33: 9.12 | I33: 26.64 | J33: 11.47 | K33: 10.49 | L33: 26.64 | M33: 10.68508055 | N33: 15.32451542
A34: Huayucachi | B34: 220 | C34: 17.52 | D34: 11.56 | E34: 10.56 | F34: 9.12 | I34: 26.64 | J34: 11.56 | K34: 10.56 | L34: 26.64 | M34: 10.75906178 | N34: 15.39849666
A35: Pachachaca | B35: 220 | C35: 17.52 | D35: 11.58 | E35: 10.6 | F35: 9.12 | I35: 26.64 | J35: 11.58 | K35: 10.6 | L35: 26.64 | M35: 10.79508055 | N35: 15.43451542
A36: Pomacocha | B36: 220 | C36: 17.52 | D36: 11.59 | E36: 10.6 | F36: 9.12 | I36: 26.64 | J36: 11.59 | K36: 10.6 | L36: 26.64 | M36: 10.79707116 | N36: 15.43650604
A37: Huancavelica | B37: 220 | C37: 17.52 | D37: 11.52 | E37: 10.55 | F37: =+F35 -> 9.12 | I37: 26.64 | J37: 11.52 | K37: 10.55 | L37: 26.64 | M37: 10.74308993 | N37: 15.3825248
A38: Callahuanca | B38: 220 | C38: 17.52 | D38: 11.64 | E38: 10.65 | F38: 9.12 | I38: 26.64 | J38: 11.64 | K38: 10.65 | L38: 26.64 | M38: 10.84707116 | N38: 15.48650604
A39: Cajamarquilla | B39: 220 | C39: 17.52 | D39: 11.72 | E39: 10.74 | F39: 9.12 | I39: 26.64 | J39: 11.72 | K39: 10.74 | L39: 26.64 | M39: 10.93508055 | N39: 15.57451542
A40: Huallanca | B40: 138 | C40: 17.52 | D40: 12.07 | E40: 11.06 | F40: 9.12 | I40: =C40+F40 -> 26.64 | J40: 12.07 | K40: 11.06 | L40: 26.64 | M40: 11.2610524 | N40: 15.90048727
A41: Vizcarra | B41: 220 | C41: 17.52 | D41: 11.87 | E41: 10.88 | F41: 9.12 | I41: 26.64 | J41: 11.87 | K41: 10.88 | L41: 26.64 | M41: 11.07707116 | N41: 15.71650604
A42: Tingo María | B42: 220 | C42: 17.52 | D42: 11.98 | E42: 10.97 | F42: 9.12 | I42: 26.64 | J42: 11.98 | K42: 10.97 | L42: 26.64 | M42: 11.1710524 | N42: 15.81048727
A43: Aguaytía | B43: 220 | C43: 17.52 | D43: 11.87 | E43: 10.89 | F43: 9.12 | I43: 26.64 | J43: 11.87 | K43: 10.89 | L43: 26.64 | M43: 11.08508055 | N43: 15.72451542
A44: Aguaytía | B44: 138 | C44: 17.52 | D44: 11.91 | E44: 10.92 | F44: 9.12 | I44: 26.64 | J44: 11.91 | K44: 10.92 | L44: 26.64 | M44: 11.11707116 | N44: 15.75650604
A45: Aguaytía | B45: 22.9 | C45: 17.52 | D45: 11.89 | E45: 10.9 | F45: 9.12 | I45: 26.64 | J45: 11.89 | K45: 10.9 | L45: 26.64 | M45: 11.09707116 | N45: 15.73650604
A46: Pucallpa | B46: 138 | C46: 17.52 | D46: 12.26 | E46: 11.16 | F46: 9.12 | I46: 26.64 | J46: 12.26 | K46: 11.16 | L46: 26.64 | M46: 11.37896796 | N46: 16.01840284
A47: Pucallpa | B47: 60 | C47: 17.52 | D47: 12.28 | E47: 11.18 | F47: 9.12 | G47: 1.41926385 | I47: 26.64 | J47: 13.69926385 | K47: 12.59926385 | L47: 26.64 | M47: 12.81823181 | N47: 17.45766669
A48: Aucayacu | B48: 138 | C48: 17.52 | D48: 16.49 | E48: 11.37 | F48: 9.12 | I48: 26.64 | J48: 16.49 | K48: 11.37 | L48: 26.64 | M48: 12.38919632 | N48: 17.02863119
A49: Tocache | B49: 138 | C49: 17.52 | D49: 18.3 | E49: 12.12 | F49: 9.12 | I49: 26.64 | J49: 18.3 | K49: 12.12 | L49: 26.64 | M49: 13.3502018 | N49: 17.98963668
A50: Tingo María | B50: 138 | C50: 17.52 | D50: 12.24 | E50: 11.26 | F50: 9.12 | I50: 26.64 | J50: 12.24 | K50: 11.26 | L50: 26.64 | M50: 11.45508055 | N50: 16.09451542
A51: Huánuco | B51: 138 | C51: 17.52 | D51: 12.27 | E51: 11.26 | F51: 9.12 | I51: 26.64 | J51: 12.27 | K51: 11.26 | L51: 26.64 | M51: 11.4610524 | N51: 16.10048727
A52: Paragsha II | B52: 138 | C52: 17.52 | D52: 12.19 | E52: 11.17 | F52: 9.12 | I52: 26.64 | J52: 12.19 | K52: 11.17 | L52: 26.64 | M52: 11.37304302 | N52: 16.01247789
A53: Paragsha | B53: 220 | C53: 17.52 | D53: 11.64 | E53: 10.69 | F53: 9.12 | I53: 26.64 | J53: 11.64 | K53: 10.69 | L53: 26.64 | M53: 10.87910869 | N53: 15.51854357
A54: Yaupi | B54: 138 | C54: 17.52 | D54: 11.37 | E54: 10.45 | F54: 9.12 | I54: 26.64 | J54: 11.37 | K54: 10.45 | L54: 26.64 | M54: 10.63313684 | N54: 15.27257171
A55: Yuncan | B55: 138 | C55: 17.52 | D55: 11.37 | E55: 10.45 | F55: 9.12 | I55: 26.64 | J55: 11.37 | K55: 10.45 | L55: 26.64 | M55: 10.63313684 | N55: 15.27257171
A56: Yuncan | B56: 220 | C56: 17.52 | D56: 11.41 | E56: 10.49 | F56: 9.12 | I56: 26.64 | J56: 11.41 | K56: 10.49 | L56: 26.64 | M56: 10.67313684 | N56: 15.31257171
A57: Oroya Nueva | B57: 220 | C57: 17.52 | D57: 11.66 | E57: 10.68 | F57: 9.12 | I57: 26.64 | J57: 11.66 | K57: 10.68 | L57: 26.64 | M57: 10.87508055 | N57: 15.51451542
A58: Oroya Nueva | B58: 138 | C58: 17.52 | D58: 11.81 | E58: 10.86 | F58: 9.12 | I58: 26.64 | J58: 11.81 | K58: 10.86 | L58: 26.64 | M58: 11.04910869 | N58: 15.68854357
A59: Oroya Nueva | B59: 50 | C59: 17.52 | D59: 12.26 | E59: 11.23 | F59: 9.12 | I59: 26.64 | J59: 12.26 | K59: 11.23 | L59: 26.64 | M59: 11.43503363 | N59: 16.07446851
A60: Carhuamayo | B60: 138 | C60: 17.52 | D60: 10.97 | E60: 10.24 | F60: 9.12 | I60: 26.64 | J60: 10.97 | K60: 10.24 | L60: 26.64 | M60: 10.3853151 | N60: 15.02474998
A61: Carhuamayo Nueva | B61: 220 | C61: 17.52 | D61: 11.48 | E61: 10.55 | F61: 9.12 | I61: 26.64 | J61: 11.48 | K61: 10.55 | L61: 26.64 | M61: 10.73512746 | N61: 15.37456233
A62: Caripa | B62: 138 | C62: 17.52 | D62: 11.53 | E62: 10.65 | F62: 9.12 | I62: 26.64 | J62: 11.53 | K62: 10.65 | L62: 26.64 | M62: 10.82517437 | N62: 15.46460924
A63: Desierto | B63: 220 | C63: 17.52 | D63: 11.56 | E63: 10.6 | F63: 9.12 | I63: 26.64 | J63: 11.56 | K63: 10.6 | L63: 26.64 | M63: 10.79109931 | N63: 15.43053419
A64: Condorcocha | B64: 138 | C64: 17.52 | D64: 11.55 | E64: 10.67 | F64: 9.12 | I64: 26.64 | J64: 11.55 | K64: 10.67 | L64: 26.64 | M64: 10.84517437 | N64: 15.48460924
A65: Condorcocha | B65: 44 | C65: 17.52 | D65: 11.55 | E65: 10.67 | F65: 9.12 | I65: 26.64 | J65: 11.55 | K65: 10.67 | L65: 26.64 | M65: 10.84517437 | N65: 15.48460924
A66: Machupicchu | B66: 138 | C66: 17.52 | D66: 13.05 | E66: 11.33 | F66: 9.12 | I66: 26.64 | J66: 13.05 | K66: 11.33 | L66: 26.64 | M66: 11.67238626 | N66: 16.31182114
A67: Cachimayo | B67: 138 | C67: 17.52 | D67: 13.45 | E67: 11.68 | F67: 9.12 | I67: 26.64 | J67: 13.45 | K67: 11.68 | L67: 26.64 | M67: 12.03233935 | N67: 16.67177423
A68: Cusco | B68: 138 | C68: 17.52 | D68: 13.43 | E68: 11.68 | F68: 9.12 | I68: 26.64 | J68: 13.43 | K68: 11.68 | L68: 26.64 | M68: 12.02835812 | N68: 16.66779299
A69: Combapata | B69: 138 | C69: 17.52 | D69: 13.4 | E69: 11.81 | F69: 9.12 | I69: 26.64 | J69: 13.4 | K69: 11.81 | L69: 26.64 | M69: 12.12650823 | N69: 16.76594311
A70: Tintaya | B70: 138 | C70: 17.52 | D70: 13.32 | E70: 11.94 | F70: 9.12 | I70: 26.64 | J70: 13.32 | K70: 11.94 | L70: 26.64 | M70: 12.21470526 | N70: 16.85414013
A71: Ayaviri | B71: 138 | C71: 17.52 | D71: 12.94 | E71: 11.67 | F71: 9.12 | I71: 26.64 | J71: 12.94 | K71: 11.67 | L71: 26.64 | M71: 11.92280846 | N71: 16.56224334
A72: Azángaro | B72: 138 | C72: 17.52 | D72: 12.72 | E72: 11.31 | F72: =+F71 -> 9.12 | I72: =C72+F72 -> 26.64 | J72: 12.72 | K72: =E72+G72 -> 11.31 | L72: =+I72 -> 26.64 | M72: =+J72*0.19906178071275+K72*0.80093821928725 -> 11.59067711 | N72: =+I72/720/0.79751092507001*100+J72*0.19906178071275+K72*0.80093821928725 -> 16.23011199
A73: San Gaban | B73: 138 | C73: 17.52 | D73: 12.72 | E73: 11.31 | F73: 9.12 | I73: 26.64 | J73: 12.72 | K73: 11.31 | L73: 26.64 | M73: 11.59067711 | N73: 16.23011199
A74: Mazuco | B74: 138 | C74: 17.52 | D74: 12.81 | E74: 11.36 | F74: 9.12 | I74: 26.64 | J74: 12.81 | K74: 11.36 | L74: 26.64 | M74: 11.64863958 | N74: 16.28807446
A75: Puerto Maldonado | B75: 138 | C75: 17.52 | D75: 13 | E75: 11.47 | F75: 9.12 | I75: 26.64 | J75: 13 | K75: 11.47 | L75: 26.64 | M75: 11.77456452 | N75: 16.4139994
A76: Juliaca | B76: 138 | C76: 17.52 | D76: 13.03 | E76: 11.67 | F76: 9.12 | I76: 26.64 | J76: 13.03 | K76: 11.67 | L76: 26.64 | M76: 11.94072402 | N76: 16.5801589
A77: Puno | B77: 138 | C77: 17.52 | D77: 13.08 | E77: 11.79 | F77: 9.12 | I77: 26.64 | J77: 13.08 | K77: 11.79 | L77: 26.64 | M77: 12.0467897 | N77: 16.68622457
A78: Puno | B78: 220 | C78: 17.52 | D78: 13.1 | E78: 11.8 | F78: 9.12 | I78: 26.64 | J78: 13.1 | K78: 11.8 | L78: 26.64 | M78: 12.05878031 | N78: 16.69821519
A79: Callalli | B79: 138 | C79: 17.52 | D79: 13.15 | E79: 11.84 | F79: 9.12 | I79: 26.64 | J79: 13.15 | K79: 11.84 | L79: 26.64 | M79: 12.10077093 | N79: 16.74020581
A80: Santuario | B80: 138 | C80: 17.52 | D80: 12.91 | E80: 11.7 | F80: 9.12 | I80: 26.64 | J80: 12.91 | K80: 11.7 | L80: 26.64 | M80: 11.94086475 | N80: 16.58029963
A81: Arequipa | B81: 138 | C81: 17.52 | D81: 12.97 | E81: 11.75 | F81: 9.12 | I81: 26.64 | J81: 12.97 | K81: 11.75 | L81: 26.64 | M81: 11.99285537 | N81: 16.63229025
A82: Socabaya | B82: 220 | C82: 17.52 | D82: 12.96 | E82: 11.74 | F82: 9.12 | I82: 26.64 | J82: 12.96 | K82: 11.74 | L82: 26.64 | M82: 11.98285537 | N82: 16.62229025
A83: Cerro Verde | B83: 138 | C83: 17.52 | D83: 13 | E83: 11.78 | F83: 9.12 | I83: 26.64 | J83: 13 | K83: 11.78 | L83: 26.64 | M83: 12.02285537 | N83: 16.66229025
A84: Repartición | B84: 138 | C84: 17.52 | D84: 13.05 | E84: 11.8 | F84: 9.12 | I84: 26.64 | J84: 13.05 | K84: 11.8 | L84: 26.64 | M84: 12.04882723 | N84: 16.6882621
A85: Mollendo | B85: 138 | C85: 17.52 | D85: 13.09 | E85: 11.82 | F85: 9.12 | I85: 26.64 | J85: 13.09 | K85: 11.82 | L85: 26.64 | M85: 12.07280846 | N85: 16.71224334
A86: Montalvo | B86: 220 | C86: 17.52 | D86: 13.12 | E86: 11.87 | F86: 9.12 | I86: 26.64 | J86: 13.12 | K86: 11.87 | L86: 26.64 | M86: 12.11882723 | N86: 16.7582621
A87: Montalvo | B87: 138 | C87: 17.52 | D87: 13.13 | E87: 11.88 | F87: 9.12 | I87: 26.64 | J87: 13.13 | K87: 11.88 | L87: 26.64 | M87: 12.12882723 | N87: 16.7682621
A88: Ilo ELP | B88: 138 | C88: 17.52 | D88: 13.3 | E88: 12.03 | F88: 9.12 | I88: 26.64 | J88: 13.3 | K88: 12.03 | L88: 26.64 | M88: 12.28280846 | N88: 16.92224334
A89: Botiflaca | B89: 138 | C89: 17.52 | D89: 13.2 | E89: 11.95 | F89: 9.12 | I89: 26.64 | J89: 13.2 | K89: 11.95 | L89: 26.64 | M89: 12.19882723 | N89: 16.8382621
A90: Toquepala | B90: 138 | C90: 17.52 | D90: 13.24 | E90: 12 | F90: 9.12 | I90: 26.64 | J90: 13.24 | K90: 12 | L90: 26.64 | M90: 12.24683661 | N90: 16.88627148
A91: Aricota | B91: 138 | C91: 17.52 | D91: 13.13 | E91: 11.96 | F91: 9.12 | I91: 26.64 | J91: 13.13 | K91: 11.96 | L91: 26.64 | M91: 12.19290228 | N91: 16.83233716
A92: Aricota | B92: 66 | C92: 17.52 | D92: 13.08 | E92: 11.94 | F92: 9.12 | G92: 0.39494085 | I92: 26.64 | J92: 13.47494085 | K92: 12.33494085 | L92: 26.64 | M92: 12.56187128 | N92: 17.20130616
A93: Tacna (Los Héroes) | B93: 220 | C93: 17.52 | D93: 13.22 | E93: 11.93 | F93: 9.12 | I93: 26.64 | J93: 13.22 | K93: 11.93 | L93: 26.64 | M93: 12.1867897 | N93: 16.82622457
A94: Tacna (Los Héroes) | B94: 66 | C94: 17.52 | D94: 13.32 | E94: 11.98 | F94: 9.12 | G94: 0.39494085 | I94: =C94+F94 -> 26.64 | J94: 13.71494085 | K94: 12.37494085 | L94: 26.64 | M94: 12.64168364 | N94: 17.28111851
A95: La Nina (*) | B95: 220 | C95: =(C9-C10)*111/(110+111)+C10 -> 17.52 | D95: 12.93538462 | E95: 11.82036199 | F95: 9.12 | I95: 26.64 | J95: 12.93538462 | K95: 11.82036199 | L95: 26.64 | M95: 12.04232038 | N95: 16.68175526
A96: SISTEMAS AISLADOS - Res. Barra (Cuadro 1)
A97: Adinelsa | B97: MT | C97: 17.28 | D97: 22.95 | E97: 22.95 | I97: =+C97 -> 17.28 | J97: 22.95 | K97: 22.95 | L97: =+I97 -> 17.28 | M97: =+J97*0.35+K97*0.65 -> 22.95 | N97: =+I97/720/0.55*100+J97*0.35+K97*0.65 -> 27.31363636
A98: Chavimochic | B98: MT | C98: 17.28 | D98: 22.95 | E98: 22.95 | I98: 17.28 | J98: 22.95 | K98: 22.95 | L98: 17.28 | M98: 22.95 | N98: 27.31363636
A99: Edelnor | B99: MT | C99: 17.28 | D99: 22.95 | E99: 22.95 | I99: 17.28 | J99: 22.95 | K99: 22.95 | L99: 17.28 | M99: 22.95 | N99: 27.31363636
A100: Eilhicha | B100: MT | C100: =C97 -> 17.28 | D100: 22.95 | E100: 22.95 | I100: =+C100 -> 17.28 | J100: =+D100 -> 22.95 | K100: =+E100 -> 22.95 | L100: =+I100 -> 17.28 | M100: =+J100*0.35+K100*0.65 -> 22.95 | N100: =+I100/720/0.55*100+J100*0.35+K100*0.65 -> 27.31363636
A101: Electro Oriente | B101: MT | C101: 17.28 | D101: 59.11 | E101: 59.11 | I101: 17.28 | J101: 59.11 | K101: 59.11 | L101: 17.28 | M101: 59.11 | N101: 63.47363636
A102: Electro Sur Este | B102: MT | C102: 17.28 | D102: 86.47 | E102: 86.47 | I102: 17.28 | J102: 86.47 | K102: 86.47 | L102: 17.28 | M102: 86.47 | N102: 90.83363636
A103: Electro Ucayali | B103: MT | C103: 17.28 | D103: 22.95 | E103: 22.95 | I103: 17.28 | J103: 22.95 | K103: 22.95 | L103: 17.28 | M103: 22.95 | N103: 27.31363636
A104: Electrocentro | B104: MT | C104: 17.28 | D104: 22.95 | E104: 22.95 | I104: 17.28 | J104: 22.95 | K104: 22.95 | L104: 17.28 | M104: 22.95 | N104: 27.31363636
A105: Electronorte | B105: MT | C105: 17.28 | D105: 27.21 | E105: 27.21 | I105: 17.28 | J105: 27.21 | K105: 27.21 | L105: 17.28 | M105: 27.21 | N105: 31.57363636
A106: Hidrandina | B106: MT | C106: 17.28 | D106: 26.34 | E106: 26.34 | I106: 17.28 | J106: 26.34 | K106: 26.34 | L106: 17.28 | M106: 26.34 | N106: 30.70363636
A107: Seal | B107: MT | C107: 17.28 | D107: 56.24 | E107: 56.24 | I107: 17.28 | J107: 56.24 | K107: 56.24 | L107: 17.28 | M107: 56.24 | N107: 60.60363636
A108: (*) Se requiere la necesidad de su existencia en el 01/05/2012 como precio promedio de las barras Piura Oeste y Chiclayo Oeste donde el ponderador es la distancia de las líneas que enlazan dichas barras con La Nina.
A109: (**) Se requiere su existencia en el 01/05/2012 como precio idéntico de la Barra de Referencia de Adinelsa - Aislado (no afecto a variación de precios de combustibles).
A110: PRECIOS A NIVEL GENERACIÓN Y PRECIOS EFECTIVOS
A111: FIJACIÓN AL 1 DE MAYO DEL 2012 - Precios Publicados en la Res. del PNG N° 078-2012-OS/CD
B113: TENSIÓN | C113: PPM | D113: PEMP | E113: PEMF | F113: PCSPT | G113: CPSEE | I113: PPB | J113: PEBP | K113: PEBF | L113: Potencia | M113: Energia | N113: Promedio
B114: kV | C114: S/./kW-mes | D114: ctm. S/./kW.h | E114: ctm. S/./kW.h | F114: S/./kW-mes | G114: ctm. S/./kW.h | I114: S/./kW-mes | J114: ctm. S/./kW.h | K114: ctm. S/./kW.h | L114: ctm. S/./kW.h | M114: ctm. S/./kW.h | N114: ctm. S/./kW.h
A115: SISTEMA ELÉCTRICO INTERCONECTADO NACIONAL - Res. PNG (Cuadro 1)
A116: Zorritos | B116: 220 | C116: 16.79 | D116: 13.8 | E116: 11.7 | F116: =+F7 -> 9.12 | I116: =C116+F116 -> 25.91 | J116: 13.8 | K116: =E116+G116 -> 11.7 | L116: =+I116 -> 25.91 | M116: =+J116*0.19906178071275+K116*0.80093821928725 -> 12.11802974 | N116: =+I116/720/0.79751092507001*100+J116*0.19906178071275+K116*0.80093821928725 -> 16.63033295
A117: Talara | B117: 220 | C117: 16.79 | D117: 13.74 | E117: 11.66 | F117: 9.12 | I117: 25.91 | J117: 13.74 | K117: 11.66 | L117: 25.91 | M117: 12.0740485 | N117: 16.58635172
A118: Piura Oeste | B118: 220 | C118: 16.79 | D118: 14.41 | E118: 12.08 | F118: 9.12 | I118: 25.91 | J118: 14.41 | K118: 12.08 | L118: 25.91 | M118: 12.54381395 | N118: 17.05611716
A119: Chiclayo Oeste | B119: 220 | C119: 16.79 | D119: 14.21 | E119: 11.91 | F119: 9.12 | I119: 25.91 | J119: 14.21 | K119: 11.91 | L119: 25.91 | M119: 12.3678421 | N119: 16.88014531
A120: Carhuaquero | B120: 220 | C120: 16.79 | D120: 13.97 | E120: 11.76 | F120: 9.12 | I120: 25.91 | J120: 13.97 | K120: 11.76 | L120: 25.91 | M120: 12.19992654 | N120: 16.71222975
A121: Carhuaquero | B121: 138 | C121: 16.79 | D121: 13.97 | E121: 11.76 | F121: 9.12 | I121: 25.91 | J121: 13.97 | K121: 11.76 | L121: 25.91 | M121: 12.19992654 | N121: 16.71222975
A122: Cutervo | B122: 138 | C122: 16.79 | D122: 13.97 | E122: 11.76 | F122: 9.12 | I122: 25.91 | J122: 13.97 | K122: 11.76 | L122: 25.91 | M122: 12.19992654 | N122: 16.71222975
A123: Jaen | B123: 138 | C123: 16.79 | D123: 13.97 | E123: 11.76 | F123: 9.12 | I123: 25.91 | J123: 13.97 | K123: 11.76 | L123: 25.91 | M123: 12.19992654 | N123: 16.71222975
A124: Guadalupe | B124: 220 | C124: 16.79 | D124: 14.04 | E124: 11.77 | F124: 9.12 | I124: 25.91 | J124: 14.04 | K124: 11.77 | L124: 25.91 | M124: 12.22187024 | N124: 16.73417346
A125: Guadalupe | B125: 60 | C125: 16.79 | D125: 14.09 | E125: 11.81 | F125: 9.12 | I125: 25.91 | J125: 14.09 | K125: 11.81 | L125: 25.91 | M125: 12.26386086 | N125: 16.77616407
A126: Cajamarca | B126: 220 | C126: 16.79 | D126: 13.63 | E126: 11.48 | F126: 9.12 | I126: 25.91 | J126: 13.63 | K126: 11.48 | L126: 25.91 | M126: 11.90798283 | N126: 16.42028604
A127: Trujillo Norte | B127: 220 | C127: 16.79 | D127: 13.73 | E127: 11.51 | F127: 9.12 | I127: 25.91 | J127: 13.73 | K127: 11.51 | L127: 25.91 | M127: 11.95191715 | N127: 16.46422037
A128: Chimbote 1 | B128: 220 | C128: 16.79 | D128: 13.54 | E128: 11.38 | F128: 9.12 | I128: 25.91 | J128: 13.54 | K128: 11.38 | L128: 25.91 | M128: 11.80997345 | N128: 16.32227666
A129: Chimbote 1 | B129: 138 | C129: 16.79 | D129: 13.61 | E129: 11.41 | F129: 9.12 | I129: 25.91 | J129: 13.61 | K129: 11.41 | L129: 25.91 | M129: 11.84793592 | N129: 16.36023913
A130: Paramonga Nueva | B130: 220 | C130: 16.79 | D130: 13.17 | E130: 11.06 | F130: 9.12 | I130: 25.91 | J130: 13.17 | K130: 11.06 | L130: 25.91 | M130: 11.48002036 | N130: 15.99232357
A131: Paramonga Nueva | B131: 138 | C131: 16.79 | D131: 13.15 | E131: 11.05 | F131: 9.12 | I131: 25.91 | J131: 13.15 | K131: 11.05 | L131: 25.91 | M131: 11.46802974 | N131: 15.98033295
A132: Paramonga Existente | B132: 138 | C132: 16.79 | D132: 13.11 | E132: 11.04 | F132: 9.12 | I132: 25.91 | J132: 13.11 | K132: 11.04 | L132: 25.91 | M132: 11.45205789 | N132: 15.9643611
A133: Huacho | B133: 220 | C133: 16.79 | D133: 13.11 | E133: 11 | F133: 9.12 | I133: 25.91 | J133: 13.11 | K133: 11 | L133: 25.91 | M133: 11.42002036 | N133: 15.93232357
A134: Zapallal | B134: 220 | C134: 16.79 | D134: 12.94 | E134: 10.84 | F134: 9.12 | I134: 25.91 | J134: 12.94 | K134: 10.84 | L134: 25.91 | M134: 11.25802974 | N134: 15.77033295
A135: Ventanilla | B135: 220 | C135: 16.79 | D135: 12.93 | E135: 10.82 | F135: 9.12 | I135: 25.91 | J135: 12.93 | K135: 10.82 | L135: 25.91 | M135: 11.24002036 | N135: 15.75232357
A136: Lima | B136: 220 | C136: 16.79 | D136: 12.92 | E136: 10.81 | F136: 9.12 | I136: 25.91 | J136: 12.92 | K136: 10.81 | L136: 25.91 | M136: 11.23002036 | N136: 15.74232357
A137: Cantera | B137: 220 | C137: 16.79 | D137: 12.7 | E137: 10.67 | F137: 9.12 | I137: 25.91 | J137: 12.7 | K137: 10.67 | L137: 25.91 | M137: 11.07409541 | N137: 15.58639863
A138: Chilca | B138: 220 | C138: 16.79 | D138: 12.57 | E138: 10.55 | F138: 9.12 | I138: 25.91 | J138: 12.57 | K138: 10.55 | L138: 25.91 | M138: 10.9521048 | N138: 15.46440801
A139: Independencia | B139: 220 | C139: 16.79 | D139: 12.8 | E139: 10.77 | F139: 9.12 | I139: 25.91 | J139: 12.8 | K139: 10.77 | L139: 25.91 | M139: 11.17409541 | N139: 15.68639863
A140: Ica | B140: 220 | C140: 16.79 | D140: 12.87 | E140: 10.83 | F140: 9.12 | I140: 25.91 | J140: 12.87 | K140: 10.83 | L140: 25.91 | M140: 11.23608603 | N140: 15.74838925
A141: Marcona | B141: 220 | C141: 16.79 | D141: 13.08 | E141: 10.98 | F141: 9.12 | I141: 25.91 | J141: 13.08 | K141: 10.98 | L141: 25.91 | M141: 11.39802974 | N141: 15.91033295
A142: Mantaro | B142: 220 | C142: 16.79 | D142: 12.63 | E142: 10.58 | F142: 9.12 | I142: 25.91 | J142: 12.63 | K142: 10.58 | L142: 25.91 | M142: 10.98807665 | N142: 15.50037987
A143: Huayucachi | B143: 220 | C143: 16.79 | D143: 12.73 | E143: 10.66 | F143: 9.12 | I143: 25.91 | J143: 12.73 | K143: 10.66 | L143: 25.91 | M143: 11.07205789 | N143: 15.5843611
A144: Pachachaca | B144: 220 | C144: 16.79 | D144: 12.76 | E144: 10.7 | F144: 9.12 | I144: 25.91 | J144: 12.76 | K144: 10.7 | L144: 25.91 | M144: 11.11006727 | N144: 15.62237048
A145: Pomacocha | B145: 220 | C145: 16.79 | D145: 12.76 | E145: 10.69 | F145: =+F36 -> 9.12 | I145: 25.91 | J145: 12.76 | K145: 10.69 | L145: 25.91 | M145: 11.10205789 | N145: 15.6143611
A146: Huancavelica | B146: 220 | C146: 16.79 | D146: 12.68 | E146: 10.65 | F146: =+F37 -> 9.12 | I146: 25.91 | J146: 12.68 | K146: 10.65 | L146: 25.91 | M146: 11.05409541 | N146: 15.56639863
A147: Callahuanca | B147: 220 | C147: 16.79 | D147: 12.82 | E147: 10.76 | F147: =+F38 -> 9.12 | I147: 25.91 | J147: 12.82 | K147: 10.76 | L147: 25.91 | M147: 11.17006727 | N147: 15.68237048
A148: Cajamarquilla | B148: 220 | C148: 16.79 | D148: 12.92 | E148: 10.85 | F148: 9.12 | I148: 25.91 | J148: 12.92 | K148: 10.85 | L148: 25.91 | M148: 11.26205789 | N148: 15.7743611
A149: Huallanca | B149: 138 | C149: 16.79 | D149: 13.31 | E149: 11.18 | F149: 9.12 | I149: =C149+F149 -> 25.91 | J149: 13.31 | K149: 11.18 | L149: 25.91 | M149: 11.60400159 | N149: 16.11630481
A150: Vizcarra | B150: 220 | C150: 16.79 | D150: 13.09 | E150: 10.99 | F150: 9.12 | I150: 25.91 | J150: 13.09 | K150: 10.99 | L150: 25.91 | M150: 11.40802974 | N150: 15.92033295
A151: Tingo María | B151: 220 | C151: 16.79 | D151: 13.21 | E151: 11.09 | F151: 9.12 | I151: 25.91 | J151: 13.21 | K151: 11.09 | L151: 25.91 | M151: 11.51201098 | N151: 16.02431419
A152: Aguaytía | B152: 220 | C152: 16.79 | D152: 13.08 | E152: 11 | F152: 9.12 | I152: 25.91 | J152: 13.08 | K152: 11 | L152: 25.91 | M152: 11.4140485 | N152: 15.92635172
A153: Aguaytía | B153: 138 | C153: 16.79 | D153: 13.13 | E153: 11.04 | F153: 9.12 | I153: 25.91 | J153: 13.13 | K153: 11.04 | L153: 25.91 | M153: 11.45603912 | N153: 15.96834234
A154: Aguaytía | B154: 22.9 | C154: 16.79 | D154: 13.11 | E154: 11.02 | F154: 9.12 | I154: 25.91 | J154: 13.11 | K154: 11.02 | L154: 25.91 | M154: 11.43603912 | N154: 15.94834234
A155: Pucallpa | B155: 138 | C155: 16.79 | D155: 13.53 | E155: 11.3 | F155: 9.12 | I155: 25.91 | J155: 13.53 | K155: 11.3 | L155: 25.91 | M155: 11.74390777 | N155: 16.25621099
A156: Pucallpa | B156: 60 | C156: 16.79 | D156: 13.55 | E156: 11.31 | F156: 9.12 | G156: =G47 -> 1.41926385 | I156: 25.91 | J156: 14.96926385 | K156: 12.72926385 | L156: 25.91 | M156: 13.17516224 | N156: 17.68746545
A157: Aucayacu | B157: 138 | C157: 16.79 | D157: 18.39 | E157: 11.52 | F157: 9.12 | I157: 25.91 | J157: 18.39 | K157: 11.52 | L157: 25.91 | M157: 12.88755443 | N157: 17.39985765
A158: Tocache | B158: 138 | C158: 16.79 | D158: 20.48 | E158: 12.31 | F158: 9.12 | I158: 25.91 | J158: 20.48 | K158: 12.31 | L158: 25.91 | M158: 13.93633475 | N158: 18.44863796
A159: Tingo María | B159: 138 | C159: 16.79 | D159: 13.51 | E159: 11.4 | F159: 9.12 | I159: 25.91 | J159: 13.51 | K159: 11.4 | L159: 25.91 | M159: 11.82002036 | N159: 16.33232357
A160: Huánuco | B160: 138 | C160: 16.79 | D160: 13.54 | E160: 11.4 | F160: 9.12 | I160: 25.91 | J160: 13.54 | K160: 11.4 | L160: 25.91 | M160: 11.82599221 | N160: 16.33829543
A161: Paragsha II | B161: 138 | C161: 16.79 | D161: 13.45 | E161: 11.31 | F161: 9.12 | I161: 25.91 | J161: 13.45 | K161: 11.31 | L161: 25.91 | M161: 11.73599221 | N161: 16.24829543
A162: Paragsha | B162: 220 | C162: 16.79 | D162: 12.82 | E162: 10.79 | F162: 9.12 | I162: 25.91 | J162: 12.82 | K162: 10.79 | L162: 25.91 | M162: 11.19409541 | N162: 15.70639863
A163: Yaupi | B163: 138 | C163: 16.79 | D163: 12.51 | E163: 10.54 | F163: 9.12 | I163: 25.91 | J163: 12.51 | K163: 10.54 | L163: 25.91 | M163: 10.93215171 | N163: 15.44445492
A164: Yuncan | B164: 138 | C164: 16.79 | D164: 12.51 | E164: 10.54 | F164: 9.12 | I164: 25.91 | J164: 12.51 | K164: 10.54 | L164: 25.91 | M164: 10.93215171 | N164: 15.44445492
A165: Yuncan | B165: 220 | C165: 16.79 | D165: 12.56 | E165: 10.58 | F165: 9.12 | I165: 25.91 | J165: 12.56 | K165: 10.58 | L165: 25.91 | M165: 10.97414233 | N165: 15.48644554
A166: Oroya Nueva | B166: 220 | C166: 16.79 | D166: 12.84 | E166: 10.78 | F166: 9.12 | I166: 25.91 | J166: 12.84 | K166: 10.78 | L166: 25.91 | M166: 11.19006727 | N166: 15.70237048
A167: Oroya Nueva | B167: 138 | C167: 16.79 | D167: 13.02 | E167: 10.97 | F167: 9.12 | I167: 25.91 | J167: 13.02 | K167: 10.97 | L167: 25.91 | M167: 11.37807665 | N167: 15.89037987
A168: Oroya Nueva | B168: 50 | C168: 16.79 | D168: 13.54 | E168: 11.37 | F168: 9.12 | I168: 25.91 | J168: 13.54 | K168: 11.37 | L168: 25.91 | M168: 11.80196406 | N168: 16.31426728
A169: Carhuamayo | B169: 138 | C169: 16.79 | D169: 12.05 | E169: 10.31 | F169: 9.12 | I169: 25.91 | J169: 12.05 | K169: 10.31 | L169: 25.91 | M169: 10.6563675 | N169: 15.16867071
A170: Carhuamayo Nueva | B170: 220 | C170: 16.79 | D170: 12.64 | E170: 10.65 | F170: 9.12 | I170: 25.91 | J170: 12.64 | K170: 10.65 | L170: 25.91 | M170: 11.04613294 | N170: 15.55843616
A171: Caripa | B171: 138 | C171: 16.79 | D171: 12.69 | E171: 10.75 | F171: 9.12 | I171: 25.91 | J171: 12.69 | K171: 10.75 | L171: 25.91 | M171: 11.13617985 | N171: 15.64848307
A172: Desierto | B172: 220 | C172: 16.79 | D172: 12.73 | E172: 10.7 | F172: 9.12 | I172: 25.91 | J172: 12.73 | K172: 10.7 | L172: 25.91 | M172: 11.10409541 | N172: 15.61639863
A173: Condorcocha | B173: 138 | C173: 16.79 | D173: 12.72 | E173: 10.78 | F173: 9.12 | I173: 25.91 | J173: 12.72 | K173: 10.78 | L173: 25.91 | M173: 11.16617985 | N173: 15.67848307
A174: Condorcocha | B174: 44 | C174: 16.79 | D174: 12.72 | E174: 10.78 | F174: 9.12 | I174: 25.91 | J174: 12.72 | K174: 10.78 | L174: 25.91 | M174: 11.16617985 | N174: 15.67848307
A175: Machupicchu | B175: 138 | C175: 16.79 | D175: 14.44 | E175: 11.47 | F175: 9.12 | I175: 25.91 | J175: 14.44 | K175: 11.47 | L175: 25.91 | M175: 12.06121349 | N175: 16.5735167
A176: Cachimayo | B176: 138 | C176: 16.79 | D176: 14.9 | E176: 11.85 | F176: 9.12 | I176: 25.91 | J176: 14.9 | K176: 11.85 | L176: 25.91 | M176: 12.45713843 | N176: 16.96944165
A177: Cusco | B177: 138 | C177: 16.79 | D177: 14.88 | E177: 11.84 | F177: 9.12 | I177: 25.91 | J177: 14.88 | K177: 11.84 | L177: 25.91 | M177: 12.44514781 | N177: 16.95745103
A178: Combapata | B178: 138 | C178: 16.79 | D178: 14.84 | E178: 11.98 | F178: 9.12 | I178: 25.91 | J178: 14.84 | K178: 11.98 | L178: 25.91 | M178: 12.54931669 | N178: 17.06161991
A179: Tintaya | B179: 138 | C179: 16.79 | D179: 14.75 | E179: 12.12 | F179: 9.12 | I179: 25.91 | J179: 14.75 | K179: 12.12 | L179: 25.91 | M179: 12.64353248 | N179: 17.1558357
A180: Ayaviri | B180: 138 | C180: 16.79 | D180: 14.31 | E180: 11.83 | F180: 9.12 | I180: 25.91 | J180: 14.31 | K180: 11.83 | L180: 25.91 | M180: 12.32367322 | N180: 16.83597643
A181: Azángaro | B181: 138 | C181: 16.79 | D181: 14.06 | E181: 11.46 | F181: 9.12 | I181: =C181+F181 -> 25.91 | J181: 14.06 | K181: =E181+G181 -> 11.46 | L181: =+I181 -> 25.91 | M181: =+J181*0.19906178071275+K181*0.80093821928725 -> 11.97756063 | N181: =+I181/720/0.79751092507001*100+J181*0.19906178071275+K181*0.80093821928725 -> 16.48986384
A182: San Gaban | B182: 138 | C182: 16.79 | D182: 14.06 | E182: 11.45 | F182: 9.12 | I182: 25.91 | J182: 14.06 | K182: 11.45 | L182: 25.91 | M182: 11.96955125 | N182: 16.48185446
A183: Mazuco | B183: 138 | C183: 16.79 | D183: 14.16 | E183: 11.5 | F183: 9.12 | I183: 25.91 | J183: 14.16 | K183: 11.5 | L183: 25.91 | M183: 12.02950434 | N183: 16.54180755
A184: Puerto Maldonado | B184: 138 | C184: 16.79 | D184: 14.39 | E184: 11.62 | F184: 9.12 | I184: 25.91 | J184: 14.39 | K184: 11.62 | L184: 25.91 | M184: 12.17140113 | N184: 16.68370435
A185: Juliaca | B185: 138 | C185: 16.79 | D185: 14.42 | E185: 11.83 | F185: 9.12 | I185: 25.91 | J185: 14.42 | K185: 11.83 | L185: 25.91 | M185: 12.34557001 | N185: 16.85787323
A186: Puno | B186: 138 | C186: 16.79 | D186: 14.48 | E186: 11.96 | F186: 9.12 | I186: 25.91 | J186: 14.48 | K186: 11.96 | L186: 25.91 | M186: 12.46163569 | N186: 16.9739389
A187: Puno | B187: 220 | C187: 16.79 | D187: 14.5 | E187: 11.97 | F187: 9.12 | I187: 25.91 | J187: 14.5 | K187: 11.97 | L187: 25.91 | M187: 12.47362631 | N187: 16.98592952
A188: Callalli | B188: 138 | C188: 16.79 | D188: 14.56 | E188: 12.02 | F188: 9.12 | I188: 25.91 | J188: 14.56 | K188: 12.02 | L188: 25.91 | M188: 12.52561692 | N188: 17.03792014
A189: Santuario | B189: 138 | C189: 16.79 | D189: 14.28 | E189: 11.87 | F189: 9.12 | I189: 25.91 | J189: 14.28 | K189: 11.87 | L189: 25.91 | M189: 12.34973889 | N189: 16.86204211
A190: Arequipa | B190: 138 | C190: 16.79 | D190: 14.35 | E190: 11.92 | F190: 9.12 | I190: 25.91 | J190: 14.35 | K190: 11.92 | L190: 25.91 | M190: 12.40372013 | N190: 16.91602334
A191: Socabaya | B191: 220 | C191: 16.79 | D191: 14.34 | E191: 11.91 | F191: 9.12 | I191: 25.91 | J191: 14.34 | K191: 11.91 | L191: 25.91 | M191: 12.39372013 | N191: 16.90602334
A192: Cerro Verde | B192: 138 | C192: 16.79 | D192: 14.39 | E192: 11.95 | F192: 9.12 | I192: 25.91 | J192: 14.39 | K192: 11.95 | L192: 25.91 | M192: 12.43571074 | N192: 16.94801396
A193: Repartición | B193: 138 | C193: 16.79 | D193: 14.44 | E193: 11.97 | F193: 9.12 | I193: 25.91 | J193: 14.44 | K193: 11.97 | L193: 25.91 | M193: 12.4616826 | N193: 16.97398581
A194: Mollendo | B194: 138 | C194: 16.79 | D194: 14.48 | E194: 12 | F194: 9.12 | I194: 25.91 | J194: 14.48 | K194: 12 | L194: 25.91 | M194: 12.49367322 | N194: 17.00597643
A195: Montalvo | B195: 220 | C195: 16.79 | D195: 14.52 | E195: 12.05 | F195: 9.12 | I195: 25.91 | J195: 14.52 | K195: 12.05 | L195: 25.91 | M195: 12.5416826 | N195: 17.05398581
A196: Montalvo | B196: 138 | C196: 16.79 | D196: 14.53 | E196: 12.06 | F196: 9.12 | I196: 25.91 | J196: 14.53 | K196: 12.06 | L196: 25.91 | M196: 12.5516826 | N196: 17.06398581
A197: Ilo ELP | B197: 138 | C197: 16.79 | D197: 14.73 | E197: 12.22 | F197: 9.12 | I197: 25.91 | J197: 14.73 | K197: 12.22 | L197: 25.91 | M197: 12.71964507 | N197: 17.23194828
A198: Botiflaca | B198: 138 | C198: 16.79 | D198: 14.61 | E198: 12.13 | F198: 9.12 | I198: 25.91 | J198: 14.61 | K198: 12.13 | L198: 25.91 | M198: 12.62367322 | N198: 17.13597643
A199: Toquepala | B199: 138 | C199: 16.79 | D199: 14.66 | E199: 12.19 | F199: 9.12 | I199: 25.91 | J199: 14.66 | K199: 12.19 | L199: 25.91 | M199: 12.6816826 | N199: 17.19398581
A200: Aricota | B200: 138 | C200: 16.79 | D200: 14.54 | E200: 12.14 | F200: 9.12 | I200: 25.91 | J200: 14.54 | K200: 12.14 | L200: 25.91 | M200: 12.61774827 | N200: 17.13005149
A201: Aricota | B201: 66 | C201: 16.79 | D201: 14.48 | E201: 12.13 | F201: 9.12 | G201: =G92 -> 0.39494085 | I201: 25.91 | J201: 14.87494085 | K201: 12.52494085 | L201: 25.91 | M201: 12.99273603 | N201: 17.50503925
A202: Tacna (Los Héroes) | B202: 220 | C202: 16.79 | D202: 14.63 | E202: 12.11 | F202: 9.12 | I202: 25.91 | J202: 14.63 | K202: 12.11 | L202: 25.91 | M202: 12.61163569 | N202: 17.1239389
... 27 more rows

Sheet PNG_Actualizado
B6: PRECIOS A NIVEL GENERACIÓN Y PRECIOS EFECTIVOS | I6: =UPPER(CONCATENATE(B6," ACTUALIZADOS AL ",TEXT(Vigencia,"DD / MMM /YYYY"))) -> PRECIOS A NIVEL GENERACIÓN Y PRECIOS EFECTIVOS ACTUALIZADOS AL 01 / MAY /2012
B8: BARRA DE | C8: TENSIÓN | D8: PPM | E8: PEMP | F8: PEMF | H8: BARRA DE | I8: BARRA | J8: TENSIÓN | K8: PPM | L8: PEMP | M8: PEMF | N8: PCSPT | O8: CPSEE | Q8: PPB | R8: PEBP | S8: PEBF | T8: Potencia | U8: Energia | V8: Promedio
B9: REFERENCIA | C9: kV | D9: S/./kW-mes | E9: ctm. S/./kW.h | F9: ctm. S/./kW.h | H9: A BUSCAR | J9: kV | K9: S/./kW-mes | L9: ctm. S/./kW.h | M9: ctm. S/./kW.h | N9: S/./kW-mes | O9: ctm. S/./kW.h | Q9: S/./kW-mes | R9: ctm. S/./kW.h | S9: ctm. S/./kW.h | T9: ctm. S/./kW.h | U9: ctm. S/./kW.h | V9: ctm. S/./kW.h
B10: SISTEMA ELÉCTRICO INTERCONECTADO NACIONA (Res. 078-2012-OS/CD) | I10: =+B10 -> SISTEMA ELÉCTRICO INTERCONECTADO NACIONA (Res. 078-2012-OS/CD)
B11: Zorritos | C11: 220 | D11: 16.79 | E11: 13.8 | F11: 11.7 | H11: =CONCATENATE(I11,"-",J11) -> Zorritos-220 | I11: =+B11 -> Zorritos | J11: =+C11 -> 220 | K11: =+ROUND(D11*FA_PNG,2) -> 16.79 | L11: =+ROUND(E11*FA_PNG,2) -> 13.8 | M11: =+ROUND(F11*FA_PNG,2) -> 11.7 | N11: =+Transporte!F34 -> 9.12 | Q11: =+K11+N11 -> 25.91 | R11: =+L11+O11 -> 13.8 | S11: =+M11+O11 -> 11.7 | T11: =+Q11 -> 25.91 | U11: =+R11*$J$116+S11*$J$117 -> 12.11802974 | V11: =+T11/720/$J$115*100+U11 -> 16.63033295
B12: Talara | C12: 220 | D12: 16.79 | E12: 13.74 | F12: 11.66 | H12: =CONCATENATE(I12,"-",J12) -> Talara-220 | I12: Talara | J12: 220 | K12: 16.79 | L12: 13.74 | M12: 11.66 | N12: =+$N$11 -> 9.12 | Q12: =+K12+N12 -> 25.91 | R12: =+L12+O12 -> 13.74 | S12: =+M12+O12 -> 11.66 | T12: =+Q12 -> 25.91 | U12: =+R12*$J$116+S12*$J$117 -> 12.0740485 | V12: =+T12/720/$J$115*100+U12 -> 16.58635172
B13: Piura Oeste | C13: 220 | D13: 16.79 | E13: 14.41 | F13: 12.08 | H13: Piura Oeste-220 | I13: Piura Oeste | J13: 220 | K13: 16.79 | L13: 14.41 | M13: 12.08 | N13: =+$N$11 -> 9.12 | Q13: 25.91 | R13: 14.41 | S13: 12.08 | T13: 25.91 | U13: 12.54381395 | V13: 17.05611716
B14: Chiclayo Oeste | C14: 220 | D14: 16.79 | E14: 14.21 | F14: 11.91 | H14: Chiclayo Oeste-220 | I14: Chiclayo Oeste | J14: 220 | K14: 16.79 | L14: 14.21 | M14: 11.91 | N14: 9.12 | Q14: 25.91 | R14: 14.21 | S14: 11.91 | T14: 25.91 | U14: 12.3678421 | V14: 16.88014531
B15: Carhuaquero | C15: 220 | D15: 16.79 | E15: 13.97 | F15: 11.76 | H15: Carhuaquero-220 | I15: Carhuaquero | J15: 220 | K15: 16.79 | L15: 13.97 | M15: 11.76 | N15: 9.12 | Q15: 25.91 | R15: 13.97 | S15: 11.76 | T15: 25.91 | U15: 12.19992654 | V15: 16.71222975
B16: Carhuaquero | C16: 138 | D16: 16.79 | E16: 13.97 | F16: 11.76 | H16: =CONCATENATE(I16,"-",J16) -> Carhuaquero-138 | I16: Carhuaquero | J16: 138 | K16: =+ROUND(D16*FA_PNG,2) -> 16.79 | L16: 13.97 | M16: 11.76 | N16: 9.12 | Q16: 25.91 | R16: 13.97 | S16: 11.76 | T16: 25.91 | U16: 12.19992654 | V16: 16.71222975
B17: Cutervo | C17: 138 | D17: 16.79 | E17: 13.97 | F17: 11.76 | H17: =CONCATENATE(I17,"-",J17) -> Cutervo-138 | I17: Cutervo | J17: 138 | K17: 16.79 | L17: 13.97 | M17: 11.76 | N17: 9.12 | Q17: 25.91 | R17: 13.97 | S17: 11.76 | T17: 25.91 | U17: 12.19992654 | V17: 16.71222975
B18: Jaen | C18: 138 | D18: 16.79 | E18: 13.97 | F18: 11.76 | H18: =CONCATENATE(I18,"-",J18) -> Jaen-138 | I18: Jaen | J18: 138 | K18: 16.79 | L18: 13.97 | M18: 11.76 | N18: 9.12 | Q18: 25.91 | R18: 13.97 | S18: 11.76 | T18: 25.91 | U18: 12.19992654 | V18: 16.71222975
B19: Guadalupe | C19: 220 | D19: 16.79 | E19: 14.04 | F19: 11.77 | H19: Guadalupe-220 | I19: Guadalupe | J19: 220 | K19: 16.79 | L19: 14.04 | M19: 11.77 | N19: 9.12 | Q19: 25.91 | R19: 14.04 | S19: 11.77 | T19: 25.91 | U19: 12.22187024 | V19: 16.73417346
B20: Guadalupe | C20: 60 | D20: 16.79 | E20: 14.09 | F20: 11.81 | H20: Guadalupe-60 | I20: Guadalupe | J20: 60 | K20: 16.79 | L20: 14.09 | M20: 11.81 | N20: 9.12 | Q20: 25.91 | R20: 14.09 | S20: 11.81 | T20: 25.91 | U20: 12.26386086 | V20: 16.77616407
B21: Cajamarca | C21: 220 | D21: 16.79 | E21: 13.63 | F21: 11.48 | H21: Cajamarca-220 | I21: Cajamarca | J21: 220 | K21: 16.79 | L21: 13.63 | M21: 11.48 | N21: 9.12 | Q21: 25.91 | R21: 13.63 | S21: 11.48 | T21: 25.91 | U21: 11.90798283 | V21: 16.42028604
B22: Trujillo Norte | C22: 220 | D22: 16.79 | E22: 13.73 | F22: 11.51 | H22: Trujillo Norte-220 | I22: Trujillo Norte | J22: 220 | K22: 16.79 | L22: 13.73 | M22: 11.51 | N22: 9.12 | Q22: 25.91 | R22: 13.73 | S22: 11.51 | T22: 25.91 | U22: 11.95191715 | V22: 16.46422037
B23: Chimbote 1 | C23: 220 | D23: 16.79 | E23: 13.54 | F23: 11.38 | H23: Chimbote 1-220 | I23: Chimbote 1 | J23: 220 | K23: 16.79 | L23: 13.54 | M23: 11.38 | N23: 9.12 | Q23: 25.91 | R23: 13.54 | S23: 11.38 | T23: 25.91 | U23: 11.80997345 | V23: 16.32227666
B24: Chimbote 1 | C24: 138 | D24: 16.79 | E24: 13.61 | F24: 11.41 | H24: Chimbote 1-138 | I24: Chimbote 1 | J24: 138 | K24: 16.79 | L24: 13.61 | M24: 11.41 | N24: 9.12 | Q24: 25.91 | R24: 13.61 | S24: 11.41 | T24: 25.91 | U24: 11.84793592 | V24: 16.36023913
B25: Paramonga Nueva | C25: 220 | D25: 16.79 | E25: 13.17 | F25: 11.06 | H25: Paramonga Nueva-220 | I25: Paramonga Nueva | J25: 220 | K25: 16.79 | L25: 13.17 | M25: 11.06 | N25: 9.12 | Q25: =+K25+N25 -> 25.91 | R25: =+L25+O25 -> 13.17 | S25: =+M25+O25 -> 11.06 | T25: =+Q25 -> 25.91 | U25: =+R25*$J$116+S25*$J$117 -> 11.48002036 | V25: =+T25/720/$J$115*100+U25 -> 15.99232357
B26: Paramonga Nueva | C26: 138 | D26: 16.79 | E26: 13.15 | F26: 11.05 | H26: Paramonga Nueva-138 | I26: Paramonga Nueva | J26: 138 | K26: 16.79 | L26: 13.15 | M26: 11.05 | N26: 9.12 | Q26: 25.91 | R26: 13.15 | S26: 11.05 | T26: 25.91 | U26: 11.46802974 | V26: 15.98033295
B27: Paramonga Existente | C27: 138 | D27: 16.79 | E27: 13.11 | F27: 11.04 | H27: Paramonga Existente-138 | I27: Paramonga Existente | J27: 138 | K27: 16.79 | L27: 13.11 | M27: 11.04 | N27: 9.12 | Q27: 25.91 | R27: 13.11 | S27: 11.04 | T27: 25.91 | U27: 11.45205789 | V27: 15.9643611
B28: Huacho | C28: 220 | D28: 16.79 | E28: 13.11 | F28: 11 | H28: Huacho-220 | I28: Huacho | J28: 220 | K28: 16.79 | L28: 13.11 | M28: 11 | N28: 9.12 | Q28: 25.91 | R28: 13.11 | S28: 11 | T28: 25.91 | U28: 11.42002036 | V28: 15.93232357
B29: Zapallal | C29: 220 | D29: 16.79 | E29: 12.94 | F29: 10.84 | H29: Zapallal-220 | I29: Zapallal | J29: 220 | K29: 16.79 | L29: 12.94 | M29: 10.84 | N29: 9.12 | Q29: 25.91 | R29: 12.94 | S29: 10.84 | T29: 25.91 | U29: 11.25802974 | V29: 15.77033295
B30: Ventanilla | C30: 220 | D30: 16.79 | E30: 12.93 | F30: 10.82 | H30: Ventanilla-220 | I30: Ventanilla | J30: 220 | K30: 16.79 | L30: 12.93 | M30: 10.82 | N30: 9.12 | Q30: 25.91 | R30: 12.93 | S30: 10.82 | T30: 25.91 | U30: 11.24002036 | V30: 15.75232357
B31: Lima | C31: 220 | D31: 16.79 | E31: 12.92 | F31: 10.81 | H31: Lima-220 | I31: Lima | J31: 220 | K31: 16.79 | L31: 12.92 | M31: 10.81 | N31: 9.12 | Q31: 25.91 | R31: 12.92 | S31: 10.81 | T31: 25.91 | U31: 11.23002036 | V31: 15.74232357
B32: Cantera | C32: 220 | D32: 16.79 | E32: 12.7 | F32: 10.67 | H32: Cantera-220 | I32: Cantera | J32: 220 | K32: 16.79 | L32: 12.7 | M32: 10.67 | N32: 9.12 | Q32: 25.91 | R32: 12.7 | S32: 10.67 | T32: 25.91 | U32: 11.07409541 | V32: 15.58639863
B33: Chilca | C33: 220 | D33: 16.79 | E33: 12.57 | F33: 10.55 | H33: Chilca-220 | I33: Chilca | J33: 220 | K33: 16.79 | L33: 12.57 | M33: 10.55 | N33: 9.12 | Q33: 25.91 | R33: 12.57 | S33: 10.55 | T33: 25.91 | U33: 10.9521048 | V33: 15.46440801
B34: Independencia | C34: 220 | D34: 16.79 | E34: 12.8 | F34: 10.77 | H34: Independencia-220 | I34: Independencia | J34: 220 | K34: 16.79 | L34: 12.8 | M34: 10.77 | N34: 9.12 | Q34: 25.91 | R34: 12.8 | S34: 10.77 | T34: 25.91 | U34: 11.17409541 | V34: 15.68639863
B35: Ica | C35: 220 | D35: 16.79 | E35: 12.87 | F35: 10.83 | H35: Ica-220 | I35: Ica | J35: 220 | K35: 16.79 | L35: 12.87 | M35: 10.83 | N35: 9.12 | Q35: 25.91 | R35: 12.87 | S35: 10.83 | T35: 25.91 | U35: 11.23608603 | V35: 15.74838925
B36: Marcona | C36: 220 | D36: 16.79 | E36: 13.08 | F36: 10.98 | H36: Marcona-220 | I36: Marcona | J36: 220 | K36: 16.79 | L36: 13.08 | M36: 10.98 | N36: 9.12 | Q36: 25.91 | R36: 13.08 | S36: 10.98 | T36: 25.91 | U36: 11.39802974 | V36: 15.91033295
B37: Mantaro | C37: 220 | D37: 16.79 | E37: 12.63 | F37: 10.58 | H37: Mantaro-220 | I37: Mantaro | J37: 220 | K37: 16.79 | L37: 12.63 | M37: 10.58 | N37: 9.12 | Q37: 25.91 | R37: 12.63 | S37: 10.58 | T37: 25.91 | U37: 10.98807665 | V37: 15.50037987
B38: Huayucachi | C38: 220 | D38: 16.79 | E38: 12.73 | F38: 10.66 | H38: Huayucachi-220 | I38: Huayucachi | J38: 220 | K38: 16.79 | L38: 12.73 | M38: 10.66 | N38: 9.12 | Q38: 25.91 | R38: 12.73 | S38: 10.66 | T38: 25.91 | U38: 11.07205789 | V38: 15.5843611
B39: Pachachaca | C39: 220 | D39: 16.79 | E39: 12.76 | F39: 10.7 | H39: Pachachaca-220 | I39: Pachachaca | J39: 220 | K39: 16.79 | L39: 12.76 | M39: 10.7 | N39: 9.12 | Q39: 25.91 | R39: 12.76 | S39: 10.7 | T39: 25.91 | U39: 11.11006727 | V39: 15.62237048
B40: Pomacocha | C40: 220 | D40: 16.79 | E40: 12.76 | F40: 10.69 | H40: =CONCATENATE(I40,"-",J40) -> Pomacocha-220 | I40: Pomacocha | J40: 220 | K40: =+ROUND(D40*FA_PNG,2) -> 16.79 | L40: =+ROUND(E40*FA_PNG,2) -> 12.76 | M40: =+ROUND(F40*FA_PNG,2) -> 10.69 | N40: 9.12 | Q40: =+K40+N40 -> 25.91 | R40: =+L40+O40 -> 12.76 | S40: =+M40+O40 -> 10.69 | T40: =+Q40 -> 25.91 | U40: =+R40*$J$116+S40*$J$117 -> 11.10205789 | V40: =+T40/720/$J$115*100+U40 -> 15.6143611
B41: Huancavelica | C41: 220 | D41: 16.79 | E41: 12.68 | F41: 10.65 | H41: Huancavelica-220 | I41: Huancavelica | J41: 220 | K41: 16.79 | L41: 12.68 | M41: 10.65 | N41: 9.12 | Q41: 25.91 | R41: 12.68 | S41: 10.65 | T41: 25.91 | U41: 11.05409541 | V41: 15.56639863
B42: Callahuanca | C42: 220 | D42: 16.79 | E42: 12.82 | F42: 10.76 | H42: Callahuanca-220 | I42: Callahuanca | J42: 220 | K42: 16.79 | L42: 12.82 | M42: 10.76 | N42: 9.12 | Q42: 25.91 | R42: 12.82 | S42: 10.76 | T42: 25.91 | U42: 11.17006727 | V42: 15.68237048
B43: Cajamarquilla | C43: 220 | D43: 16.79 | E43: 12.92 | F43: 10.85 | H43: Cajamarquilla-220 | I43: =+B43 -> Cajamarquilla | J43: =+C43 -> 220 | K43: 16.79 | L43: 12.92 | M43: 10.85 | N43: 9.12 | Q43: 25.91 | R43: 12.92 | S43: 10.85 | T43: 25.91 | U43: 11.26205789 | V43: 15.7743611
B44: Huallanca | C44: 138 | D44: 16.79 | E44: 13.31 | F44: 11.18 | H44: Huallanca-138 | I44: Huallanca | J44: 138 | K44: 16.79 | L44: 13.31 | M44: 11.18 | N44: 9.12 | Q44: 25.91 | R44: 13.31 | S44: 11.18 | T44: 25.91 | U44: 11.60400159 | V44: 16.11630481
B45: Vizcarra | C45: 220 | D45: 16.79 | E45: 13.09 | F45: 10.99 | H45: Vizcarra-220 | I45: Vizcarra | J45: 220 | K45: 16.79 | L45: 13.09 | M45: 10.99 | N45: 9.12 | Q45: 25.91 | R45: 13.09 | S45: 10.99 | T45: 25.91 | U45: 11.40802974 | V45: 15.92033295
B46: Tingo María | C46: 220 | D46: 16.79 | E46: 13.21 | F46: 11.09 | H46: Tingo María-220 | I46: Tingo María | J46: 220 | K46: 16.79 | L46: 13.21 | M46: 11.09 | N46: 9.12 | Q46: 25.91 | R46: 13.21 | S46: 11.09 | T46: 25.91 | U46: 11.51201098 | V46: 16.02431419
B47: Aguaytía | C47: 220 | D47: 16.79 | E47: 13.08 | F47: 11 | H47: Aguaytía-220 | I47: Aguaytía | J47: 220 | K47: =+ROUND(D47*FA_PNG,2) -> 16.79 | L47: =+ROUND(E47*FA_PNG,2) -> 13.08 | M47: =+ROUND(F47*FA_PNG,2) -> 11 | N47: 9.12 | Q47: 25.91 | R47: 13.08 | S47: 11 | T47: 25.91 | U47: 11.4140485 | V47: 15.92635172
B48: Aguaytía | C48: 138 | D48: 16.79 | E48: 13.13 | F48: 11.04 | H48: Aguaytía-138 | I48: Aguaytía | J48: 138 | K48: 16.79 | L48: 13.13 | M48: 11.04 | N48: 9.12 | Q48: 25.91 | R48: 13.13 | S48: 11.04 | T48: 25.91 | U48: 11.45603912 | V48: 15.96834234
B49: Aguaytía | C49: 22.9 | D49: 16.79 | E49: 13.11 | F49: 11.02 | H49: Aguaytía-22.9 | I49: Aguaytía | J49: 22.9 | K49: 16.79 | L49: 13.11 | M49: 11.02 | N49: 9.12 | Q49: 25.91 | R49: 13.11 | S49: 11.02 | T49: 25.91 | U49: 11.43603912 | V49: 15.94834234
B50: Pucallpa | C50: 138 | D50: 16.79 | E50: 13.53 | F50: 11.3 | H50: Pucallpa-138 | I50: Pucallpa | J50: 138 | K50: 16.79 | L50: 13.53 | M50: 11.3 | N50: 9.12 | Q50: 25.91 | R50: 13.53 | S50: 11.3 | T50: 25.91 | U50: 11.74390777 | V50: 16.25621099
B51: Pucallpa | C51: 60 | D51: 16.79 | E51: 13.55 | F51: 11.31 | H51: Pucallpa-60 | I51: Pucallpa | J51: 60 | K51: 16.79 | L51: 13.55 | M51: 11.31 | N51: 9.12 | O51: =+Transporte!F138 -> 1.41926385 | Q51: 25.91 | R51: 14.96926385 | S51: 12.72926385 | T51: 25.91 | U51: 13.17516224 | V51: 17.68746545
B52: Aucayacu | C52: 138 | D52: 16.79 | E52: 18.39 | F52: 11.52 | H52: Aucayacu-138 | I52: Aucayacu | J52: 138 | K52: 16.79 | L52: 18.39 | M52: 11.52 | N52: 9.12 | Q52: 25.91 | R52: 18.39 | S52: 11.52 | T52: 25.91 | U52: 12.88755443 | V52: 17.39985765
B53: Tocache | C53: 138 | D53: 16.79 | E53: 20.48 | F53: 12.31 | H53: Tocache-138 | I53: Tocache | J53: 138 | K53: 16.79 | L53: 20.48 | M53: 12.31 | N53: 9.12 | Q53: 25.91 | R53: 20.48 | S53: 12.31 | T53: 25.91 | U53: 13.93633475 | V53: 18.44863796
B54: Tingo María | C54: 138 | D54: 16.79 | E54: 13.51 | F54: 11.4 | H54: Tingo María-138 | I54: Tingo María | J54: 138 | K54: 16.79 | L54: 13.51 | M54: 11.4 | N54: 9.12 | Q54: 25.91 | R54: 13.51 | S54: 11.4 | T54: 25.91 | U54: 11.82002036 | V54: 16.33232357
B55: Huánuco | C55: 138 | D55: 16.79 | E55: 13.54 | F55: 11.4 | H55: Huánuco-138 | I55: Huánuco | J55: 138 | K55: 16.79 | L55: 13.54 | M55: 11.4 | N55: 9.12 | Q55: 25.91 | R55: 13.54 | S55: 11.4 | T55: 25.91 | U55: 11.82599221 | V55: 16.33829543
B56: Paragsha II | C56: 138 | D56: 16.79 | E56: 13.45 | F56: 11.31 | H56: Paragsha II-138 | I56: Paragsha II | J56: 138 | K56: 16.79 | L56: 13.45 | M56: 11.31 | N56: 9.12 | Q56: 25.91 | R56: 13.45 | S56: 11.31 | T56: 25.91 | U56: 11.73599221 | V56: 16.24829543
B57: Paragsha | C57: 220 | D57: 16.79 | E57: 12.82 | F57: 10.79 | H57: Paragsha-220 | I57: Paragsha | J57: 220 | K57: 16.79 | L57: 12.82 | M57: 10.79 | N57: 9.12 | Q57: 25.91 | R57: 12.82 | S57: 10.79 | T57: 25.91 | U57: 11.19409541 | V57: 15.70639863
B58: Yaupi | C58: 138 | D58: 16.79 | E58: 12.51 | F58: 10.54 | H58: Yaupi-138 | I58: Yaupi | J58: 138 | K58: 16.79 | L58: 12.51 | M58: 10.54 | N58: 9.12 | Q58: 25.91 | R58: 12.51 | S58: 10.54 | T58: 25.91 | U58: 10.93215171 | V58: 15.44445492
B59: Yuncan | C59: 138 | D59: 16.79 | E59: 12.51 | F59: 10.54 | H59: Yuncan-138 | I59: Yuncan | J59: 138 | K59: 16.79 | L59: 12.51 | M59: 10.54 | N59: 9.12 | Q59: 25.91 | R59: 12.51 | S59: 10.54 | T59: 25.91 | U59: 10.93215171 | V59: 15.44445492
B60: Yuncan | C60: 220 | D60: 16.79 | E60: 12.56 | F60: 10.58 | H60: Yuncan-220 | I60: Yuncan | J60: 220 | K60: 16.79 | L60: 12.56 | M60: 10.58 | N60: 9.12 | Q60: 25.91 | R60: 12.56 | S60: 10.58 | T60: 25.91 | U60: 10.97414233 | V60: 15.48644554
B61: Oroya Nueva | C61: 220 | D61: 16.79 | E61: 12.84 | F61: 10.78 | H61: Oroya Nueva-220 | I61: Oroya Nueva | J61: 220 | K61: 16.79 | L61: 12.84 | M61: 10.78 | N61: 9.12 | Q61: 25.91 | R61: 12.84 | S61: 10.78 | T61: 25.91 | U61: 11.19006727 | V61: 15.70237048
B62: Oroya Nueva | C62: 138 | D62: 16.79 | E62: 13.02 | F62: 10.97 | H62: Oroya Nueva-138 | I62: Oroya Nueva | J62: 138 | K62: 16.79 | L62: 13.02 | M62: 10.97 | N62: 9.12 | Q62: 25.91 | R62: 13.02 | S62: 10.97 | T62: 25.91 | U62: 11.37807665 | V62: 15.89037987
B63: Oroya Nueva | C63: 50 | D63: 16.79 | E63: 13.54 | F63: 11.37 | H63: Oroya Nueva-50 | I63: Oroya Nueva | J63: 50 | K63: 16.79 | L63: 13.54 | M63: 11.37 | N63: 9.12 | Q63: 25.91 | R63: 13.54 | S63: 11.37 | T63: 25.91 | U63: 11.80196406 | V63: 16.31426728
B64: Carhuamayo | C64: 138 | D64: 16.79 | E64: 12.05 | F64: 10.31 | H64: Carhuamayo-138 | I64: Carhuamayo | J64: 138 | K64: 16.79 | L64: 12.05 | M64: 10.31 | N64: 9.12 | Q64: 25.91 | R64: 12.05 | S64: 10.31 | T64: 25.91 | U64: 10.6563675 | V64: 15.16867071
B65: Carhuamayo Nueva | C65: 220 | D65: 16.79 | E65: 12.64 | F65: 10.65 | H65: Carhuamayo Nueva-220 | I65: Carhuamayo Nueva | J65: 220 | K65: 16.79 | L65: 12.64 | M65: 10.65 | N65: 9.12 | Q65: 25.91 | R65: 12.64 | S65: 10.65 | T65: 25.91 | U65: 11.04613294 | V65: 15.55843616
B66: Caripa | C66: 138 | D66: 16.79 | E66: 12.69 | F66: 10.75 | H66: Caripa-138 | I66: Caripa | J66: 138 | K66: 16.79 | L66: 12.69 | M66: 10.75 | N66: 9.12 | Q66: 25.91 | R66: 12.69 | S66: 10.75 | T66: 25.91 | U66: 11.13617985 | V66: 15.64848307
B67: Desierto | C67: 220 | D67: 16.79 | E67: 12.73 | F67: 10.7 | H67: Desierto-220 | I67: Desierto | J67: 220 | K67: 16.79 | L67: 12.73 | M67: 10.7 | N67: 9.12 | Q67: 25.91 | R67: 12.73 | S67: 10.7 | T67: 25.91 | U67: 11.10409541 | V67: 15.61639863
B68: Condorcocha | C68: 138 | D68: 16.79 | E68: 12.72 | F68: 10.78 | H68: Condorcocha-138 | I68: Condorcocha | J68: 138 | K68: 16.79 | L68: 12.72 | M68: 10.78 | N68: 9.12 | Q68: 25.91 | R68: 12.72 | S68: 10.78 | T68: 25.91 | U68: 11.16617985 | V68: 15.67848307
B69: Condorcocha | C69: 44 | D69: 16.79 | E69: 12.72 | F69: 10.78 | H69: Condorcocha-44 | I69: Condorcocha | J69: 44 | K69: 16.79 | L69: 12.72 | M69: 10.78 | N69: 9.12 | Q69: 25.91 | R69: 12.72 | S69: 10.78 | T69: 25.91 | U69: 11.16617985 | V69: 15.67848307
B70: Machupicchu | C70: 138 | D70: 16.79 | E70: 14.44 | F70: 11.47 | H70: Machupicchu-138 | I70: Machupicchu | J70: 138 | K70: 16.79 | L70: 14.44 | M70: 11.47 | N70: 9.12 | Q70: 25.91 | R70: 14.44 | S70: 11.47 | T70: 25.91 | U70: 12.06121349 | V70: 16.5735167
B71: Cachimayo | C71: 138 | D71: 16.79 | E71: 14.9 | F71: 11.85 | H71: Cachimayo-138 | I71: Cachimayo | J71: 138 | K71: 16.79 | L71: 14.9 | M71: 11.85 | N71: 9.12 | Q71: 25.91 | R71: 14.9 | S71: 11.85 | T71: 25.91 | U71: 12.45713843 | V71: 16.96944165
B72: Cusco | C72: 138 | D72: 16.79 | E72: 14.88 | F72: 11.84 | H72: Cusco-138 | I72: Cusco | J72: 138 | K72: 16.79 | L72: 14.88 | M72: 11.84 | N72: 9.12 | Q72: 25.91 | R72: 14.88 | S72: 11.84 | T72: 25.91 | U72: 12.44514781 | V72: 16.95745103
B73: Combapata | C73: 138 | D73: 16.79 | E73: 14.84 | F73: 11.98 | H73: Combapata-138 | I73: Combapata | J73: 138 | K73: 16.79 | L73: 14.84 | M73: 11.98 | N73: 9.12 | Q73: 25.91 | R73: 14.84 | S73: 11.98 | T73: 25.91 | U73: 12.54931669 | V73: 17.06161991
B74: Tintaya | C74: 138 | D74: 16.79 | E74: 14.75 | F74: 12.12 | H74: Tintaya-138 | I74: Tintaya | J74: 138 | K74: 16.79 | L74: 14.75 | M74: 12.12 | N74: 9.12 | Q74: 25.91 | R74: 14.75 | S74: 12.12 | T74: 25.91 | U74: 12.64353248 | V74: 17.1558357
B75: Ayaviri | C75: 138 | D75: 16.79 | E75: 14.31 | F75: 11.83 | H75: Ayaviri-138 | I75: =+B75 -> Ayaviri | J75: =+C75 -> 138 | K75: 16.79 | L75: 14.31 | M75: 11.83 | N75: 9.12 | Q75: 25.91 | R75: 14.31 | S75: 11.83 | T75: 25.91 | U75: 12.32367322 | V75: 16.83597643
B76: Azángaro | C76: 138 | D76: 16.79 | E76: 14.06 | F76: 11.46 | H76: Azángaro-138 | I76: Azángaro | J76: 138 | K76: 16.79 | L76: 14.06 | M76: 11.46 | N76: 9.12 | Q76: 25.91 | R76: 14.06 | S76: 11.46 | T76: 25.91 | U76: 11.97756063 | V76: 16.48986384
B77: San Gaban | C77: 138 | D77: 16.79 | E77: 14.06 | F77: 11.45 | H77: San Gaban-138 | I77: San Gaban | J77: 138 | K77: 16.79 | L77: 14.06 | M77: 11.45 | N77: 9.12 | Q77: 25.91 | R77: 14.06 | S77: 11.45 | T77: 25.91 | U77: 11.96955125 | V77: 16.48185446
B78: Mazuco | C78: 138 | D78: 16.79 | E78: 14.16 | F78: 11.5 | H78: Mazuco-138 | I78: Mazuco | J78: 138 | K78: 16.79 | L78: 14.16 | M78: 11.5 | N78: =+$N$11 -> 9.12 | Q78: =+K78+N78 -> 25.91 | R78: =+L78+O78 -> 14.16 | S78: =+M78+O78 -> 11.5 | T78: =+Q78 -> 25.91 | U78: =+R78*$J$116+S78*$J$117 -> 12.02950434 | V78: =+T78/720/$J$115*100+U78 -> 16.54180755
B79: Puerto Maldonado | C79: 138 | D79: 16.79 | E79: 14.39 | F79: 11.62 | H79: Puerto Maldonado-138 | I79: Puerto Maldonado | J79: 138 | K79: =+ROUND(D79*FA_PNG,2) -> 16.79 | L79: =+ROUND(E79*FA_PNG,2) -> 14.39 | M79: =+ROUND(F79*FA_PNG,2) -> 11.62 | N79: 9.12 | Q79: 25.91 | R79: 14.39 | S79: 11.62 | T79: 25.91 | U79: 12.17140113 | V79: 16.68370435
B80: Juliaca | C80: 138 | D80: 16.79 | E80: 14.42 | F80: 11.83 | H80: Juliaca-138 | I80: Juliaca | J80: 138 | K80: 16.79 | L80: 14.42 | M80: 11.83 | N80: 9.12 | Q80: 25.91 | R80: 14.42 | S80: 11.83 | T80: 25.91 | U80: 12.34557001 | V80: 16.85787323
B81: Puno | C81: 138 | D81: 16.79 | E81: 14.48 | F81: 11.96 | H81: Puno-138 | I81: Puno | J81: 138 | K81: 16.79 | L81: 14.48 | M81: 11.96 | N81: 9.12 | Q81: 25.91 | R81: 14.48 | S81: 11.96 | T81: 25.91 | U81: 12.46163569 | V81: 16.9739389
B82: Puno | C82: 220 | D82: 16.79 | E82: 14.5 | F82: 11.97 | H82: =CONCATENATE(I82,"-",J82) -> Puno-220 | I82: Puno | J82: 220 | K82: 16.79 | L82: 14.5 | M82: 11.97 | N82: 9.12 | Q82: 25.91 | R82: 14.5 | S82: 11.97 | T82: 25.91 | U82: 12.47362631 | V82: 16.98592952
B83: Callalli | C83: 138 | D83: 16.79 | E83: 14.56 | F83: 12.02 | H83: Callalli-138 | I83: Callalli | J83: 138 | K83: 16.79 | L83: 14.56 | M83: 12.02 | N83: 9.12 | Q83: 25.91 | R83: 14.56 | S83: 12.02 | T83: 25.91 | U83: 12.52561692 | V83: 17.03792014
B84: Santuario | C84: 138 | D84: 16.79 | E84: 14.28 | F84: 11.87 | H84: Santuario-138 | I84: Santuario | J84: 138 | K84: 16.79 | L84: 14.28 | M84: 11.87 | N84: 9.12 | Q84: =+K84+N84 -> 25.91 | R84: =+L84+O84 -> 14.28 | S84: =+M84+O84 -> 11.87 | T84: =+Q84 -> 25.91 | U84: =+R84*$J$116+S84*$J$117 -> 12.34973889 | V84: =+T84/720/$J$115*100+U84 -> 16.86204211
B85: Arequipa | C85: 138 | D85: 16.79 | E85: 14.35 | F85: 11.92 | H85: Arequipa-138 | I85: Arequipa | J85: 138 | K85: 16.79 | L85: 14.35 | M85: 11.92 | N85: 9.12 | Q85: 25.91 | R85: 14.35 | S85: 11.92 | T85: 25.91 | U85: 12.40372013 | V85: 16.91602334
B86: Socabaya | C86: 220 | D86: 16.79 | E86: 14.34 | F86: 11.91 | H86: Socabaya-220 | I86: Socabaya | J86: 220 | K86: 16.79 | L86: 14.34 | M86: 11.91 | N86: 9.12 | Q86: 25.91 | R86: 14.34 | S86: 11.91 | T86: 25.91 | U86: 12.39372013 | V86: 16.90602334
B87: Cerro Verde | C87: 138 | D87: 16.79 | E87: 14.39 | F87: 11.95 | H87: Cerro Verde-138 | I87: Cerro Verde | J87: 138 | K87: 16.79 | L87: 14.39 | M87: 11.95 | N87: 9.12 | Q87: 25.91 | R87: 14.39 | S87: 11.95 | T87: 25.91 | U87: 12.43571074 | V87: 16.94801396
B88: Repartición | C88: 138 | D88: 16.79 | E88: 14.44 | F88: 11.97 | H88: Repartición-138 | I88: Repartición | J88: 138 | K88: 16.79 | L88: 14.44 | M88: 11.97 | N88: 9.12 | Q88: 25.91 | R88: 14.44 | S88: 11.97 | T88: 25.91 | U88: 12.4616826 | V88: 16.97398581
B89: Mollendo | C89: 138 | D89: 16.79 | E89: 14.48 | F89: 12 | H89: Mollendo-138 | I89: Mollendo | J89: 138 | K89: 16.79 | L89: 14.48 | M89: 12 | N89: 9.12 | Q89: 25.91 | R89: 14.48 | S89: 12 | T89: 25.91 | U89: 12.49367322 | V89: 17.00597643
B90: Montalvo | C90: 220 | D90: 16.79 | E90: 14.52 | F90: 12.05 | H90: Montalvo-220 | I90: Montalvo | J90: 220 | K90: 16.79 | L90: 14.52 | M90: 12.05 | N90: 9.12 | Q90: 25.91 | R90: 14.52 | S90: 12.05 | T90: 25.91 | U90: 12.5416826 | V90: 17.05398581
B91: Montalvo | C91: 138 | D91: 16.79 | E91: 14.53 | F91: 12.06 | H91: Montalvo-138 | I91: Montalvo | J91: 138 | K91: 16.79 | L91: 14.53 | M91: 12.06 | N91: 9.12 | Q91: 25.91 | R91: 14.53 | S91: 12.06 | T91: 25.91 | U91: 12.5516826 | V91: 17.06398581
B92: Ilo ELP | C92: 138 | D92: 16.79 | E92: 14.73 | F92: 12.22 | H92: Ilo ELP-138 | I92: Ilo ELP | J92: 138 | K92: 16.79 | L92: 14.73 | M92: 12.22 | N92: 9.12 | Q92: 25.91 | R92: 14.73 | S92: 12.22 | T92: 25.91 | U92: 12.71964507 | V92: 17.23194828
B93: Botiflaca | C93: 138 | D93: 16.79 | E93: 14.61 | F93: 12.13 | H93: Botiflaca-138 | I93: Botiflaca | J93: 138 | K93: 16.79 | L93: 14.61 | M93: 12.13 | N93: 9.12 | Q93: 25.91 | R93: 14.61 | S93: 12.13 | T93: 25.91 | U93: 12.62367322 | V93: 17.13597643
B94: Toquepala | C94: 138 | D94: 16.79 | E94: 14.66 | F94: 12.19 | H94: Toquepala-138 | I94: Toquepala | J94: 138 | K94: 16.79 | L94: 14.66 | M94: 12.19 | N94: 9.12 | Q94: 25.91 | R94: 14.66 | S94: 12.19 | T94: 25.91 | U94: 12.6816826 | V94: 17.19398581
B95: Aricota | C95: 138 | D95: 16.79 | E95: 14.54 | F95: 12.14 | H95: Aricota-138 | I95: Aricota | J95: 138 | K95: 16.79 | L95: 14.54 | M95: 12.14 | N95: 9.12 | Q95: 25.91 | R95: 14.54 | S95: 12.14 | T95: 25.91 | U95: 12.61774827 | V95: 17.13005149
B96: Aricota | C96: 66 | D96: 16.79 | E96: 14.48 | F96: 12.13 | H96: Aricota-66 | I96: Aricota | J96: 66 | K96: 16.79 | L96: 14.48 | M96: 12.13 | N96: 9.12 | O96: =+Transporte!F137 -> 0.39494085 | Q96: 25.91 | R96: 14.87494085 | S96: 12.52494085 | T96: 25.91 | U96: 12.99273603 | V96: 17.50503925
B97: Tacna (Los Héroes) | C97: 220 | D97: 16.79 | E97: 14.63 | F97: 12.11 | H97: Tacna (Los Héroes)-220 | I97: Tacna (Los Héroes) | J97: 220 | K97: 16.79 | L97: 14.63 | M97: 12.11 | N97: 9.12 | Q97: 25.91 | R97: 14.63 | S97: 12.11 | T97: 25.91 | U97: 12.61163569 | V97: 17.1239389
B98: Tacna (Los Héroes) | C98: 66 | D98: 16.79 | E98: 14.75 | F98: 12.16 | H98: =CONCATENATE(I98,"-",J98) -> Tacna (Los Héroes)-66 | I98: =+B98 -> Tacna (Los Héroes) | J98: =+C98 -> 66 | K98: =+ROUND(D98*FA_PNG,2) -> 16.79 | L98: =+ROUND(E98*FA_PNG,2) -> 14.75 | M98: =+ROUND(F98*FA_PNG,2) -> 12.16 | N98: 9.12 | O98: =+Transporte!F137 -> 0.39494085 | Q98: =+K98+N98 -> 25.91 | R98: =+L98+O98 -> 15.14494085 | S98: =+M98+O98 -> 12.55494085 | T98: =+Q98 -> 25.91 | U98: =+R98*$J$116+S98*$J$117 -> 13.07051086 | V98: =+T98/720/$J$115*100+U98 -> 17.58281408
B99: La Nina | C99: 220 | D99: =(D13-D14)*111/(110+111)+D14 -> 16.79 | E99: 14.31045249 | F99: 11.99538462 | H99: La Nina-220 | I99: La Nina | J99: 220 | K99: 16.79 | L99: 14.31 | M99: 12 | N99: 9.12 | Q99: 25.91 | R99: 14.31 | S99: 12 | T99: 25.91 | U99: 12.45983271 | V99: 16.97213593
B100: SISTEMAS AISLADOS (Cuadro 10, Res 057-2012-OS/CD) | I100: SISTEMAS AISLADOS
B101: Adinelsa | C101: MT | D101: 17.28 | E101: 17.75 | F101: 17.75 | H101: =CONCATENATE(I101,"-",J101) -> Adinelsa-MT | I101: =+B101 -> Adinelsa | J101: =+C101 -> MT | K101: =+D101+D114*(VLOOKUP($B101,FactoresActualizacion!$B$11:$C$21,2,FALSE)-1) -> 17.28 | L101: =+E101+E114*(VLOOKUP($B101,FactoresActualizacion!$B$11:$C$21,2,FALSE)-1) -> 17.75 | M101: =+F101+F114*(VLOOKUP($B101,FactoresActualizacion!$B$11:$C$21,2,FALSE)-1) -> 17.75 | Q101: =+K101+N101 -> 17.28 | R101: =L101+O101 -> 17.75 | S101: =+M101+O101 -> 17.75 | T101: =+Q101 -> 17.28 | U101: =+R101*$K$116+S101*$K$117 -> 17.75 | V101: =+T101/720/$K$115*100+U101 -> 22.11363636
B102: Chavimochic | C102: MT | D102: 17.28 | E102: 17.75 | F102: 17.75 | H102: Chavimochic-MT | I102: Chavimochic | J102: MT | K102: =+D102+D115*(VLOOKUP($B102,FactoresActualizacion!$B$11:$C$21,2,FALSE)-1) -> 17.28 | L102: =+E102+E115*(VLOOKUP($B102,FactoresActualizacion!$B$11:$C$21,2,FALSE)-1) -> 17.75 | M102: =+F102+F115*(VLOOKUP($B102,FactoresActualizacion!$B$11:$C$21,2,FALSE)-1) -> 17.75 | Q102: =+K102+N102 -> 17.28 | R102: =L102+O102 -> 17.75 | S102: =+M102+O102 -> 17.75 | T102: =+Q102 -> 17.28 | U102: 17.75 | V102: 22.11363636
B103: Edelnor | C103: MT | D103: 17.28 | E103: 17.75 | F103: 17.75 | H103: Edelnor-MT | I103: Edelnor | J103: MT | K103: =+D103+D116*(VLOOKUP($B103,FactoresActualizacion!$B$11:$C$21,2,FALSE)-1) -> 17.28 | L103: =+E103+E116*(VLOOKUP($B103,FactoresActualizacion!$B$11:$C$21,2,FALSE)-1) -> 17.75 | M103: =+F103+F116*(VLOOKUP($B103,FactoresActualizacion!$B$11:$C$21,2,FALSE)-1) -> 17.75 | Q103: 17.28 | R103: 17.75 | S103: 17.75 | T103: 17.28 | U103: 17.75 | V103: 22.11363636
B104: Eilhicha | C104: MT | D104: =D101 -> 17.28 | E104: 17.75 | F104: 17.75 | H104: Eilhicha-MT | I104: Eilhicha | J104: MT | K104: =+D104+D117*(VLOOKUP($B104,FactoresActualizacion!$B$11:$C$21,2,FALSE)-1) -> 17.28 | L104: =+E104+E117*(VLOOKUP($B104,FactoresActualizacion!$B$11:$C$21,2,FALSE)-1) -> 17.75 | M104: =+F104+F117*(VLOOKUP($B104,FactoresActualizacion!$B$11:$C$21,2,FALSE)-1) -> 17.75 | Q104: =+K104+N104 -> 17.28 | R104: =L104+O104 -> 17.75 | S104: =+M104+O104 -> 17.75 | T104: =+Q104 -> 17.28 | U104: =+R104*$K$116+S104*$K$117 -> 17.75 | V104: =+T104/720/$K$115*100+U104 -> 22.11363636
B105: Electro Oriente | C105: MT | D105: 17.28 | E105: 25.43 | F105: 25.43 | H105: Electro Oriente-MT | I105: Electro Oriente | J105: MT | K105: =+D105+D118*(VLOOKUP($B105,FactoresActualizacion!$B$11:$C$21,2,FALSE)-1) -> 17.28 | L105: =+E105+E118*(VLOOKUP($B105,FactoresActualizacion!$B$11:$C$21,2,FALSE)-1) -> 25.43 | M105: =+F105+F118*(VLOOKUP($B105,FactoresActualizacion!$B$11:$C$21,2,FALSE)-1) -> 25.43 | Q105: 17.28 | R105: 25.43 | S105: 25.43 | T105: 17.28 | U105: 25.43 | V105: 29.79363636
B106: Electro Sur Este | C106: MT | D106: 17.28 | E106: 28.5 | F106: 28.5 | H106: Electro Sur Este-MT | I106: Electro Sur Este | J106: MT | K106: =+D106+D119*(VLOOKUP($B106,FactoresActualizacion!$B$11:$C$21,2,FALSE)-1) -> 17.28 | L106: =+E106+E119*(VLOOKUP($B106,FactoresActualizacion!$B$11:$C$21,2,FALSE)-1) -> 28.5 | M106: =+F106+F119*(VLOOKUP($B106,FactoresActualizacion!$B$11:$C$21,2,FALSE)-1) -> 28.5 | Q106: 17.28 | R106: 28.5 | S106: 28.5 | T106: 17.28 | U106: 28.5 | V106: 32.86363636
B107: Electro Ucayali | C107: MT | D107: 17.28 | E107: 17.75 | F107: 17.75 | H107: Electro Ucayali-MT | I107: Electro Ucayali | J107: MT | K107: =+D107+D120*(VLOOKUP($B107,FactoresActualizacion!$B$11:$C$21,2,FALSE)-1) -> 17.28 | L107: =+E107+E120*(VLOOKUP($B107,FactoresActualizacion!$B$11:$C$21,2,FALSE)-1) -> 17.75 | M107: =+F107+F120*(VLOOKUP($B107,FactoresActualizacion!$B$11:$C$21,2,FALSE)-1) -> 17.75 | Q107: 17.28 | R107: 17.75 | S107: 17.75 | T107: 17.28 | U107: 17.75 | V107: 22.11363636
B108: Electrocentro | C108: MT | D108: 17.28 | E108: 17.75 | F108: 17.75 | H108: Electrocentro-MT | I108: Electrocentro | J108: MT | K108: =+D108+D121*(VLOOKUP($B108,FactoresActualizacion!$B$11:$C$21,2,FALSE)-1) -> 17.28 | L108: =+E108+E121*(VLOOKUP($B108,FactoresActualizacion!$B$11:$C$21,2,FALSE)-1) -> 17.75 | M108: =+F108+F121*(VLOOKUP($B108,FactoresActualizacion!$B$11:$C$21,2,FALSE)-1) -> 17.75 | Q108: 17.28 | R108: 17.75 | S108: 17.75 | T108: 17.28 | U108: 17.75 | V108: 22.11363636
B109: Electronorte | C109: MT | D109: 17.28 | E109: 17.73 | F109: 17.73 | H109: Electronorte-MT | I109: Electronorte | J109: MT | K109: =+D109+D122*(VLOOKUP($B109,FactoresActualizacion!$B$11:$C$21,2,FALSE)-1) -> 17.28 | L109: =+E109+E122*(VLOOKUP($B109,FactoresActualizacion!$B$11:$C$21,2,FALSE)-1) -> 17.73 | M109: =+F109+F122*(VLOOKUP($B109,FactoresActualizacion!$B$11:$C$21,2,FALSE)-1) -> 17.73 | Q109: 17.28 | R109: 17.73 | S109: 17.73 | T109: 17.28 | U109: 17.73 | V109: 22.09363636
B110: Hidrandina | C110: MT | D110: 17.28 | E110: 17.86 | F110: 17.86 | H110: Hidrandina-MT | I110: Hidrandina | J110: MT | K110: =+D110+D123*(VLOOKUP($B110,FactoresActualizacion!$B$11:$C$21,2,FALSE)-1) -> 17.28 | L110: =+E110+E123*(VLOOKUP($B110,FactoresActualizacion!$B$11:$C$21,2,FALSE)-1) -> 17.86 | M110: =+F110+F123*(VLOOKUP($B110,FactoresActualizacion!$B$11:$C$21,2,FALSE)-1) -> 17.86 | Q110: 17.28 | R110: 17.86 | S110: 17.86 | T110: 17.28 | U110: 17.86 | V110: 22.22363636
B111: Seal | C111: MT | D111: 17.28 | E111: 21.8 | F111: 21.8 | H111: Seal-MT | I111: Seal | J111: MT | K111: =+D111+D124*(VLOOKUP($B111,FactoresActualizacion!$B$11:$C$21,2,FALSE)-1) -> 17.28 | L111: =+E111+E124*(VLOOKUP($B111,FactoresActualizacion!$B$11:$C$21,2,FALSE)-1) -> 21.8 | M111: =+F111+F124*(VLOOKUP($B111,FactoresActualizacion!$B$11:$C$21,2,FALSE)-1) -> 21.8 | Q111: 17.28 | R111: 21.8 | S111: 21.8 | T111: 17.28 | U111: 21.8 | V111: 26.16363636
B113: BARRA DE GENERACIÓN (Cuadro 1, Res. 057-2012 OS/CD) | I113: (*) Factor de Carga y Estructura de Compra de Energía
B114: Adinelsa | C114: MT | D114: 17.28 | E114: 22.95 | F114: 22.95 | J114: SINAC | K114: Aislados
B115: Chavimochic | C115: MT | D115: 17.28 | E115: 22.95 | F115: 22.95 | I115: Factor de Carga | J115: 0.7975109251 | K115: 0.55
B116: Edelnor | C116: MT | D116: 17.28 | E116: 22.95 | F116: 22.95 | I116: Estructura de Compra Hora Punta | J116: 0.1990617807 | K116: 0.35
B117: Eilhicha | C117: MT | D117: =D114 -> 17.28 | E117: 22.95 | F117: 22.95 | I117: Estructura de Compra Hora Fuera Punta | J117: =1-J116 -> 0.8009382193 | K117: =1-K116 -> 0.65
B118: Electro Oriente | C118: MT | D118: 17.28 | E118: 59.11 | F118: 59.11
B119: Electro Sur Este | C119: MT | D119: 17.28 | E119: 86.47 | F119: 86.47 | I119: Precios en Barra Máximos a Nivel de Media Tensión, para tarifas a usuarios Final | O119: Precios en Barra Máximos a Nivel de Media Tensión, para tarifas a usuarios Final
B120: Electro Ucayali | C120: MT | D120: 17.28 | E120: 22.95 | F120: 22.95 | I120: Cuadro 1 de la Res. de Barra - Sistemas Aislados | O120: =UPPER(CONCATENATE("ACTUALIZADOS AL ",TEXT(Vigencia,"DD / MMM /YYYY"))) -> ACTUALIZADOS AL 01 / MAY /2012
B121: Electrocentro | C121: MT | D121: 17.28 | E121: 22.95 | F121: 22.95 | I121: BARRA | J121: TENSIÓN | K121: PPM | L121: PEMP | M121: PEMF | O121: FA | P121: PPB | Q121: PEBP | R121: PEBF | S121: Potencia | T121: Energia | U121: Promedio
B122: Electronorte | C122: MT | D122: 17.28 | E122: 27.21 | F122: 27.21 | J122: kV | K122: S/./kW-mes | L122: ctm. S/./kW.h | M122: ctm. S/./kW.h | P122: S/./kW-mes | Q122: ctm. S/./kW.h | R122: ctm. S/./kW.h | S122: ctm. S/./kW.h | T122: ctm. S/./kW.h | U122: ctm. S/./kW.h
B123: Hidrandina | C123: MT | D123: 17.28 | E123: 26.34 | F123: 26.34 | I123: Electro Sur Este | J123: MT | K123: =+D119 -> 17.28 | L123: =+E119 -> 86.47 | M123: =+L123 -> 86.47 | O123: =+FactoresActualizacion!C16 -> 1 | P123: =+K123*$O123 -> 17.28 | Q123: 86.47 | R123: 86.47 | S123: =+P123 -> 17.28 | T123: =+Q123*K116+R123*K117 -> 86.47 | U123: =+S123/720/$K$115*100+T123 -> 90.83363636
B124: Seal | C124: MT | D124: 17.28 | E124: 56.24 | F124: 56.24 | I124: Electrocentro | J124: MT | K124: =+D121 -> 17.28 | L124: =+E121 -> 22.95 | M124: =+L124 -> 22.95 | O124: =+FactoresActualizacion!C18 -> 1 | P124: 17.28 | Q124: 22.95 | R124: 22.95 | S124: =+P124 -> 17.28 | T124: =+Q124*K116+R124*K117 -> 22.95 | U124: =+S124/720/$K$115*100+T124 -> 27.31363636
T126: Precio Máximo | U126: =+U123*0.7+U124*0.3 -> 71.77763636
B127: Para la actualización de los precios de potencia en los Sistemas Aislados del Cuadro N° 10 se utilizará la siguiente fórmula:
B129: PPM1ef = PPM0ef + PPM0 * (FAPEM-1)
B131: PPM0ef | C131: = | D131: Precio de la Potencia de Punta, publicado en la tercera columna del Cuadro N° 10 de la Resolución en Barra, en S/./kW-mes.
B132: PPM1ef | C132: = | D132: Precio de la Potencia de Punta señalado en PPM0ef, actualizado, en S/./kW-mes.
B133: PPM0 | C133: = | D133: Precio de la Potencia de Punta, publicada en la presente Resolución, en S/./kW-mes. (ver cuadro 1)
B134: FAPEM | C134: = | D134: Factor de Actualización del Precio de la Energía a Nivel Generación en las Barras de Referencia de Generación.
B136: Para la actualización de los precios de la energía PEMP y PEMF de Sistemas Aislados que se presentan en el Cuadro N° 10 de la presente resolución se hará uso de las siguientes fórmulas:
B138: PEMP1ef = PEMP0ef + PEMP0 * (FAPEM-1)
B139: PEMF1ef = PEMF0ef + PEMF0 * (FAPEM-1)
B141: PEMP0 | C141: = | D141: Precio de la Energía en Horas de Punta para las Barras de Referencia de Generación publicadas en la presente Resolución, en céntimos de S/./kWh.
B142: PEMF0 | C142: = | D142: Precio de la Energía en Horas Fuera de Punta para las Barras de Referencia de Generación publicadas en la presente Resolución, en céntimos de S/./kWh.
B143: PEMP1 | C143: = | D143: Precio de la Energía en Horas de Punta para las Barras de Referencia de Generación, actualizado, en céntimos de S/./kWh.
B144: PEMF1 | C144: = | D144: Precio de la Energía en Horas Fuera de Punta para las Barras de Referencia de Generación, actualizado, en céntimos de S/./kWh.
B145: PEMP0ef | C145: = | D145: Precio de la Energía en Horas de Punta, publicado en la cuarta columna del Cuadro N° 10 de la presente Resolución, en céntimos de S/./kWh.
B146: PEMF0ef | C146: = | D146: Precio de la Energía en Horas Fuera de Punta, publicado en la quinta columna del Cuadro N° 10 de la presente Resolución, en céntimos de S/./kWh.
B147: PEMP1ef | C147: = | D147: Precio de la Energía en Horas de Punta señalado en PEMP0ef, actualizado, en céntimos de S/./kWh.
B148: PEMF1ef | C148: = | D148: Precio de la Energía en Horas Fuera de Punta señalado en PEMF0ef, actualizado, en céntimos de S/./kWh.
B149: FAPEM | C149: = | D149: Factor de Actualización del Precio de la Energía a Nivel Generación en las Barras de Referencia de Generación.

Sheet PBarra_Actualizado
A1: PRECIOS EN BARRA EN SUBESTACIONES BASE
A2: =+CONCATENATE("ACTUALIZACIÓN AL ",TEXT(Vigencia,"dd")," DE ",UPPER(TEXT(Vigencia,"MMMM"))," DE ",TEXT(Vigencia,"yyyy")) -> ACTUALIZACIÓN AL 01 DE MAYO DE 2012
B4: TENSIÓN | C4: PPM | D4: PEMP | E4: PEMF | F4: PCSPT | G4: CPSEE | I4: PPB | J4: PEBP | K4: PEBF | L4: Potencia | M4: Energía | N4: Promedio
B5: kV | C5: S/./kW-mes | D5: ctm. S/./kW.h | E5: ctm. S/./kW.h | F5: S/./kW-mes | G5: ctm. S/./kW.h | I5: S/./kW-mes | J5: ctm. S/./kW.h | K5: ctm. S/./kW.h | L5: S/./kW-mes | M5: ctm. S/./kW.h | N5: ctm. S/./kW.h
A6: SISTEMA ELÉCTRICO INTERCONECTADO NACIONAL
A7: Zorritos | B7: 220 | C7: =ResoluciónBarrayPNG!C7*FactoresActualizacion!$C$8 -> 17.52 | D7: =ResoluciónBarrayPNG!D7*FactoresActualizacion!$C$10 -> 12.49 | E7: =ResoluciónBarrayPNG!E7*FactoresActualizacion!$C$10 -> 11.54 | F7: =Transporte!F34 -> 9.12 | I7: =C7+F7 -> 26.64 | J7: 12.49 | K7: =E7+G7 -> 11.54 | L7: =+I7 -> 26.64 | M7: =+J7*0.19906178071275+K7*0.80093821928725 -> 11.72910869 | N7: =+I7/720/0.79751092507001*100+J7*0.19906178071275+K7*0.80093821928725 -> 16.36854357
A8: Talara | B8: 220 | C8: =ResoluciónBarrayPNG!C8*FactoresActualizacion!$C$8 -> 17.52 | D8: =ResoluciónBarrayPNG!D8*FactoresActualizacion!$C$10 -> 12.44 | E8: =ResoluciónBarrayPNG!E8*FactoresActualizacion!$C$10 -> 11.5 | F8: =+F7 -> 9.12 | I8: =C8+F8 -> 26.64 | J8: =D8+G8 -> 12.44 | K8: =E8+G8 -> 11.5 | L8: =+I8 -> 26.64 | M8: =+J8*0.19906178071275+K8*0.80093821928725 -> 11.68711807 | N8: =+I8/720/0.79751092507001*100+J8*0.19906178071275+K8*0.80093821928725 -> 16.32655295
A9: Piura Oeste | B9: 220 | C9: =ResoluciónBarrayPNG!C9*FactoresActualizacion!$C$8 -> 17.52 | D9: =ResoluciónBarrayPNG!D9*FactoresActualizacion!$C$10 -> 13.02 | E9: =ResoluciónBarrayPNG!E9*FactoresActualizacion!$C$10 -> 11.9 | F9: 9.12 | I9: 26.64 | J9: 13.02 | K9: 11.9 | L9: 26.64 | M9: 12.12294919 | N9: 16.76238407
A10: Chiclayo Oeste | B10: 220 | C10: =ResoluciónBarrayPNG!C10*FactoresActualizacion!$C$8 -> 17.52 | D10: =ResoluciónBarrayPNG!D10*FactoresActualizacion!$C$10 -> 12.85 | E10: =ResoluciónBarrayPNG!E10*FactoresActualizacion!$C$10 -> 11.74 | F10: 9.12 | I10: 26.64 | J10: 12.85 | K10: 11.74 | L10: 26.64 | M10: 11.96095858 | N10: 16.60039345
A11: Carhuaquero | B11: 220 | C11: =ResoluciónBarrayPNG!C11*FactoresActualizacion!$C$8 -> 17.52 | D11: =ResoluciónBarrayPNG!D11*FactoresActualizacion!$C$10 -> 12.64 | E11: =ResoluciónBarrayPNG!E11*FactoresActualizacion!$C$10 -> 11.6 | F11: 9.12 | I11: 26.64 | J11: 12.64 | K11: 11.6 | L11: 26.64 | M11: 11.80702425 | N11: 16.44645913
A12: Carhuaquero | B12: 138 | C12: =ResoluciónBarrayPNG!C12*FactoresActualizacion!$C$8 -> 17.52 | D12: =ResoluciónBarrayPNG!D12*FactoresActualizacion!$C$10 -> 12.64 | E12: =ResoluciónBarrayPNG!E12*FactoresActualizacion!$C$10 -> 11.6 | F12: 9.12 | I12: 26.64 | J12: 12.64 | K12: 11.6 | L12: 26.64 | M12: 11.80702425 | N12: 16.44645913
A13: Cutervo | B13: 138 | C13: =ResoluciónBarrayPNG!C13*FactoresActualizacion!$C$8 -> 17.52 | D13: =ResoluciónBarrayPNG!D13*FactoresActualizacion!$C$10 -> 12.64 | E13: =ResoluciónBarrayPNG!E13*FactoresActualizacion!$C$10 -> 11.6 | F13: 9.12 | I13: 26.64 | J13: 12.64 | K13: 11.6 | L13: 26.64 | M13: 11.80702425 | N13: 16.44645913
A14: Jaen | B14: 138 | C14: =ResoluciónBarrayPNG!C14*FactoresActualizacion!$C$8 -> 17.52 | D14: =ResoluciónBarrayPNG!D14*FactoresActualizacion!$C$10 -> 12.64 | E14: =ResoluciónBarrayPNG!E14*FactoresActualizacion!$C$10 -> 11.6 | F14: 9.12 | I14: 26.64 | J14: 12.64 | K14: 11.6 | L14: 26.64 | M14: 11.80702425 | N14: 16.44645913
A15: Guadalupe | B15: 220 | C15: =ResoluciónBarrayPNG!C15*FactoresActualizacion!$C$8 -> 17.52 | D15: =ResoluciónBarrayPNG!D15*FactoresActualizacion!$C$10 -> 12.7 | E15: =ResoluciónBarrayPNG!E15*FactoresActualizacion!$C$10 -> 11.6 | F15: 9.12 | I15: 26.64 | J15: 12.7 | K15: 11.6 | L15: 26.64 | M15: 11.81896796 | N15: 16.45840284
A16: Guadalupe | B16: 60 | C16: =ResoluciónBarrayPNG!C16*FactoresActualizacion!$C$8 -> 17.52 | D16: =ResoluciónBarrayPNG!D16*FactoresActualizacion!$C$10 -> 12.75 | E16: =ResoluciónBarrayPNG!E16*FactoresActualizacion!$C$10 -> 11.64 | F16: 9.12 | I16: 26.64 | J16: 12.75 | K16: 11.64 | L16: 26.64 | M16: 11.86095858 | N16: 16.50039345
A17: Cajamarca | B17: 220 | C17: =ResoluciónBarrayPNG!C17*FactoresActualizacion!$C$8 -> 17.52 | D17: =ResoluciónBarrayPNG!D17*FactoresActualizacion!$C$10 -> 12.35 | E17: =ResoluciónBarrayPNG!E17*FactoresActualizacion!$C$10 -> 11.33 | F17: 9.12 | I17: 26.64 | J17: 12.35 | K17: 11.33 | L17: 26.64 | M17: 11.53304302 | N17: 16.17247789
A18: Trujillo Norte | B18: 220 | C18: =ResoluciónBarrayPNG!C18*FactoresActualizacion!$C$8 -> 17.52 | D18: =ResoluciónBarrayPNG!D18*FactoresActualizacion!$C$10 -> 12.43 | E18: =ResoluciónBarrayPNG!E18*FactoresActualizacion!$C$10 -> 11.37 | F18: 9.12 | I18: 26.64 | J18: 12.43 | K18: 11.37 | L18: 26.64 | M18: 11.58100549 | N18: 16.22044036
A19: Chimbote 1 | B19: 220 | C19: =ResoluciónBarrayPNG!C19*FactoresActualizacion!$C$8 -> 17.52 | D19: =ResoluciónBarrayPNG!D19*FactoresActualizacion!$C$10 -> 12.27 | E19: =ResoluciónBarrayPNG!E19*FactoresActualizacion!$C$10 -> 11.24 | F19: 9.12 | I19: 26.64 | J19: 12.27 | K19: 11.24 | L19: 26.64 | M19: 11.44503363 | N19: 16.08446851
A20: Chimbote 1 | B20: 138 | C20: =ResoluciónBarrayPNG!C20*FactoresActualizacion!$C$8 -> 17.52 | D20: =ResoluciónBarrayPNG!D20*FactoresActualizacion!$C$10 -> 12.33 | E20: =ResoluciónBarrayPNG!E20*FactoresActualizacion!$C$10 -> 11.27 | F20: 9.12 | I20: 26.64 | J20: 12.33 | K20: 11.27 | L20: 26.64 | M20: 11.48100549 | N20: 16.12044036
A21: Paramonga Nueva | B21: 220 | C21: =ResoluciónBarrayPNG!C21*FactoresActualizacion!$C$8 -> 17.52 | D21: =ResoluciónBarrayPNG!D21*FactoresActualizacion!$C$10 -> 11.94 | E21: =ResoluciónBarrayPNG!E21*FactoresActualizacion!$C$10 -> 10.94 | F21: 9.12 | I21: 26.64 | J21: 11.94 | K21: 10.94 | L21: 26.64 | M21: 11.13906178 | N21: 15.77849666
A22: Paramonga Nueva | B22: 138 | C22: =ResoluciónBarrayPNG!C22*FactoresActualizacion!$C$8 -> 17.52 | D22: =ResoluciónBarrayPNG!D22*FactoresActualizacion!$C$10 -> 11.92 | E22: =ResoluciónBarrayPNG!E22*FactoresActualizacion!$C$10 -> 10.93 | F22: 9.12 | I22: 26.64 | J22: 11.92 | K22: 10.93 | L22: 26.64 | M22: 11.12707116 | N22: 15.76650604
A23: Paramonga Existente | B23: 138 | C23: =ResoluciónBarrayPNG!C23*FactoresActualizacion!$C$8 -> 17.52 | D23: =ResoluciónBarrayPNG!D23*FactoresActualizacion!$C$10 -> 11.89 | E23: =ResoluciónBarrayPNG!E23*FactoresActualizacion!$C$10 -> 10.92 | F23: 9.12 | I23: 26.64 | J23: 11.89 | K23: 10.92 | L23: 26.64 | M23: 11.11308993 | N23: 15.7525248
A24: Huacho | B24: 220 | C24: =ResoluciónBarrayPNG!C24*FactoresActualizacion!$C$8 -> 17.52 | D24: =ResoluciónBarrayPNG!D24*FactoresActualizacion!$C$10 -> 11.89 | E24: =ResoluciónBarrayPNG!E24*FactoresActualizacion!$C$10 -> 10.88 | F24: 9.12 | I24: 26.64 | J24: 11.89 | K24: 10.88 | L24: 26.64 | M24: 11.0810524 | N24: 15.72048727
A25: Zapallal | B25: 220 | C25: =ResoluciónBarrayPNG!C25*FactoresActualizacion!$C$8 -> 17.52 | D25: =ResoluciónBarrayPNG!D25*FactoresActualizacion!$C$10 -> 11.74 | E25: =ResoluciónBarrayPNG!E25*FactoresActualizacion!$C$10 -> 10.73 | F25: 9.12 | I25: 26.64 | J25: 11.74 | K25: 10.73 | L25: 26.64 | M25: 10.9310524 | N25: 15.57048727
A26: Ventanilla | B26: 220 | C26: =ResoluciónBarrayPNG!C26*FactoresActualizacion!$C$8 -> 17.52 | D26: =ResoluciónBarrayPNG!D26*FactoresActualizacion!$C$10 -> 11.73 | E26: =ResoluciónBarrayPNG!E26*FactoresActualizacion!$C$10 -> 10.72 | F26: 9.12 | I26: 26.64 | J26: 11.73 | K26: 10.72 | L26: 26.64 | M26: 10.9210524 | N26: 15.56048727
A27: Lima | B27: 220 | C27: =ResoluciónBarrayPNG!C27*FactoresActualizacion!$C$8 -> 17.52 | D27: =ResoluciónBarrayPNG!D27*FactoresActualizacion!$C$10 -> 11.73 | E27: =ResoluciónBarrayPNG!E27*FactoresActualizacion!$C$10 -> 10.7 | F27: 9.12 | I27: 26.64 | J27: 11.73 | K27: 10.7 | L27: 26.64 | M27: 10.90503363 | N27: 15.54446851
A28: Cantera | B28: 220 | C28: =ResoluciónBarrayPNG!C28*FactoresActualizacion!$C$8 -> 17.52 | D28: =ResoluciónBarrayPNG!D28*FactoresActualizacion!$C$10 -> 11.54 | E28: =ResoluciónBarrayPNG!E28*FactoresActualizacion!$C$10 -> 10.57 | F28: 9.12 | I28: 26.64 | J28: 11.54 | K28: 10.57 | L28: 26.64 | M28: 10.76308993 | N28: 15.4025248
A29: Chilca | B29: 220 | C29: =ResoluciónBarrayPNG!C29*FactoresActualizacion!$C$8 -> 17.52 | D29: =ResoluciónBarrayPNG!D29*FactoresActualizacion!$C$10 -> 11.43 | E29: =ResoluciónBarrayPNG!E29*FactoresActualizacion!$C$10 -> 10.46 | F29: 9.12 | I29: 26.64 | J29: 11.43 | K29: 10.46 | L29: 26.64 | M29: 10.65308993 | N29: 15.2925248
A30: Independencia | B30: 220 | C30: =ResoluciónBarrayPNG!C30*FactoresActualizacion!$C$8 -> 17.52 | D30: =ResoluciónBarrayPNG!D30*FactoresActualizacion!$C$10 -> 11.62 | E30: =ResoluciónBarrayPNG!E30*FactoresActualizacion!$C$10 -> 10.67 | F30: 9.12 | I30: 26.64 | J30: 11.62 | K30: 10.67 | L30: 26.64 | M30: 10.85910869 | N30: 15.49854357
A31: Ica | B31: 220 | C31: =ResoluciónBarrayPNG!C31*FactoresActualizacion!$C$8 -> 17.52 | D31: =ResoluciónBarrayPNG!D31*FactoresActualizacion!$C$10 -> 11.68 | E31: =ResoluciónBarrayPNG!E31*FactoresActualizacion!$C$10 -> 10.73 | F31: 9.12 | I31: 26.64 | J31: 11.68 | K31: 10.73 | L31: 26.64 | M31: 10.91910869 | N31: 15.55854357
A32: Marcona | B32: 220 | C32: =ResoluciónBarrayPNG!C32*FactoresActualizacion!$C$8 -> 17.52 | D32: =ResoluciónBarrayPNG!D32*FactoresActualizacion!$C$10 -> 11.87 | E32: =ResoluciónBarrayPNG!E32*FactoresActualizacion!$C$10 -> 10.87 | F32: 9.12 | I32: 26.64 | J32: 11.87 | K32: 10.87 | L32: 26.64 | M32: 11.06906178 | N32: 15.70849666
A33: Mantaro | B33: 220 | C33: =ResoluciónBarrayPNG!C33*FactoresActualizacion!$C$8 -> 17.52 | D33: =ResoluciónBarrayPNG!D33*FactoresActualizacion!$C$10 -> 11.47 | E33: =ResoluciónBarrayPNG!E33*FactoresActualizacion!$C$10 -> 10.49 | F33: 9.12 | I33: 26.64 | J33: 11.47 | K33: 10.49 | L33: 26.64 | M33: 10.68508055 | N33: 15.32451542
A34: Huayucachi | B34: 220 | C34: =ResoluciónBarrayPNG!C34*FactoresActualizacion!$C$8 -> 17.52 | D34: =ResoluciónBarrayPNG!D34*FactoresActualizacion!$C$10 -> 11.56 | E34: =ResoluciónBarrayPNG!E34*FactoresActualizacion!$C$10 -> 10.56 | F34: 9.12 | I34: 26.64 | J34: 11.56 | K34: 10.56 | L34: 26.64 | M34: 10.75906178 | N34: 15.39849666
A35: Pachachaca | B35: 220 | C35: =ResoluciónBarrayPNG!C35*FactoresActualizacion!$C$8 -> 17.52 | D35: =ResoluciónBarrayPNG!D35*FactoresActualizacion!$C$10 -> 11.58 | E35: =ResoluciónBarrayPNG!E35*FactoresActualizacion!$C$10 -> 10.6 | F35: 9.12 | I35: 26.64 | J35: 11.58 | K35: 10.6 | L35: 26.64 | M35: 10.79508055 | N35: 15.43451542
A36: Pomacocha | B36: 220 | C36: =ResoluciónBarrayPNG!C36*FactoresActualizacion!$C$8 -> 17.52 | D36: =ResoluciónBarrayPNG!D36*FactoresActualizacion!$C$10 -> 11.59 | E36: =ResoluciónBarrayPNG!E36*FactoresActualizacion!$C$10 -> 10.6 | F36: 9.12 | I36: 26.64 | J36: 11.59 | K36: 10.6 | L36: 26.64 | M36: 10.79707116 | N36: 15.43650604
A37: Huancavelica | B37: 220 | C37: =ResoluciónBarrayPNG!C37*FactoresActualizacion!$C$8 -> 17.52 | D37: =ResoluciónBarrayPNG!D37*FactoresActualizacion!$C$10 -> 11.52 | E37: =ResoluciónBarrayPNG!E37*FactoresActualizacion!$C$10 -> 10.55 | F37: =+F35 -> 9.12 | I37: 26.64 | J37: 11.52 | K37: 10.55 | L37: 26.64 | M37: 10.74308993 | N37: 15.3825248
A38: Callahuanca | B38: 220 | C38: =ResoluciónBarrayPNG!C38*FactoresActualizacion!$C$8 -> 17.52 | D38: =ResoluciónBarrayPNG!D38*FactoresActualizacion!$C$10 -> 11.64 | E38: =ResoluciónBarrayPNG!E38*FactoresActualizacion!$C$10 -> 10.65 | F38: 9.12 | I38: 26.64 | J38: 11.64 | K38: 10.65 | L38: 26.64 | M38: 10.84707116 | N38: 15.48650604
A39: Cajamarquilla | B39: 220 | C39: =ResoluciónBarrayPNG!C39*FactoresActualizacion!$C$8 -> 17.52 | D39: =ResoluciónBarrayPNG!D39*FactoresActualizacion!$C$10 -> 11.72 | E39: =ResoluciónBarrayPNG!E39*FactoresActualizacion!$C$10 -> 10.74 | F39: 9.12 | I39: 26.64 | J39: 11.72 | K39: 10.74 | L39: 26.64 | M39: 10.93508055 | N39: 15.57451542
A40: Huallanca | B40: 138 | C40: =ResoluciónBarrayPNG!C40*FactoresActualizacion!$C$8 -> 17.52 | D40: =ResoluciónBarrayPNG!D40*FactoresActualizacion!$C$10 -> 12.07 | E40: =ResoluciónBarrayPNG!E40*FactoresActualizacion!$C$10 -> 11.06 | F40: 9.12 | I40: 26.64 | J40: 12.07 | K40: 11.06 | L40: 26.64 | M40: 11.2610524 | N40: 15.90048727
A41: Vizcarra | B41: 220 | C41: =ResoluciónBarrayPNG!C41*FactoresActualizacion!$C$8 -> 17.52 | D41: =ResoluciónBarrayPNG!D41*FactoresActualizacion!$C$10 -> 11.87 | E41: =ResoluciónBarrayPNG!E41*FactoresActualizacion!$C$10 -> 10.88 | F41: 9.12 | I41: 26.64 | J41: 11.87 | K41: 10.88 | L41: 26.64 | M41: 11.07707116 | N41: 15.71650604
A42: Tingo María | B42: 220 | C42: =ResoluciónBarrayPNG!C42*FactoresActualizacion!$C$8 -> 17.52 | D42: =ResoluciónBarrayPNG!D42*FactoresActualizacion!$C$10 -> 11.98 | E42: =ResoluciónBarrayPNG!E42*FactoresActualizacion!$C$10 -> 10.97 | F42: 9.12 | I42: 26.64 | J42: 11.98 | K42: 10.97 | L42: 26.64 | M42: 11.1710524 | N42: 15.81048727
A43: Aguaytía | B43: 220 | C43: =ResoluciónBarrayPNG!C43*FactoresActualizacion!$C$8 -> 17.52 | D43: =ResoluciónBarrayPNG!D43*FactoresActualizacion!$C$10 -> 11.87 | E43: =ResoluciónBarrayPNG!E43*FactoresActualizacion!$C$10 -> 10.89 | F43: 9.12 | I43: 26.64 | J43: 11.87 | K43: 10.89 | L43: 26.64 | M43: 11.08508055 | N43: 15.72451542
A44: Aguaytía | B44: 138 | C44: =ResoluciónBarrayPNG!C44*FactoresActualizacion!$C$8 -> 17.52 | D44: =ResoluciónBarrayPNG!D44*FactoresActualizacion!$C$10 -> 11.91 | E44: =ResoluciónBarrayPNG!E44*FactoresActualizacion!$C$10 -> 10.92 | F44: 9.12 | I44: 26.64 | J44: 11.91 | K44: 10.92 | L44: 26.64 | M44: 11.11707116 | N44: 15.75650604
A45: Aguaytía | B45: 22.9 | C45: =ResoluciónBarrayPNG!C45*FactoresActualizacion!$C$8 -> 17.52 | D45: =ResoluciónBarrayPNG!D45*FactoresActualizacion!$C$10 -> 11.89 | E45: =ResoluciónBarrayPNG!E45*FactoresActualizacion!$C$10 -> 10.9 | F45: 9.12 | I45: 26.64 | J45: 11.89 | K45: 10.9 | L45: 26.64 | M45: 11.09707116 | N45: 15.73650604
A46: Pucallpa | B46: 138 | C46: =ResoluciónBarrayPNG!C46*FactoresActualizacion!$C$8 -> 17.52 | D46: =ResoluciónBarrayPNG!D46*FactoresActualizacion!$C$10 -> 12.26 | E46: =ResoluciónBarrayPNG!E46*FactoresActualizacion!$C$10 -> 11.16 | F46: 9.12 | I46: 26.64 | J46: 12.26 | K46: 11.16 | L46: 26.64 | M46: 11.37896796 | N46: 16.01840284
A47: Pucallpa | B47: 60 | C47: =ResoluciónBarrayPNG!C47*FactoresActualizacion!$C$8 -> 17.52 | D47: =ResoluciónBarrayPNG!D47*FactoresActualizacion!$C$10 -> 12.28 | E47: =ResoluciónBarrayPNG!E47*FactoresActualizacion!$C$10 -> 11.18 | F47: 9.12 | G47: =Transporte!F138 -> 1.41926385 | I47: 26.64 | J47: 13.69926385 | K47: 12.59926385 | L47: 26.64 | M47: 12.81823181 | N47: 17.45766669
A48: Aucayacu | B48: 138 | C48: =ResoluciónBarrayPNG!C48*FactoresActualizacion!$C$8 -> 17.52 | D48: =ResoluciónBarrayPNG!D48*FactoresActualizacion!$C$10 -> 16.49 | E48: =ResoluciónBarrayPNG!E48*FactoresActualizacion!$C$10 -> 11.37 | F48: 9.12 | I48: 26.64 | J48: 16.49 | K48: 11.37 | L48: 26.64 | M48: 12.38919632 | N48: 17.02863119
A49: Tocache | B49: 138 | C49: =ResoluciónBarrayPNG!C49*FactoresActualizacion!$C$8 -> 17.52 | D49: =ResoluciónBarrayPNG!D49*FactoresActualizacion!$C$10 -> 18.3 | E49: =ResoluciónBarrayPNG!E49*FactoresActualizacion!$C$10 -> 12.12 | F49: 9.12 | I49: 26.64 | J49: 18.3 | K49: 12.12 | L49: 26.64 | M49: 13.3502018 | N49: 17.98963668
A50: Tingo María | B50: 138 | C50: =ResoluciónBarrayPNG!C50*FactoresActualizacion!$C$8 -> 17.52 | D50: =ResoluciónBarrayPNG!D50*FactoresActualizacion!$C$10 -> 12.24 | E50: =ResoluciónBarrayPNG!E50*FactoresActualizacion!$C$10 -> 11.26 | F50: 9.12 | I50: 26.64 | J50: 12.24 | K50: 11.26 | L50: 26.64 | M50: 11.45508055 | N50: 16.09451542
A51: Huánuco | B51: 138 | C51: =ResoluciónBarrayPNG!C51*FactoresActualizacion!$C$8 -> 17.52 | D51: =ResoluciónBarrayPNG!D51*FactoresActualizacion!$C$10 -> 12.27 | E51: =ResoluciónBarrayPNG!E51*FactoresActualizacion!$C$10 -> 11.26 | F51: 9.12 | I51: 26.64 | J51: 12.27 | K51: 11.26 | L51: 26.64 | M51: 11.4610524 | N51: 16.10048727
A52: Paragsha II | B52: 138 | C52: =ResoluciónBarrayPNG!C52*FactoresActualizacion!$C$8 -> 17.52 | D52: =ResoluciónBarrayPNG!D52*FactoresActualizacion!$C$10 -> 12.19 | E52: =ResoluciónBarrayPNG!E52*FactoresActualizacion!$C$10 -> 11.17 | F52: 9.12 | I52: 26.64 | J52: 12.19 | K52: 11.17 | L52: 26.64 | M52: 11.37304302 | N52: 16.01247789
A53: Paragsha | B53: 220 | C53: =ResoluciónBarrayPNG!C53*FactoresActualizacion!$C$8 -> 17.52 | D53: =ResoluciónBarrayPNG!D53*FactoresActualizacion!$C$10 -> 11.64 | E53: =ResoluciónBarrayPNG!E53*FactoresActualizacion!$C$10 -> 10.69 | F53: 9.12 | I53: 26.64 | J53: 11.64 | K53: 10.69 | L53: 26.64 | M53: 10.87910869 | N53: 15.51854357
A54: Yaupi | B54: 138 | C54: =ResoluciónBarrayPNG!C54*FactoresActualizacion!$C$8 -> 17.52 | D54: =ResoluciónBarrayPNG!D54*FactoresActualizacion!$C$10 -> 11.37 | E54: =ResoluciónBarrayPNG!E54*FactoresActualizacion!$C$10 -> 10.45 | F54: 9.12 | I54: 26.64 | J54: 11.37 | K54: 10.45 | L54: 26.64 | M54: 10.63313684 | N54: 15.27257171
A55: Yuncan | B55: 138 | C55: =ResoluciónBarrayPNG!C55*FactoresActualizacion!$C$8 -> 17.52 | D55: =ResoluciónBarrayPNG!D55*FactoresActualizacion!$C$10 -> 11.37 | E55: =ResoluciónBarrayPNG!E55*FactoresActualizacion!$C$10 -> 10.45 | F55: 9.12 | I55: 26.64 | J55: 11.37 | K55: 10.45 | L55: 26.64 | M55: 10.63313684 | N55: 15.27257171
A56: Yuncan | B56: 220 | C56: =ResoluciónBarrayPNG!C56*FactoresActualizacion!$C$8 -> 17.52 | D56: =ResoluciónBarrayPNG!D56*FactoresActualizacion!$C$10 -> 11.41 | E56: =ResoluciónBarrayPNG!E56*FactoresActualizacion!$C$10 -> 10.49 | F56: 9.12 | I56: 26.64 | J56: 11.41 | K56: 10.49 | L56: 26.64 | M56: 10.67313684 | N56: 15.31257171
A57: Oroya Nueva | B57: 220 | C57: =ResoluciónBarrayPNG!C57*FactoresActualizacion!$C$8 -> 17.52 | D57: =ResoluciónBarrayPNG!D57*FactoresActualizacion!$C$10 -> 11.66 | E57: =ResoluciónBarrayPNG!E57*FactoresActualizacion!$C$10 -> 10.68 | F57: 9.12 | I57: 26.64 | J57: 11.66 | K57: 10.68 | L57: 26.64 | M57: 10.87508055 | N57: 15.51451542
A58: Oroya Nueva | B58: 138 | C58: =ResoluciónBarrayPNG!C58*FactoresActualizacion!$C$8 -> 17.52 | D58: =ResoluciónBarrayPNG!D58*FactoresActualizacion!$C$10 -> 11.81 | E58: =ResoluciónBarrayPNG!E58*FactoresActualizacion!$C$10 -> 10.86 | F58: 9.12 | I58: 26.64 | J58: 11.81 | K58: 10.86 | L58: 26.64 | M58: 11.04910869 | N58: 15.68854357
A59: Oroya Nueva | B59: 50 | C59: =ResoluciónBarrayPNG!C59*FactoresActualizacion!$C$8 -> 17.52 | D59: =ResoluciónBarrayPNG!D59*FactoresActualizacion!$C$10 -> 12.26 | E59: =ResoluciónBarrayPNG!E59*FactoresActualizacion!$C$10 -> 11.23 | F59: 9.12 | I59: 26.64 | J59: 12.26 | K59: 11.23 | L59: 26.64 | M59: 11.43503363 | N59: 16.07446851
A60: Carhuamayo | B60: 138 | C60: =ResoluciónBarrayPNG!C60*FactoresActualizacion!$C$8 -> 17.52 | D60: =ResoluciónBarrayPNG!D60*FactoresActualizacion!$C$10 -> 10.97 | E60: =ResoluciónBarrayPNG!E60*FactoresActualizacion!$C$10 -> 10.24 | F60: 9.12 | I60: 26.64 | J60: 10.97 | K60: 10.24 | L60: 26.64 | M60: 10.3853151 | N60: 15.02474998
A61: Carhuamayo Nueva | B61: 220 | C61: =ResoluciónBarrayPNG!C61*FactoresActualizacion!$C$8 -> 17.52 | D61: =ResoluciónBarrayPNG!D61*FactoresActualizacion!$C$10 -> 11.48 | E61: =ResoluciónBarrayPNG!E61*FactoresActualizacion!$C$10 -> 10.55 | F61: 9.12 | I61: 26.64 | J61: 11.48 | K61: 10.55 | L61: 26.64 | M61: 10.73512746 | N61: 15.37456233
A62: Caripa | B62: 138 | C62: =ResoluciónBarrayPNG!C62*FactoresActualizacion!$C$8 -> 17.52 | D62: =ResoluciónBarrayPNG!D62*FactoresActualizacion!$C$10 -> 11.53 | E62: =ResoluciónBarrayPNG!E62*FactoresActualizacion!$C$10 -> 10.65 | F62: 9.12 | I62: 26.64 | J62: 11.53 | K62: 10.65 | L62: 26.64 | M62: 10.82517437 | N62: 15.46460924
A63: Desierto | B63: 220 | C63: =ResoluciónBarrayPNG!C63*FactoresActualizacion!$C$8 -> 17.52 | D63: =ResoluciónBarrayPNG!D63*FactoresActualizacion!$C$10 -> 11.56 | E63: =ResoluciónBarrayPNG!E63*FactoresActualizacion!$C$10 -> 10.6 | F63: 9.12 | I63: 26.64 | J63: 11.56 | K63: 10.6 | L63: 26.64 | M63: 10.79109931 | N63: 15.43053419
A64: Condorcocha | B64: 138 | C64: =ResoluciónBarrayPNG!C64*FactoresActualizacion!$C$8 -> 17.52 | D64: =ResoluciónBarrayPNG!D64*FactoresActualizacion!$C$10 -> 11.55 | E64: =ResoluciónBarrayPNG!E64*FactoresActualizacion!$C$10 -> 10.67 | F64: 9.12 | I64: 26.64 | J64: 11.55 | K64: 10.67 | L64: 26.64 | M64: 10.84517437 | N64: 15.48460924
A65: Condorcocha | B65: 44 | C65: =ResoluciónBarrayPNG!C65*FactoresActualizacion!$C$8 -> 17.52 | D65: =ResoluciónBarrayPNG!D65*FactoresActualizacion!$C$10 -> 11.55 | E65: =ResoluciónBarrayPNG!E65*FactoresActualizacion!$C$10 -> 10.67 | F65: 9.12 | I65: 26.64 | J65: 11.55 | K65: 10.67 | L65: 26.64 | M65: 10.84517437 | N65: 15.48460924
A66: Machupicchu | B66: 138 | C66: =ResoluciónBarrayPNG!C66*FactoresActualizacion!$C$8 -> 17.52 | D66: =ResoluciónBarrayPNG!D66*FactoresActualizacion!$C$10 -> 13.05 | E66: =ResoluciónBarrayPNG!E66*FactoresActualizacion!$C$10 -> 11.33 | F66: 9.12 | I66: 26.64 | J66: 13.05 | K66: 11.33 | L66: 26.64 | M66: 11.67238626 | N66: 16.31182114
A67: Cachimayo | B67: 138 | C67: =ResoluciónBarrayPNG!C67*FactoresActualizacion!$C$8 -> 17.52 | D67: =ResoluciónBarrayPNG!D67*FactoresActualizacion!$C$10 -> 13.45 | E67: =ResoluciónBarrayPNG!E67*FactoresActualizacion!$C$10 -> 11.68 | F67: 9.12 | I67: 26.64 | J67: 13.45 | K67: 11.68 | L67: 26.64 | M67: 12.03233935 | N67: 16.67177423
A68: Cusco | B68: 138 | C68: =ResoluciónBarrayPNG!C68*FactoresActualizacion!$C$8 -> 17.52 | D68: =ResoluciónBarrayPNG!D68*FactoresActualizacion!$C$10 -> 13.43 | E68: =ResoluciónBarrayPNG!E68*FactoresActualizacion!$C$10 -> 11.68 | F68: 9.12 | I68: 26.64 | J68: 13.43 | K68: 11.68 | L68: 26.64 | M68: 12.02835812 | N68: 16.66779299
A69: Combapata | B69: 138 | C69: =ResoluciónBarrayPNG!C69*FactoresActualizacion!$C$8 -> 17.52 | D69: =ResoluciónBarrayPNG!D69*FactoresActualizacion!$C$10 -> 13.4 | E69: =ResoluciónBarrayPNG!E69*FactoresActualizacion!$C$10 -> 11.81 | F69: 9.12 | I69: 26.64 | J69: 13.4 | K69: 11.81 | L69: 26.64 | M69: 12.12650823 | N69: 16.76594311
A70: Tintaya | B70: 138 | C70: =ResoluciónBarrayPNG!C70*FactoresActualizacion!$C$8 -> 17.52 | D70: =ResoluciónBarrayPNG!D70*FactoresActualizacion!$C$10 -> 13.32 | E70: =ResoluciónBarrayPNG!E70*FactoresActualizacion!$C$10 -> 11.94 | F70: 9.12 | I70: 26.64 | J70: 13.32 | K70: 11.94 | L70: 26.64 | M70: 12.21470526 | N70: 16.85414013
A71: Ayaviri | B71: 138 | C71: =ResoluciónBarrayPNG!C71*FactoresActualizacion!$C$8 -> 17.52 | D71: =ResoluciónBarrayPNG!D71*FactoresActualizacion!$C$10 -> 12.94 | E71: =ResoluciónBarrayPNG!E71*FactoresActualizacion!$C$10 -> 11.67 | F71: 9.12 | I71: 26.64 | J71: 12.94 | K71: 11.67 | L71: 26.64 | M71: 11.92280846 | N71: 16.56224334
A72: Azángaro | B72: 138 | C72: =ResoluciónBarrayPNG!C72*FactoresActualizacion!$C$8 -> 17.52 | D72: =ResoluciónBarrayPNG!D72*FactoresActualizacion!$C$10 -> 12.72 | E72: =ResoluciónBarrayPNG!E72*FactoresActualizacion!$C$10 -> 11.31 | F72: =+F71 -> 9.12 | I72: =C72+F72 -> 26.64 | J72: =D72+G72 -> 12.72 | K72: =E72+G72 -> 11.31 | L72: =+I72 -> 26.64 | M72: =+J72*0.19906178071275+K72*0.80093821928725 -> 11.59067711 | N72: =+I72/720/0.79751092507001*100+J72*0.19906178071275+K72*0.80093821928725 -> 16.23011199
A73: San Gaban | B73: 138 | C73: =ResoluciónBarrayPNG!C73*FactoresActualizacion!$C$8 -> 17.52 | D73: =ResoluciónBarrayPNG!D73*FactoresActualizacion!$C$10 -> 12.72 | E73: =ResoluciónBarrayPNG!E73*FactoresActualizacion!$C$10 -> 11.31 | F73: 9.12 | I73: 26.64 | J73: 12.72 | K73: 11.31 | L73: 26.64 | M73: 11.59067711 | N73: 16.23011199
A74: Mazuco | B74: 138 | C74: =ResoluciónBarrayPNG!C74*FactoresActualizacion!$C$8 -> 17.52 | D74: =ResoluciónBarrayPNG!D74*FactoresActualizacion!$C$10 -> 12.81 | E74: =ResoluciónBarrayPNG!E74*FactoresActualizacion!$C$10 -> 11.36 | F74: 9.12 | I74: 26.64 | J74: 12.81 | K74: 11.36 | L74: 26.64 | M74: 11.64863958 | N74: 16.28807446
A75: Puerto Maldonado | B75: 138 | C75: =ResoluciónBarrayPNG!C75*FactoresActualizacion!$C$8 -> 17.52 | D75: =ResoluciónBarrayPNG!D75*FactoresActualizacion!$C$10 -> 13 | E75: =ResoluciónBarrayPNG!E75*FactoresActualizacion!$C$10 -> 11.47 | F75: 9.12 | I75: 26.64 | J75: 13 | K75: 11.47 | L75: 26.64 | M75: 11.77456452 | N75: 16.4139994
A76: Juliaca | B76: 138 | C76: =ResoluciónBarrayPNG!C76*FactoresActualizacion!$C$8 -> 17.52 | D76: =ResoluciónBarrayPNG!D76*FactoresActualizacion!$C$10 -> 13.03 | E76: =ResoluciónBarrayPNG!E76*FactoresActualizacion!$C$10 -> 11.67 | F76: 9.12 | I76: 26.64 | J76: 13.03 | K76: 11.67 | L76: 26.64 | M76: 11.94072402 | N76: 16.5801589
A77: Puno | B77: 138 | C77: =ResoluciónBarrayPNG!C77*FactoresActualizacion!$C$8 -> 17.52 | D77: =ResoluciónBarrayPNG!D77*FactoresActualizacion!$C$10 -> 13.08 | E77: =ResoluciónBarrayPNG!E77*FactoresActualizacion!$C$10 -> 11.79 | F77: 9.12 | I77: 26.64 | J77: 13.08 | K77: 11.79 | L77: 26.64 | M77: 12.0467897 | N77: 16.68622457
A78: Puno | B78: 220 | C78: =ResoluciónBarrayPNG!C78*FactoresActualizacion!$C$8 -> 17.52 | D78: =ResoluciónBarrayPNG!D78*FactoresActualizacion!$C$10 -> 13.1 | E78: =ResoluciónBarrayPNG!E78*FactoresActualizacion!$C$10 -> 11.8 | F78: 9.12 | I78: 26.64 | J78: 13.1 | K78: 11.8 | L78: 26.64 | M78: 12.05878031 | N78: 16.69821519
A79: Callalli | B79: 138 | C79: =ResoluciónBarrayPNG!C79*FactoresActualizacion!$C$8 -> 17.52 | D79: =ResoluciónBarrayPNG!D79*FactoresActualizacion!$C$10 -> 13.15 | E79: =ResoluciónBarrayPNG!E79*FactoresActualizacion!$C$10 -> 11.84 | F79: 9.12 | I79: 26.64 | J79: 13.15 | K79: 11.84 | L79: 26.64 | M79: 12.10077093 | N79: 16.74020581
A80: Santuario | B80: 138 | C80: =ResoluciónBarrayPNG!C80*FactoresActualizacion!$C$8 -> 17.52 | D80: =ResoluciónBarrayPNG!D80*FactoresActualizacion!$C$10 -> 12.91 | E80: =ResoluciónBarrayPNG!E80*FactoresActualizacion!$C$10 -> 11.7 | F80: 9.12 | I80: 26.64 | J80: 12.91 | K80: 11.7 | L80: 26.64 | M80: 11.94086475 | N80: 16.58029963
A81: Arequipa | B81: 138 | C81: =ResoluciónBarrayPNG!C81*FactoresActualizacion!$C$8 -> 17.52 | D81: =ResoluciónBarrayPNG!D81*FactoresActualizacion!$C$10 -> 12.97 | E81: =ResoluciónBarrayPNG!E81*FactoresActualizacion!$C$10 -> 11.75 | F81: 9.12 | I81: 26.64 | J81: 12.97 | K81: 11.75 | L81: 26.64 | M81: 11.99285537 | N81: 16.63229025
A82: Socabaya | B82: 220 | C82: =ResoluciónBarrayPNG!C82*FactoresActualizacion!$C$8 -> 17.52 | D82: =ResoluciónBarrayPNG!D82*FactoresActualizacion!$C$10 -> 12.96 | E82: =ResoluciónBarrayPNG!E82*FactoresActualizacion!$C$10 -> 11.74 | F82: 9.12 | I82: 26.64 | J82: 12.96 | K82: 11.74 | L82: 26.64 | M82: 11.98285537 | N82: 16.62229025
A83: Cerro Verde | B83: 138 | C83: =ResoluciónBarrayPNG!C83*FactoresActualizacion!$C$8 -> 17.52 | D83: =ResoluciónBarrayPNG!D83*FactoresActualizacion!$C$10 -> 13 | E83: =ResoluciónBarrayPNG!E83*FactoresActualizacion!$C$10 -> 11.78 | F83: 9.12 | I83: 26.64 | J83: 13 | K83: 11.78 | L83: 26.64 | M83: 12.02285537 | N83: 16.66229025
A84: Repartición | B84: 138 | C84: =ResoluciónBarrayPNG!C84*FactoresActualizacion!$C$8 -> 17.52 | D84: =ResoluciónBarrayPNG!D84*FactoresActualizacion!$C$10 -> 13.05 | E84: =ResoluciónBarrayPNG!E84*FactoresActualizacion!$C$10 -> 11.8 | F84: 9.12 | I84: 26.64 | J84: 13.05 | K84: 11.8 | L84: 26.64 | M84: 12.04882723 | N84: 16.6882621
A85: Mollendo | B85: 138 | C85: =ResoluciónBarrayPNG!C85*FactoresActualizacion!$C$8 -> 17.52 | D85: =ResoluciónBarrayPNG!D85*FactoresActualizacion!$C$10 -> 13.09 | E85: =ResoluciónBarrayPNG!E85*FactoresActualizacion!$C$10 -> 11.82 | F85: 9.12 | I85: 26.64 | J85: 13.09 | K85: 11.82 | L85: 26.64 | M85: 12.07280846 | N85: 16.71224334
A86: Montalvo | B86: 220 | C86: =ResoluciónBarrayPNG!C86*FactoresActualizacion!$C$8 -> 17.52 | D86: =ResoluciónBarrayPNG!D86*FactoresActualizacion!$C$10 -> 13.12 | E86: =ResoluciónBarrayPNG!E86*FactoresActualizacion!$C$10 -> 11.87 | F86: 9.12 | I86: 26.64 | J86: 13.12 | K86: 11.87 | L86: 26.64 | M86: 12.11882723 | N86: 16.7582621
A87: Montalvo | B87: 138 | C87: =ResoluciónBarrayPNG!C87*FactoresActualizacion!$C$8 -> 17.52 | D87: =ResoluciónBarrayPNG!D87*FactoresActualizacion!$C$10 -> 13.13 | E87: =ResoluciónBarrayPNG!E87*FactoresActualizacion!$C$10 -> 11.88 | F87: 9.12 | I87: 26.64 | J87: 13.13 | K87: 11.88 | L87: 26.64 | M87: 12.12882723 | N87: 16.7682621
A88: Ilo ELP | B88: 138 | C88: =ResoluciónBarrayPNG!C88*FactoresActualizacion!$C$8 -> 17.52 | D88: =ResoluciónBarrayPNG!D88*FactoresActualizacion!$C$10 -> 13.3 | E88: =ResoluciónBarrayPNG!E88*FactoresActualizacion!$C$10 -> 12.03 | F88: 9.12 | I88: 26.64 | J88: 13.3 | K88: 12.03 | L88: 26.64 | M88: 12.28280846 | N88: 16.92224334
A89: Botiflaca | B89: 138 | C89: =ResoluciónBarrayPNG!C89*FactoresActualizacion!$C$8 -> 17.52 | D89: =ResoluciónBarrayPNG!D89*FactoresActualizacion!$C$10 -> 13.2 | E89: =ResoluciónBarrayPNG!E89*FactoresActualizacion!$C$10 -> 11.95 | F89: 9.12 | I89: 26.64 | J89: 13.2 | K89: 11.95 | L89: 26.64 | M89: 12.19882723 | N89: 16.8382621
A90: Toquepala | B90: 138 | C90: =ResoluciónBarrayPNG!C90*FactoresActualizacion!$C$8 -> 17.52 | D90: =ResoluciónBarrayPNG!D90*FactoresActualizacion!$C$10 -> 13.24 | E90: =ResoluciónBarrayPNG!E90*FactoresActualizacion!$C$10 -> 12 | F90: 9.12 | I90: 26.64 | J90: 13.24 | K90: 12 | L90: 26.64 | M90: 12.24683661 | N90: 16.88627148
A91: Aricota | B91: 138 | C91: =ResoluciónBarrayPNG!C91*FactoresActualizacion!$C$8 -> 17.52 | D91: =ResoluciónBarrayPNG!D91*FactoresActualizacion!$C$10 -> 13.13 | E91: =ResoluciónBarrayPNG!E91*FactoresActualizacion!$C$10 -> 11.96 | F91: 9.12 | I91: 26.64 | J91: 13.13 | K91: 11.96 | L91: 26.64 | M91: 12.19290228 | N91: 16.83233716
A92: Aricota | B92: 66 | C92: =ResoluciónBarrayPNG!C92*FactoresActualizacion!$C$8 -> 17.52 | D92: =ResoluciónBarrayPNG!D92*FactoresActualizacion!$C$10 -> 13.08 | E92: =ResoluciónBarrayPNG!E92*FactoresActualizacion!$C$10 -> 11.94 | F92: 9.12 | G92: =Transporte!F137 -> 0.39494085 | I92: 26.64 | J92: 13.47494085 | K92: 12.33494085 | L92: 26.64 | M92: 12.56187128 | N92: 17.20130616
A93: Tacna (Los Héroes) | B93: 220 | C93: =ResoluciónBarrayPNG!C93*FactoresActualizacion!$C$8 -> 17.52 | D93: =ResoluciónBarrayPNG!D93*FactoresActualizacion!$C$10 -> 13.22 | E93: =ResoluciónBarrayPNG!E93*FactoresActualizacion!$C$10 -> 11.93 | F93: 9.12 | I93: 26.64 | J93: 13.22 | K93: 11.93 | L93: 26.64 | M93: 12.1867897 | N93: 16.82622457
A94: Tacna (Los Héroes) | B94: 66 | C94: =ResoluciónBarrayPNG!C94*FactoresActualizacion!$C$8 -> 17.52 | D94: =ResoluciónBarrayPNG!D94*FactoresActualizacion!$C$10 -> 13.32 | E94: =ResoluciónBarrayPNG!E94*FactoresActualizacion!$C$10 -> 11.98 | F94: 9.12 | G94: =Transporte!F137 -> 0.39494085 | I94: 26.64 | J94: 13.71494085 | K94: 12.37494085 | L94: 26.64 | M94: 12.64168364 | N94: 17.28111851
A95: La Nina (*) | B95: 220 | C95: =ResoluciónBarrayPNG!C95*FactoresActualizacion!$C$8 -> 17.52 | D95: =ResoluciónBarrayPNG!D95*FactoresActualizacion!$C$10 -> 12.93538462 | E95: =ResoluciónBarrayPNG!E95*FactoresActualizacion!$C$10 -> 11.82036199 | F95: 9.12 | I95: 26.64 | J95: 12.93538462 | K95: 11.82036199 | L95: 26.64 | M95: 12.04232038 | N95: 16.68175526
A96: SISTEMAS AISLADOS
A97: Adinelsa | B97: MT | C97: =ResoluciónBarrayPNG!C97*FactoresActualizacion!$C11 -> 17.28 | D97: =ResoluciónBarrayPNG!D97*FactoresActualizacion!$C11 -> 22.95 | E97: =ResoluciónBarrayPNG!E97*FactoresActualizacion!$C11 -> 22.95 | I97: =+C97 -> 17.28 | J97: 22.95 | K97: 22.95 | L97: =+I97 -> 17.28 | M97: =+J97*0.35+K97*0.65 -> 22.95 | N97: =+I97/720/0.55*100+J97*0.35+K97*0.65 -> 27.31363636
A98: Chavimochic | B98: MT | C98: =ResoluciónBarrayPNG!C98*FactoresActualizacion!$C12 -> 17.28 | D98: =ResoluciónBarrayPNG!D98*FactoresActualizacion!$C12 -> 22.95 | E98: =ResoluciónBarrayPNG!E98*FactoresActualizacion!$C12 -> 22.95 | I98: =+C98 -> 17.28 | J98: =+D98 -> 22.95 | K98: =+E98 -> 22.95 | L98: =+I98 -> 17.28 | M98: =+J98*0.35+K98*0.65 -> 22.95 | N98: =+I98/720/0.55*100+J98*0.35+K98*0.65 -> 27.31363636
A99: Edelnor | B99: MT | C99: =ResoluciónBarrayPNG!C99*FactoresActualizacion!$C13 -> 17.28 | D99: =ResoluciónBarrayPNG!D99*FactoresActualizacion!$C13 -> 22.95 | E99: =ResoluciónBarrayPNG!E99*FactoresActualizacion!$C13 -> 22.95 | I99: 17.28 | J99: 22.95 | K99: 22.95 | L99: 17.28 | M99: 22.95 | N99: 27.31363636
A100: Eilhicha (**) | B100: MT | C100: =ResoluciónBarrayPNG!C100*FactoresActualizacion!$C14 -> 17.28 | D100: =ResoluciónBarrayPNG!D100*FactoresActualizacion!$C14 -> 22.95 | E100: =ResoluciónBarrayPNG!E100*FactoresActualizacion!$C14 -> 22.95 | I100: =+C100 -> 17.28 | J100: =+D100 -> 22.95 | K100: =+E100 -> 22.95 | L100: =+I100 -> 17.28 | M100: =+J100*0.35+K100*0.65 -> 22.95 | N100: =+I100/720/0.55*100+J100*0.35+K100*0.65 -> 27.31363636
A101: Electro Oriente | B101: MT | C101: =ResoluciónBarrayPNG!C101*FactoresActualizacion!$C15 -> 17.28 | D101: =ResoluciónBarrayPNG!D101*FactoresActualizacion!$C15 -> 59.11 | E101: =ResoluciónBarrayPNG!E101*FactoresActualizacion!$C15 -> 59.11 | I101: 17.28 | J101: 59.11 | K101: 59.11 | L101: 17.28 | M101: 59.11 | N101: 63.47363636
A102: Electro Sur Este | B102: MT | C102: =ResoluciónBarrayPNG!C102*FactoresActualizacion!$C16 -> 17.28 | D102: =ResoluciónBarrayPNG!D102*FactoresActualizacion!$C16 -> 86.47 | E102: =ResoluciónBarrayPNG!E102*FactoresActualizacion!$C16 -> 86.47 | I102: 17.28 | J102: 86.47 | K102: 86.47 | L102: 17.28 | M102: 86.47 | N102: 90.83363636
A103: Electro Ucayali | B103: MT | C103: =ResoluciónBarrayPNG!C103*FactoresActualizacion!$C17 -> 17.28 | D103: =ResoluciónBarrayPNG!D103*FactoresActualizacion!$C17 -> 22.95 | E103: =ResoluciónBarrayPNG!E103*FactoresActualizacion!$C17 -> 22.95 | I103: 17.28 | J103: 22.95 | K103: 22.95 | L103: 17.28 | M103: 22.95 | N103: 27.31363636
A104: Electrocentro | B104: MT | C104: =ResoluciónBarrayPNG!C104*FactoresActualizacion!$C18 -> 17.28 | D104: =ResoluciónBarrayPNG!D104*FactoresActualizacion!$C18 -> 22.95 | E104: =ResoluciónBarrayPNG!E104*FactoresActualizacion!$C18 -> 22.95 | I104: 17.28 | J104: 22.95 | K104: 22.95 | L104: 17.28 | M104: 22.95 | N104: 27.31363636
A105: Electronorte | B105: MT | C105: =ResoluciónBarrayPNG!C105*FactoresActualizacion!$C19 -> 17.28 | D105: =ResoluciónBarrayPNG!D105*FactoresActualizacion!$C19 -> 27.21 | E105: =ResoluciónBarrayPNG!E105*FactoresActualizacion!$C19 -> 27.21 | I105: 17.28 | J105: 27.21 | K105: 27.21 | L105: 17.28 | M105: 27.21 | N105: 31.57363636
A106: Hidrandina | B106: MT | C106: =ResoluciónBarrayPNG!C106*FactoresActualizacion!$C20 -> 17.28 | D106: =ResoluciónBarrayPNG!D106*FactoresActualizacion!$C20 -> 26.34 | E106: =ResoluciónBarrayPNG!E106*FactoresActualizacion!$C20 -> 26.34 | I106: 17.28 | J106: 26.34 | K106: 26.34 | L106: 17.28 | M106: 26.34 | N106: 30.70363636
A107: Seal | B107: MT | C107: =ResoluciónBarrayPNG!C107*FactoresActualizacion!$C21 -> 17.28 | D107: =ResoluciónBarrayPNG!D107*FactoresActualizacion!$C21 -> 56.24 | E107: =ResoluciónBarrayPNG!E107*FactoresActualizacion!$C21 -> 56.24 | I107: 17.28 | J107: 56.24 | K107: 56.24 | L107: 17.28 | M107: 56.24 | N107: 60.60363636
A108: (*) Se requiere la necesidad de su existencia en el 01/05/2012 como precio promedio de las barras Piura Oeste y Chiclayo Oeste donde el ponderador es la distancia de las líneas que enlazan dichas barras con La Nina.
A109: (**) Se requiere su existencia en el 01/05/2012 como precio idéntico de la Barra de Referencia de Adinelsa - Aislado (no afecto a variación de precios de combustibles).
A110: PRECIOS A NIVEL GENERACIÓN Y PRECIOS EFECTIVOS
A111: =+CONCATENATE("ACTUALIZACIÓN AL ",TEXT(Vigencia,"dd")," DE ",UPPER(TEXT(Vigencia,"MMMM"))," DE ",TEXT(Vigencia,"yyyy")) -> ACTUALIZACIÓN AL 01 DE MAYO DE 2012
B113: TENSIÓN | C113: PPM | D113: PEMP | E113: PEMF | F113: PCSPT | G113: CPSEE | I113: PPB | J113: PEBP | K113: PEBF | L113: Potencia | M113: Energia | N113: Promedio
B114: kV | C114: S/./kW-mes | D114: ctm. S/./kW.h | E114: ctm. S/./kW.h | F114: S/./kW-mes | G114: ctm. S/./kW.h | I114: S/./kW-mes | J114: ctm. S/./kW.h | K114: ctm. S/./kW.h | L114: ctm. S/./kW.h | M114: ctm. S/./kW.h | N114: ctm. S/./kW.h
A115: SISTEMA ELÉCTRICO INTERCONECTADO NACIONAL
A116: Zorritos | B116: 220 | C116: =ResoluciónBarrayPNG!C116*FA_PNG -> 16.79 | D116: =ResoluciónBarrayPNG!D116*FA_PNG -> 13.8 | E116: =ResoluciónBarrayPNG!E116*FA_PNG -> 11.7 | F116: =+F7 -> 9.12 | I116: =C116+F116 -> 25.91 | J116: 13.8 | K116: =E116+G116 -> 11.7 | L116: =+I116 -> 25.91 | M116: =+J116*0.19906178071275+K116*0.80093821928725 -> 12.11802974 | N116: =+I116/720/0.79751092507001*100+J116*0.19906178071275+K116*0.80093821928725 -> 16.63033295
A117: Talara | B117: 220 | C117: =ResoluciónBarrayPNG!C117*FA_PNG -> 16.79 | D117: =ResoluciónBarrayPNG!D117*FA_PNG -> 13.74 | E117: =ResoluciónBarrayPNG!E117*FA_PNG -> 11.66 | F117: 9.12 | I117: =C117+F117 -> 25.91 | J117: =D117+G117 -> 13.74 | K117: =E117+G117 -> 11.66 | L117: =+I117 -> 25.91 | M117: =+J117*0.19906178071275+K117*0.80093821928725 -> 12.0740485 | N117: =+I117/720/0.79751092507001*100+J117*0.19906178071275+K117*0.80093821928725 -> 16.58635172
A118: Piura Oeste | B118: 220 | C118: =ResoluciónBarrayPNG!C118*FA_PNG -> 16.79 | D118: =ResoluciónBarrayPNG!D118*FA_PNG -> 14.41 | E118: =ResoluciónBarrayPNG!E118*FA_PNG -> 12.08 | F118: 9.12 | I118: 25.91 | J118: 14.41 | K118: 12.08 | L118: 25.91 | M118: 12.54381395 | N118: 17.05611716
A119: Chiclayo Oeste | B119: 220 | C119: =ResoluciónBarrayPNG!C119*FA_PNG -> 16.79 | D119: =ResoluciónBarrayPNG!D119*FA_PNG -> 14.21 | E119: =ResoluciónBarrayPNG!E119*FA_PNG -> 11.91 | F119: 9.12 | I119: 25.91 | J119: 14.21 | K119: 11.91 | L119: 25.91 | M119: 12.3678421 | N119: 16.88014531
A120: Carhuaquero | B120: 220 | C120: =ResoluciónBarrayPNG!C120*FA_PNG -> 16.79 | D120: =ResoluciónBarrayPNG!D120*FA_PNG -> 13.97 | E120: =ResoluciónBarrayPNG!E120*FA_PNG -> 11.76 | F120: 9.12 | I120: 25.91 | J120: 13.97 | K120: 11.76 | L120: 25.91 | M120: 12.19992654 | N120: 16.71222975
A121: Carhuaquero | B121: 138 | C121: =ResoluciónBarrayPNG!C121*FA_PNG -> 16.79 | D121: =ResoluciónBarrayPNG!D121*FA_PNG -> 13.97 | E121: =ResoluciónBarrayPNG!E121*FA_PNG -> 11.76 | F121: 9.12 | I121: 25.91 | J121: 13.97 | K121: 11.76 | L121: 25.91 | M121: 12.19992654 | N121: 16.71222975
A122: Cutervo | B122: 138 | C122: =ResoluciónBarrayPNG!C122*FA_PNG -> 16.79 | D122: =ResoluciónBarrayPNG!D122*FA_PNG -> 13.97 | E122: =ResoluciónBarrayPNG!E122*FA_PNG -> 11.76 | F122: 9.12 | I122: 25.91 | J122: 13.97 | K122: 11.76 | L122: 25.91 | M122: 12.19992654 | N122: 16.71222975
A123: Jaen | B123: 138 | C123: =ResoluciónBarrayPNG!C123*FA_PNG -> 16.79 | D123: =ResoluciónBarrayPNG!D123*FA_PNG -> 13.97 | E123: =ResoluciónBarrayPNG!E123*FA_PNG -> 11.76 | F123: 9.12 | I123: 25.91 | J123: 13.97 | K123: 11.76 | L123: 25.91 | M123: 12.19992654 | N123: 16.71222975
A124: Guadalupe | B124: 220 | C124: =ResoluciónBarrayPNG!C124*FA_PNG -> 16.79 | D124: =ResoluciónBarrayPNG!D124*FA_PNG -> 14.04 | E124: =ResoluciónBarrayPNG!E124*FA_PNG -> 11.77 | F124: 9.12 | I124: 25.91 | J124: 14.04 | K124: 11.77 | L124: 25.91 | M124: 12.22187024 | N124: 16.73417346
A125: Guadalupe | B125: 60 | C125: =ResoluciónBarrayPNG!C125*FA_PNG -> 16.79 | D125: =ResoluciónBarrayPNG!D125*FA_PNG -> 14.09 | E125: =ResoluciónBarrayPNG!E125*FA_PNG -> 11.81 | F125: 9.12 | I125: 25.91 | J125: 14.09 | K125: 11.81 | L125: 25.91 | M125: 12.26386086 | N125: 16.77616407
A126: Cajamarca | B126: 220 | C126: =ResoluciónBarrayPNG!C126*FA_PNG -> 16.79 | D126: =ResoluciónBarrayPNG!D126*FA_PNG -> 13.63 | E126: =ResoluciónBarrayPNG!E126*FA_PNG -> 11.48 | F126: 9.12 | I126: 25.91 | J126: 13.63 | K126: 11.48 | L126: 25.91 | M126: 11.90798283 | N126: 16.42028604
A127: Trujillo Norte | B127: 220 | C127: =ResoluciónBarrayPNG!C127*FA_PNG -> 16.79 | D127: =ResoluciónBarrayPNG!D127*FA_PNG -> 13.73 | E127: =ResoluciónBarrayPNG!E127*FA_PNG -> 11.51 | F127: 9.12 | I127: 25.91 | J127: 13.73 | K127: 11.51 | L127: 25.91 | M127: 11.95191715 | N127: 16.46422037
A128: Chimbote 1 | B128: 220 | C128: =ResoluciónBarrayPNG!C128*FA_PNG -> 16.79 | D128: =ResoluciónBarrayPNG!D128*FA_PNG -> 13.54 | E128: =ResoluciónBarrayPNG!E128*FA_PNG -> 11.38 | F128: 9.12 | I128: 25.91 | J128: 13.54 | K128: 11.38 | L128: 25.91 | M128: 11.80997345 | N128: 16.32227666
A129: Chimbote 1 | B129: 138 | C129: =ResoluciónBarrayPNG!C129*FA_PNG -> 16.79 | D129: =ResoluciónBarrayPNG!D129*FA_PNG -> 13.61 | E129: =ResoluciónBarrayPNG!E129*FA_PNG -> 11.41 | F129: 9.12 | I129: 25.91 | J129: 13.61 | K129: 11.41 | L129: 25.91 | M129: 11.84793592 | N129: 16.36023913
A130: Paramonga Nueva | B130: 220 | C130: =ResoluciónBarrayPNG!C130*FA_PNG -> 16.79 | D130: =ResoluciónBarrayPNG!D130*FA_PNG -> 13.17 | E130: =ResoluciónBarrayPNG!E130*FA_PNG -> 11.06 | F130: 9.12 | I130: 25.91 | J130: 13.17 | K130: 11.06 | L130: 25.91 | M130: 11.48002036 | N130: 15.99232357
A131: Paramonga Nueva | B131: 138 | C131: =ResoluciónBarrayPNG!C131*FA_PNG -> 16.79 | D131: =ResoluciónBarrayPNG!D131*FA_PNG -> 13.15 | E131: =ResoluciónBarrayPNG!E131*FA_PNG -> 11.05 | F131: 9.12 | I131: 25.91 | J131: 13.15 | K131: 11.05 | L131: 25.91 | M131: 11.46802974 | N131: 15.98033295
A132: Paramonga Existente | B132: 138 | C132: =ResoluciónBarrayPNG!C132*FA_PNG -> 16.79 | D132: =ResoluciónBarrayPNG!D132*FA_PNG -> 13.11 | E132: =ResoluciónBarrayPNG!E132*FA_PNG -> 11.04 | F132: 9.12 | I132: 25.91 | J132: 13.11 | K132: 11.04 | L132: 25.91 | M132: 11.45205789 | N132: 15.9643611
A133: Huacho | B133: 220 | C133: =ResoluciónBarrayPNG!C133*FA_PNG -> 16.79 | D133: =ResoluciónBarrayPNG!D133*FA_PNG -> 13.11 | E133: =ResoluciónBarrayPNG!E133*FA_PNG -> 11 | F133: 9.12 | I133: 25.91 | J133: 13.11 | K133: 11 | L133: 25.91 | M133: 11.42002036 | N133: 15.93232357
A134: Zapallal | B134: 220 | C134: =ResoluciónBarrayPNG!C134*FA_PNG -> 16.79 | D134: =ResoluciónBarrayPNG!D134*FA_PNG -> 12.94 | E134: =ResoluciónBarrayPNG!E134*FA_PNG -> 10.84 | F134: 9.12 | I134: 25.91 | J134: 12.94 | K134: 10.84 | L134: 25.91 | M134: 11.25802974 | N134: 15.77033295
A135: Ventanilla | B135: 220 | C135: =ResoluciónBarrayPNG!C135*FA_PNG -> 16.79 | D135: =ResoluciónBarrayPNG!D135*FA_PNG -> 12.93 | E135: =ResoluciónBarrayPNG!E135*FA_PNG -> 10.82 | F135: 9.12 | I135: 25.91 | J135: 12.93 | K135: 10.82 | L135: 25.91 | M135: 11.24002036 | N135: 15.75232357
A136: Lima | B136: 220 | C136: =ResoluciónBarrayPNG!C136*FA_PNG -> 16.79 | D136: =ResoluciónBarrayPNG!D136*FA_PNG -> 12.92 | E136: =ResoluciónBarrayPNG!E136*FA_PNG -> 10.81 | F136: 9.12 | I136: 25.91 | J136: 12.92 | K136: 10.81 | L136: 25.91 | M136: 11.23002036 | N136: 15.74232357
A137: Cantera | B137: 220 | C137: =ResoluciónBarrayPNG!C137*FA_PNG -> 16.79 | D137: =ResoluciónBarrayPNG!D137*FA_PNG -> 12.7 | E137: =ResoluciónBarrayPNG!E137*FA_PNG -> 10.67 | F137: 9.12 | I137: 25.91 | J137: 12.7 | K137: 10.67 | L137: 25.91 | M137: 11.07409541 | N137: 15.58639863
A138: Chilca | B138: 220 | C138: =ResoluciónBarrayPNG!C138*FA_PNG -> 16.79 | D138: =ResoluciónBarrayPNG!D138*FA_PNG -> 12.57 | E138: =ResoluciónBarrayPNG!E138*FA_PNG -> 10.55 | F138: 9.12 | I138: 25.91 | J138: 12.57 | K138: 10.55 | L138: 25.91 | M138: 10.9521048 | N138: 15.46440801
A139: Independencia | B139: 220 | C139: =ResoluciónBarrayPNG!C139*FA_PNG -> 16.79 | D139: =ResoluciónBarrayPNG!D139*FA_PNG -> 12.8 | E139: =ResoluciónBarrayPNG!E139*FA_PNG -> 10.77 | F139: 9.12 | I139: 25.91 | J139: 12.8 | K139: 10.77 | L139: 25.91 | M139: 11.17409541 | N139: 15.68639863
A140: Ica | B140: 220 | C140: =ResoluciónBarrayPNG!C140*FA_PNG -> 16.79 | D140: =ResoluciónBarrayPNG!D140*FA_PNG -> 12.87 | E140: =ResoluciónBarrayPNG!E140*FA_PNG -> 10.83 | F140: 9.12 | I140: 25.91 | J140: 12.87 | K140: 10.83 | L140: 25.91 | M140: 11.23608603 | N140: 15.74838925
A141: Marcona | B141: 220 | C141: =ResoluciónBarrayPNG!C141*FA_PNG -> 16.79 | D141: =ResoluciónBarrayPNG!D141*FA_PNG -> 13.08 | E141: =ResoluciónBarrayPNG!E141*FA_PNG -> 10.98 | F141: 9.12 | I141: 25.91 | J141: 13.08 | K141: 10.98 | L141: 25.91 | M141: 11.39802974 | N141: 15.91033295
A142: Mantaro | B142: 220 | C142: =ResoluciónBarrayPNG!C142*FA_PNG -> 16.79 | D142: =ResoluciónBarrayPNG!D142*FA_PNG -> 12.63 | E142: =ResoluciónBarrayPNG!E142*FA_PNG -> 10.58 | F142: 9.12 | I142: 25.91 | J142: 12.63 | K142: 10.58 | L142: 25.91 | M142: 10.98807665 | N142: 15.50037987
A143: Huayucachi | B143: 220 | C143: =ResoluciónBarrayPNG!C143*FA_PNG -> 16.79 | D143: =ResoluciónBarrayPNG!D143*FA_PNG -> 12.73 | E143: =ResoluciónBarrayPNG!E143*FA_PNG -> 10.66 | F143: 9.12 | I143: 25.91 | J143: 12.73 | K143: 10.66 | L143: 25.91 | M143: 11.07205789 | N143: 15.5843611
A144: Pachachaca | B144: 220 | C144: =ResoluciónBarrayPNG!C144*FA_PNG -> 16.79 | D144: =ResoluciónBarrayPNG!D144*FA_PNG -> 12.76 | E144: =ResoluciónBarrayPNG!E144*FA_PNG -> 10.7 | F144: 9.12 | I144: 25.91 | J144: 12.76 | K144: 10.7 | L144: 25.91 | M144: 11.11006727 | N144: 15.62237048
A145: Pomacocha | B145: 220 | C145: =ResoluciónBarrayPNG!C145*FA_PNG -> 16.79 | D145: =ResoluciónBarrayPNG!D145*FA_PNG -> 12.76 | E145: =ResoluciónBarrayPNG!E145*FA_PNG -> 10.69 | F145: =+F36 -> 9.12 | I145: 25.91 | J145: 12.76 | K145: 10.69 | L145: 25.91 | M145: 11.10205789 | N145: 15.6143611
A146: Huancavelica | B146: 220 | C146: =ResoluciónBarrayPNG!C146*FA_PNG -> 16.79 | D146: =ResoluciónBarrayPNG!D146*FA_PNG -> 12.68 | E146: =ResoluciónBarrayPNG!E146*FA_PNG -> 10.65 | F146: =+F37 -> 9.12 | I146: 25.91 | J146: 12.68 | K146: 10.65 | L146: 25.91 | M146: 11.05409541 | N146: 15.56639863
A147: Callahuanca | B147: 220 | C147: =ResoluciónBarrayPNG!C147*FA_PNG -> 16.79 | D147: =ResoluciónBarrayPNG!D147*FA_PNG -> 12.82 | E147: =ResoluciónBarrayPNG!E147*FA_PNG -> 10.76 | F147: =+F38 -> 9.12 | I147: 25.91 | J147: 12.82 | K147: 10.76 | L147: 25.91 | M147: 11.17006727 | N147: 15.68237048
A148: Cajamarquilla | B148: 220 | C148: =ResoluciónBarrayPNG!C148*FA_PNG -> 16.79 | D148: =ResoluciónBarrayPNG!D148*FA_PNG -> 12.92 | E148: =ResoluciónBarrayPNG!E148*FA_PNG -> 10.85 | F148: 9.12 | I148: 25.91 | J148: 12.92 | K148: 10.85 | L148: 25.91 | M148: 11.26205789 | N148: 15.7743611
A149: Huallanca | B149: 138 | C149: =ResoluciónBarrayPNG!C149*FA_PNG -> 16.79 | D149: =ResoluciónBarrayPNG!D149*FA_PNG -> 13.31 | E149: =ResoluciónBarrayPNG!E149*FA_PNG -> 11.18 | F149: 9.12 | I149: 25.91 | J149: 13.31 | K149: 11.18 | L149: 25.91 | M149: 11.60400159 | N149: 16.11630481
A150: Vizcarra | B150: 220 | C150: =ResoluciónBarrayPNG!C150*FA_PNG -> 16.79 | D150: =ResoluciónBarrayPNG!D150*FA_PNG -> 13.09 | E150: =ResoluciónBarrayPNG!E150*FA_PNG -> 10.99 | F150: 9.12 | I150: 25.91 | J150: 13.09 | K150: 10.99 | L150: 25.91 | M150: 11.40802974 | N150: 15.92033295
A151: Tingo María | B151: 220 | C151: =ResoluciónBarrayPNG!C151*FA_PNG -> 16.79 | D151: =ResoluciónBarrayPNG!D151*FA_PNG -> 13.21 | E151: =ResoluciónBarrayPNG!E151*FA_PNG -> 11.09 | F151: 9.12 | I151: 25.91 | J151: 13.21 | K151: 11.09 | L151: 25.91 | M151: 11.51201098 | N151: 16.02431419
A152: Aguaytía | B152: 220 | C152: =ResoluciónBarrayPNG!C152*FA_PNG -> 16.79 | D152: =ResoluciónBarrayPNG!D152*FA_PNG -> 13.08 | E152: =ResoluciónBarrayPNG!E152*FA_PNG -> 11 | F152: 9.12 | I152: 25.91 | J152: 13.08 | K152: 11 | L152: 25.91 | M152: 11.4140485 | N152: 15.92635172
A153: Aguaytía | B153: 138 | C153: =ResoluciónBarrayPNG!C153*FA_PNG -> 16.79 | D153: =ResoluciónBarrayPNG!D153*FA_PNG -> 13.13 | E153: =ResoluciónBarrayPNG!E153*FA_PNG -> 11.04 | F153: 9.12 | I153: 25.91 | J153: 13.13 | K153: 11.04 | L153: 25.91 | M153: 11.45603912 | N153: 15.96834234
A154: Aguaytía | B154: 22.9 | C154: =ResoluciónBarrayPNG!C154*FA_PNG -> 16.79 | D154: =ResoluciónBarrayPNG!D154*FA_PNG -> 13.11 | E154: =ResoluciónBarrayPNG!E154*FA_PNG -> 11.02 | F154: 9.12 | I154: 25.91 | J154: 13.11 | K154: 11.02 | L154: 25.91 | M154: 11.43603912 | N154: 15.94834234
A155: Pucallpa | B155: 138 | C155: =ResoluciónBarrayPNG!C155*FA_PNG -> 16.79 | D155: =ResoluciónBarrayPNG!D155*FA_PNG -> 13.53 | E155: =ResoluciónBarrayPNG!E155*FA_PNG -> 11.3 | F155: 9.12 | I155: 25.91 | J155: 13.53 | K155: 11.3 | L155: 25.91 | M155: 11.74390777 | N155: 16.25621099
A156: Pucallpa | B156: 60 | C156: =ResoluciónBarrayPNG!C156*FA_PNG -> 16.79 | D156: =ResoluciónBarrayPNG!D156*FA_PNG -> 13.55 | E156: =ResoluciónBarrayPNG!E156*FA_PNG -> 11.31 | F156: 9.12 | G156: =G47 -> 1.41926385 | I156: 25.91 | J156: 14.96926385 | K156: 12.72926385 | L156: 25.91 | M156: 13.17516224 | N156: 17.68746545
A157: Aucayacu | B157: 138 | C157: =ResoluciónBarrayPNG!C157*FA_PNG -> 16.79 | D157: =ResoluciónBarrayPNG!D157*FA_PNG -> 18.39 | E157: =ResoluciónBarrayPNG!E157*FA_PNG -> 11.52 | F157: 9.12 | I157: 25.91 | J157: 18.39 | K157: 11.52 | L157: 25.91 | M157: 12.88755443 | N157: 17.39985765
A158: Tocache | B158: 138 | C158: =ResoluciónBarrayPNG!C158*FA_PNG -> 16.79 | D158: =ResoluciónBarrayPNG!D158*FA_PNG -> 20.48 | E158: =ResoluciónBarrayPNG!E158*FA_PNG -> 12.31 | F158: 9.12 | I158: 25.91 | J158: 20.48 | K158: 12.31 | L158: 25.91 | M158: 13.93633475 | N158: 18.44863796
A159: Tingo María | B159: 138 | C159: =ResoluciónBarrayPNG!C159*FA_PNG -> 16.79 | D159: =ResoluciónBarrayPNG!D159*FA_PNG -> 13.51 | E159: =ResoluciónBarrayPNG!E159*FA_PNG -> 11.4 | F159: 9.12 | I159: 25.91 | J159: 13.51 | K159: 11.4 | L159: 25.91 | M159: 11.82002036 | N159: 16.33232357
A160: Huánuco | B160: 138 | C160: =ResoluciónBarrayPNG!C160*FA_PNG -> 16.79 | D160: =ResoluciónBarrayPNG!D160*FA_PNG -> 13.54 | E160: =ResoluciónBarrayPNG!E160*FA_PNG -> 11.4 | F160: 9.12 | I160: 25.91 | J160: 13.54 | K160: 11.4 | L160: 25.91 | M160: 11.82599221 | N160: 16.33829543
A161: Paragsha II | B161: 138 | C161: =ResoluciónBarrayPNG!C161*FA_PNG -> 16.79 | D161: =ResoluciónBarrayPNG!D161*FA_PNG -> 13.45 | E161: =ResoluciónBarrayPNG!E161*FA_PNG -> 11.31 | F161: 9.12 | I161: 25.91 | J161: 13.45 | K161: 11.31 | L161: 25.91 | M161: 11.73599221 | N161: 16.24829543
A162: Paragsha | B162: 220 | C162: =ResoluciónBarrayPNG!C162*FA_PNG -> 16.79 | D162: =ResoluciónBarrayPNG!D162*FA_PNG -> 12.82 | E162: =ResoluciónBarrayPNG!E162*FA_PNG -> 10.79 | F162: 9.12 | I162: 25.91 | J162: 12.82 | K162: 10.79 | L162: 25.91 | M162: 11.19409541 | N162: 15.70639863
A163: Yaupi | B163: 138 | C163: =ResoluciónBarrayPNG!C163*FA_PNG -> 16.79 | D163: =ResoluciónBarrayPNG!D163*FA_PNG -> 12.51 | E163: =ResoluciónBarrayPNG!E163*FA_PNG -> 10.54 | F163: 9.12 | I163: 25.91 | J163: 12.51 | K163: 10.54 | L163: 25.91 | M163: 10.93215171 | N163: 15.44445492
A164: Yuncan | B164: 138 | C164: =ResoluciónBarrayPNG!C164*FA_PNG -> 16.79 | D164: =ResoluciónBarrayPNG!D164*FA_PNG -> 12.51 | E164: =ResoluciónBarrayPNG!E164*FA_PNG -> 10.54 | F164: 9.12 | I164: 25.91 | J164: 12.51 | K164: 10.54 | L164: 25.91 | M164: 10.93215171 | N164: 15.44445492
A165: Yuncan | B165: 220 | C165: =ResoluciónBarrayPNG!C165*FA_PNG -> 16.79 | D165: =ResoluciónBarrayPNG!D165*FA_PNG -> 12.56 | E165: =ResoluciónBarrayPNG!E165*FA_PNG -> 10.58 | F165: 9.12 | I165: 25.91 | J165: 12.56 | K165: 10.58 | L165: 25.91 | M165: 10.97414233 | N165: 15.48644554
A166: Oroya Nueva | B166: 220 | C166: =ResoluciónBarrayPNG!C166*FA_PNG -> 16.79 | D166: =ResoluciónBarrayPNG!D166*FA_PNG -> 12.84 | E166: =ResoluciónBarrayPNG!E166*FA_PNG -> 10.78 | F166: 9.12 | I166: 25.91 | J166: 12.84 | K166: 10.78 | L166: 25.91 | M166: 11.19006727 | N166: 15.70237048
A167: Oroya Nueva | B167: 138 | C167: =ResoluciónBarrayPNG!C167*FA_PNG -> 16.79 | D167: =ResoluciónBarrayPNG!D167*FA_PNG -> 13.02 | E167: =ResoluciónBarrayPNG!E167*FA_PNG -> 10.97 | F167: 9.12 | I167: 25.91 | J167: 13.02 | K167: 10.97 | L167: 25.91 | M167: 11.37807665 | N167: 15.89037987
A168: Oroya Nueva | B168: 50 | C168: =ResoluciónBarrayPNG!C168*FA_PNG -> 16.79 | D168: =ResoluciónBarrayPNG!D168*FA_PNG -> 13.54 | E168: =ResoluciónBarrayPNG!E168*FA_PNG -> 11.37 | F168: 9.12 | I168: 25.91 | J168: 13.54 | K168: 11.37 | L168: 25.91 | M168: 11.80196406 | N168: 16.31426728
A169: Carhuamayo | B169: 138 | C169: =ResoluciónBarrayPNG!C169*FA_PNG -> 16.79 | D169: =ResoluciónBarrayPNG!D169*FA_PNG -> 12.05 | E169: =ResoluciónBarrayPNG!E169*FA_PNG -> 10.31 | F169: 9.12 | I169: 25.91 | J169: 12.05 | K169: 10.31 | L169: 25.91 | M169: 10.6563675 | N169: 15.16867071
A170: Carhuamayo Nueva | B170: 220 | C170: =ResoluciónBarrayPNG!C170*FA_PNG -> 16.79 | D170: =ResoluciónBarrayPNG!D170*FA_PNG -> 12.64 | E170: =ResoluciónBarrayPNG!E170*FA_PNG -> 10.65 | F170: 9.12 | I170: 25.91 | J170: 12.64 | K170: 10.65 | L170: 25.91 | M170: 11.04613294 | N170: 15.55843616
A171: Caripa | B171: 138 | C171: =ResoluciónBarrayPNG!C171*FA_PNG -> 16.79 | D171: =ResoluciónBarrayPNG!D171*FA_PNG -> 12.69 | E171: =ResoluciónBarrayPNG!E171*FA_PNG -> 10.75 | F171: 9.12 | I171: 25.91 | J171: 12.69 | K171: 10.75 | L171: 25.91 | M171: 11.13617985 | N171: 15.64848307
A172: Desierto | B172: 220 | C172: =ResoluciónBarrayPNG!C172*FA_PNG -> 16.79 | D172: =ResoluciónBarrayPNG!D172*FA_PNG -> 12.73 | E172: =ResoluciónBarrayPNG!E172*FA_PNG -> 10.7 | F172: 9.12 | I172: 25.91 | J172: 12.73 | K172: 10.7 | L172: 25.91 | M172: 11.10409541 | N172: 15.61639863
A173: Condorcocha | B173: 138 | C173: =ResoluciónBarrayPNG!C173*FA_PNG -> 16.79 | D173: =ResoluciónBarrayPNG!D173*FA_PNG -> 12.72 | E173: =ResoluciónBarrayPNG!E173*FA_PNG -> 10.78 | F173: 9.12 | I173: 25.91 | J173: 12.72 | K173: 10.78 | L173: 25.91 | M173: 11.16617985 | N173: 15.67848307
A174: Condorcocha | B174: 44 | C174: =ResoluciónBarrayPNG!C174*FA_PNG -> 16.79 | D174: =ResoluciónBarrayPNG!D174*FA_PNG -> 12.72 | E174: =ResoluciónBarrayPNG!E174*FA_PNG -> 10.78 | F174: 9.12 | I174: 25.91 | J174: 12.72 | K174: 10.78 | L174: 25.91 | M174: 11.16617985 | N174: 15.67848307
A175: Machupicchu | B175: 138 | C175: =ResoluciónBarrayPNG!C175*FA_PNG -> 16.79 | D175: =ResoluciónBarrayPNG!D175*FA_PNG -> 14.44 | E175: =ResoluciónBarrayPNG!E175*FA_PNG -> 11.47 | F175: 9.12 | I175: 25.91 | J175: 14.44 | K175: 11.47 | L175: 25.91 | M175: 12.06121349 | N175: 16.5735167
A176: Cachimayo | B176: 138 | C176: =ResoluciónBarrayPNG!C176*FA_PNG -> 16.79 | D176: =ResoluciónBarrayPNG!D176*FA_PNG -> 14.9 | E176: =ResoluciónBarrayPNG!E176*FA_PNG -> 11.85 | F176: 9.12 | I176: 25.91 | J176: 14.9 | K176: 11.85 | L176: 25.91 | M176: 12.45713843 | N176: 16.96944165
A177: Cusco | B177: 138 | C177: =ResoluciónBarrayPNG!C177*FA_PNG -> 16.79 | D177: =ResoluciónBarrayPNG!D177*FA_PNG -> 14.88 | E177: =ResoluciónBarrayPNG!E177*FA_PNG -> 11.84 | F177: 9.12 | I177: 25.91 | J177: 14.88 | K177: 11.84 | L177: 25.91 | M177: 12.44514781 | N177: 16.95745103
A178: Combapata | B178: 138 | C178: =ResoluciónBarrayPNG!C178*FA_PNG -> 16.79 | D178: =ResoluciónBarrayPNG!D178*FA_PNG -> 14.84 | E178: =ResoluciónBarrayPNG!E178*FA_PNG -> 11.98 | F178: 9.12 | I178: 25.91 | J178: 14.84 | K178: 11.98 | L178: 25.91 | M178: 12.54931669 | N178: 17.06161991
A179: Tintaya | B179: 138 | C179: =ResoluciónBarrayPNG!C179*FA_PNG -> 16.79 | D179: =ResoluciónBarrayPNG!D179*FA_PNG -> 14.75 | E179: =ResoluciónBarrayPNG!E179*FA_PNG -> 12.12 | F179: 9.12 | I179: 25.91 | J179: 14.75 | K179: 12.12 | L179: 25.91 | M179: 12.64353248 | N179: 17.1558357
A180: Ayaviri | B180: 138 | C180: =ResoluciónBarrayPNG!C180*FA_PNG -> 16.79 | D180: =ResoluciónBarrayPNG!D180*FA_PNG -> 14.31 | E180: =ResoluciónBarrayPNG!E180*FA_PNG -> 11.83 | F180: 9.12 | I180: 25.91 | J180: 14.31 | K180: 11.83 | L180: 25.91 | M180: 12.32367322 | N180: 16.83597643
A181: Azángaro | B181: 138 | C181: =ResoluciónBarrayPNG!C181*FA_PNG -> 16.79 | D181: =ResoluciónBarrayPNG!D181*FA_PNG -> 14.06 | E181: =ResoluciónBarrayPNG!E181*FA_PNG -> 11.46 | F181: 9.12 | I181: =C181+F181 -> 25.91 | J181: =D181+G181 -> 14.06 | K181: =E181+G181 -> 11.46 | L181: =+I181 -> 25.91 | M181: =+J181*0.19906178071275+K181*0.80093821928725 -> 11.97756063 | N181: =+I181/720/0.79751092507001*100+J181*0.19906178071275+K181*0.80093821928725 -> 16.48986384
A182: San Gaban | B182: 138 | C182: =ResoluciónBarrayPNG!C182*FA_PNG -> 16.79 | D182: =ResoluciónBarrayPNG!D182*FA_PNG -> 14.06 | E182: =ResoluciónBarrayPNG!E182*FA_PNG -> 11.45 | F182: 9.12 | I182: 25.91 | J182: 14.06 | K182: 11.45 | L182: 25.91 | M182: 11.96955125 | N182: 16.48185446
A183: Mazuco | B183: 138 | C183: =ResoluciónBarrayPNG!C183*FA_PNG -> 16.79 | D183: =ResoluciónBarrayPNG!D183*FA_PNG -> 14.16 | E183: =ResoluciónBarrayPNG!E183*FA_PNG -> 11.5 | F183: 9.12 | I183: 25.91 | J183: 14.16 | K183: 11.5 | L183: 25.91 | M183: 12.02950434 | N183: 16.54180755
A184: Puerto Maldonado | B184: 138 | C184: =ResoluciónBarrayPNG!C184*FA_PNG -> 16.79 | D184: =ResoluciónBarrayPNG!D184*FA_PNG -> 14.39 | E184: =ResoluciónBarrayPNG!E184*FA_PNG -> 11.62 | F184: 9.12 | I184: 25.91 | J184: 14.39 | K184: 11.62 | L184: 25.91 | M184: 12.17140113 | N184: 16.68370435
A185: Juliaca | B185: 138 | C185: =ResoluciónBarrayPNG!C185*FA_PNG -> 16.79 | D185: =ResoluciónBarrayPNG!D185*FA_PNG -> 14.42 | E185: =ResoluciónBarrayPNG!E185*FA_PNG -> 11.83 | F185: 9.12 | I185: 25.91 | J185: 14.42 | K185: 11.83 | L185: 25.91 | M185: 12.34557001 | N185: 16.85787323
A186: Puno | B186: 138 | C186: =ResoluciónBarrayPNG!C186*FA_PNG -> 16.79 | D186: =ResoluciónBarrayPNG!D186*FA_PNG -> 14.48 | E186: =ResoluciónBarrayPNG!E186*FA_PNG -> 11.96 | F186: 9.12 | I186: 25.91 | J186: 14.48 | K186: 11.96 | L186: 25.91 | M186: 12.46163569 | N186: 16.9739389
A187: Puno | B187: 220 | C187: =ResoluciónBarrayPNG!C187*FA_PNG -> 16.79 | D187: =ResoluciónBarrayPNG!D187*FA_PNG -> 14.5 | E187: =ResoluciónBarrayPNG!E187*FA_PNG -> 11.97 | F187: 9.12 | I187: 25.91 | J187: 14.5 | K187: 11.97 | L187: 25.91 | M187: 12.47362631 | N187: 16.98592952
A188: Callalli | B188: 138 | C188: =ResoluciónBarrayPNG!C188*FA_PNG -> 16.79 | D188: =ResoluciónBarrayPNG!D188*FA_PNG -> 14.56 | E188: =ResoluciónBarrayPNG!E188*FA_PNG -> 12.02 | F188: 9.12 | I188: 25.91 | J188: 14.56 | K188: 12.02 | L188: 25.91 | M188: 12.52561692 | N188: 17.03792014
A189: Santuario | B189: 138 | C189: =ResoluciónBarrayPNG!C189*FA_PNG -> 16.79 | D189: =ResoluciónBarrayPNG!D189*FA_PNG -> 14.28 | E189: =ResoluciónBarrayPNG!E189*FA_PNG -> 11.87 | F189: 9.12 | I189: 25.91 | J189: 14.28 | K189: 11.87 | L189: 25.91 | M189: 12.34973889 | N189: 16.86204211
A190: Arequipa | B190: 138 | C190: =ResoluciónBarrayPNG!C190*FA_PNG -> 16.79 | D190: =ResoluciónBarrayPNG!D190*FA_PNG -> 14.35 | E190: =ResoluciónBarrayPNG!E190*FA_PNG -> 11.92 | F190: 9.12 | I190: 25.91 | J190: 14.35 | K190: 11.92 | L190: 25.91 | M190: 12.40372013 | N190: 16.91602334
A191: Socabaya | B191: 220 | C191: =ResoluciónBarrayPNG!C191*FA_PNG -> 16.79 | D191: =ResoluciónBarrayPNG!D191*FA_PNG -> 14.34 | E191: =ResoluciónBarrayPNG!E191*FA_PNG -> 11.91 | F191: 9.12 | I191: 25.91 | J191: 14.34 | K191: 11.91 | L191: 25.91 | M191: 12.39372013 | N191: 16.90602334
A192: Cerro Verde | B192: 138 | C192: =ResoluciónBarrayPNG!C192*FA_PNG -> 16.79 | D192: =ResoluciónBarrayPNG!D192*FA_PNG -> 14.39 | E192: =ResoluciónBarrayPNG!E192*FA_PNG -> 11.95 | F192: 9.12 | I192: 25.91 | J192: 14.39 | K192: 11.95 | L192: 25.91 | M192: 12.43571074 | N192: 16.94801396
A193: Repartición | B193: 138 | C193: =ResoluciónBarrayPNG!C193*FA_PNG -> 16.79 | D193: =ResoluciónBarrayPNG!D193*FA_PNG -> 14.44 | E193: =ResoluciónBarrayPNG!E193*FA_PNG -> 11.97 | F193: 9.12 | I193: 25.91 | J193: 14.44 | K193: 11.97 | L193: 25.91 | M193: 12.4616826 | N193: 16.97398581
A194: Mollendo | B194: 138 | C194: =ResoluciónBarrayPNG!C194*FA_PNG -> 16.79 | D194: =ResoluciónBarrayPNG!D194*FA_PNG -> 14.48 | E194: =ResoluciónBarrayPNG!E194*FA_PNG -> 12 | F194: 9.12 | I194: 25.91 | J194: 14.48 | K194: 12 | L194: 25.91 | M194: 12.49367322 | N194: 17.00597643
A195: Montalvo | B195: 220 | C195: =ResoluciónBarrayPNG!C195*FA_PNG -> 16.79 | D195: =ResoluciónBarrayPNG!D195*FA_PNG -> 14.52 | E195: =ResoluciónBarrayPNG!E195*FA_PNG -> 12.05 | F195: 9.12 | I195: 25.91 | J195: 14.52 | K195: 12.05 | L195: 25.91 | M195: 12.5416826 | N195: 17.05398581
A196: Montalvo | B196: 138 | C196: =ResoluciónBarrayPNG!C196*FA_PNG -> 16.79 | D196: =ResoluciónBarrayPNG!D196*FA_PNG -> 14.53 | E196: =ResoluciónBarrayPNG!E196*FA_PNG -> 12.06 | F196: 9.12 | I196: 25.91 | J196: 14.53 | K196: 12.06 | L196: 25.91 | M196: 12.5516826 | N196: 17.06398581
A197: Ilo ELP | B197: 138 | C197: =ResoluciónBarrayPNG!C197*FA_PNG -> 16.79 | D197: =ResoluciónBarrayPNG!D197*FA_PNG -> 14.73 | E197: =ResoluciónBarrayPNG!E197*FA_PNG -> 12.22 | F197: 9.12 | I197: 25.91 | J197: 14.73 | K197: 12.22 | L197: 25.91 | M197: 12.71964507 | N197: 17.23194828
A198: Botiflaca | B198: 138 | C198: =ResoluciónBarrayPNG!C198*FA_PNG -> 16.79 | D198: =ResoluciónBarrayPNG!D198*FA_PNG -> 14.61 | E198: =ResoluciónBarrayPNG!E198*FA_PNG -> 12.13 | F198: 9.12 | I198: 25.91 | J198: 14.61 | K198: 12.13 | L198: 25.91 | M198: 12.62367322 | N198: 17.13597643
A199: Toquepala | B199: 138 | C199: =ResoluciónBarrayPNG!C199*FA_PNG -> 16.79 | D199: =ResoluciónBarrayPNG!D199*FA_PNG -> 14.66 | E199: =ResoluciónBarrayPNG!E199*FA_PNG -> 12.19 | F199: 9.12 | I199: 25.91 | J199: 14.66 | K199: 12.19 | L199: 25.91 | M199: 12.6816826 | N199: 17.19398581
A200: Aricota | B200: 138 | C200: =ResoluciónBarrayPNG!C200*FA_PNG -> 16.79 | D200: =ResoluciónBarrayPNG!D200*FA_PNG -> 14.54 | E200: =ResoluciónBarrayPNG!E200*FA_PNG -> 12.14 | F200: 9.12 | I200: 25.91 | J200: 14.54 | K200: 12.14 | L200: 25.91 | M200: 12.61774827 | N200: 17.13005149
A201: Aricota | B201: 66 | C201: =ResoluciónBarrayPNG!C201*FA_PNG -> 16.79 | D201: =ResoluciónBarrayPNG!D201*FA_PNG -> 14.48 | E201: =ResoluciónBarrayPNG!E201*FA_PNG -> 12.13 | F201: 9.12 | G201: =G92 -> 0.39494085 | I201: 25.91 | J201: 14.87494085 | K201: 12.52494085 | L201: 25.91 | M201: 12.99273603 | N201: 17.50503925
A202: Tacna (Los Héroes) | B202: 220 | C202: =ResoluciónBarrayPNG!C202*FA_PNG -> 16.79 | D202: =ResoluciónBarrayPNG!D202*FA_PNG -> 14.63 | E202: =ResoluciónBarrayPNG!E202*FA_PNG -> 12.11 | F202: 9.12 | I202: 25.91 | J202: 14.63 | K202: 12.11 | L202: 25.91 | M202: 12.61163569 | N202: 17.1239389
... 27 more rows

Sheet Transporte
A1: PEAJES DE CONEXIÓN A LOS SISTEMAS DE TRANSMISIÓN
B3: PEAJE DE CONEXIÓN AL SISTEMA PRINCIPAL DE TRANSMISIÓN
B4: Resoluciones OSINERGMIN Nº 057-2012-OS/CD, Res. 115-2012-OS/CD
B5: =+CONCATENATE("Actualizado al ",TEXT(Vigencia,"dd/mmmm/yyyy")) -> Actualizado al 01/Mayo/2012
B6: Sistema de Transmisión | D6: PCSPT + PTSGT (S/./kW-mes)
D7: Base | E7: FAPCSPT | F7: Actualizado
B8: SPT de REP | D8: 0.89 | E8: 1 | F8: =ROUND(D8*E8,2) -> 0.89
B9: SPT de San Gabán | D9: 0.01 | E9: 1 | F9: =ROUND(D9*E9,2) -> 0.01
B10: SPT de Antamina | D10: 0.01 | E10: 1 | F10: 0.01
B11: SPT de Eteselva | D11: 0.12 | E11: 1 | F11: 0.12
B12: SPT de Redesur | D12: 0.55 | E12: 1 | F12: 0.55
B13: SPT de Transmantaro | D13: 1.86 | E13: 1 | F13: 1.86
B14: SPT de ISA | D14: 0.38 | E14: 1 | F14: 0.38
B15: Cargo Unitario por Compensación por Seguridad de Suministro (*) | D15: 0.2 | E15: 1 | F15: 0.2
B16: Cargo Unitario por CVOA-CMg (*) | D16: 2.01 | E16: 1 | F16: 2.01
B17: Cargo Unitario por CVOA-RSC (*) | D17: 0 | E17: 1 | F17: 0
B18: Cargo por Prima (*) | C18: Cogeneración Paramonga | D18: 0.02 | E18: 1 | F18: 0.02
C19: C.H. Santa Cruz II | D19: 0.03 | E19: 1 | F19: 0.03
C20: C.H. Santa Cruz I | D20: 0.02 | E20: 1 | F20: =ROUND(D20*E20,2) -> 0.02
C21: C.H. Poechos 2 | D21: 0.04 | E21: 1 | F21: 0.04
C22: C.H. Roncador | D22: 0.02 | E22: 1 | F22: 0.02
C23: C.H. Carhuaquero IV | D23: 0.12 | E23: 1 | F23: 0.12
C24: C.H. Caña Brava | D24: 0.03 | E24: 1 | F24: 0.03
C25: C.H. La Joya | D25: 0.03 | E25: 1 | F25: 0.03
C26: C.T. Huaycoloro | D26: 0.14 | E26: 1 | F26: 0.14
C27: C. H. Purmacana | D27: 0.01 | E27: 1 | F27: 0.01
C28: C.H. Huasahuasi I | D28: 0.05 | E28: 1 | F28: 0.05
C29: C.H. Huasahuasi II | D29: 0.05 | E29: 1 | F29: 0.05
C30: C.H. Nuevo Imperial | D30: 0.03 | E30: 1 | F30: 0.03
B31: Cargo Unitario por Generación Adicional | C31: Usuarios Regulados | D31: 1.45 | E31: 1 | F31: 1.45
B32: Línea Chilca -Zapallal (Tramos 1 y 2) | D32: 0.38 | E32: 1 | F32: =ROUND(D32*E32,2) -> 0.38
B33: Líneas Carhuamayo - Cajamarca 220 kV (Tramos 1, 2, 3 y4) y SVC-Cajamarca | D33: 0.67 | E33: 1 | F33: =ROUND(D33*E33,2) -> 0.67
D34: =SUM(D8:D33) -> 9.12 | F34: =SUM(F8:F33) -> 9.12
B35: (*) Valores que dependen de la variable "p" la cual se actualiza trimestralmente.
B37: PEAJE TOTAL ACUMULADO EN MT POR ÁREA DE DEMANDA (ctm. S/./kWh)
B38: Resolución OSINERGMIN Nº 184-2009-OS/CD modificado por R.279-2009 - Cuadro 4.1. Incluye Res. 059-2012-OS/CD, Res. 130-2012-OS/CD y Fe de Erratas del 28.06.2012, Res. 148-2012-OS/CD
B39: =+CONCATENATE("Actualizado al ",TEXT(Vigencia,"dd/mmmm/yyyy")) -> Actualizado al 01/Mayo/2012
B40: Área Demanda | C40: Base | D40: FA | E40: Actualizado | F40: DISTRIBUIDORAS | G40: GENERADORAS
B41: 1 | C41: 1.1954 | E41: =+I64 -> 1.3702 | F41: ADIL, ELNO | G41: ELP, REP
B42: 2 | C42: 1.778 | E42: =+I69 -> 1.4156 | F42: ADIL, ELN | G42: REP, DEPO
B43: 3 | C43: 1.0618 | E43: =+I74 -> 1.1308 | F43: CHAV, ELNM | G43: ETEN, REP
B44: 4 | C44: 4.6643 | E44: =+I77 -> 4.3692 | F44: ELOR | G44: GSMA
B45: 5 | C45: 2.1623 | E45: =+I85 -> 2.3908 | F45: ADIL, ELC, ELP | G45: REP, CAND, CONE, ELAN
B46: 6 | C46: 1.2289 | E46: =+I93 -> 1.6296 | F46: ADIL, EDLN, ELNM | G46: REP, CAHU
B47: 7 | C47: 1.3704 | E47: =+I98 -> 1.4925 | F47: EDCA, LDS | G47: REP
B48: 8 | C48: 2.0295 | E48: =+I107 -> 2.1736 | F48: ADIL, COEL, ELSM, SEAL | G48: ISA, REP
B49: 9 | C49: 1.3045 | E49: =+I113 -> 1.0248 | F49: ELS, SEAL | G49: CONE, EGAS, REP
B50: 10 | C50: 1.6647 | E50: =+I117 -> 1.7968 | F50: ELSE | G50: EGEM, REP
B51: 11 | C51: 1.7064 | E51: =+I120 -> 2.1685 | F51: ELPU | G51: REP
B52: 12 | C52: 1.1435 | E52: =+I124 -> 1.7745 | F52: ELS | G52: ENER, SOUT
B53: 13 | C53: 1.0654 | E53: =+I127 -> 0.9359 | F53: ELS | G53: EGES
B54: 14 | C54: 0.8695 | E54: =+I129 -> 0.884 | F54: ELUC
B55: 15 | C55: 0.0625 | E55: =+I131 -> 0.064 | G55: REP
B57: PEAJE TOTAL ACUMULADO EN MT POR ÁREA DE DEMANDA (ctm. S/./kWh) | G57: (Art. 1ro.) | H57: (Art. 2do.) | I57: (Art. 1ro +2do.)
B58: Área de | C58: Titular | E58: Acumulado en MT | F58: Factor | G58: Acumulado MT | H58: Acumulado MT | I58: Acumulado MT
B59: Demanda | E59: Ctm. S/./kWh | F59: de Actualización | G59: Actualizado | H59: Actualizado | I59: Actualizado
B60: 1 | C60: ADINELSA | E60: 0.1158 | F60: 1.037 | G60: =+ROUND(E60*F60,4) -> 0.1201 | H60: -0.002 | I60: =+H60+G60 -> 0.1181
C61: ELECTRONOROESTE | E61: 0.9682 | F61: 1.037 | G61: =+ROUND(E61*F61,4) -> 1.004 | H61: -0.1055 | I61: 0.8985
C62: ELECTROPERÚ | E62: 0.0152 | F62: 1.037 | G62: =+ROUND(E62*F62,4) -> 0.0158 | H62: -0.0003 | I62: 0.0155
C63: REP | E63: 0.297 | F63: 1.037 | G63: =+ROUND(E63*F63,4) -> 0.308 | H63: 0.0301 | I63: 0.3381
C64: TOTAL ÁREA | E64: =SUM(E60:E63) -> 1.3962 | G64: 1.4479 | H64: =SUM(H60:H63) -> -0.0777 | I64: 1.3702
B65: 2 | C65: ADINELSA | E65: 0.2919 | F65: 1.048 | G65: =+ROUND(E65*F65,4) -> 0.3059 | H65: -0.0139 | I65: 0.292
C66: DEPOLTI | E66: 0.3584 | F66: 1.048 | G66: =+ROUND(E66*F66,4) -> 0.3756 | H66: -0.0139 | I66: 0.3617
C67: ELECTRONORTE | E67: 0.8623 | F67: 1.048 | G67: =+ROUND(E67*F67,4) -> 0.9037 | H67: -0.167 | I67: 0.7367
C68: REP | E68: 0.0252 | F68: 1.048 | G68: =+ROUND(E68*F68,4) -> 0.0264 | H68: -0.0012 | I68: 0.0252
C69: TOTAL ÁREA | E69: =SUM(E65:E68) -> 1.5378 | G69: =SUM(G65:G68) -> 1.6116 | H69: -0.196 | I69: 1.4156
B70: 3 | C70: CHAVIMOCHIC | E70: 0.0082 | F70: 1.0364 | G70: =+ROUND(E70*F70,4) -> 0.0085 | H70: -0.0003 | I70: 0.0082
C71: ETENORTE | E71: 0.046 | F71: 1.0364 | G71: =+ROUND(E71*F71,4) -> 0.0477 | H71: -0.0026 | I71: 0.0451
C72: HIDRANDINA | E72: 0.994 | F72: 1.0364 | G72: =+ROUND(E72*F72,4) -> 1.0302 | H72: -0.1028 | I72: 0.9274
C73: REP | E73: 0.1258 | F73: 1.0364 | G73: =+ROUND(E73*F73,4) -> 0.1304 | H73: 0.0197 | I73: 0.1501
C74: TOTAL ÁREA | E74: =SUM(E70:E73) -> 1.174 | G74: =SUM(G70:G73) -> 1.2168 | H74: -0.086 | I74: =SUM(I70:I73) -> 1.1308
B75: 4 | C75: ELECTRO ORIENTE | E75: 3.8149 | F75: 1.0318 | G75: =+ROUND(E75*F75,4) -> 3.9362 | H75: 0.5173 | I75: 4.4535
C76: GOB. REG. SAN MARTIN | E76: 0 | F76: 1.0318 | G76: =+ROUND(E76*F76,4) -> 0 | H76: -0.0843 | I76: -0.0843
C77: TOTAL ÁREA | E77: =SUM(E75:E76) -> 3.8149 | G77: =SUM(G75:G76) -> 3.9362 | H77: 0.433 | I77: 4.3692
B78: 5 | C78: ADINELSA | E78: 0.0799 | F78: 1.0188 | G78: =+ROUND(E78*F78,4) -> 0.0814 | H78: 0.0047 | I78: 0.0861
C79: CEMENTO ANDINO | E79: 0.0133 | F79: 1.0188 | G79: 0.0136 | H79: 0.0006 | I79: 0.0142
C80: CONENHUA | E80: 0.0353 | F80: 1.0188 | G80: 0.036 | H80: 0.0015 | I80: 0.0375
C81: ELECTROANDES | E81: 1.0663 | F81: 1.0188 | G81: 1.0863 | H81: 0.0475 | I81: 1.1338
C82: ELECTROCENTRO | E82: 1.0902 | F82: 1.0188 | G82: 1.1107 | H82: -0.0841 | I82: 1.0266
C83: ELECTROPERÚ | E83: 0.0101 | F83: 1.0188 | G83: 0.0103 | H83: 0.0004 | I83: 0.0107
C84: REP | E84: 0.0684 | F84: 1.0188 | G84: 0.0697 | H84: 0.0122 | I84: 0.0819
C85: TOTAL ÁREA | E85: =SUM(E78:E84) -> 2.3635 | G85: =SUM(G78:G84) -> 2.408 | H85: -0.0172 | I85: 2.3908
B86: 6 | C86: ADINELSA | E86: 0.0013 | F86: 1.0038 | G86: =+ROUND(E86*F86,4) -> 0.0013 | H86: 0 | I86: 0.0013
C87: CAHUA | E87: 0.0113 | F87: 1.0038 | G87: 0.0113 | H87: -0.0001 | I87: 0.0112
C88: EDELNOR | E88: 1.1443 | F88: 1.0038 | G88: 1.1486 | H88: -0.0465 | I88: 1.1021
C89: HIDRANDINA | E89: 0.0031 | F89: 1.0038 | G89: 0.0031 | H89: 0 | I89: 0.0031
C90: REP | E90: 0.0129 | F90: 1.0038 | G90: 0.0129 | H90: -0.0001 | I90: 0.0128
C91: REP_AdicRAG | E91: 0.0072 | F91: 1.0038 | G91: 0.0072 | H91: -0.0001 | I91: 0.0071
C92: Resolucion OSINERGMIN N° 015-2012 OS/CD. (Peaje Unitario por Compensación) | E92: 0.492 | F92: 1 | G92: 0.492 | H92: 0 | I92: 0.492
C93: TOTAL ÁREA | E93: =SUM(E86:E92) -> 1.6721 | G93: =SUM(G86:G92) -> 1.6764 | H93: -0.0468 | I93: 1.6296
B94: 7 | C94: EDECAÑETE | E94: 0.0232 | F94: 1.0055 | G94: =+ROUND(E94*F94,4) -> 0.0233 | H94: -0.0044 | I94: 0.0189
C95: LUZ DEL SUR | E95: 1.0987 | F95: 1.0055 | G95: =+ROUND(E95*F95,4) -> 1.1047 | H95: -0.1348 | I95: 0.9699
C96: REP | E96: 0.0118 | F96: 1.0055 | G96: =+ROUND(E96*F96,4) -> 0.0119 | H96: -0.0002 | I96: 0.0117
C97: Resolucion OSINERGMIN N° 015-2012 OS/CD. (Peaje Unitario por Compensación) | E97: 0.492 | F97: 1 | G97: =+ROUND(E97*F97,4) -> 0.492 | H97: 0 | I97: 0.492
C98: TOTAL ÁREA | E98: =SUM(E94:E97) -> 1.6257 | G98: =SUM(G94:G97) -> 1.6319 | H98: -0.1394 | I98: 1.4925
B99: 8 | C99: ADINELSA | E99: 0.0029 | F99: 1.0327 | G99: =+ROUND(E99*F99,4) -> 0.003 | H99: -0.0001 | I99: 0.0029
C100: COELVISAC | E100: 0.094 | F100: 1.0327 | G100: 0.0971 | H100: -0.0061 | I100: 0.091
C101: ELECTRO SUR MEDIO | E101: 0.9611 | F101: 1.0327 | G101: 0.9925 | H101: -0.0677 | I101: 0.9248
C102: ISA | E102: 0 | F102: 0.8355 | G102: 0 | H102: 0 | I102: 0
C103: REP | E103: 0.5249 | F103: 1.0327 | G103: 0.5421 | H103: 0.0125 | I103: 0.5546
C104: SEAL | E104: 0.0078 | F104: 1.0327 | G104: =+ROUND(E104*F104,4) -> 0.0081 | H104: -0.0004 | I104: =+H104+G104 -> 0.0077
C105: REP_AdicRAG | E105: 0.4656 | F105: 1.0327 | G105: 0.4808 | H105: -0.0123 | I105: 0.4685
C106: SCT Transmantaro (Linea Independencia - Ica) (*) | E106: 0.1935 | F106: 0.8355 | G106: =+ROUND(E106*F106,4) -> 0.1617 | H106: -0.0376 | I106: =+H106+G106 -> 0.1241
C107: TOTAL ÁREA | E107: =SUM(E99:E106) -> 2.2498 | G107: =SUM(G99:G106) -> 2.2853 | H107: -0.1117 | I107: 2.1736
B108: 9 | C108: CONENHUA | E108: 0.0416 | F108: 1.0267 | G108: =+ROUND(E108*F108,4) -> 0.0427 | H108: -0.0027 | I108: 0.04
C109: EGASA | E109: 0.0851 | F109: 1.0267 | G109: =+ROUND(E109*F109,4) -> 0.0874 | H109: -0.0037 | I109: 0.0837
C110: ELECTROSUR | E110: 0.0069 | F110: 1.0267 | G110: =+ROUND(E110*F110,4) -> 0.0071 | H110: -0.0002 | I110: 0.0069
C111: REP | E111: 0.0242 | F111: 1.0267 | G111: =+ROUND(E111*F111,4) -> 0.0248 | H111: -0.0009 | I111: 0.0239
C112: SEAL | E112: 0.965 | F112: 1.0267 | G112: =+ROUND(E112*F112,4) -> 0.9908 | H112: -0.1205 | I112: 0.8703
C113: TOTAL ÁREA | E113: =SUM(E108:E112) -> 1.1228 | G113: =SUM(G108:G112) -> 1.1528 | H113: =SUM(H108:H112) -> -0.128 | I113: 1.0248
B114: 10 | C114: EGEMSA | E114: 0.2187 | F114: 1.0281 | G114: =+ROUND(E114*F114,4) -> 0.2248 | H114: -0.0196 | I114: 0.2052
C115: ELECTRO SUR ESTE | E115: 1.3214 | F115: 1.0281 | G115: =+ROUND(E115*F115,4) -> 1.3585 | H115: -0.029 | I115: 1.3295
C116: REP | E116: 0.2281 | F116: 1.0281 | G116: =+ROUND(E116*F116,4) -> 0.2345 | H116: 0.0276 | I116: 0.2621
C117: TOTAL ÁREA | E117: =SUM(E114:E116) -> 1.7682 | G117: =SUM(G114:G116) -> 1.8178 | H117: -0.021 | I117: 1.7968
B118: 11 | C118: ELECTRO PUNO | E118: 1.0725 | F118: 1.0424 | G118: =+ROUND(E118*F118,4) -> 1.118 | H118: 0.0959 | I118: 1.2139
C119: REP | E119: 0.8539 | F119: 1.0424 | G119: =+ROUND(E119*F119,4) -> 0.8901 | H119: 0.0645 | I119: 0.9546
C120: TOTAL ÁREA | E120: =SUM(E118:E119) -> 1.9264 | G120: =SUM(G118:G119) -> 2.0081 | H120: 0.1604 | I120: 2.1685
B121: 12 | C121: ELECTROSUR | E121: 1.2042 | F121: 0.9743 | G121: =+ROUND(E121*F121,4) -> 1.1733 | H121: 0.2104 | I121: 1.3837
C122: ENERSUR | E122: 0.4496 | F122: 0.9743 | G122: =+ROUND(E122*F122,4) -> 0.438 | H122: -0.0405 | I122: 0.3975
C123: SOUTHERN PERÚ | E123: 0 | F123: 0.9743 | G123: =+ROUND(E123*F123,4) -> 0 | H123: -0.0067 | I123: -0.0067
C124: TOTAL ÁREA | E124: =SUM(E121:E123) -> 1.6538 | G124: =SUM(G121:G123) -> 1.6113 | H124: 0.1632 | I124: 1.7745
B125: 13 | C125: EGESUR | E125: 0.0089 | F125: 1.0362 | G125: =+ROUND(E125*F125,4) -> 0.0092 | H125: -0.0001 | I125: =+H125+G125 -> 0.0091
C126: ELECTROSUR | E126: 0.9158 | F126: 1.0362 | G126: =+ROUND(E126*F126,4) -> 0.949 | H126: -0.0222 | I126: 0.9268
C127: TOTAL ÁREA | E127: =SUM(E125:E126) -> 0.9247 | G127: =SUM(G125:G126) -> 0.9582 | H127: -0.0223 | I127: 0.9359
B128: 14 | C128: ELECTRO UCAYALI | E128: 0.847 | F128: 1.0608 | G128: =+ROUND(E128*F128,4) -> 0.8985 | H128: -0.0145 | I128: 0.884
C129: TOTAL ÁREA | E129: =SUM(E128) -> 0.847 | G129: =SUM(G128) -> 0.8985 | H129: -0.0145 | I129: 0.884
B130: 15 | C130: REP | E130: 0.0645 | F130: 1.0059 | G130: =+ROUND(E130*F130,4) -> 0.0649 | H130: -0.0009 | I130: 0.064
C131: TOTAL ÁREA | E131: =SUM(E130) -> 0.0645 | G131: =SUM(G130) -> 0.0649 | H131: -0.0009 | I131: 0.064
B132: (*) Valores Base en Res. 076-2011-OS/CD, Res. 059-2012-OS/CD. Fórmula de Actualización en Res. 121-2011-OS/CD, Última actualización en Res. 130-2012-OS/CD
B133: PEAJE TOTAL POR ÁREA DE DEMANDA (CPSEE - ctm. S/./kW.h)
B134: Resolución OSINERGMIN Nº 184-2009-OS/CD-Cuadro 5.1 (Pag. 227). Incluye Res. Nº 059-2012-OS/CD
B135: =+CONCATENATE("Actualizado al ",TEXT(Vigencia,"dd/mmmm/yyyy")) -> Actualizado al 01/Mayo/2012
B136: Sistemas Eléctricos a los que se aplica el cargo | C136: Titular de Transmisión/Barra-Tensión/Sistemas Eléctricos[1]/Instalaciones | D136: Base | E136: FA | F136: Actualizado
B137: Tacna, Tomasiri, Yarada y Tarata | C137: SST Tacna (Los Héroes) - Transf. 220/66/10 kV; 50 MVA | D137: 0.4727 | E137: 0.8355 | F137: =+D137*E137 -> 0.39494085
B138: Pucallpa, Campo Verde | C138: SST Aguaytía-Pucallpa, S.E. Aguaytía 220/138/22,9 kV, S.E. Pucallpa 138/60/10 kV, Reactor 8 MVAR | D138: 1.6987 | E138: 0.8355 | F138: =+D138*E138 -> 1.41926385
B139: 1] El cargo CPSEE se aplica únicamente a los sistemas eléctricos indicados y no a toda el Área de Demanda en la que se encuentran.
B140: [2] Los cargos correspondientes a estas instalaciones son el resultado de la liquidación anual de los respectivos contratos BOOT.
B143: Anexo 6 (Factores de Expansión de Pérdidas Medias Media Tension)
B144: Resolución OSINERGMIN Nº 184-2009-OS/CD modificado por R.279-2009 | F144: Factores aplicables para compras en AT (/1)
B145: Área de Demanda | C145: FPMdP | D145: FPMdE | F145: FPMdP | G145: FPMdE
B146: 1 | C146: 1.0277 | D146: 1.0261 | F146: =IF(C165=1,C146,E165/D165) -> 1.0277 | G146: =IF(H165=1,D146,J165/I165) -> 1.0261
B147: 2 | C147: 1.0303 | D147: 1.0262 | F147: =IF(C166=1,C147,E166/D166) -> 1.00625061 | G147: 1.004699432
B148: 3 | C148: 1.0231 | D148: 1.0187 | F148: 1.004911109 | G148: 1.00413997
B149: 4 | C149: 1.0163 | D149: 1.0108 | F149: 1.0163 | G149: 1.0108
B150: 5 | C150: 1.0248 | D150: 1.0224 | F150: 1.006185567 | G150: 1.005903188
B151: 6 | C151: 1.0224 | D151: 1.0196 | F151: 1.00748916 | G151: 1.006614671
B152: 7 | C152: 1.0266 | D152: 1.027 | F152: 1.006964198 | G152: 1.007158968
B153: 8 | C153: 1.0358 | D153: 1.0345 | F153: 1.0358 | G153: 1.0345
B154: 9 | C154: 1.0327 | D154: 1.0292 | F154: 1.006039942 | G154: 1.005569126
B155: 10 | C155: 1.0139 | D155: 1.0127 | F155: 1.004458094 | G155: 1.005061532
B156: 11 | C156: 1.0267 | D156: 1.0166 | F156: 1.0267 | G156: 1.0166
B157: 12 | C157: 1.004 | D157: 1.0043 | F157: 1.004 | G157: 1.0043
B158: 13 | C158: 1.0275 | D158: 1.0179 | F158: 1.0275 | G158: 1.0179
B159: 14 | C159: 1.0148 | D159: 1.0121 | F159: 1.0148 | G159: 1.0121
F160: (/1) Referencia: Ultimo párrafo, Artículo 43 y numeral 19.5 de la Resolución OSINERGMIN 023-2008 OS/CD
B163: FPMdP | G163: FPMdE
B164: a de Demanda | C164: Acumulado en MAT | D164: Acumulado en AT | E164: Acumulado en MT | G164: a de Demanda | H164: Acumulado en MAT | I164: Acumulado en AT | J164: Acumulado en MT
B165: 1 | C165: 1 | D165: 1.0219 | E165: 1.0277 | G165: 1 | H165: 1 | I165: 1.0212 | J165: 1.0261
B166: 2 | C166: 1.001 | D166: 1.0239 | E166: 1.0303 | G166: 2 | H166: 1.0007 | I166: 1.0214 | J166: 1.0262
B167: 3 | C167: 1.0041 | D167: 1.0181 | E167: 1.0231 | G167: 3 | H167: 1.003 | I167: 1.0145 | J167: 1.0187
B168: 4 | C168: 1 | D168: 1.012 | E168: 1.0163 | G168: 4 | H168: 1 | I168: 1.008 | J168: 1.0108
B169: 5 | C169: 1.0014 | D169: 1.0185 | E169: 1.0248 | G169: 5 | H169: 1.0013 | I169: 1.0164 | J169: 1.0224
B170: 6 | C170: 1.0011 | D170: 1.0148 | E170: 1.0224 | G170: 6 | H170: 1.001 | I170: 1.0129 | J170: 1.0196
B171: 7 | C171: 1.0016 | D171: 1.0195 | E171: 1.0266 | G171: 7 | H171: 1.0017 | I171: 1.0197 | J171: 1.027
B172: 8 | C172: 1 | D172: 1.0315 | E172: 1.0358 | G172: 8 | H172: 1 | I172: 1.0313 | J172: 1.0345
B173: 9 | C173: 1.0029 | D173: 1.0265 | E173: 1.0327 | G173: 9 | H173: 1.0027 | I173: 1.0235 | J173: 1.0292
B174: 10 | C174: 1.0022 | D174: 1.0094 | E174: 1.0139 | G174: 10 | H174: 1.0015 | I174: 1.0076 | J174: 1.0127
B175: 11 | C175: 1 | D175: 1.0239 | E175: 1.0267 | G175: 11 | H175: 1 | I175: 1.0148 | J175: 1.0166
B176: 12 | C176: 1 | D176: 1.0005 | E176: 1.004 | G176: 12 | H176: 1 | I176: 1.0002 | J176: 1.0043
B177: 13 | C177: 1 | D177: 1.0169 | E177: 1.0275 | G177: 13 | H177: 1 | I177: 1.0103 | J177: 1.0179
B178: 14 | C178: 1 | D178: 1.0069 | E178: 1.0148 | G178: 14 | H178: 1 | I178: 1.0059 | J178: 1.0121

Sheet PBEMT
B1: 1 | C1: 2 | D1: 3 | E1: 4 | F1: 5 | G1: 6 | H1: 7 | I1: 8 | J1: 9 | K1: 10 | L1: 11 | M1: 12 | N1: 13 | O1: 14 | P1: 15 | Q1: 16 | R1: 17 | S1: 18 | T1: 19 | U1: 20 | V1: 21 | W1: 22 | X1: 23 | Y1: 24 | Z1: 25
B3: PRECIOS EN BARRA EQUIVALENTE DE MEDIA TENSIÓN
I5: Precios en Barra de Referencia | N5: Transmisión Secundaria | Q5: Comparación de Precios Medios en PBEMT | V5: Precios en Barra Equivalente de Media Tensión
A6: IGV | B6: CODIGO DEL PLIEGO TARIFARIO | C6: NOMBRE DEL PLIEGO TARIFARIO | D6: EMPRESA | E6: SECTOR | F6: VAD_SELVA | G6: Interconectado | H6: AreaDemanda | I6: Barra de Referencia | J6: Tensión kV | K6: Potencia S/./kW-mes | L6: Energía HP ctm. S/./kW.h | M6: Energía HFP ctm. S/./kW.h | N6: FPME | O6: FPMP | P6: P.AREA DEM. (ctm. S/./kW.h) | Q6: Potencia S/./kW-mes | R6: Energía HP ctm. S/./kW.h | S6: Energía HFP ctm. S/./kW.h | T6: PBEMT | U6: Precio Medio Sistema Aislado | V6: Potencia S/./kW-mes | W6: Energía HP ctm. S/./kW.h | X6: Energía HFP ctm. S/./kW.h | Y6: Precio Medio | Z6: FBP
A7: FALSE | B7: PR0268 | C7: SER PSE HUAURA SAYÁN | D7: ADIL | E7: SER | F7: FALSE | G7: SEIN | H7: 6 | I7: HUACHO | J7: 220 | K7: =VLOOKUP(CONCATENATE(I7,"-",J7),PNG_Actualizado!$H$11:$V$111,10,FALSE)*IF(A7,FIGV,1) -> 25.91 | L7: =VLOOKUP(CONCATENATE(I7,"-",J7),PNG_Actualizado!$H$11:$V$111,11,FALSE)*IF(A7,FIGV,1) -> 13.11 | M7: =VLOOKUP(CONCATENATE(I7,"-",J7),PNG_Actualizado!$H$11:$V$111,12,FALSE)*IF(A7,FIGV,1) -> 11 | N7: =IF(G7="SEIN",VLOOKUP(H7,FPMdPFPMdE,3,FALSE),1) -> 1.0196 | O7: =IF(G7="SEIN",VLOOKUP(H7,FPMdPFPMdE,2,FALSE),1) -> 1.0224 | P7: =IF(G7="SEIN",VLOOKUP(H7,PTS_AcumuladoMT,4,FALSE),0) -> 1.6296 | Q7: =+K7*O7 -> 26.490384 | R7: =+((L7-VLOOKUP(CONCATENATE(I7,"-",J7),PNG_Actualizado!$H$11:$O$111,8,FALSE))*N7+P7+VLOOKUP(CONCATENATE(I7,"-",J7),PNG_Actualizado!$H$11:$V$111,8,FALSE))+IF(G7="SEIN",Area_15,0)*IF(A7,FIGV,1) -> 15.060556 | S7: =+((M7-VLOOKUP(CONCATENATE(I7,"-",J7),PNG_Actualizado!$H$11:$O$111,8,FALSE))*N7+P7+VLOOKUP(CONCATENATE(I7,"-",J7),PNG_Actualizado!$H$11:$V$111,8,FALSE))+IF(G7="SEIN",Area_15,0)*IF(A7,FIGV,1) -> 12.9092 | T7: =Q7/720/0.55*100+0.35*R7+0.65*S7 -> 20.35166551 | U7: =+PNG_Actualizado!$U$126 -> 71.77763636 | V7: =IF(AND($T7>$U7,G7="SEIN"),$T7/$U7*Q7,Q7) -> 26.490384 | W7: =IF(AND($T7>$U7,H7="SEIN"),$T7/$U7*R7,R7) -> 15.060556 | X7: =IF(AND($T7>$U7,I7="SEIN"),$T7/$U7*S7,S7) -> 12.9092 | Y7: =V7/720/0.55*100+0.35*W7+0.65*X7 -> 20.35166551 | Z7: =+IF(ISERROR(VLOOKUP(C7,VAD_VARIOS!$C$5:$D$37,2,FALSE)),1,VLOOKUP(C7,VAD_VARIOS!$C$5:$D$37,2,FALSE)) -> 1
A8: FALSE | B8: PR0269 | C8: SER PSE YAUCA DEL ROSARIO | D8: ADIL | E8: SER | F8: FALSE | G8: SEIN | H8: 8 | I8: ICA | J8: 220 | K8: =VLOOKUP(CONCATENATE(I8,"-",J8),PNG_Actualizado!$H$11:$V$111,10,FALSE)*IF(A8,FIGV,1) -> 25.91 | L8: =VLOOKUP(CONCATENATE(I8,"-",J8),PNG_Actualizado!$H$11:$V$111,11,FALSE)*IF(A8,FIGV,1) -> 12.87 | M8: =VLOOKUP(CONCATENATE(I8,"-",J8),PNG_Actualizado!$H$11:$V$111,12,FALSE)*IF(A8,FIGV,1) -> 10.83 | N8: 1.0345 | O8: 1.0358 | P8: 2.1736 | Q8: 26.837578 | R8: =+((L8-VLOOKUP(CONCATENATE(I8,"-",J8),PNG_Actualizado!$H$11:$O$111,8,FALSE))*N8+P8+VLOOKUP(CONCATENATE(I8,"-",J8),PNG_Actualizado!$H$11:$V$111,8,FALSE))+IF(G8="SEIN",Area_15,0)*IF(A8,FIGV,1) -> 15.551615 | S8: =+((M8-VLOOKUP(CONCATENATE(I8,"-",J8),PNG_Actualizado!$H$11:$O$111,8,FALSE))*N8+P8+VLOOKUP(CONCATENATE(I8,"-",J8),PNG_Actualizado!$H$11:$V$111,8,FALSE))+IF(G8="SEIN",Area_15,0)*IF(A8,FIGV,1) -> 13.441235 | T8: 20.95703416 | U8: =+PNG_Actualizado!$U$126 -> 71.77763636 | V8: 26.837578 | W8: 15.551615 | X8: 13.441235 | Y8: 20.95703416 | Z8: =+IF(ISERROR(VLOOKUP(C8,VAD_VARIOS!$C$5:$D$37,2,FALSE)),1,VLOOKUP(C8,VAD_VARIOS!$C$5:$D$37,2,FALSE)) -> 1
A9: FALSE | B9: PL0197 | C9: PSE GRACIAS A DIOS | D9: ADIL | E9: 5 | F9: FALSE | G9: AISL | I9: Adinelsa | J9: MT | K9: =VLOOKUP(CONCATENATE(I9,"-",J9),PNG_Actualizado!$H$11:$V$111,10,FALSE)*IF(A9,FIGV,1) -> 17.28 | L9: =VLOOKUP(CONCATENATE(I9,"-",J9),PNG_Actualizado!$H$11:$V$111,11,FALSE)*IF(A9,FIGV,1) -> 17.75 | M9: =VLOOKUP(CONCATENATE(I9,"-",J9),PNG_Actualizado!$H$11:$V$111,12,FALSE)*IF(A9,FIGV,1) -> 17.75 | N9: 1 | O9: 1 | P9: 0 | Q9: 17.28 | R9: =+((L9-VLOOKUP(CONCATENATE(I9,"-",J9),PNG_Actualizado!$H$11:$O$111,8,FALSE))*N9+P9+VLOOKUP(CONCATENATE(I9,"-",J9),PNG_Actualizado!$H$11:$V$111,8,FALSE))+IF(G9="SEIN",Area_15,0)*IF(A9,FIGV,1) -> 17.75 | S9: =+((M9-VLOOKUP(CONCATENATE(I9,"-",J9),PNG_Actualizado!$H$11:$O$111,8,FALSE))*N9+P9+VLOOKUP(CONCATENATE(I9,"-",J9),PNG_Actualizado!$H$11:$V$111,8,FALSE))+IF(G9="SEIN",Area_15,0)*IF(A9,FIGV,1) -> 17.75 | T9: 22.11363636 | U9: =+PNG_Actualizado!$U$126 -> 71.77763636 | V9: 17.28 | W9: 17.75 | X9: 17.75 | Y9: 22.11363636 | Z9: =+IF(ISERROR(VLOOKUP(C9,VAD_VARIOS!$C$5:$D$37,2,FALSE)),1,VLOOKUP(C9,VAD_VARIOS!$C$5:$D$37,2,FALSE)) -> 1
A10: FALSE | B10: PR0198 | C10: PSE CANGALLO-ASQUIPATA | D10: ADIL | E10: SER | F10: FALSE | G10: SEIN | H10: 10 | I10: Cachimayo | J10: 138 | K10: =VLOOKUP(CONCATENATE(I10,"-",J10),PNG_Actualizado!$H$11:$V$111,10,FALSE)*IF(A10,FIGV,1) -> 25.91 | L10: =VLOOKUP(CONCATENATE(I10,"-",J10),PNG_Actualizado!$H$11:$V$111,11,FALSE)*IF(A10,FIGV,1) -> 14.9 | M10: =VLOOKUP(CONCATENATE(I10,"-",J10),PNG_Actualizado!$H$11:$V$111,12,FALSE)*IF(A10,FIGV,1) -> 11.85 | N10: 1.0127 | O10: 1.0139 | P10: 1.7968 | Q10: 26.270149 | R10: =+((L10-VLOOKUP(CONCATENATE(I10,"-",J10),PNG_Actualizado!$H$11:$O$111,8,FALSE))*N10+P10+VLOOKUP(CONCATENATE(I10,"-",J10),PNG_Actualizado!$H$11:$V$111,8,FALSE))+IF(G10="SEIN",Area_15,0)*IF(A10,FIGV,1) -> 16.95003 | S10: =+((M10-VLOOKUP(CONCATENATE(I10,"-",J10),PNG_Actualizado!$H$11:$O$111,8,FALSE))*N10+P10+VLOOKUP(CONCATENATE(I10,"-",J10),PNG_Actualizado!$H$11:$V$111,8,FALSE))+IF(G10="SEIN",Area_15,0)*IF(A10,FIGV,1) -> 13.861295 | T10: 21.57622826 | U10: =+PNG_Actualizado!$U$126 -> 71.77763636 | V10: 26.270149 | W10: 16.95003 | X10: 13.861295 | Y10: 21.57622826 | Z10: =+IF(ISERROR(VLOOKUP(C10,VAD_VARIOS!$C$5:$D$37,2,FALSE)),1,VLOOKUP(C10,VAD_VARIOS!$C$5:$D$37,2,FALSE)) -> 1
A11: FALSE | B11: PR0201 | C11: PSE SANTA LEONOR | D11: ADIL | E11: SER | F11: FALSE | G11: AISL | I11: Adinelsa | J11: MT | K11: =VLOOKUP(CONCATENATE(I11,"-",J11),PNG_Actualizado!$H$11:$V$111,10,FALSE)*IF(A11,FIGV,1) -> 17.28 | L11: =VLOOKUP(CONCATENATE(I11,"-",J11),PNG_Actualizado!$H$11:$V$111,11,FALSE)*IF(A11,FIGV,1) -> 17.75 | M11: =VLOOKUP(CONCATENATE(I11,"-",J11),PNG_Actualizado!$H$11:$V$111,12,FALSE)*IF(A11,FIGV,1) -> 17.75 | N11: 1 | O11: 1 | P11: 0 | Q11: 17.28 | R11: =+((L11-VLOOKUP(CONCATENATE(I11,"-",J11),PNG_Actualizado!$H$11:$O$111,8,FALSE))*N11+P11+VLOOKUP(CONCATENATE(I11,"-",J11),PNG_Actualizado!$H$11:$V$111,8,FALSE))+IF(G11="SEIN",Area_15,0)*IF(A11,FIGV,1) -> 17.75 | S11: =+((M11-VLOOKUP(CONCATENATE(I11,"-",J11),PNG_Actualizado!$H$11:$O$111,8,FALSE))*N11+P11+VLOOKUP(CONCATENATE(I11,"-",J11),PNG_Actualizado!$H$11:$V$111,8,FALSE))+IF(G11="SEIN",Area_15,0)*IF(A11,FIGV,1) -> 17.75 | T11: 22.11363636 | U11: =+PNG_Actualizado!$U$126 -> 71.77763636 | V11: 17.28 | W11: 17.75 | X11: 17.75 | Y11: 22.11363636 | Z11: =+IF(ISERROR(VLOOKUP(C11,VAD_VARIOS!$C$5:$D$37,2,FALSE)),1,VLOOKUP(C11,VAD_VARIOS!$C$5:$D$37,2,FALSE)) -> 1
A12: FALSE | B12: PR0202 | C12: PSE HONGOS | D12: ADIL | E12: SER | F12: FALSE | G12: AISL | I12: Adinelsa | J12: MT | K12: =VLOOKUP(CONCATENATE(I12,"-",J12),PNG_Actualizado!$H$11:$V$111,10,FALSE)*IF(A12,FIGV,1) -> 17.28 | L12: =VLOOKUP(CONCATENATE(I12,"-",J12),PNG_Actualizado!$H$11:$V$111,11,FALSE)*IF(A12,FIGV,1) -> 17.75 | M12: =VLOOKUP(CONCATENATE(I12,"-",J12),PNG_Actualizado!$H$11:$V$111,12,FALSE)*IF(A12,FIGV,1) -> 17.75 | N12: 1 | O12: 1 | P12: 0 | Q12: 17.28 | R12: =+((L12-VLOOKUP(CONCATENATE(I12,"-",J12),PNG_Actualizado!$H$11:$O$111,8,FALSE))*N12+P12+VLOOKUP(CONCATENATE(I12,"-",J12),PNG_Actualizado!$H$11:$V$111,8,FALSE))+IF(G12="SEIN",Area_15,0)*IF(A12,FIGV,1) -> 17.75 | S12: =+((M12-VLOOKUP(CONCATENATE(I12,"-",J12),PNG_Actualizado!$H$11:$O$111,8,FALSE))*N12+P12+VLOOKUP(CONCATENATE(I12,"-",J12),PNG_Actualizado!$H$11:$V$111,8,FALSE))+IF(G12="SEIN",Area_15,0)*IF(A12,FIGV,1) -> 17.75 | T12: 22.11363636 | U12: =+PNG_Actualizado!$U$126 -> 71.77763636 | V12: 17.28 | W12: 17.75 | X12: 17.75 | Y12: 22.11363636 | Z12: =+IF(ISERROR(VLOOKUP(C12,VAD_VARIOS!$C$5:$D$37,2,FALSE)),1,VLOOKUP(C12,VAD_VARIOS!$C$5:$D$37,2,FALSE)) -> 1
A13: FALSE | B13: PR0203 | C13: PSE QUINCHES | D13: ADIL | E13: SER | F13: FALSE | G13: AISL | I13: Adinelsa | J13: MT | K13: =VLOOKUP(CONCATENATE(I13,"-",J13),PNG_Actualizado!$H$11:$V$111,10,FALSE)*IF(A13,FIGV,1) -> 17.28 | L13: =VLOOKUP(CONCATENATE(I13,"-",J13),PNG_Actualizado!$H$11:$V$111,11,FALSE)*IF(A13,FIGV,1) -> 17.75 | M13: =VLOOKUP(CONCATENATE(I13,"-",J13),PNG_Actualizado!$H$11:$V$111,12,FALSE)*IF(A13,FIGV,1) -> 17.75 | N13: 1 | O13: 1 | P13: 0 | Q13: 17.28 | R13: =+((L13-VLOOKUP(CONCATENATE(I13,"-",J13),PNG_Actualizado!$H$11:$O$111,8,FALSE))*N13+P13+VLOOKUP(CONCATENATE(I13,"-",J13),PNG_Actualizado!$H$11:$V$111,8,FALSE))+IF(G13="SEIN",Area_15,0)*IF(A13,FIGV,1) -> 17.75 | S13: =+((M13-VLOOKUP(CONCATENATE(I13,"-",J13),PNG_Actualizado!$H$11:$O$111,8,FALSE))*N13+P13+VLOOKUP(CONCATENATE(I13,"-",J13),PNG_Actualizado!$H$11:$V$111,8,FALSE))+IF(G13="SEIN",Area_15,0)*IF(A13,FIGV,1) -> 17.75 | T13: 22.11363636 | U13: =+PNG_Actualizado!$U$126 -> 71.77763636 | V13: 17.28 | W13: 17.75 | X13: 17.75 | Y13: 22.11363636 | Z13: =+IF(ISERROR(VLOOKUP(C13,VAD_VARIOS!$C$5:$D$37,2,FALSE)),1,VLOOKUP(C13,VAD_VARIOS!$C$5:$D$37,2,FALSE)) -> 1
A14: FALSE | B14: PR0204 | C14: PSE CANTA | D14: ADIL | E14: SER | F14: FALSE | G14: AISL | I14: Adinelsa | J14: MT | K14: =VLOOKUP(CONCATENATE(I14,"-",J14),PNG_Actualizado!$H$11:$V$111,10,FALSE)*IF(A14,FIGV,1) -> 17.28 | L14: =VLOOKUP(CONCATENATE(I14,"-",J14),PNG_Actualizado!$H$11:$V$111,11,FALSE)*IF(A14,FIGV,1) -> 17.75 | M14: =VLOOKUP(CONCATENATE(I14,"-",J14),PNG_Actualizado!$H$11:$V$111,12,FALSE)*IF(A14,FIGV,1) -> 17.75 | N14: 1 | O14: 1 | P14: 0 | Q14: 17.28 | R14: =+((L14-VLOOKUP(CONCATENATE(I14,"-",J14),PNG_Actualizado!$H$11:$O$111,8,FALSE))*N14+P14+VLOOKUP(CONCATENATE(I14,"-",J14),PNG_Actualizado!$H$11:$V$111,8,FALSE))+IF(G14="SEIN",Area_15,0)*IF(A14,FIGV,1) -> 17.75 | S14: =+((M14-VLOOKUP(CONCATENATE(I14,"-",J14),PNG_Actualizado!$H$11:$O$111,8,FALSE))*N14+P14+VLOOKUP(CONCATENATE(I14,"-",J14),PNG_Actualizado!$H$11:$V$111,8,FALSE))+IF(G14="SEIN",Area_15,0)*IF(A14,FIGV,1) -> 17.75 | T14: 22.11363636 | U14: =+PNG_Actualizado!$U$126 -> 71.77763636 | V14: 17.28 | W14: 17.75 | X14: 17.75 | Y14: 22.11363636 | Z14: =+IF(ISERROR(VLOOKUP(C14,VAD_VARIOS!$C$5:$D$37,2,FALSE)),1,VLOOKUP(C14,VAD_VARIOS!$C$5:$D$37,2,FALSE)) -> 1
A15: FALSE | B15: PR0205 | C15: PSE CAJATAMBO | D15: ADIL | E15: SER | F15: FALSE | G15: AISL | I15: Adinelsa | J15: MT | K15: =VLOOKUP(CONCATENATE(I15,"-",J15),PNG_Actualizado!$H$11:$V$111,10,FALSE)*IF(A15,FIGV,1) -> 17.28 | L15: =VLOOKUP(CONCATENATE(I15,"-",J15),PNG_Actualizado!$H$11:$V$111,11,FALSE)*IF(A15,FIGV,1) -> 17.75 | M15: =VLOOKUP(CONCATENATE(I15,"-",J15),PNG_Actualizado!$H$11:$V$111,12,FALSE)*IF(A15,FIGV,1) -> 17.75 | N15: 1 | O15: 1 | P15: 0 | Q15: 17.28 | R15: =+((L15-VLOOKUP(CONCATENATE(I15,"-",J15),PNG_Actualizado!$H$11:$O$111,8,FALSE))*N15+P15+VLOOKUP(CONCATENATE(I15,"-",J15),PNG_Actualizado!$H$11:$V$111,8,FALSE))+IF(G15="SEIN",Area_15,0)*IF(A15,FIGV,1) -> 17.75 | S15: =+((M15-VLOOKUP(CONCATENATE(I15,"-",J15),PNG_Actualizado!$H$11:$O$111,8,FALSE))*N15+P15+VLOOKUP(CONCATENATE(I15,"-",J15),PNG_Actualizado!$H$11:$V$111,8,FALSE))+IF(G15="SEIN",Area_15,0)*IF(A15,FIGV,1) -> 17.75 | T15: 22.11363636 | U15: =+PNG_Actualizado!$U$126 -> 71.77763636 | V15: 17.28 | W15: 17.75 | X15: 17.75 | Y15: 22.11363636 | Z15: =+IF(ISERROR(VLOOKUP(C15,VAD_VARIOS!$C$5:$D$37,2,FALSE)),1,VLOOKUP(C15,VAD_VARIOS!$C$5:$D$37,2,FALSE)) -> 1
A16: FALSE | B16: PR0206 | C16: PSE HUAROCHIRI | D16: ADIL | E16: SER | F16: FALSE | G16: SEIN | H16: 7 | I16: Lima | J16: 220 | K16: =VLOOKUP(CONCATENATE(I16,"-",J16),PNG_Actualizado!$H$11:$V$111,10,FALSE)*IF(A16,FIGV,1) -> 25.91 | L16: =VLOOKUP(CONCATENATE(I16,"-",J16),PNG_Actualizado!$H$11:$V$111,11,FALSE)*IF(A16,FIGV,1) -> 12.92 | M16: =VLOOKUP(CONCATENATE(I16,"-",J16),PNG_Actualizado!$H$11:$V$111,12,FALSE)*IF(A16,FIGV,1) -> 10.81 | N16: 1.027 | O16: 1.0266 | P16: 1.4925 | Q16: 26.599206 | R16: =+((L16-VLOOKUP(CONCATENATE(I16,"-",J16),PNG_Actualizado!$H$11:$O$111,8,FALSE))*N16+P16+VLOOKUP(CONCATENATE(I16,"-",J16),PNG_Actualizado!$H$11:$V$111,8,FALSE))+IF(G16="SEIN",Area_15,0)*IF(A16,FIGV,1) -> 14.82534 | S16: =+((M16-VLOOKUP(CONCATENATE(I16,"-",J16),PNG_Actualizado!$H$11:$O$111,8,FALSE))*N16+P16+VLOOKUP(CONCATENATE(I16,"-",J16),PNG_Actualizado!$H$11:$V$111,8,FALSE))+IF(G16="SEIN",Area_15,0)*IF(A16,FIGV,1) -> 12.65837 | T16: 20.13378071 | U16: =+PNG_Actualizado!$U$126 -> 71.77763636 | V16: 26.599206 | W16: 14.82534 | X16: 12.65837 | Y16: 20.13378071 | Z16: =+IF(ISERROR(VLOOKUP(C16,VAD_VARIOS!$C$5:$D$37,2,FALSE)),1,VLOOKUP(C16,VAD_VARIOS!$C$5:$D$37,2,FALSE)) -> 1
A17: FALSE | B17: PR0207 | C17: PSE HUARMACA | D17: ADIL | E17: SER | F17: FALSE | G17: SEIN | H17: 1 | I17: Piura Oeste | J17: 220 | K17: =VLOOKUP(CONCATENATE(I17,"-",J17),PNG_Actualizado!$H$11:$V$111,10,FALSE)*IF(A17,FIGV,1) -> 25.91 | L17: =VLOOKUP(CONCATENATE(I17,"-",J17),PNG_Actualizado!$H$11:$V$111,11,FALSE)*IF(A17,FIGV,1) -> 14.41 | M17: =VLOOKUP(CONCATENATE(I17,"-",J17),PNG_Actualizado!$H$11:$V$111,12,FALSE)*IF(A17,FIGV,1) -> 12.08 | N17: 1.0261 | O17: 1.0277 | P17: 1.3702 | Q17: 26.627707 | R17: =+((L17-VLOOKUP(CONCATENATE(I17,"-",J17),PNG_Actualizado!$H$11:$O$111,8,FALSE))*N17+P17+VLOOKUP(CONCATENATE(I17,"-",J17),PNG_Actualizado!$H$11:$V$111,8,FALSE))+IF(G17="SEIN",Area_15,0)*IF(A17,FIGV,1) -> 16.220301 | S17: =+((M17-VLOOKUP(CONCATENATE(I17,"-",J17),PNG_Actualizado!$H$11:$O$111,8,FALSE))*N17+P17+VLOOKUP(CONCATENATE(I17,"-",J17),PNG_Actualizado!$H$11:$V$111,8,FALSE))+IF(G17="SEIN",Area_15,0)*IF(A17,FIGV,1) -> 13.829488 | T17: 21.39044098 | U17: =+PNG_Actualizado!$U$126 -> 71.77763636 | V17: 26.627707 | W17: 16.220301 | X17: 13.829488 | Y17: 21.39044098 | Z17: =+IF(ISERROR(VLOOKUP(C17,VAD_VARIOS!$C$5:$D$37,2,FALSE)),1,VLOOKUP(C17,VAD_VARIOS!$C$5:$D$37,2,FALSE)) -> 1
A18: FALSE | B18: PR0209 | C18: PSE QUICACHA | D18: ADIL | E18: SER | F18: FALSE | G18: AISL | I18: Adinelsa | J18: MT | K18: =VLOOKUP(CONCATENATE(I18,"-",J18),PNG_Actualizado!$H$11:$V$111,10,FALSE)*IF(A18,FIGV,1) -> 17.28 | L18: =VLOOKUP(CONCATENATE(I18,"-",J18),PNG_Actualizado!$H$11:$V$111,11,FALSE)*IF(A18,FIGV,1) -> 17.75 | M18: =VLOOKUP(CONCATENATE(I18,"-",J18),PNG_Actualizado!$H$11:$V$111,12,FALSE)*IF(A18,FIGV,1) -> 17.75 | N18: 1 | O18: 1 | P18: 0 | Q18: 17.28 | R18: =+((L18-VLOOKUP(CONCATENATE(I18,"-",J18),PNG_Actualizado!$H$11:$O$111,8,FALSE))*N18+P18+VLOOKUP(CONCATENATE(I18,"-",J18),PNG_Actualizado!$H$11:$V$111,8,FALSE))+IF(G18="SEIN",Area_15,0)*IF(A18,FIGV,1) -> 17.75 | S18: =+((M18-VLOOKUP(CONCATENATE(I18,"-",J18),PNG_Actualizado!$H$11:$O$111,8,FALSE))*N18+P18+VLOOKUP(CONCATENATE(I18,"-",J18),PNG_Actualizado!$H$11:$V$111,8,FALSE))+IF(G18="SEIN",Area_15,0)*IF(A18,FIGV,1) -> 17.75 | T18: 22.11363636 | U18: =+PNG_Actualizado!$U$126 -> 71.77763636 | V18: 17.28 | W18: 17.75 | X18: 17.75 | Y18: 22.11363636 | Z18: =+IF(ISERROR(VLOOKUP(C18,VAD_VARIOS!$C$5:$D$37,2,FALSE)),1,VLOOKUP(C18,VAD_VARIOS!$C$5:$D$37,2,FALSE)) -> 1
A19: FALSE | B19: PR0210 | C19: PSE CORACORA-MARCABAMBA | D19: ADIL | E19: SER | F19: FALSE | G19: SEIN | H19: 8 | I19: Marcona | J19: 220 | K19: =VLOOKUP(CONCATENATE(I19,"-",J19),PNG_Actualizado!$H$11:$V$111,10,FALSE)*IF(A19,FIGV,1) -> 25.91 | L19: =VLOOKUP(CONCATENATE(I19,"-",J19),PNG_Actualizado!$H$11:$V$111,11,FALSE)*IF(A19,FIGV,1) -> 13.08 | M19: =VLOOKUP(CONCATENATE(I19,"-",J19),PNG_Actualizado!$H$11:$V$111,12,FALSE)*IF(A19,FIGV,1) -> 10.98 | N19: 1.0345 | O19: 1.0358 | P19: 2.1736 | Q19: 26.837578 | R19: =+((L19-VLOOKUP(CONCATENATE(I19,"-",J19),PNG_Actualizado!$H$11:$O$111,8,FALSE))*N19+P19+VLOOKUP(CONCATENATE(I19,"-",J19),PNG_Actualizado!$H$11:$V$111,8,FALSE))+IF(G19="SEIN",Area_15,0)*IF(A19,FIGV,1) -> 15.76886 | S19: =+((M19-VLOOKUP(CONCATENATE(I19,"-",J19),PNG_Actualizado!$H$11:$O$111,8,FALSE))*N19+P19+VLOOKUP(CONCATENATE(I19,"-",J19),PNG_Actualizado!$H$11:$V$111,8,FALSE))+IF(G19="SEIN",Area_15,0)*IF(A19,FIGV,1) -> 13.59641 | T19: 21.13393366 | U19: =+PNG_Actualizado!$U$126 -> 71.77763636 | V19: 26.837578 | W19: 15.76886 | X19: 13.59641 | Y19: 21.13393366 | Z19: =+IF(ISERROR(VLOOKUP(C19,VAD_VARIOS!$C$5:$D$37,2,FALSE)),1,VLOOKUP(C19,VAD_VARIOS!$C$5:$D$37,2,FALSE)) -> 1
A20: FALSE | B20: PR0211 | C20: PSE HUMAY PAMPANO | D20: ADIL | E20: SER | F20: FALSE | G20: SEIN | H20: 8 | I20: Independencia | J20: 220 | K20: =VLOOKUP(CONCATENATE(I20,"-",J20),PNG_Actualizado!$H$11:$V$111,10,FALSE)*IF(A20,FIGV,1) -> 25.91 | L20: =VLOOKUP(CONCATENATE(I20,"-",J20),PNG_Actualizado!$H$11:$V$111,11,FALSE)*IF(A20,FIGV,1) -> 12.8 | M20: =VLOOKUP(CONCATENATE(I20,"-",J20),PNG_Actualizado!$H$11:$V$111,12,FALSE)*IF(A20,FIGV,1) -> 10.77 | N20: 1.0345 | O20: 1.0358 | P20: 2.1736 | Q20: 26.837578 | R20: =+((L20-VLOOKUP(CONCATENATE(I20,"-",J20),PNG_Actualizado!$H$11:$O$111,8,FALSE))*N20+P20+VLOOKUP(CONCATENATE(I20,"-",J20),PNG_Actualizado!$H$11:$V$111,8,FALSE))+IF(G20="SEIN",Area_15,0)*IF(A20,FIGV,1) -> 15.4792 | S20: =+((M20-VLOOKUP(CONCATENATE(I20,"-",J20),PNG_Actualizado!$H$11:$O$111,8,FALSE))*N20+P20+VLOOKUP(CONCATENATE(I20,"-",J20),PNG_Actualizado!$H$11:$V$111,8,FALSE))+IF(G20="SEIN",Area_15,0)*IF(A20,FIGV,1) -> 13.379165 | T20: 20.89134341 | U20: =+PNG_Actualizado!$U$126 -> 71.77763636 | V20: 26.837578 | W20: 15.4792 | X20: 13.379165 | Y20: 20.89134341 | Z20: =+IF(ISERROR(VLOOKUP(C20,VAD_VARIOS!$C$5:$D$37,2,FALSE)),1,VLOOKUP(C20,VAD_VARIOS!$C$5:$D$37,2,FALSE)) -> 1
A21: FALSE | B21: PL0212 | C21: PSE QUIPARACRA | D21: ADIL | E21: 4 | F21: FALSE | G21: SEIN | H21: 5 | I21: Yaupi | J21: 138 | K21: =VLOOKUP(CONCATENATE(I21,"-",J21),PNG_Actualizado!$H$11:$V$111,10,FALSE)*IF(A21,FIGV,1) -> 25.91 | L21: =VLOOKUP(CONCATENATE(I21,"-",J21),PNG_Actualizado!$H$11:$V$111,11,FALSE)*IF(A21,FIGV,1) -> 12.51 | M21: =VLOOKUP(CONCATENATE(I21,"-",J21),PNG_Actualizado!$H$11:$V$111,12,FALSE)*IF(A21,FIGV,1) -> 10.54 | N21: 1.0224 | O21: 1.0248 | P21: 2.3908 | Q21: 26.552568 | R21: =+((L21-VLOOKUP(CONCATENATE(I21,"-",J21),PNG_Actualizado!$H$11:$O$111,8,FALSE))*N21+P21+VLOOKUP(CONCATENATE(I21,"-",J21),PNG_Actualizado!$H$11:$V$111,8,FALSE))+IF(G21="SEIN",Area_15,0)*IF(A21,FIGV,1) -> 15.245024 | S21: =+((M21-VLOOKUP(CONCATENATE(I21,"-",J21),PNG_Actualizado!$H$11:$O$111,8,FALSE))*N21+P21+VLOOKUP(CONCATENATE(I21,"-",J21),PNG_Actualizado!$H$11:$V$111,8,FALSE))+IF(G21="SEIN",Area_15,0)*IF(A21,FIGV,1) -> 13.230896 | T21: 20.64103474 | U21: =+PNG_Actualizado!$U$126 -> 71.77763636 | V21: 26.552568 | W21: 15.245024 | X21: 13.230896 | Y21: 20.64103474 | Z21: =+IF(ISERROR(VLOOKUP(C21,VAD_VARIOS!$C$5:$D$37,2,FALSE)),1,VLOOKUP(C21,VAD_VARIOS!$C$5:$D$37,2,FALSE)) -> 1
A22: FALSE | B22: PR0213 | C22: PSE YAUYOS | D22: ADIL | E22: SER | F22: FALSE | G22: SEIN | H22: 7 | I22: Oroya Nueva | J22: 50 | K22: =VLOOKUP(CONCATENATE(I22,"-",J22),PNG_Actualizado!$H$11:$V$111,10,FALSE)*IF(A22,FIGV,1) -> 25.91 | L22: =VLOOKUP(CONCATENATE(I22,"-",J22),PNG_Actualizado!$H$11:$V$111,11,FALSE)*IF(A22,FIGV,1) -> 13.54 | M22: =VLOOKUP(CONCATENATE(I22,"-",J22),PNG_Actualizado!$H$11:$V$111,12,FALSE)*IF(A22,FIGV,1) -> 11.37 | N22: =IF(G22="SEIN",VLOOKUP(H22,FPMdPFPMdE,6,FALSE),1) -> 1.007158968 | O22: =IF(G22="SEIN",VLOOKUP(H22,FPMdPFPMdE,5,FALSE),1) -> 1.006964198 | P22: 1.4925 | Q22: 26.09044237 | R22: =+((L22-VLOOKUP(CONCATENATE(I22,"-",J22),PNG_Actualizado!$H$11:$O$111,8,FALSE))*N22+P22+VLOOKUP(CONCATENATE(I22,"-",J22),PNG_Actualizado!$H$11:$V$111,8,FALSE))+IF(G22="SEIN",Area_15,0)*IF(A22,FIGV,1) -> 15.19343243 | S22: =+((M22-VLOOKUP(CONCATENATE(I22,"-",J22),PNG_Actualizado!$H$11:$O$111,8,FALSE))*N22+P22+VLOOKUP(CONCATENATE(I22,"-",J22),PNG_Actualizado!$H$11:$V$111,8,FALSE))+IF(G22="SEIN",Area_15,0)*IF(A22,FIGV,1) -> 13.00789747 | T22: 20.36133026 | U22: =+PNG_Actualizado!$U$126 -> 71.77763636 | V22: 26.09044237 | W22: 15.19343243 | X22: 13.00789747 | Y22: 20.36133026 | Z22: =+IF(ISERROR(VLOOKUP(C22,VAD_VARIOS!$C$5:$D$37,2,FALSE)),1,VLOOKUP(C22,VAD_VARIOS!$C$5:$D$37,2,FALSE)) -> 1
A23: FALSE | B23: PR0214 | C23: PSE LUNAHUANA | D23: ADIL | E23: SER | F23: FALSE | G23: SEIN | H23: 7 | I23: Chilca | J23: 220 | K23: =VLOOKUP(CONCATENATE(I23,"-",J23),PNG_Actualizado!$H$11:$V$111,10,FALSE)*IF(A23,FIGV,1) -> 25.91 | L23: =VLOOKUP(CONCATENATE(I23,"-",J23),PNG_Actualizado!$H$11:$V$111,11,FALSE)*IF(A23,FIGV,1) -> 12.57 | M23: =VLOOKUP(CONCATENATE(I23,"-",J23),PNG_Actualizado!$H$11:$V$111,12,FALSE)*IF(A23,FIGV,1) -> 10.55 | N23: 1.027 | O23: 1.0266 | P23: 1.4925 | Q23: 26.599206 | R23: =+((L23-VLOOKUP(CONCATENATE(I23,"-",J23),PNG_Actualizado!$H$11:$O$111,8,FALSE))*N23+P23+VLOOKUP(CONCATENATE(I23,"-",J23),PNG_Actualizado!$H$11:$V$111,8,FALSE))+IF(G23="SEIN",Area_15,0)*IF(A23,FIGV,1) -> 14.46589 | S23: =+((M23-VLOOKUP(CONCATENATE(I23,"-",J23),PNG_Actualizado!$H$11:$O$111,8,FALSE))*N23+P23+VLOOKUP(CONCATENATE(I23,"-",J23),PNG_Actualizado!$H$11:$V$111,8,FALSE))+IF(G23="SEIN",Area_15,0)*IF(A23,FIGV,1) -> 12.39135 | T23: 19.83441021 | U23: =+PNG_Actualizado!$U$126 -> 71.77763636 | V23: 26.599206 | W23: 14.46589 | X23: 12.39135 | Y23: 19.83441021 | Z23: =+IF(ISERROR(VLOOKUP(C23,VAD_VARIOS!$C$5:$D$37,2,FALSE)),1,VLOOKUP(C23,VAD_VARIOS!$C$5:$D$37,2,FALSE)) -> 1
A24: FALSE | B24: PL0216 | C24: PSE CHARAPE | D24: ADIL | E24: 4 | F24: FALSE | G24: AISL | I24: Adinelsa | J24: MT | K24: =VLOOKUP(CONCATENATE(I24,"-",J24),PNG_Actualizado!$H$11:$V$111,10,FALSE)*IF(A24,FIGV,1) -> 17.28 | L24: =VLOOKUP(CONCATENATE(I24,"-",J24),PNG_Actualizado!$H$11:$V$111,11,FALSE)*IF(A24,FIGV,1) -> 17.75 | M24: =VLOOKUP(CONCATENATE(I24,"-",J24),PNG_Actualizado!$H$11:$V$111,12,FALSE)*IF(A24,FIGV,1) -> 17.75 | N24: 1 | O24: 1 | P24: 0 | Q24: 17.28 | R24: =+((L24-VLOOKUP(CONCATENATE(I24,"-",J24),PNG_Actualizado!$H$11:$O$111,8,FALSE))*N24+P24+VLOOKUP(CONCATENATE(I24,"-",J24),PNG_Actualizado!$H$11:$V$111,8,FALSE))+IF(G24="SEIN",Area_15,0)*IF(A24,FIGV,1) -> 17.75 | S24: =+((M24-VLOOKUP(CONCATENATE(I24,"-",J24),PNG_Actualizado!$H$11:$O$111,8,FALSE))*N24+P24+VLOOKUP(CONCATENATE(I24,"-",J24),PNG_Actualizado!$H$11:$V$111,8,FALSE))+IF(G24="SEIN",Area_15,0)*IF(A24,FIGV,1) -> 17.75 | T24: 22.11363636 | U24: =+PNG_Actualizado!$U$126 -> 71.77763636 | V24: 17.28 | W24: 17.75 | X24: 17.75 | Y24: 22.11363636 | Z24: =+IF(ISERROR(VLOOKUP(C24,VAD_VARIOS!$C$5:$D$37,2,FALSE)),1,VLOOKUP(C24,VAD_VARIOS!$C$5:$D$37,2,FALSE)) -> 1
A25: FALSE | B25: PL0265 | C25: PSE CHUQUIBAMBA | D25: ADIL | E25: 4 | F25: FALSE | G25: SEIN | H25: 9 | I25: Callalli | J25: 138 | K25: =VLOOKUP(CONCATENATE(I25,"-",J25),PNG_Actualizado!$H$11:$V$111,10,FALSE)*IF(A25,FIGV,1) -> 25.91 | L25: =VLOOKUP(CONCATENATE(I25,"-",J25),PNG_Actualizado!$H$11:$V$111,11,FALSE)*IF(A25,FIGV,1) -> 14.56 | M25: =VLOOKUP(CONCATENATE(I25,"-",J25),PNG_Actualizado!$H$11:$V$111,12,FALSE)*IF(A25,FIGV,1) -> 12.02 | N25: 1.0292 | O25: 1.0327 | P25: 1.0248 | Q25: 26.757257 | R25: =+((L25-VLOOKUP(CONCATENATE(I25,"-",J25),PNG_Actualizado!$H$11:$O$111,8,FALSE))*N25+P25+VLOOKUP(CONCATENATE(I25,"-",J25),PNG_Actualizado!$H$11:$V$111,8,FALSE))+IF(G25="SEIN",Area_15,0)*IF(A25,FIGV,1) -> 16.073952 | S25: =+((M25-VLOOKUP(CONCATENATE(I25,"-",J25),PNG_Actualizado!$H$11:$O$111,8,FALSE))*N25+P25+VLOOKUP(CONCATENATE(I25,"-",J25),PNG_Actualizado!$H$11:$V$111,8,FALSE))+IF(G25="SEIN",Area_15,0)*IF(A25,FIGV,1) -> 13.459784 | T25: 21.13162588 | U25: =+PNG_Actualizado!$U$126 -> 71.77763636 | V25: 26.757257 | W25: 16.073952 | X25: 13.459784 | Y25: 21.13162588 | Z25: =+IF(ISERROR(VLOOKUP(C25,VAD_VARIOS!$C$5:$D$37,2,FALSE)),1,VLOOKUP(C25,VAD_VARIOS!$C$5:$D$37,2,FALSE)) -> 1
A26: FALSE | B26: PL0266 | C26: PSE NUEVO SEASME | D26: ADIL | E26: 4 | F26: FALSE | G26: AISL | I26: Adinelsa | J26: MT | K26: =VLOOKUP(CONCATENATE(I26,"-",J26),PNG_Actualizado!$H$11:$V$111,10,FALSE)*IF(A26,FIGV,1) -> 17.28 | L26: =VLOOKUP(CONCATENATE(I26,"-",J26),PNG_Actualizado!$H$11:$V$111,11,FALSE)*IF(A26,FIGV,1) -> 17.75 | M26: =VLOOKUP(CONCATENATE(I26,"-",J26),PNG_Actualizado!$H$11:$V$111,12,FALSE)*IF(A26,FIGV,1) -> 17.75 | N26: 1 | O26: 1 | P26: 0 | Q26: 17.28 | R26: =+((L26-VLOOKUP(CONCATENATE(I26,"-",J26),PNG_Actualizado!$H$11:$O$111,8,FALSE))*N26+P26+VLOOKUP(CONCATENATE(I26,"-",J26),PNG_Actualizado!$H$11:$V$111,8,FALSE))+IF(G26="SEIN",Area_15,0)*IF(A26,FIGV,1) -> 17.75 | S26: =+((M26-VLOOKUP(CONCATENATE(I26,"-",J26),PNG_Actualizado!$H$11:$O$111,8,FALSE))*N26+P26+VLOOKUP(CONCATENATE(I26,"-",J26),PNG_Actualizado!$H$11:$V$111,8,FALSE))+IF(G26="SEIN",Area_15,0)*IF(A26,FIGV,1) -> 17.75 | T26: 22.11363636 | U26: =+PNG_Actualizado!$U$126 -> 71.77763636 | V26: 17.28 | W26: 17.75 | X26: 17.75 | Y26: 22.11363636 | Z26: =+IF(ISERROR(VLOOKUP(C26,VAD_VARIOS!$C$5:$D$37,2,FALSE)),1,VLOOKUP(C26,VAD_VARIOS!$C$5:$D$37,2,FALSE)) -> 1
A27: FALSE | B27: PL0157 | C27: CHAO | D27: CHAV | E27: 3 | F27: FALSE | G27: SEIN | H27: 3 | I27: Trujillo Norte | J27: 220 | K27: =VLOOKUP(CONCATENATE(I27,"-",J27),PNG_Actualizado!$H$11:$V$111,10,FALSE)*IF(A27,FIGV,1) -> 25.91 | L27: =VLOOKUP(CONCATENATE(I27,"-",J27),PNG_Actualizado!$H$11:$V$111,11,FALSE)*IF(A27,FIGV,1) -> 13.73 | M27: =VLOOKUP(CONCATENATE(I27,"-",J27),PNG_Actualizado!$H$11:$V$111,12,FALSE)*IF(A27,FIGV,1) -> 11.51 | N27: 1.0187 | O27: 1.0231 | P27: 1.1308 | Q27: 26.508521 | R27: =+((L27-VLOOKUP(CONCATENATE(I27,"-",J27),PNG_Actualizado!$H$11:$O$111,8,FALSE))*N27+P27+VLOOKUP(CONCATENATE(I27,"-",J27),PNG_Actualizado!$H$11:$V$111,8,FALSE))+IF(G27="SEIN",Area_15,0)*IF(A27,FIGV,1) -> 15.181551 | S27: =+((M27-VLOOKUP(CONCATENATE(I27,"-",J27),PNG_Actualizado!$H$11:$O$111,8,FALSE))*N27+P27+VLOOKUP(CONCATENATE(I27,"-",J27),PNG_Actualizado!$H$11:$V$111,8,FALSE))+IF(G27="SEIN",Area_15,0)*IF(A27,FIGV,1) -> 12.920037 | T27: 20.40563786 | U27: =+PNG_Actualizado!$U$126 -> 71.77763636 | V27: 26.508521 | W27: 15.181551 | X27: 12.920037 | Y27: 20.40563786 | Z27: =+IF(ISERROR(VLOOKUP(C27,VAD_VARIOS!$C$5:$D$37,2,FALSE)),1,VLOOKUP(C27,VAD_VARIOS!$C$5:$D$37,2,FALSE)) -> 1
A28: FALSE | B28: PL0260 | C28: TANGUCHE DESARENADOR | D28: CHAV | E28: 3 | F28: FALSE | G28: AISL | I28: Chavimochic | J28: MT | K28: =VLOOKUP(CONCATENATE(I28,"-",J28),PNG_Actualizado!$H$11:$V$111,10,FALSE)*IF(A28,FIGV,1) -> 17.28 | L28: =VLOOKUP(CONCATENATE(I28,"-",J28),PNG_Actualizado!$H$11:$V$111,11,FALSE)*IF(A28,FIGV,1) -> 17.75 | M28: =VLOOKUP(CONCATENATE(I28,"-",J28),PNG_Actualizado!$H$11:$V$111,12,FALSE)*IF(A28,FIGV,1) -> 17.75 | N28: 1 | O28: 1 | P28: 0 | Q28: 17.28 | R28: =+((L28-VLOOKUP(CONCATENATE(I28,"-",J28),PNG_Actualizado!$H$11:$O$111,8,FALSE))*N28+P28+VLOOKUP(CONCATENATE(I28,"-",J28),PNG_Actualizado!$H$11:$V$111,8,FALSE))+IF(G28="SEIN",Area_15,0)*IF(A28,FIGV,1) -> 17.75 | S28: =+((M28-VLOOKUP(CONCATENATE(I28,"-",J28),PNG_Actualizado!$H$11:$O$111,8,FALSE))*N28+P28+VLOOKUP(CONCATENATE(I28,"-",J28),PNG_Actualizado!$H$11:$V$111,8,FALSE))+IF(G28="SEIN",Area_15,0)*IF(A28,FIGV,1) -> 17.75 | T28: 22.11363636 | U28: =+PNG_Actualizado!$U$126 -> 71.77763636 | V28: 17.28 | W28: 17.75 | X28: 17.75 | Y28: 22.11363636 | Z28: =+IF(ISERROR(VLOOKUP(C28,VAD_VARIOS!$C$5:$D$37,2,FALSE)),1,VLOOKUP(C28,VAD_VARIOS!$C$5:$D$37,2,FALSE)) -> 1
A29: FALSE | B29: PL0001 | C29: VILLACURÍ | D29: COEL | E29: Especial | F29: FALSE | G29: SEIN | H29: 8 | I29: Ica | J29: 220 | K29: =VLOOKUP(CONCATENATE(I29,"-",J29),PNG_Actualizado!$H$11:$V$111,10,FALSE)*IF(A29,FIGV,1) -> 25.91 | L29: =VLOOKUP(CONCATENATE(I29,"-",J29),PNG_Actualizado!$H$11:$V$111,11,FALSE)*IF(A29,FIGV,1) -> 12.87 | M29: =VLOOKUP(CONCATENATE(I29,"-",J29),PNG_Actualizado!$H$11:$V$111,12,FALSE)*IF(A29,FIGV,1) -> 10.83 | N29: 1.0345 | O29: 1.0358 | P29: 2.1736 | Q29: 26.837578 | R29: =+((L29-VLOOKUP(CONCATENATE(I29,"-",J29),PNG_Actualizado!$H$11:$O$111,8,FALSE))*N29+P29+VLOOKUP(CONCATENATE(I29,"-",J29),PNG_Actualizado!$H$11:$V$111,8,FALSE))+IF(G29="SEIN",Area_15,0)*IF(A29,FIGV,1) -> 15.551615 | S29: =+((M29-VLOOKUP(CONCATENATE(I29,"-",J29),PNG_Actualizado!$H$11:$O$111,8,FALSE))*N29+P29+VLOOKUP(CONCATENATE(I29,"-",J29),PNG_Actualizado!$H$11:$V$111,8,FALSE))+IF(G29="SEIN",Area_15,0)*IF(A29,FIGV,1) -> 13.441235 | T29: 20.95703416 | U29: =+PNG_Actualizado!$U$126 -> 71.77763636 | V29: 26.837578 | W29: 15.551615 | X29: 13.441235 | Y29: 20.95703416 | Z29: =+IF(ISERROR(VLOOKUP(C29,VAD_VARIOS!$C$5:$D$37,2,FALSE)),1,VLOOKUP(C29,VAD_VARIOS!$C$5:$D$37,2,FALSE)) -> 1
A30: FALSE | B30: PL0263 | C30: OLMOS-MOTUPE-ILLIMO | D30: COEL | E30: 5 | F30: FALSE | G30: SEIN | H30: 2 | I30: Chiclayo Oeste | J30: 220 | K30: =VLOOKUP(CONCATENATE(I30,"-",J30),PNG_Actualizado!$H$11:$V$111,10,FALSE)*IF(A30,FIGV,1) -> 25.91 | L30: =VLOOKUP(CONCATENATE(I30,"-",J30),PNG_Actualizado!$H$11:$V$111,11,FALSE)*IF(A30,FIGV,1) -> 14.21 | M30: =VLOOKUP(CONCATENATE(I30,"-",J30),PNG_Actualizado!$H$11:$V$111,12,FALSE)*IF(A30,FIGV,1) -> 11.91 | N30: 1.0262 | O30: 1.0303 | P30: 1.4156 | Q30: 26.695073 | R30: =+((L30-VLOOKUP(CONCATENATE(I30,"-",J30),PNG_Actualizado!$H$11:$O$111,8,FALSE))*N30+P30+VLOOKUP(CONCATENATE(I30,"-",J30),PNG_Actualizado!$H$11:$V$111,8,FALSE))+IF(G30="SEIN",Area_15,0)*IF(A30,FIGV,1) -> 16.061902 | S30: =+((M30-VLOOKUP(CONCATENATE(I30,"-",J30),PNG_Actualizado!$H$11:$O$111,8,FALSE))*N30+P30+VLOOKUP(CONCATENATE(I30,"-",J30),PNG_Actualizado!$H$11:$V$111,8,FALSE))+IF(G30="SEIN",Area_15,0)*IF(A30,FIGV,1) -> 13.701642 | T30: 21.26891305 | U30: =+PNG_Actualizado!$U$126 -> 71.77763636 | V30: 26.695073 | W30: 16.061902 | X30: 13.701642 | Y30: 21.26891305 | Z30: =+IF(ISERROR(VLOOKUP(C30,VAD_VARIOS!$C$5:$D$37,2,FALSE)),1,VLOOKUP(C30,VAD_VARIOS!$C$5:$D$37,2,FALSE)) -> 1
A31: FALSE | B31: PL0002 | C31: ANDAHUASI | D31: COEL | E31: 2 | F31: FALSE | G31: SEIN | H31: 6 | I31: Huacho | J31: 220 | K31: =VLOOKUP(CONCATENATE(I31,"-",J31),PNG_Actualizado!$H$11:$V$111,10,FALSE)*IF(A31,FIGV,1) -> 25.91 | L31: =VLOOKUP(CONCATENATE(I31,"-",J31),PNG_Actualizado!$H$11:$V$111,11,FALSE)*IF(A31,FIGV,1) -> 13.11 | M31: =VLOOKUP(CONCATENATE(I31,"-",J31),PNG_Actualizado!$H$11:$V$111,12,FALSE)*IF(A31,FIGV,1) -> 11 | N31: 1.0196 | O31: 1.0224 | P31: 1.6296 | Q31: 26.490384 | R31: =+((L31-VLOOKUP(CONCATENATE(I31,"-",J31),PNG_Actualizado!$H$11:$O$111,8,FALSE))*N31+P31+VLOOKUP(CONCATENATE(I31,"-",J31),PNG_Actualizado!$H$11:$V$111,8,FALSE))+IF(G31="SEIN",Area_15,0)*IF(A31,FIGV,1) -> 15.060556 | S31: =+((M31-VLOOKUP(CONCATENATE(I31,"-",J31),PNG_Actualizado!$H$11:$O$111,8,FALSE))*N31+P31+VLOOKUP(CONCATENATE(I31,"-",J31),PNG_Actualizado!$H$11:$V$111,8,FALSE))+IF(G31="SEIN",Area_15,0)*IF(A31,FIGV,1) -> 12.9092 | T31: 20.35166551 | U31: =+PNG_Actualizado!$U$126 -> 71.77763636 | V31: 26.490384 | W31: 15.060556 | X31: 12.9092 | Y31: 20.35166551 | Z31: =+IF(ISERROR(VLOOKUP(C31,VAD_VARIOS!$C$5:$D$37,2,FALSE)),1,VLOOKUP(C31,VAD_VARIOS!$C$5:$D$37,2,FALSE)) -> 1
A32: FALSE | B32: PL0004 | C32: LUNAHUANÁ | D32: EDCA | E32: 4 | F32: FALSE | G32: SEIN | H32: 7 | I32: Cantera | J32: 220 | K32: =VLOOKUP(CONCATENATE(I32,"-",J32),PNG_Actualizado!$H$11:$V$111,10,FALSE)*IF(A32,FIGV,1) -> 25.91 | L32: =VLOOKUP(CONCATENATE(I32,"-",J32),PNG_Actualizado!$H$11:$V$111,11,FALSE)*IF(A32,FIGV,1) -> 12.7 | M32: =VLOOKUP(CONCATENATE(I32,"-",J32),PNG_Actualizado!$H$11:$V$111,12,FALSE)*IF(A32,FIGV,1) -> 10.67 | N32: 1.027 | O32: 1.0266 | P32: 1.4925 | Q32: 26.599206 | R32: =+((L32-VLOOKUP(CONCATENATE(I32,"-",J32),PNG_Actualizado!$H$11:$O$111,8,FALSE))*N32+P32+VLOOKUP(CONCATENATE(I32,"-",J32),PNG_Actualizado!$H$11:$V$111,8,FALSE))+IF(G32="SEIN",Area_15,0)*IF(A32,FIGV,1) -> 14.5994 | S32: =+((M32-VLOOKUP(CONCATENATE(I32,"-",J32),PNG_Actualizado!$H$11:$O$111,8,FALSE))*N32+P32+VLOOKUP(CONCATENATE(I32,"-",J32),PNG_Actualizado!$H$11:$V$111,8,FALSE))+IF(G32="SEIN",Area_15,0)*IF(A32,FIGV,1) -> 12.51459 | T32: 19.96124471 | U32: =+PNG_Actualizado!$U$126 -> 71.77763636 | V32: 26.599206 | W32: 14.5994 | X32: =IF(AND($T32>$U32,I32="SEIN"),$T32/$U32*S32,S32) -> 12.51459 | Y32: 19.96124471 | Z32: =+IF(ISERROR(VLOOKUP(C32,VAD_VARIOS!$C$5:$D$37,2,FALSE)),1,VLOOKUP(C32,VAD_VARIOS!$C$5:$D$37,2,FALSE)) -> 1
A33: FALSE | B33: PL0003 | C33: CAÑETE | D33: EDCA | E33: 2 | F33: FALSE | G33: SEIN | H33: 7 | I33: Cantera | J33: 220 | K33: =VLOOKUP(CONCATENATE(I33,"-",J33),PNG_Actualizado!$H$11:$V$111,10,FALSE)*IF(A33,FIGV,1) -> 25.91 | L33: =VLOOKUP(CONCATENATE(I33,"-",J33),PNG_Actualizado!$H$11:$V$111,11,FALSE)*IF(A33,FIGV,1) -> 12.7 | M33: =VLOOKUP(CONCATENATE(I33,"-",J33),PNG_Actualizado!$H$11:$V$111,12,FALSE)*IF(A33,FIGV,1) -> 10.67 | N33: 1.027 | O33: 1.0266 | P33: 1.4925 | Q33: 26.599206 | R33: =+((L33-VLOOKUP(CONCATENATE(I33,"-",J33),PNG_Actualizado!$H$11:$O$111,8,FALSE))*N33+P33+VLOOKUP(CONCATENATE(I33,"-",J33),PNG_Actualizado!$H$11:$V$111,8,FALSE))+IF(G33="SEIN",Area_15,0)*IF(A33,FIGV,1) -> 14.5994 | S33: =+((M33-VLOOKUP(CONCATENATE(I33,"-",J33),PNG_Actualizado!$H$11:$O$111,8,FALSE))*N33+P33+VLOOKUP(CONCATENATE(I33,"-",J33),PNG_Actualizado!$H$11:$V$111,8,FALSE))+IF(G33="SEIN",Area_15,0)*IF(A33,FIGV,1) -> 12.51459 | T33: 19.96124471 | U33: =+PNG_Actualizado!$U$126 -> 71.77763636 | V33: 26.599206 | W33: 14.5994 | X33: 12.51459 | Y33: 19.96124471 | Z33: =+IF(ISERROR(VLOOKUP(C33,VAD_VARIOS!$C$5:$D$37,2,FALSE)),1,VLOOKUP(C33,VAD_VARIOS!$C$5:$D$37,2,FALSE)) -> 0.9756
A34: FALSE | B34: PL0014 | C34: HOYOS-ACOS | D34: EDLN | E34: 5 | F34: FALSE | G34: AISL | I34: Edelnor | J34: MT | K34: =VLOOKUP(CONCATENATE(I34,"-",J34),PNG_Actualizado!$H$11:$V$111,10,FALSE)*IF(A34,FIGV,1) -> 17.28 | L34: =VLOOKUP(CONCATENATE(I34,"-",J34),PNG_Actualizado!$H$11:$V$111,11,FALSE)*IF(A34,FIGV,1) -> 17.75 | M34: =VLOOKUP(CONCATENATE(I34,"-",J34),PNG_Actualizado!$H$11:$V$111,12,FALSE)*IF(A34,FIGV,1) -> 17.75 | N34: 1 | O34: 1 | P34: 0 | Q34: 17.28 | R34: =+((L34-VLOOKUP(CONCATENATE(I34,"-",J34),PNG_Actualizado!$H$11:$O$111,8,FALSE))*N34+P34+VLOOKUP(CONCATENATE(I34,"-",J34),PNG_Actualizado!$H$11:$V$111,8,FALSE))+IF(G34="SEIN",Area_15,0)*IF(A34,FIGV,1) -> 17.75 | S34: =+((M34-VLOOKUP(CONCATENATE(I34,"-",J34),PNG_Actualizado!$H$11:$O$111,8,FALSE))*N34+P34+VLOOKUP(CONCATENATE(I34,"-",J34),PNG_Actualizado!$H$11:$V$111,8,FALSE))+IF(G34="SEIN",Area_15,0)*IF(A34,FIGV,1) -> 17.75 | T34: 22.11363636 | U34: =+PNG_Actualizado!$U$126 -> 71.77763636 | V34: 17.28 | W34: 17.75 | X34: 17.75 | Y34: 22.11363636 | Z34: =+IF(ISERROR(VLOOKUP(C34,VAD_VARIOS!$C$5:$D$37,2,FALSE)),1,VLOOKUP(C34,VAD_VARIOS!$C$5:$D$37,2,FALSE)) -> 1
A35: FALSE | B35: PL0011 | C35: CANTA | D35: EDLN | E35: 4 | F35: FALSE | G35: AISL | I35: Edelnor | J35: MT | K35: =VLOOKUP(CONCATENATE(I35,"-",J35),PNG_Actualizado!$H$11:$V$111,10,FALSE)*IF(A35,FIGV,1) -> 17.28 | L35: =VLOOKUP(CONCATENATE(I35,"-",J35),PNG_Actualizado!$H$11:$V$111,11,FALSE)*IF(A35,FIGV,1) -> 17.75 | M35: =VLOOKUP(CONCATENATE(I35,"-",J35),PNG_Actualizado!$H$11:$V$111,12,FALSE)*IF(A35,FIGV,1) -> 17.75 | N35: 1 | O35: 1 | P35: 0 | Q35: 17.28 | R35: =+((L35-VLOOKUP(CONCATENATE(I35,"-",J35),PNG_Actualizado!$H$11:$O$111,8,FALSE))*N35+P35+VLOOKUP(CONCATENATE(I35,"-",J35),PNG_Actualizado!$H$11:$V$111,8,FALSE))+IF(G35="SEIN",Area_15,0)*IF(A35,FIGV,1) -> 17.75 | S35: =+((M35-VLOOKUP(CONCATENATE(I35,"-",J35),PNG_Actualizado!$H$11:$O$111,8,FALSE))*N35+P35+VLOOKUP(CONCATENATE(I35,"-",J35),PNG_Actualizado!$H$11:$V$111,8,FALSE))+IF(G35="SEIN",Area_15,0)*IF(A35,FIGV,1) -> 17.75 | T35: 22.11363636 | U35: =+PNG_Actualizado!$U$126 -> 71.77763636 | V35: 17.28 | W35: 17.75 | X35: 17.75 | Y35: 22.11363636 | Z35: =+IF(ISERROR(VLOOKUP(C35,VAD_VARIOS!$C$5:$D$37,2,FALSE)),1,VLOOKUP(C35,VAD_VARIOS!$C$5:$D$37,2,FALSE)) -> 1
A36: FALSE | B36: PL0012 | C36: CHURÍN | D36: EDLN | E36: 4 | F36: FALSE | G36: AISL | I36: Edelnor | J36: MT | K36: =VLOOKUP(CONCATENATE(I36,"-",J36),PNG_Actualizado!$H$11:$V$111,10,FALSE)*IF(A36,FIGV,1) -> 17.28 | L36: =VLOOKUP(CONCATENATE(I36,"-",J36),PNG_Actualizado!$H$11:$V$111,11,FALSE)*IF(A36,FIGV,1) -> 17.75 | M36: =VLOOKUP(CONCATENATE(I36,"-",J36),PNG_Actualizado!$H$11:$V$111,12,FALSE)*IF(A36,FIGV,1) -> 17.75 | N36: 1 | O36: 1 | P36: 0 | Q36: 17.28 | R36: =+((L36-VLOOKUP(CONCATENATE(I36,"-",J36),PNG_Actualizado!$H$11:$O$111,8,FALSE))*N36+P36+VLOOKUP(CONCATENATE(I36,"-",J36),PNG_Actualizado!$H$11:$V$111,8,FALSE))+IF(G36="SEIN",Area_15,0)*IF(A36,FIGV,1) -> 17.75 | S36: =+((M36-VLOOKUP(CONCATENATE(I36,"-",J36),PNG_Actualizado!$H$11:$O$111,8,FALSE))*N36+P36+VLOOKUP(CONCATENATE(I36,"-",J36),PNG_Actualizado!$H$11:$V$111,8,FALSE))+IF(G36="SEIN",Area_15,0)*IF(A36,FIGV,1) -> 17.75 | T36: 22.11363636 | U36: =+PNG_Actualizado!$U$126 -> 71.77763636 | V36: 17.28 | W36: 17.75 | X36: 17.75 | Y36: 22.11363636 | Z36: =+IF(ISERROR(VLOOKUP(C36,VAD_VARIOS!$C$5:$D$37,2,FALSE)),1,VLOOKUP(C36,VAD_VARIOS!$C$5:$D$37,2,FALSE)) -> 1
A37: FALSE | B37: PL0013 | C37: RAVIRA-PACARAOS | D37: EDLN | E37: 4 | F37: FALSE | G37: AISL | I37: Edelnor | J37: MT | K37: =VLOOKUP(CONCATENATE(I37,"-",J37),PNG_Actualizado!$H$11:$V$111,10,FALSE)*IF(A37,FIGV,1) -> 17.28 | L37: =VLOOKUP(CONCATENATE(I37,"-",J37),PNG_Actualizado!$H$11:$V$111,11,FALSE)*IF(A37,FIGV,1) -> 17.75 | M37: =VLOOKUP(CONCATENATE(I37,"-",J37),PNG_Actualizado!$H$11:$V$111,12,FALSE)*IF(A37,FIGV,1) -> 17.75 | N37: 1 | O37: 1 | P37: 0 | Q37: 17.28 | R37: =+((L37-VLOOKUP(CONCATENATE(I37,"-",J37),PNG_Actualizado!$H$11:$O$111,8,FALSE))*N37+P37+VLOOKUP(CONCATENATE(I37,"-",J37),PNG_Actualizado!$H$11:$V$111,8,FALSE))+IF(G37="SEIN",Area_15,0)*IF(A37,FIGV,1) -> 17.75 | S37: =+((M37-VLOOKUP(CONCATENATE(I37,"-",J37),PNG_Actualizado!$H$11:$O$111,8,FALSE))*N37+P37+VLOOKUP(CONCATENATE(I37,"-",J37),PNG_Actualizado!$H$11:$V$111,8,FALSE))+IF(G37="SEIN",Area_15,0)*IF(A37,FIGV,1) -> 17.75 | T37: 22.11363636 | U37: =+PNG_Actualizado!$U$126 -> 71.77763636 | V37: 17.28 | W37: 17.75 | X37: 17.75 | Y37: 22.11363636 | Z37: =+IF(ISERROR(VLOOKUP(C37,VAD_VARIOS!$C$5:$D$37,2,FALSE)),1,VLOOKUP(C37,VAD_VARIOS!$C$5:$D$37,2,FALSE)) -> 1
A38: FALSE | B38: PL0016 | C38: YASO | D38: EDLN | E38: 4 | F38: FALSE | G38: AISL | I38: Edelnor | J38: MT | K38: =VLOOKUP(CONCATENATE(I38,"-",J38),PNG_Actualizado!$H$11:$V$111,10,FALSE)*IF(A38,FIGV,1) -> 17.28 | L38: =VLOOKUP(CONCATENATE(I38,"-",J38),PNG_Actualizado!$H$11:$V$111,11,FALSE)*IF(A38,FIGV,1) -> 17.75 | M38: =VLOOKUP(CONCATENATE(I38,"-",J38),PNG_Actualizado!$H$11:$V$111,12,FALSE)*IF(A38,FIGV,1) -> 17.75 | N38: 1 | O38: 1 | P38: 0 | Q38: 17.28 | R38: =+((L38-VLOOKUP(CONCATENATE(I38,"-",J38),PNG_Actualizado!$H$11:$O$111,8,FALSE))*N38+P38+VLOOKUP(CONCATENATE(I38,"-",J38),PNG_Actualizado!$H$11:$V$111,8,FALSE))+IF(G38="SEIN",Area_15,0)*IF(A38,FIGV,1) -> 17.75 | S38: =+((M38-VLOOKUP(CONCATENATE(I38,"-",J38),PNG_Actualizado!$H$11:$O$111,8,FALSE))*N38+P38+VLOOKUP(CONCATENATE(I38,"-",J38),PNG_Actualizado!$H$11:$V$111,8,FALSE))+IF(G38="SEIN",Area_15,0)*IF(A38,FIGV,1) -> 17.75 | T38: 22.11363636 | U38: =+PNG_Actualizado!$U$126 -> 71.77763636 | V38: 17.28 | W38: 17.75 | X38: 17.75 | Y38: 22.11363636 | Z38: =+IF(ISERROR(VLOOKUP(C38,VAD_VARIOS!$C$5:$D$37,2,FALSE)),1,VLOOKUP(C38,VAD_VARIOS!$C$5:$D$37,2,FALSE)) -> 1
A39: FALSE | B39: PL0221 | C39: SAYÁN-HUMAYA | D39: EDLN | E39: 4 | F39: FALSE | G39: SEIN | H39: 6 | I39: Huacho | J39: 220 | K39: =VLOOKUP(CONCATENATE(I39,"-",J39),PNG_Actualizado!$H$11:$V$111,10,FALSE)*IF(A39,FIGV,1) -> 25.91 | L39: =VLOOKUP(CONCATENATE(I39,"-",J39),PNG_Actualizado!$H$11:$V$111,11,FALSE)*IF(A39,FIGV,1) -> 13.11 | M39: =VLOOKUP(CONCATENATE(I39,"-",J39),PNG_Actualizado!$H$11:$V$111,12,FALSE)*IF(A39,FIGV,1) -> 11 | N39: 1.0196 | O39: 1.0224 | P39: 1.6296 | Q39: 26.490384 | R39: =+((L39-VLOOKUP(CONCATENATE(I39,"-",J39),PNG_Actualizado!$H$11:$O$111,8,FALSE))*N39+P39+VLOOKUP(CONCATENATE(I39,"-",J39),PNG_Actualizado!$H$11:$V$111,8,FALSE))+IF(G39="SEIN",Area_15,0)*IF(A39,FIGV,1) -> 15.060556 | S39: =+((M39-VLOOKUP(CONCATENATE(I39,"-",J39),PNG_Actualizado!$H$11:$O$111,8,FALSE))*N39+P39+VLOOKUP(CONCATENATE(I39,"-",J39),PNG_Actualizado!$H$11:$V$111,8,FALSE))+IF(G39="SEIN",Area_15,0)*IF(A39,FIGV,1) -> 12.9092 | T39: 20.35166551 | U39: =+PNG_Actualizado!$U$126 -> 71.77763636 | V39: =IF(AND($T39>$U39,G39="SEIN"),$T39/$U39*Q39,Q39) -> 26.490384 | W39: =IF(AND($T39>$U39,H39="SEIN"),$T39/$U39*R39,R39) -> 15.060556 | X39: =IF(AND($T39>$U39,I39="SEIN"),$T39/$U39*S39,S39) -> 12.9092 | Y39: 20.35166551 | Z39: =+IF(ISERROR(VLOOKUP(C39,VAD_VARIOS!$C$5:$D$37,2,FALSE)),1,VLOOKUP(C39,VAD_VARIOS!$C$5:$D$37,2,FALSE)) -> 1
A40: FALSE | B40: PL0007 | C40: HUARAL-CHANCAY | D40: EDLN | E40: 3 | F40: FALSE | G40: SEIN | H40: 6 | I40: Lima | J40: 220 | K40: =VLOOKUP(CONCATENATE(I40,"-",J40),PNG_Actualizado!$H$11:$V$111,10,FALSE)*IF(A40,FIGV,1) -> 25.91 | L40: =VLOOKUP(CONCATENATE(I40,"-",J40),PNG_Actualizado!$H$11:$V$111,11,FALSE)*IF(A40,FIGV,1) -> 12.92 | M40: =VLOOKUP(CONCATENATE(I40,"-",J40),PNG_Actualizado!$H$11:$V$111,12,FALSE)*IF(A40,FIGV,1) -> 10.81 | N40: 1.0196 | O40: 1.0224 | P40: 1.6296 | Q40: 26.490384 | R40: =+((L40-VLOOKUP(CONCATENATE(I40,"-",J40),PNG_Actualizado!$H$11:$O$111,8,FALSE))*N40+P40+VLOOKUP(CONCATENATE(I40,"-",J40),PNG_Actualizado!$H$11:$V$111,8,FALSE))+IF(G40="SEIN",Area_15,0)*IF(A40,FIGV,1) -> 14.866832 | S40: =+((M40-VLOOKUP(CONCATENATE(I40,"-",J40),PNG_Actualizado!$H$11:$O$111,8,FALSE))*N40+P40+VLOOKUP(CONCATENATE(I40,"-",J40),PNG_Actualizado!$H$11:$V$111,8,FALSE))+IF(G40="SEIN",Area_15,0)*IF(A40,FIGV,1) -> 12.715476 | T40: 20.15794151 | U40: =+PNG_Actualizado!$U$126 -> 71.77763636 | V40: 26.490384 | W40: 14.866832 | X40: 12.715476 | Y40: 20.15794151 | Z40: =+IF(ISERROR(VLOOKUP(C40,VAD_VARIOS!$C$5:$D$37,2,FALSE)),1,VLOOKUP(C40,VAD_VARIOS!$C$5:$D$37,2,FALSE)) -> 0.9704
A41: FALSE | B41: PL0008 | C41: PATIVILCA | D41: EDLN | E41: 3 | F41: FALSE | G41: SEIN | H41: 6 | I41: Paramonga Nueva | J41: 220 | K41: =VLOOKUP(CONCATENATE(I41,"-",J41),PNG_Actualizado!$H$11:$V$111,10,FALSE)*IF(A41,FIGV,1) -> 25.91 | L41: =VLOOKUP(CONCATENATE(I41,"-",J41),PNG_Actualizado!$H$11:$V$111,11,FALSE)*IF(A41,FIGV,1) -> 13.17 | M41: =VLOOKUP(CONCATENATE(I41,"-",J41),PNG_Actualizado!$H$11:$V$111,12,FALSE)*IF(A41,FIGV,1) -> 11.06 | N41: 1.0196 | O41: 1.0224 | P41: 1.6296 | Q41: 26.490384 | R41: =+((L41-VLOOKUP(CONCATENATE(I41,"-",J41),PNG_Actualizado!$H$11:$O$111,8,FALSE))*N41+P41+VLOOKUP(CONCATENATE(I41,"-",J41),PNG_Actualizado!$H$11:$V$111,8,FALSE))+IF(G41="SEIN",Area_15,0)*IF(A41,FIGV,1) -> 15.121732 | S41: =+((M41-VLOOKUP(CONCATENATE(I41,"-",J41),PNG_Actualizado!$H$11:$O$111,8,FALSE))*N41+P41+VLOOKUP(CONCATENATE(I41,"-",J41),PNG_Actualizado!$H$11:$V$111,8,FALSE))+IF(G41="SEIN",Area_15,0)*IF(A41,FIGV,1) -> 12.970376 | T41: 20.41284151 | U41: =+PNG_Actualizado!$U$126 -> 71.77763636 | V41: 26.490384 | W41: 15.121732 | X41: 12.970376 | Y41: 20.41284151 | Z41: =+IF(ISERROR(VLOOKUP(C41,VAD_VARIOS!$C$5:$D$37,2,FALSE)),1,VLOOKUP(C41,VAD_VARIOS!$C$5:$D$37,2,FALSE)) -> 1
A42: FALSE | B42: PL0261 | C42: HUACHO | D42: EDLN | E42: 3 | F42: FALSE | G42: SEIN | H42: 6 | I42: Huacho | J42: 220 | K42: =VLOOKUP(CONCATENATE(I42,"-",J42),PNG_Actualizado!$H$11:$V$111,10,FALSE)*IF(A42,FIGV,1) -> 25.91 | L42: =VLOOKUP(CONCATENATE(I42,"-",J42),PNG_Actualizado!$H$11:$V$111,11,FALSE)*IF(A42,FIGV,1) -> 13.11 | M42: =VLOOKUP(CONCATENATE(I42,"-",J42),PNG_Actualizado!$H$11:$V$111,12,FALSE)*IF(A42,FIGV,1) -> 11 | N42: 1.0196 | O42: 1.0224 | P42: 1.6296 | Q42: 26.490384 | R42: =+((L42-VLOOKUP(CONCATENATE(I42,"-",J42),PNG_Actualizado!$H$11:$O$111,8,FALSE))*N42+P42+VLOOKUP(CONCATENATE(I42,"-",J42),PNG_Actualizado!$H$11:$V$111,8,FALSE))+IF(G42="SEIN",Area_15,0)*IF(A42,FIGV,1) -> 15.060556 | S42: =+((M42-VLOOKUP(CONCATENATE(I42,"-",J42),PNG_Actualizado!$H$11:$O$111,8,FALSE))*N42+P42+VLOOKUP(CONCATENATE(I42,"-",J42),PNG_Actualizado!$H$11:$V$111,8,FALSE))+IF(G42="SEIN",Area_15,0)*IF(A42,FIGV,1) -> 12.9092 | T42: 20.35166551 | U42: =+PNG_Actualizado!$U$126 -> 71.77763636 | V42: 26.490384 | W42: 15.060556 | X42: 12.9092 | Y42: 20.35166551 | Z42: =+IF(ISERROR(VLOOKUP(C42,VAD_VARIOS!$C$5:$D$37,2,FALSE)),1,VLOOKUP(C42,VAD_VARIOS!$C$5:$D$37,2,FALSE)) -> 0.9704
A43: FALSE | B43: PL0262 | C43: SUPE-BARRANCA | D43: EDLN | E43: 3 | F43: FALSE | G43: SEIN | H43: 6 | I43: Paramonga Nueva | J43: 220 | K43: =VLOOKUP(CONCATENATE(I43,"-",J43),PNG_Actualizado!$H$11:$V$111,10,FALSE)*IF(A43,FIGV,1) -> 25.91 | L43: =VLOOKUP(CONCATENATE(I43,"-",J43),PNG_Actualizado!$H$11:$V$111,11,FALSE)*IF(A43,FIGV,1) -> 13.17 | M43: =VLOOKUP(CONCATENATE(I43,"-",J43),PNG_Actualizado!$H$11:$V$111,12,FALSE)*IF(A43,FIGV,1) -> 11.06 | N43: 1.0196 | O43: 1.0224 | P43: 1.6296 | Q43: 26.490384 | R43: =+((L43-VLOOKUP(CONCATENATE(I43,"-",J43),PNG_Actualizado!$H$11:$O$111,8,FALSE))*N43+P43+VLOOKUP(CONCATENATE(I43,"-",J43),PNG_Actualizado!$H$11:$V$111,8,FALSE))+IF(G43="SEIN",Area_15,0)*IF(A43,FIGV,1) -> 15.121732 | S43: =+((M43-VLOOKUP(CONCATENATE(I43,"-",J43),PNG_Actualizado!$H$11:$O$111,8,FALSE))*N43+P43+VLOOKUP(CONCATENATE(I43,"-",J43),PNG_Actualizado!$H$11:$V$111,8,FALSE))+IF(G43="SEIN",Area_15,0)*IF(A43,FIGV,1) -> 12.970376 | T43: 20.41284151 | U43: =+PNG_Actualizado!$U$126 -> 71.77763636 | V43: 26.490384 | W43: 15.121732 | X43: 12.970376 | Y43: 20.41284151 | Z43: =+IF(ISERROR(VLOOKUP(C43,VAD_VARIOS!$C$5:$D$37,2,FALSE)),1,VLOOKUP(C43,VAD_VARIOS!$C$5:$D$37,2,FALSE)) -> 0.9704
A44: FALSE | B44: PL0005 | C44: LIMA NORTE | D44: EDLN | E44: 1 | F44: FALSE | G44: SEIN | H44: 6 | I44: Lima | J44: 220 | K44: =VLOOKUP(CONCATENATE(I44,"-",J44),PNG_Actualizado!$H$11:$V$111,10,FALSE)*IF(A44,FIGV,1) -> 25.91 | L44: =VLOOKUP(CONCATENATE(I44,"-",J44),PNG_Actualizado!$H$11:$V$111,11,FALSE)*IF(A44,FIGV,1) -> 12.92 | M44: =VLOOKUP(CONCATENATE(I44,"-",J44),PNG_Actualizado!$H$11:$V$111,12,FALSE)*IF(A44,FIGV,1) -> 10.81 | N44: 1.0196 | O44: 1.0224 | P44: 1.6296 | Q44: 26.490384 | R44: =+((L44-VLOOKUP(CONCATENATE(I44,"-",J44),PNG_Actualizado!$H$11:$O$111,8,FALSE))*N44+P44+VLOOKUP(CONCATENATE(I44,"-",J44),PNG_Actualizado!$H$11:$V$111,8,FALSE))+IF(G44="SEIN",Area_15,0)*IF(A44,FIGV,1) -> 14.866832 | S44: =+((M44-VLOOKUP(CONCATENATE(I44,"-",J44),PNG_Actualizado!$H$11:$O$111,8,FALSE))*N44+P44+VLOOKUP(CONCATENATE(I44,"-",J44),PNG_Actualizado!$H$11:$V$111,8,FALSE))+IF(G44="SEIN",Area_15,0)*IF(A44,FIGV,1) -> 12.715476 | T44: 20.15794151 | U44: =+PNG_Actualizado!$U$126 -> 71.77763636 | V44: 26.490384 | W44: 14.866832 | X44: 12.715476 | Y44: 20.15794151 | Z44: =+IF(ISERROR(VLOOKUP(C44,VAD_VARIOS!$C$5:$D$37,2,FALSE)),1,VLOOKUP(C44,VAD_VARIOS!$C$5:$D$37,2,FALSE)) -> 1
A45: TRUE | B45: PL0159 | C45: PANGOA 2 | D45: EGEP | E45: 3 | F45: TRUE | G45: SEIN | H45: 5 | I45: Oroya Nueva | J45: 50 | K45: =VLOOKUP(CONCATENATE(I45,"-",J45),PNG_Actualizado!$H$11:$V$111,10,FALSE)*IF(A45,FIGV,1) -> 30.5738 | L45: =VLOOKUP(CONCATENATE(I45,"-",J45),PNG_Actualizado!$H$11:$V$111,11,FALSE)*IF(A45,FIGV,1) -> 15.9772 | M45: =VLOOKUP(CONCATENATE(I45,"-",J45),PNG_Actualizado!$H$11:$V$111,12,FALSE)*IF(A45,FIGV,1) -> 13.4166 | N45: 1.0224 | O45: 1.0248 | P45: 2.3908 | Q45: 31.33203024 | R45: =+((L45-VLOOKUP(CONCATENATE(I45,"-",J45),PNG_Actualizado!$H$11:$O$111,8,FALSE))*N45+P45+VLOOKUP(CONCATENATE(I45,"-",J45),PNG_Actualizado!$H$11:$V$111,8,FALSE))+IF(G45="SEIN",Area_15,0)*IF(A45,FIGV,1) -> 18.80140928 | S45: =+((M45-VLOOKUP(CONCATENATE(I45,"-",J45),PNG_Actualizado!$H$11:$O$111,8,FALSE))*N45+P45+VLOOKUP(CONCATENATE(I45,"-",J45),PNG_Actualizado!$H$11:$V$111,8,FALSE))+IF(G45="SEIN",Area_15,0)*IF(A45,FIGV,1) -> 16.18345184 | T45: 25.01186579 | U45: =+PNG_Actualizado!$U$126 -> 71.77763636 | V45: 31.33203024 | W45: 18.80140928 | X45: 16.18345184 | Y45: 25.01186579 | Z45: =+IF(ISERROR(VLOOKUP(C45,VAD_VARIOS!$C$5:$D$37,2,FALSE)),1,VLOOKUP(C45,VAD_VARIOS!$C$5:$D$37,2,FALSE)) -> 1
A46: FALSE | B46: PR0061 | C46: SER HUANCAVELICA | D46: ELC | E46: SER | F46: FALSE | G46: SEIN | H46: 5 | I46: HUANCAVELICA | J46: 220 | K46: =VLOOKUP(CONCATENATE(I46,"-",J46),PNG_Actualizado!$H$11:$V$111,10,FALSE)*IF(A46,FIGV,1) -> 25.91 | L46: =VLOOKUP(CONCATENATE(I46,"-",J46),PNG_Actualizado!$H$11:$V$111,11,FALSE)*IF(A46,FIGV,1) -> 12.68 | M46: =VLOOKUP(CONCATENATE(I46,"-",J46),PNG_Actualizado!$H$11:$V$111,12,FALSE)*IF(A46,FIGV,1) -> 10.65 | N46: 1.0224 | O46: 1.0248 | P46: 2.3908 | Q46: 26.552568 | R46: =+((L46-VLOOKUP(CONCATENATE(I46,"-",J46),PNG_Actualizado!$H$11:$O$111,8,FALSE))*N46+P46+VLOOKUP(CONCATENATE(I46,"-",J46),PNG_Actualizado!$H$11:$V$111,8,FALSE))+IF(G46="SEIN",Area_15,0)*IF(A46,FIGV,1) -> 15.418832 | S46: =+((M46-VLOOKUP(CONCATENATE(I46,"-",J46),PNG_Actualizado!$H$11:$O$111,8,FALSE))*N46+P46+VLOOKUP(CONCATENATE(I46,"-",J46),PNG_Actualizado!$H$11:$V$111,8,FALSE))+IF(G46="SEIN",Area_15,0)*IF(A46,FIGV,1) -> 13.34336 | T46: 20.77496914 | U46: =+PNG_Actualizado!$U$126 -> 71.77763636 | V46: 26.552568 | W46: 15.418832 | X46: 13.34336 | Y46: 20.77496914 | Z46: =+IF(ISERROR(VLOOKUP(C46,VAD_VARIOS!$C$5:$D$37,2,FALSE)),1,VLOOKUP(C46,VAD_VARIOS!$C$5:$D$37,2,FALSE)) -> 1
A47: FALSE | B47: PR0063 | C47: SER PASCO | D47: ELC | E47: SER | F47: FALSE | G47: SEIN | H47: 5 | I47: OROYA NUEVA | J47: 50 | K47: =VLOOKUP(CONCATENATE(I47,"-",J47),PNG_Actualizado!$H$11:$V$111,10,FALSE)*IF(A47,FIGV,1) -> 25.91 | L47: =VLOOKUP(CONCATENATE(I47,"-",J47),PNG_Actualizado!$H$11:$V$111,11,FALSE)*IF(A47,FIGV,1) -> 13.54 | M47: =VLOOKUP(CONCATENATE(I47,"-",J47),PNG_Actualizado!$H$11:$V$111,12,FALSE)*IF(A47,FIGV,1) -> 11.37 | N47: =IF(G47="SEIN",VLOOKUP(H47,FPMdPFPMdE,6,FALSE),1) -> 1.005903188 | O47: =IF(G47="SEIN",VLOOKUP(H47,FPMdPFPMdE,5,FALSE),1) -> 1.006185567 | P47: 2.3908 | Q47: 26.07026804 | R47: =+((L47-VLOOKUP(CONCATENATE(I47,"-",J47),PNG_Actualizado!$H$11:$O$111,8,FALSE))*N47+P47+VLOOKUP(CONCATENATE(I47,"-",J47),PNG_Actualizado!$H$11:$V$111,8,FALSE))+IF(G47="SEIN",Area_15,0)*IF(A47,FIGV,1) -> 16.07472916 | S47: =+((M47-VLOOKUP(CONCATENATE(I47,"-",J47),PNG_Actualizado!$H$11:$O$111,8,FALSE))*N47+P47+VLOOKUP(CONCATENATE(I47,"-",J47),PNG_Actualizado!$H$11:$V$111,8,FALSE))+IF(G47="SEIN",Area_15,0)*IF(A47,FIGV,1) -> 13.89191924 | T47: 21.23930374 | U47: =+PNG_Actualizado!$U$126 -> 71.77763636 | V47: 26.07026804 | W47: 16.07472916 | X47: 13.89191924 | Y47: 21.23930374 | Z47: =+IF(ISERROR(VLOOKUP(C47,VAD_VARIOS!$C$5:$D$37,2,FALSE)),1,VLOOKUP(C47,VAD_VARIOS!$C$5:$D$37,2,FALSE)) -> 1
A48: FALSE | B48: PR0064 | C48: SER TARMA-CHANCHAMAYO | D48: ELC | E48: SER | F48: FALSE | G48: SEIN | H48: 5 | I48: CONDORCOCHA | J48: 44 | K48: =VLOOKUP(CONCATENATE(I48,"-",J48),PNG_Actualizado!$H$11:$V$111,10,FALSE)*IF(A48,FIGV,1) -> 25.91 | L48: =VLOOKUP(CONCATENATE(I48,"-",J48),PNG_Actualizado!$H$11:$V$111,11,FALSE)*IF(A48,FIGV,1) -> 12.72 | M48: =VLOOKUP(CONCATENATE(I48,"-",J48),PNG_Actualizado!$H$11:$V$111,12,FALSE)*IF(A48,FIGV,1) -> 10.78 | N48: =IF(G48="SEIN",VLOOKUP(H48,FPMdPFPMdE,6,FALSE),1) -> 1.005903188 | O48: =IF(G48="SEIN",VLOOKUP(H48,FPMdPFPMdE,5,FALSE),1) -> 1.006185567 | P48: 2.3908 | Q48: 26.07026804 | R48: =+((L48-VLOOKUP(CONCATENATE(I48,"-",J48),PNG_Actualizado!$H$11:$O$111,8,FALSE))*N48+P48+VLOOKUP(CONCATENATE(I48,"-",J48),PNG_Actualizado!$H$11:$V$111,8,FALSE))+IF(G48="SEIN",Area_15,0)*IF(A48,FIGV,1) -> 15.24988855 | S48: =+((M48-VLOOKUP(CONCATENATE(I48,"-",J48),PNG_Actualizado!$H$11:$O$111,8,FALSE))*N48+P48+VLOOKUP(CONCATENATE(I48,"-",J48),PNG_Actualizado!$H$11:$V$111,8,FALSE))+IF(G48="SEIN",Area_15,0)*IF(A48,FIGV,1) -> 13.29843636 | T48: 20.56484565 | U48: =+PNG_Actualizado!$U$126 -> 71.77763636 | V48: 26.07026804 | W48: 15.24988855 | X48: 13.29843636 | Y48: 20.56484565 | Z48: =+IF(ISERROR(VLOOKUP(C48,VAD_VARIOS!$C$5:$D$37,2,FALSE)),1,VLOOKUP(C48,VAD_VARIOS!$C$5:$D$37,2,FALSE)) -> 1
A49: FALSE | B49: PR0065 | C49: SER TINGO MARIA | D49: ELC | E49: SER | F49: FALSE | G49: SEIN | H49: 5 | I49: TINGO MARÍA | J49: 138 | K49: =VLOOKUP(CONCATENATE(I49,"-",J49),PNG_Actualizado!$H$11:$V$111,10,FALSE)*IF(A49,FIGV,1) -> 25.91 | L49: =VLOOKUP(CONCATENATE(I49,"-",J49),PNG_Actualizado!$H$11:$V$111,11,FALSE)*IF(A49,FIGV,1) -> 13.51 | M49: =VLOOKUP(CONCATENATE(I49,"-",J49),PNG_Actualizado!$H$11:$V$111,12,FALSE)*IF(A49,FIGV,1) -> 11.4 | N49: 1.0224 | O49: 1.0248 | P49: 2.3908 | Q49: 26.552568 | R49: =+((L49-VLOOKUP(CONCATENATE(I49,"-",J49),PNG_Actualizado!$H$11:$O$111,8,FALSE))*N49+P49+VLOOKUP(CONCATENATE(I49,"-",J49),PNG_Actualizado!$H$11:$V$111,8,FALSE))+IF(G49="SEIN",Area_15,0)*IF(A49,FIGV,1) -> 16.267424 | S49: =+((M49-VLOOKUP(CONCATENATE(I49,"-",J49),PNG_Actualizado!$H$11:$O$111,8,FALSE))*N49+P49+VLOOKUP(CONCATENATE(I49,"-",J49),PNG_Actualizado!$H$11:$V$111,8,FALSE))+IF(G49="SEIN",Area_15,0)*IF(A49,FIGV,1) -> 14.11016 | T49: 21.57039634 | U49: =+PNG_Actualizado!$U$126 -> 71.77763636 | V49: 26.552568 | W49: 16.267424 | X49: 14.11016 | Y49: 21.57039634 | Z49: =+IF(ISERROR(VLOOKUP(C49,VAD_VARIOS!$C$5:$D$37,2,FALSE)),1,VLOOKUP(C49,VAD_VARIOS!$C$5:$D$37,2,FALSE)) -> 1
A50: FALSE | B50: PR0066 | C50: SER HUANUCO | D50: ELC | E50: SER | F50: FALSE | G50: SEIN | H50: 5 | I50: HUÁNUCO | J50: 138 | K50: =VLOOKUP(CONCATENATE(I50,"-",J50),PNG_Actualizado!$H$11:$V$111,10,FALSE)*IF(A50,FIGV,1) -> 25.91 | L50: =VLOOKUP(CONCATENATE(I50,"-",J50),PNG_Actualizado!$H$11:$V$111,11,FALSE)*IF(A50,FIGV,1) -> 13.54 | M50: =VLOOKUP(CONCATENATE(I50,"-",J50),PNG_Actualizado!$H$11:$V$111,12,FALSE)*IF(A50,FIGV,1) -> 11.4 | N50: 1.0224 | O50: 1.0248 | P50: 2.3908 | Q50: 26.552568 | R50: =+((L50-VLOOKUP(CONCATENATE(I50,"-",J50),PNG_Actualizado!$H$11:$O$111,8,FALSE))*N50+P50+VLOOKUP(CONCATENATE(I50,"-",J50),PNG_Actualizado!$H$11:$V$111,8,FALSE))+IF(G50="SEIN",Area_15,0)*IF(A50,FIGV,1) -> 16.298096 | S50: =+((M50-VLOOKUP(CONCATENATE(I50,"-",J50),PNG_Actualizado!$H$11:$O$111,8,FALSE))*N50+P50+VLOOKUP(CONCATENATE(I50,"-",J50),PNG_Actualizado!$H$11:$V$111,8,FALSE))+IF(G50="SEIN",Area_15,0)*IF(A50,FIGV,1) -> 14.11016 | T50: 21.58113154 | U50: =+PNG_Actualizado!$U$126 -> 71.77763636 | V50: 26.552568 | W50: 16.298096 | X50: 14.11016 | Y50: 21.58113154 | Z50: =+IF(ISERROR(VLOOKUP(C50,VAD_VARIOS!$C$5:$D$37,2,FALSE)),1,VLOOKUP(C50,VAD_VARIOS!$C$5:$D$37,2,FALSE)) -> 1
A51: FALSE | B51: PR0071 | C51: SER VALLE MANTARO | D51: ELC | E51: SER | F51: FALSE | G51: SEIN | H51: 5 | I51: HUAYUCACHI | J51: 220 | K51: =VLOOKUP(CONCATENATE(I51,"-",J51),PNG_Actualizado!$H$11:$V$111,10,FALSE)*IF(A51,FIGV,1) -> 25.91 | L51: =VLOOKUP(CONCATENATE(I51,"-",J51),PNG_Actualizado!$H$11:$V$111,11,FALSE)*IF(A51,FIGV,1) -> 12.73 | M51: =VLOOKUP(CONCATENATE(I51,"-",J51),PNG_Actualizado!$H$11:$V$111,12,FALSE)*IF(A51,FIGV,1) -> 10.66 | N51: 1.0224 | O51: 1.0248 | P51: 2.3908 | Q51: 26.552568 | R51: =+((L51-VLOOKUP(CONCATENATE(I51,"-",J51),PNG_Actualizado!$H$11:$O$111,8,FALSE))*N51+P51+VLOOKUP(CONCATENATE(I51,"-",J51),PNG_Actualizado!$H$11:$V$111,8,FALSE))+IF(G51="SEIN",Area_15,0)*IF(A51,FIGV,1) -> 15.469952 | S51: =+((M51-VLOOKUP(CONCATENATE(I51,"-",J51),PNG_Actualizado!$H$11:$O$111,8,FALSE))*N51+P51+VLOOKUP(CONCATENATE(I51,"-",J51),PNG_Actualizado!$H$11:$V$111,8,FALSE))+IF(G51="SEIN",Area_15,0)*IF(A51,FIGV,1) -> 13.353584 | T51: 20.79950674 | U51: =+PNG_Actualizado!$U$126 -> 71.77763636 | V51: 26.552568 | W51: 15.469952 | X51: 13.353584 | Y51: 20.79950674 | Z51: =+IF(ISERROR(VLOOKUP(C51,VAD_VARIOS!$C$5:$D$37,2,FALSE)),1,VLOOKUP(C51,VAD_VARIOS!$C$5:$D$37,2,FALSE)) -> 1
A52: FALSE | B52: PR0073 | C52: SER AISLADOS ELECTROCENTRO | D52: ELC | E52: SER | F52: FALSE | G52: AISL | H52: - | I52: ELECTROCENTRO | J52: MT | K52: =VLOOKUP(CONCATENATE(I52,"-",J52),PNG_Actualizado!$H$11:$V$111,10,FALSE)*IF(A52,FIGV,1) -> 17.28 | L52: =VLOOKUP(CONCATENATE(I52,"-",J52),PNG_Actualizado!$H$11:$V$111,11,FALSE)*IF(A52,FIGV,1) -> 17.75 | M52: =VLOOKUP(CONCATENATE(I52,"-",J52),PNG_Actualizado!$H$11:$V$111,12,FALSE)*IF(A52,FIGV,1) -> 17.75 | N52: 1 | O52: 1 | P52: 0 | Q52: 17.28 | R52: =+((L52-VLOOKUP(CONCATENATE(I52,"-",J52),PNG_Actualizado!$H$11:$O$111,8,FALSE))*N52+P52+VLOOKUP(CONCATENATE(I52,"-",J52),PNG_Actualizado!$H$11:$V$111,8,FALSE))+IF(G52="SEIN",Area_15,0)*IF(A52,FIGV,1) -> 17.75 | S52: =+((M52-VLOOKUP(CONCATENATE(I52,"-",J52),PNG_Actualizado!$H$11:$O$111,8,FALSE))*N52+P52+VLOOKUP(CONCATENATE(I52,"-",J52),PNG_Actualizado!$H$11:$V$111,8,FALSE))+IF(G52="SEIN",Area_15,0)*IF(A52,FIGV,1) -> 17.75 | T52: 22.11363636 | U52: =+PNG_Actualizado!$U$126 -> 71.77763636 | V52: 17.28 | W52: 17.75 | X52: 17.75 | Y52: 22.11363636 | Z52: =+IF(ISERROR(VLOOKUP(C52,VAD_VARIOS!$C$5:$D$37,2,FALSE)),1,VLOOKUP(C52,VAD_VARIOS!$C$5:$D$37,2,FALSE)) -> 1
A53: FALSE | B53: PR0078 | C53: SER AYACUCHO, CANGALLO, LLUSITA, HUANTA, PAMPAS, SAN BALBÍN, TABLACHACA | D53: ELC | E53: SER | F53: FALSE | G53: SEIN | H53: 5 | I53: MANTARO | J53: 220 | K53: =VLOOKUP(CONCATENATE(I53,"-",J53),PNG_Actualizado!$H$11:$V$111,10,FALSE)*IF(A53,FIGV,1) -> 25.91 | L53: =VLOOKUP(CONCATENATE(I53,"-",J53),PNG_Actualizado!$H$11:$V$111,11,FALSE)*IF(A53,FIGV,1) -> 12.63 | M53: =VLOOKUP(CONCATENATE(I53,"-",J53),PNG_Actualizado!$H$11:$V$111,12,FALSE)*IF(A53,FIGV,1) -> 10.58 | N53: 1.0224 | O53: 1.0248 | P53: 2.3908 | Q53: 26.552568 | R53: =+((L53-VLOOKUP(CONCATENATE(I53,"-",J53),PNG_Actualizado!$H$11:$O$111,8,FALSE))*N53+P53+VLOOKUP(CONCATENATE(I53,"-",J53),PNG_Actualizado!$H$11:$V$111,8,FALSE))+IF(G53="SEIN",Area_15,0)*IF(A53,FIGV,1) -> 15.367712 | S53: =+((M53-VLOOKUP(CONCATENATE(I53,"-",J53),PNG_Actualizado!$H$11:$O$111,8,FALSE))*N53+P53+VLOOKUP(CONCATENATE(I53,"-",J53),PNG_Actualizado!$H$11:$V$111,8,FALSE))+IF(G53="SEIN",Area_15,0)*IF(A53,FIGV,1) -> 13.271792 | T53: 20.71055794 | U53: =+PNG_Actualizado!$U$126 -> 71.77763636 | V53: 26.552568 | W53: 15.367712 | X53: 13.271792 | Y53: 20.71055794 | Z53: =+IF(ISERROR(VLOOKUP(C53,VAD_VARIOS!$C$5:$D$37,2,FALSE)),1,VLOOKUP(C53,VAD_VARIOS!$C$5:$D$37,2,FALSE)) -> 1
A54: FALSE | B54: PL0068 | C54: CANGALLO-LLUSITA | D54: ELC | E54: 5 | F54: FALSE | G54: SEIN | H54: 5 | I54: Mantaro | J54: 220 | K54: =VLOOKUP(CONCATENATE(I54,"-",J54),PNG_Actualizado!$H$11:$V$111,10,FALSE)*IF(A54,FIGV,1) -> 25.91 | L54: =VLOOKUP(CONCATENATE(I54,"-",J54),PNG_Actualizado!$H$11:$V$111,11,FALSE)*IF(A54,FIGV,1) -> 12.63 | M54: =VLOOKUP(CONCATENATE(I54,"-",J54),PNG_Actualizado!$H$11:$V$111,12,FALSE)*IF(A54,FIGV,1) -> 10.58 | N54: 1.0224 | O54: 1.0248 | P54: 2.3908 | Q54: 26.552568 | R54: =+((L54-VLOOKUP(CONCATENATE(I54,"-",J54),PNG_Actualizado!$H$11:$O$111,8,FALSE))*N54+P54+VLOOKUP(CONCATENATE(I54,"-",J54),PNG_Actualizado!$H$11:$V$111,8,FALSE))+IF(G54="SEIN",Area_15,0)*IF(A54,FIGV,1) -> 15.367712 | S54: =+((M54-VLOOKUP(CONCATENATE(I54,"-",J54),PNG_Actualizado!$H$11:$O$111,8,FALSE))*N54+P54+VLOOKUP(CONCATENATE(I54,"-",J54),PNG_Actualizado!$H$11:$V$111,8,FALSE))+IF(G54="SEIN",Area_15,0)*IF(A54,FIGV,1) -> 13.271792 | T54: 20.71055794 | U54: =+PNG_Actualizado!$U$126 -> 71.77763636 | V54: 26.552568 | W54: 15.367712 | X54: 13.271792 | Y54: 20.71055794 | Z54: =+IF(ISERROR(VLOOKUP(C54,VAD_VARIOS!$C$5:$D$37,2,FALSE)),1,VLOOKUP(C54,VAD_VARIOS!$C$5:$D$37,2,FALSE)) -> 1
A55: FALSE | B55: PL0070 | C55: PAMPAS | D55: ELC | E55: 5 | F55: FALSE | G55: SEIN | H55: 5 | I55: Mantaro | J55: 220 | K55: =VLOOKUP(CONCATENATE(I55,"-",J55),PNG_Actualizado!$H$11:$V$111,10,FALSE)*IF(A55,FIGV,1) -> 25.91 | L55: =VLOOKUP(CONCATENATE(I55,"-",J55),PNG_Actualizado!$H$11:$V$111,11,FALSE)*IF(A55,FIGV,1) -> 12.63 | M55: =VLOOKUP(CONCATENATE(I55,"-",J55),PNG_Actualizado!$H$11:$V$111,12,FALSE)*IF(A55,FIGV,1) -> 10.58 | N55: 1.0224 | O55: 1.0248 | P55: 2.3908 | Q55: 26.552568 | R55: =+((L55-VLOOKUP(CONCATENATE(I55,"-",J55),PNG_Actualizado!$H$11:$O$111,8,FALSE))*N55+P55+VLOOKUP(CONCATENATE(I55,"-",J55),PNG_Actualizado!$H$11:$V$111,8,FALSE))+IF(G55="SEIN",Area_15,0)*IF(A55,FIGV,1) -> 15.367712 | S55: =+((M55-VLOOKUP(CONCATENATE(I55,"-",J55),PNG_Actualizado!$H$11:$O$111,8,FALSE))*N55+P55+VLOOKUP(CONCATENATE(I55,"-",J55),PNG_Actualizado!$H$11:$V$111,8,FALSE))+IF(G55="SEIN",Area_15,0)*IF(A55,FIGV,1) -> 13.271792 | T55: 20.71055794 | U55: =+PNG_Actualizado!$U$126 -> 71.77763636 | V55: 26.552568 | W55: 15.367712 | X55: 13.271792 | Y55: 20.71055794 | Z55: =+IF(ISERROR(VLOOKUP(C55,VAD_VARIOS!$C$5:$D$37,2,FALSE)),1,VLOOKUP(C55,VAD_VARIOS!$C$5:$D$37,2,FALSE)) -> 1
A56: FALSE | B56: PL0075 | C56: HUANCAVELICA RURAL | D56: ELC | E56: 5 | F56: FALSE | G56: SEIN | H56: 5 | I56: Huancavelica | J56: 220 | K56: =VLOOKUP(CONCATENATE(I56,"-",J56),PNG_Actualizado!$H$11:$V$111,10,FALSE)*IF(A56,FIGV,1) -> 25.91 | L56: =VLOOKUP(CONCATENATE(I56,"-",J56),PNG_Actualizado!$H$11:$V$111,11,FALSE)*IF(A56,FIGV,1) -> 12.68 | M56: =VLOOKUP(CONCATENATE(I56,"-",J56),PNG_Actualizado!$H$11:$V$111,12,FALSE)*IF(A56,FIGV,1) -> 10.65 | N56: 1.0224 | O56: 1.0248 | P56: 2.3908 | Q56: 26.552568 | R56: =+((L56-VLOOKUP(CONCATENATE(I56,"-",J56),PNG_Actualizado!$H$11:$O$111,8,FALSE))*N56+P56+VLOOKUP(CONCATENATE(I56,"-",J56),PNG_Actualizado!$H$11:$V$111,8,FALSE))+IF(G56="SEIN",Area_15,0)*IF(A56,FIGV,1) -> 15.418832 | S56: =+((M56-VLOOKUP(CONCATENATE(I56,"-",J56),PNG_Actualizado!$H$11:$O$111,8,FALSE))*N56+P56+VLOOKUP(CONCATENATE(I56,"-",J56),PNG_Actualizado!$H$11:$V$111,8,FALSE))+IF(G56="SEIN",Area_15,0)*IF(A56,FIGV,1) -> 13.34336 | T56: 20.77496914 | U56: =+PNG_Actualizado!$U$126 -> 71.77763636 | V56: 26.552568 | W56: 15.418832 | X56: 13.34336 | Y56: 20.77496914 | Z56: =+IF(ISERROR(VLOOKUP(C56,VAD_VARIOS!$C$5:$D$37,2,FALSE)),1,VLOOKUP(C56,VAD_VARIOS!$C$5:$D$37,2,FALSE)) -> 1
A57: FALSE | B57: PL0077 | C57: VALLE DEL MANTARO 4 | D57: ELC | E57: 5 | F57: FALSE | G57: SEIN | H57: 5 | I57: Huayucachi | J57: 220 | K57: =VLOOKUP(CONCATENATE(I57,"-",J57),PNG_Actualizado!$H$11:$V$111,10,FALSE)*IF(A57,FIGV,1) -> 25.91 | L57: =VLOOKUP(CONCATENATE(I57,"-",J57),PNG_Actualizado!$H$11:$V$111,11,FALSE)*IF(A57,FIGV,1) -> 12.73 | M57: =VLOOKUP(CONCATENATE(I57,"-",J57),PNG_Actualizado!$H$11:$V$111,12,FALSE)*IF(A57,FIGV,1) -> 10.66 | N57: 1.0224 | O57: 1.0248 | P57: 2.3908 | Q57: 26.552568 | R57: =+((L57-VLOOKUP(CONCATENATE(I57,"-",J57),PNG_Actualizado!$H$11:$O$111,8,FALSE))*N57+P57+VLOOKUP(CONCATENATE(I57,"-",J57),PNG_Actualizado!$H$11:$V$111,8,FALSE))+IF(G57="SEIN",Area_15,0)*IF(A57,FIGV,1) -> 15.469952 | S57: =+((M57-VLOOKUP(CONCATENATE(I57,"-",J57),PNG_Actualizado!$H$11:$O$111,8,FALSE))*N57+P57+VLOOKUP(CONCATENATE(I57,"-",J57),PNG_Actualizado!$H$11:$V$111,8,FALSE))+IF(G57="SEIN",Area_15,0)*IF(A57,FIGV,1) -> 13.353584 | T57: 20.79950674 | U57: =+PNG_Actualizado!$U$126 -> 71.77763636 | V57: 26.552568 | W57: 15.469952 | X57: 13.353584 | Y57: 20.79950674 | Z57: =+IF(ISERROR(VLOOKUP(C57,VAD_VARIOS!$C$5:$D$37,2,FALSE)),1,VLOOKUP(C57,VAD_VARIOS!$C$5:$D$37,2,FALSE)) -> 1
A58: FALSE | B58: PL0078 | C58: TABLACHACA | D58: ELC | E58: 5 | F58: FALSE | G58: SEIN | H58: 5 | I58: Mantaro | J58: 220 | K58: =VLOOKUP(CONCATENATE(I58,"-",J58),PNG_Actualizado!$H$11:$V$111,10,FALSE)*IF(A58,FIGV,1) -> 25.91 | L58: =VLOOKUP(CONCATENATE(I58,"-",J58),PNG_Actualizado!$H$11:$V$111,11,FALSE)*IF(A58,FIGV,1) -> 12.63 | M58: =VLOOKUP(CONCATENATE(I58,"-",J58),PNG_Actualizado!$H$11:$V$111,12,FALSE)*IF(A58,FIGV,1) -> 10.58 | N58: 1.0224 | O58: 1.0248 | P58: 2.3908 | Q58: 26.552568 | R58: =+((L58-VLOOKUP(CONCATENATE(I58,"-",J58),PNG_Actualizado!$H$11:$O$111,8,FALSE))*N58+P58+VLOOKUP(CONCATENATE(I58,"-",J58),PNG_Actualizado!$H$11:$V$111,8,FALSE))+IF(G58="SEIN",Area_15,0)*IF(A58,FIGV,1) -> 15.367712 | S58: =+((M58-VLOOKUP(CONCATENATE(I58,"-",J58),PNG_Actualizado!$H$11:$O$111,8,FALSE))*N58+P58+VLOOKUP(CONCATENATE(I58,"-",J58),PNG_Actualizado!$H$11:$V$111,8,FALSE))+IF(G58="SEIN",Area_15,0)*IF(A58,FIGV,1) -> 13.271792 | T58: 20.71055794 | U58: =+PNG_Actualizado!$U$126 -> 71.77763636 | V58: 26.552568 | W58: 15.367712 | X58: 13.271792 | Y58: 20.71055794 | Z58: =+IF(ISERROR(VLOOKUP(C58,VAD_VARIOS!$C$5:$D$37,2,FALSE)),1,VLOOKUP(C58,VAD_VARIOS!$C$5:$D$37,2,FALSE)) -> 1
A59: FALSE | B59: PL0079 | C59: ACOBAMBILLA | D59: ELC | E59: 5 | F59: FALSE | G59: SEIN | H59: 5 | I59: Huayucachi | J59: 220 | K59: =VLOOKUP(CONCATENATE(I59,"-",J59),PNG_Actualizado!$H$11:$V$111,10,FALSE)*IF(A59,FIGV,1) -> 25.91 | L59: =VLOOKUP(CONCATENATE(I59,"-",J59),PNG_Actualizado!$H$11:$V$111,11,FALSE)*IF(A59,FIGV,1) -> 12.73 | M59: =VLOOKUP(CONCATENATE(I59,"-",J59),PNG_Actualizado!$H$11:$V$111,12,FALSE)*IF(A59,FIGV,1) -> 10.66 | N59: 1.0224 | O59: 1.0248 | P59: 2.3908 | Q59: 26.552568 | R59: =+((L59-VLOOKUP(CONCATENATE(I59,"-",J59),PNG_Actualizado!$H$11:$O$111,8,FALSE))*N59+P59+VLOOKUP(CONCATENATE(I59,"-",J59),PNG_Actualizado!$H$11:$V$111,8,FALSE))+IF(G59="SEIN",Area_15,0)*IF(A59,FIGV,1) -> 15.469952 | S59: =+((M59-VLOOKUP(CONCATENATE(I59,"-",J59),PNG_Actualizado!$H$11:$O$111,8,FALSE))*N59+P59+VLOOKUP(CONCATENATE(I59,"-",J59),PNG_Actualizado!$H$11:$V$111,8,FALSE))+IF(G59="SEIN",Area_15,0)*IF(A59,FIGV,1) -> 13.353584 | T59: 20.79950674 | U59: =+PNG_Actualizado!$U$126 -> 71.77763636 | V59: 26.552568 | W59: 15.469952 | X59: 13.353584 | Y59: 20.79950674 | Z59: =+IF(ISERROR(VLOOKUP(C59,VAD_VARIOS!$C$5:$D$37,2,FALSE)),1,VLOOKUP(C59,VAD_VARIOS!$C$5:$D$37,2,FALSE)) -> 1
A60: FALSE | B60: PL0080 | C60: POZUZO | D60: ELC | E60: 5 | F60: FALSE | G60: AISL | I60: Electrocentro | J60: MT | K60: =VLOOKUP(CONCATENATE(I60,"-",J60),PNG_Actualizado!$H$11:$V$111,10,FALSE)*IF(A60,FIGV,1) -> 17.28 | L60: =VLOOKUP(CONCATENATE(I60,"-",J60),PNG_Actualizado!$H$11:$V$111,11,FALSE)*IF(A60,FIGV,1) -> 17.75 | M60: =VLOOKUP(CONCATENATE(I60,"-",J60),PNG_Actualizado!$H$11:$V$111,12,FALSE)*IF(A60,FIGV,1) -> 17.75 | N60: 1 | O60: 1 | P60: 0 | Q60: 17.28 | R60: =+((L60-VLOOKUP(CONCATENATE(I60,"-",J60),PNG_Actualizado!$H$11:$O$111,8,FALSE))*N60+P60+VLOOKUP(CONCATENATE(I60,"-",J60),PNG_Actualizado!$H$11:$V$111,8,FALSE))+IF(G60="SEIN",Area_15,0)*IF(A60,FIGV,1) -> 17.75 | S60: =+((M60-VLOOKUP(CONCATENATE(I60,"-",J60),PNG_Actualizado!$H$11:$O$111,8,FALSE))*N60+P60+VLOOKUP(CONCATENATE(I60,"-",J60),PNG_Actualizado!$H$11:$V$111,8,FALSE))+IF(G60="SEIN",Area_15,0)*IF(A60,FIGV,1) -> 17.75 | T60: 22.11363636 | U60: =+PNG_Actualizado!$U$126 -> 71.77763636 | V60: 17.28 | W60: 17.75 | X60: 17.75 | Y60: 22.11363636 | Z60: =+IF(ISERROR(VLOOKUP(C60,VAD_VARIOS!$C$5:$D$37,2,FALSE)),1,VLOOKUP(C60,VAD_VARIOS!$C$5:$D$37,2,FALSE)) -> 1
A61: FALSE | B61: PL0161 | C61: AYACUCHO RURAL | D61: ELC | E61: 5 | F61: FALSE | G61: SEIN | H61: 5 | I61: Mantaro | J61: 220 | K61: =VLOOKUP(CONCATENATE(I61,"-",J61),PNG_Actualizado!$H$11:$V$111,10,FALSE)*IF(A61,FIGV,1) -> 25.91 | L61: =VLOOKUP(CONCATENATE(I61,"-",J61),PNG_Actualizado!$H$11:$V$111,11,FALSE)*IF(A61,FIGV,1) -> 12.63 | M61: =VLOOKUP(CONCATENATE(I61,"-",J61),PNG_Actualizado!$H$11:$V$111,12,FALSE)*IF(A61,FIGV,1) -> 10.58 | N61: 1.0224 | O61: 1.0248 | P61: 2.3908 | Q61: 26.552568 | R61: =+((L61-VLOOKUP(CONCATENATE(I61,"-",J61),PNG_Actualizado!$H$11:$O$111,8,FALSE))*N61+P61+VLOOKUP(CONCATENATE(I61,"-",J61),PNG_Actualizado!$H$11:$V$111,8,FALSE))+IF(G61="SEIN",Area_15,0)*IF(A61,FIGV,1) -> 15.367712 | S61: =+((M61-VLOOKUP(CONCATENATE(I61,"-",J61),PNG_Actualizado!$H$11:$O$111,8,FALSE))*N61+P61+VLOOKUP(CONCATENATE(I61,"-",J61),PNG_Actualizado!$H$11:$V$111,8,FALSE))+IF(G61="SEIN",Area_15,0)*IF(A61,FIGV,1) -> 13.271792 | T61: 20.71055794 | U61: =+PNG_Actualizado!$U$126 -> 71.77763636 | V61: 26.552568 | W61: 15.367712 | X61: 13.271792 | Y61: 20.71055794 | Z61: =+IF(ISERROR(VLOOKUP(C61,VAD_VARIOS!$C$5:$D$37,2,FALSE)),1,VLOOKUP(C61,VAD_VARIOS!$C$5:$D$37,2,FALSE)) -> 1
A62: FALSE | B62: PL0162 | C62: HUÁNUCO RURAL 2 | D62: ELC | E62: 5 | F62: FALSE | G62: SEIN | H62: 5 | I62: Huánuco | J62: 138 | K62: =VLOOKUP(CONCATENATE(I62,"-",J62),PNG_Actualizado!$H$11:$V$111,10,FALSE)*IF(A62,FIGV,1) -> 25.91 | L62: =VLOOKUP(CONCATENATE(I62,"-",J62),PNG_Actualizado!$H$11:$V$111,11,FALSE)*IF(A62,FIGV,1) -> 13.54 | M62: =VLOOKUP(CONCATENATE(I62,"-",J62),PNG_Actualizado!$H$11:$V$111,12,FALSE)*IF(A62,FIGV,1) -> 11.4 | N62: 1.0224 | O62: 1.0248 | P62: 2.3908 | Q62: 26.552568 | R62: =+((L62-VLOOKUP(CONCATENATE(I62,"-",J62),PNG_Actualizado!$H$11:$O$111,8,FALSE))*N62+P62+VLOOKUP(CONCATENATE(I62,"-",J62),PNG_Actualizado!$H$11:$V$111,8,FALSE))+IF(G62="SEIN",Area_15,0)*IF(A62,FIGV,1) -> 16.298096 | S62: =+((M62-VLOOKUP(CONCATENATE(I62,"-",J62),PNG_Actualizado!$H$11:$O$111,8,FALSE))*N62+P62+VLOOKUP(CONCATENATE(I62,"-",J62),PNG_Actualizado!$H$11:$V$111,8,FALSE))+IF(G62="SEIN",Area_15,0)*IF(A62,FIGV,1) -> 14.11016 | T62: 21.58113154 | U62: =+PNG_Actualizado!$U$126 -> 71.77763636 | V62: 26.552568 | W62: 16.298096 | X62: 14.11016 | Y62: 21.58113154 | Z62: =+IF(ISERROR(VLOOKUP(C62,VAD_VARIOS!$C$5:$D$37,2,FALSE)),1,VLOOKUP(C62,VAD_VARIOS!$C$5:$D$37,2,FALSE)) -> 1
A63: FALSE | B63: PL0164 | C63: TARMA RURAL | D63: ELC | E63: 5 | F63: FALSE | G63: SEIN | H63: 5 | I63: Condorcocha | J63: 44 | K63: =VLOOKUP(CONCATENATE(I63,"-",J63),PNG_Actualizado!$H$11:$V$111,10,FALSE)*IF(A63,FIGV,1) -> 25.91 | L63: =VLOOKUP(CONCATENATE(I63,"-",J63),PNG_Actualizado!$H$11:$V$111,11,FALSE)*IF(A63,FIGV,1) -> 12.72 | M63: =VLOOKUP(CONCATENATE(I63,"-",J63),PNG_Actualizado!$H$11:$V$111,12,FALSE)*IF(A63,FIGV,1) -> 10.78 | N63: =IF(G63="SEIN",VLOOKUP(H63,FPMdPFPMdE,6,FALSE),1) -> 1.005903188 | O63: =IF(G63="SEIN",VLOOKUP(H63,FPMdPFPMdE,5,FALSE),1) -> 1.006185567 | P63: 2.3908 | Q63: 26.07026804 | R63: =+((L63-VLOOKUP(CONCATENATE(I63,"-",J63),PNG_Actualizado!$H$11:$O$111,8,FALSE))*N63+P63+VLOOKUP(CONCATENATE(I63,"-",J63),PNG_Actualizado!$H$11:$V$111,8,FALSE))+IF(G63="SEIN",Area_15,0)*IF(A63,FIGV,1) -> 15.24988855 | S63: =+((M63-VLOOKUP(CONCATENATE(I63,"-",J63),PNG_Actualizado!$H$11:$O$111,8,FALSE))*N63+P63+VLOOKUP(CONCATENATE(I63,"-",J63),PNG_Actualizado!$H$11:$V$111,8,FALSE))+IF(G63="SEIN",Area_15,0)*IF(A63,FIGV,1) -> 13.29843636 | T63: 20.56484565 | U63: =+PNG_Actualizado!$U$126 -> 71.77763636 | V63: 26.07026804 | W63: 15.24988855 | X63: 13.29843636 | Y63: 20.56484565 | Z63: =+IF(ISERROR(VLOOKUP(C63,VAD_VARIOS!$C$5:$D$37,2,FALSE)),1,VLOOKUP(C63,VAD_VARIOS!$C$5:$D$37,2,FALSE)) -> 1
A64: FALSE | B64: PL0170 | C64: SAN BALVÍN | D64: ELC | E64: 5 | F64: FALSE | G64: SEIN | H64: 5 | I64: Mantaro | J64: 220 | K64: =VLOOKUP(CONCATENATE(I64,"-",J64),PNG_Actualizado!$H$11:$V$111,10,FALSE)*IF(A64,FIGV,1) -> 25.91 | L64: =VLOOKUP(CONCATENATE(I64,"-",J64),PNG_Actualizado!$H$11:$V$111,11,FALSE)*IF(A64,FIGV,1) -> 12.63 | M64: =VLOOKUP(CONCATENATE(I64,"-",J64),PNG_Actualizado!$H$11:$V$111,12,FALSE)*IF(A64,FIGV,1) -> 10.58 | N64: 1.0224 | O64: 1.0248 | P64: 2.3908 | Q64: 26.552568 | R64: =+((L64-VLOOKUP(CONCATENATE(I64,"-",J64),PNG_Actualizado!$H$11:$O$111,8,FALSE))*N64+P64+VLOOKUP(CONCATENATE(I64,"-",J64),PNG_Actualizado!$H$11:$V$111,8,FALSE))+IF(G64="SEIN",Area_15,0)*IF(A64,FIGV,1) -> 15.367712 | S64: =+((M64-VLOOKUP(CONCATENATE(I64,"-",J64),PNG_Actualizado!$H$11:$O$111,8,FALSE))*N64+P64+VLOOKUP(CONCATENATE(I64,"-",J64),PNG_Actualizado!$H$11:$V$111,8,FALSE))+IF(G64="SEIN",Area_15,0)*IF(A64,FIGV,1) -> 13.271792 | T64: 20.71055794 | U64: =+PNG_Actualizado!$U$126 -> 71.77763636 | V64: 26.552568 | W64: 15.367712 | X64: 13.271792 | Y64: 20.71055794 | Z64: =+IF(ISERROR(VLOOKUP(C64,VAD_VARIOS!$C$5:$D$37,2,FALSE)),1,VLOOKUP(C64,VAD_VARIOS!$C$5:$D$37,2,FALSE)) -> 1
A65: FALSE | B65: PL0223 | C65: HUANTA RURAL | D65: ELC | E65: 5 | F65: FALSE | G65: SEIN | H65: 5 | I65: Mantaro | J65: 220 | K65: =VLOOKUP(CONCATENATE(I65,"-",J65),PNG_Actualizado!$H$11:$V$111,10,FALSE)*IF(A65,FIGV,1) -> 25.91 | L65: =VLOOKUP(CONCATENATE(I65,"-",J65),PNG_Actualizado!$H$11:$V$111,11,FALSE)*IF(A65,FIGV,1) -> 12.63 | M65: =VLOOKUP(CONCATENATE(I65,"-",J65),PNG_Actualizado!$H$11:$V$111,12,FALSE)*IF(A65,FIGV,1) -> 10.58 | N65: 1.0224 | O65: 1.0248 | P65: 2.3908 | Q65: 26.552568 | R65: =+((L65-VLOOKUP(CONCATENATE(I65,"-",J65),PNG_Actualizado!$H$11:$O$111,8,FALSE))*N65+P65+VLOOKUP(CONCATENATE(I65,"-",J65),PNG_Actualizado!$H$11:$V$111,8,FALSE))+IF(G65="SEIN",Area_15,0)*IF(A65,FIGV,1) -> 15.367712 | S65: =+((M65-VLOOKUP(CONCATENATE(I65,"-",J65),PNG_Actualizado!$H$11:$O$111,8,FALSE))*N65+P65+VLOOKUP(CONCATENATE(I65,"-",J65),PNG_Actualizado!$H$11:$V$111,8,FALSE))+IF(G65="SEIN",Area_15,0)*IF(A65,FIGV,1) -> 13.271792 | T65: 20.71055794 | U65: =+PNG_Actualizado!$U$126 -> 71.77763636 | V65: 26.552568 | W65: 15.367712 | X65: 13.271792 | Y65: 20.71055794 | Z65: =+IF(ISERROR(VLOOKUP(C65,VAD_VARIOS!$C$5:$D$37,2,FALSE)),1,VLOOKUP(C65,VAD_VARIOS!$C$5:$D$37,2,FALSE)) -> 1
A66: FALSE | B66: PL0071 | C66: VALLE DEL MANTARO 1 | D66: ELC | E66: 4 | F66: FALSE | G66: SEIN | H66: 5 | I66: Huayucachi | J66: 220 | K66: =VLOOKUP(CONCATENATE(I66,"-",J66),PNG_Actualizado!$H$11:$V$111,10,FALSE)*IF(A66,FIGV,1) -> 25.91 | L66: =VLOOKUP(CONCATENATE(I66,"-",J66),PNG_Actualizado!$H$11:$V$111,11,FALSE)*IF(A66,FIGV,1) -> 12.73 | M66: =VLOOKUP(CONCATENATE(I66,"-",J66),PNG_Actualizado!$H$11:$V$111,12,FALSE)*IF(A66,FIGV,1) -> 10.66 | N66: 1.0224 | O66: 1.0248 | P66: 2.3908 | Q66: 26.552568 | R66: =+((L66-VLOOKUP(CONCATENATE(I66,"-",J66),PNG_Actualizado!$H$11:$O$111,8,FALSE))*N66+P66+VLOOKUP(CONCATENATE(I66,"-",J66),PNG_Actualizado!$H$11:$V$111,8,FALSE))+IF(G66="SEIN",Area_15,0)*IF(A66,FIGV,1) -> 15.469952 | S66: =+((M66-VLOOKUP(CONCATENATE(I66,"-",J66),PNG_Actualizado!$H$11:$O$111,8,FALSE))*N66+P66+VLOOKUP(CONCATENATE(I66,"-",J66),PNG_Actualizado!$H$11:$V$111,8,FALSE))+IF(G66="SEIN",Area_15,0)*IF(A66,FIGV,1) -> 13.353584 | T66: 20.79950674 | U66: =+PNG_Actualizado!$U$126 -> 71.77763636 | V66: 26.552568 | W66: 15.469952 | X66: 13.353584 | Y66: 20.79950674 | Z66: =+IF(ISERROR(VLOOKUP(C66,VAD_VARIOS!$C$5:$D$37,2,FALSE)),1,VLOOKUP(C66,VAD_VARIOS!$C$5:$D$37,2,FALSE)) -> 1
